Workbook

Sheet Tax (hidden)
A1: Tax Rates 2026
A3: Province | B3: Top marginal tax rate on capital gains | C3: Top marginal tax rate on non-eligible dividends | D3: Corporate investment income tax for CCPCs | E3: Top marginal tax rate on ordinary income | F3: Top marginal tax rate on eligible dividends
A4: None | B4: 25 | C4: 45 | D4: 50 | E4: 50 | F4: 35
A5: AB | B5: 24 | C5: 42.3 | D5: 46.67 | E5: 48 | F5: 34.31
A6: BC | B6: 26.75 | C6: 48.89 | D6: 50.67 | E6: 53.5 | F6: 36.54
A7: MB | B7: 25.2 | C7: 46.67 | D7: 50.67 | E7: 50.4 | F7: 37.78
A8: NB | B8: 26.65 | C8: 46.83 | D8: 52.67 | E8: 52.5 | F8: 32.4
A9: NL | B9: 27.4 | C9: 48.96 | D9: 53.67 | E9: 54.8 | F9: 46.2
A10: NS | B10: 27 | C10: 49.99 | D10: 52.67 | E10: 54 | F10: 41.58
A11: NT | B11: 23.53 | C11: 36.82 | D11: 50.17 | E11: 47.05 | F11: 28.33
A12: NU | B12: 22.25 | C12: 37.79 | D12: 50.67 | E12: 44.5 | F12: 33.08
A13: ON | B13: 26.77 | C13: 47.74 | D13: 50.17 | E13: 53.53 | F13: 39.34
A14: PE | B14: 26 | C14: 47.92 | D14: 54.67 | E14: 52 | F14: 36.54
A15: QC | B15: 26.66 | C15: 48.7 | D15: 50.17 | E15: 53.31 | F15: 40.11
A16: SK | B16: 23.75 | C16: 41.34 | D16: 50.67 | E16: 47.5 | F16: 29.64
A17: YT | B17: 24 | C17: 44.04 | D17: 50.67 | E17: 48 | F17: 28.92

Sheet User Guide
AN1: Term 10 policy | AO1: 2
AL4: BBS | AN4: csv
AL6: Positive income | AM6: Asset on balance sheet | AN6: CSV
AL7: =MATCH(TRUE,INDEX($Q34:$Q93>0,0),0) ->  | AM7: =MATCH(TRUE,INDEX(#REF!>0,0),0) ->  | AN7: =MATCH(TRUE,INDEX($P34:$P93>0,0),0) -> 
AL8: =IF(INDEX(F34:Q93,AL7,6)=""," ",INDEX(F34:Q93,AL7,6)) ->  | AM8: =IF(INDEX(F34:Q93,AM7,8)=""," ",INDEX(F34:Q93,AM7,8)) ->  | AN8: =IF(INDEX(F34:Q93,AN7,4)=""," ",INDEX(F34:Q93,AN7,4)) -> 
AL9: =COUNTIF($Q34:$Q93,">0") -> 0 | AM9: =COUNTIF(#REF!,">0") ->  | AN9: =COUNTIF($P34:$P93,">0") -> 0
AL11: BBS | AM11: Positive income | AN11: CSV | AP11: =UPPER(TEXT(TODAY(), "mmmmmmmmm dd, yyyy")) -> MAY 08, 2026 | AQ11: =UPPER(TEXT(TODAY(), "mmmmmmmmm dd, yyyy")) -> MAY 08, 2026
AL12: =MATCH(TRUE,INDEX($AE34:$AE93>0,0),0) ->  | AM12: =MATCH(TRUE,INDEX(#REF!>0,0),0) ->  | AN12: =MATCH(TRUE,INDEX($AD34:$AD93>0,0),0) ->  | AP12: 0 | AQ12: 0
AL13: =IF(INDEX(Y34:AE93,AL12,5)=""," ",INDEX(Y34:AE93,AL12,5)) ->  | AM13: =IF(INDEX(Y34:AE93,AM12,6)=""," ",INDEX(Y34:AE93,AM12,6)) ->  | AN13: =IF(INDEX(Y34:AE93,AN12,4)=""," ",INDEX(Y34:AE93,AN12,4)) -> 
AL14: =COUNTIF($AE34:$AE93,">0") -> 0 | AM14: =COUNTIF(#REF!,">0") ->  | AN14: =COUNTIF($AD34:$AD93,">0") -> 0

Sheet Introduction Page
U6: Asset on balance sheet
U7: =MATCH(TRUE,INDEX(#REF!>0,0),0) -> 
U8: =IF(INDEX(H17:O40,U7,8)=""," ",INDEX(H17:O40,U7,8)) -> 
U9: =COUNTIF(#REF!,">0") -> 
D12: Permanent life insurance has always been an exceptional estate planning tool, and in this presentation, we will evaluate the additional merits of permanent life insurance as an asset class.
D13: =UPPER("An introduction to permanent life insurance") -> AN INTRODUCTION TO PERMANENT LIFE INSURANCE | U13: Positive income | X13: =UPPER(TEXT(TODAY(), "mmmmmmmmm dd, yyyy")) -> MAY 08, 2026 | Y13: =UPPER(TEXT(TODAY(), "mmmmmmmmm dd, yyyy")) -> MAY 08, 2026
D15: Permanent life insurance demonstrates all essential characteristics of an asset class, operating within a comprehensive regulatory framework. What distinguishes it is its unique dual nature: simultaneously providing mortality protection and wealth accumulation. When structured and funded appropriately, it functions as a tax-advantaged wealth vehicle. The death benefit offers estate liquidity and legacy planning, and the cash value provides growth potential, portfolio diversification, and capital access. This is all within a tax-preferred structure that can enhance after-tax returns relative to comparable taxable investments. Participating whole life insurance (Par) represents the permanent insurance planning that many advisors and clients are more familiar with. It provides guaranteed lifetime coverage supported by three key guarantees: premium amounts, minimum cash values, and death benefit levels. These guarantees remain in force provided the policyowner maintains the required premium payments. Universal life insurance (UL) offers a different structure characterized by greater transparency and flexibility compared to Par. It clearly separates insurance charges from the investment component, creating transparency that enables policyowners to track precisely how their deposits flow through the policy.
S18: `
K23: Note: The diversified asset mix is calculated as of year 1, using the sum of all insurance premiums. This calculation does not factor in any investment growth, additional funding, rebalancing, or insurance benefits.
D26: To achieve the same net to estate benefits as a portfolio diversified with insurance, other asset classes may require higher rates of return. | L26: =IF(Calculations!AT44=TRUE,IFERROR(Scenario1!EJ1,""),IFERROR(Scenario1!EJ1,"") &IFERROR(" and "&Scenario2!EJ1,"")) -> Sun Par Protector II and SunUniversalLife II
M27: Client’s current portfolio | N27: Portfolio diversified with insurance
K28: Initial value | M28: =TEXT(Calculations!AT50,"#,###,###") -> 5,000,000 | N28: =TEXT(Calculations!AU66,"#,###,###")&" Remaining investment " -> 4,100,004 Remaining investment
M29: Investment value | N29: =TEXT(IFERROR(Calculations!BA4,0)+IFERROR(Calculations!BA5,0),"#,###,###")&" Death benefit" -> 2,202,939 Death benefit
K30: Initial annual premium/ payment | M30: - | N30: =TEXT(IFERROR(Scenario1!EJ7,0)+IFERROR(Scenario2!EJ7,0),"#,###,###") -> 90,000
K31: ="Collateral value in year "&(Calculations!AS12) -> Collateral value in year 25 | M31: =VLOOKUP(Calculations!AS12,'Summary Page'!D26:J125,4) -> 7066197.438 | O31: =VLOOKUP(Calculations!AS12,'Summary Page'!D26:O125,12) -> 7221954.996
K32: =IF(Calculations!AT35=TRUE,"Corporate value in year ","Asset value in year ")&(Calculations!AS2) -> Corporate value in year 35 | M32: =TEXT(IFERROR(VLOOKUP(Calculations!AS2,'Summary Page'!D26:X125,3),0),"#,###,###") -> 17,985,787 | N32: =TEXT(IFERROR(VLOOKUP(Calculations!AS2,'Summary Page'!D26:X125,14),0),"#,###,###")&" Remaining investment " -> 15,542,915 Remaining investment
M33: Investment value | N33: =TEXT(Calculations!BA7+Calculations!BA8,"#,###,###")&" Cash surrender value" -> 2,439,089 Cash surrender value
K34: =IF(Calculations!AT35=TRUE,"Capital dividend account in year "&(Calculations!AS2),"Collateral value in year "&(Calculations!AS2)) -> Capital dividend account in year 35 | M34: =IF(Calculations!AT35=TRUE,VLOOKUP(Calculations!AS2,'Summary Page'!D26:J125,5),VLOOKUP(Calculations!AS2,'Summary Page'!D26:J125,4)) -> 5206925.589 | O34: =IF(Calculations!AT35=TRUE,VLOOKUP(Calculations!AS2,'Summary Page'!D26:T125,17),VLOOKUP(Calculations!AS2,'Summary Page'!D26:O125,12)) -> 8851177.422
K35: ="Net to estate in year "&Calculations!AS2 -> Net to estate in year 35 | M35: =VLOOKUP(Calculations!AS2,'Summary Page'!D28:J128,6) -> 14671362.11 | O35: =IFERROR(VLOOKUP(Calculations!AS2,'Summary Page'!D26:X125,20),0) -> 16959318.43
K36: ="IRR in year "&Calculations!AS2 -> IRR in year 35 | M36: =VLOOKUP(Calculations!AS2,'Summary Page'!D28:J128,7) -> 0.03123383814 | O36: =IFERROR(VLOOKUP(Calculations!AS2,'Summary Page'!D26:X125,21),0) -> 0.03551258777
K37: =CONCATENATE("The collateral values are based on the following loan-to-value ratios: ",Calculations!BA51,Calculations!BA52,Calculations!BA53,Calculations!BA54,Calculations!BA55,Calculations!AZ53)&". This tool's calculation excludes post-mortem planning strategies and related considerations." -> The collateral values are based on the following loan-to-value ratios: 100% cash, 90% fixed income, 50% equities, 65% real estate, 0% alternative investments, 90% Par cash surrender value and 75% UL cash surrender value. This tool's calculation excludes post-mortem planning strategies and related considerations.

Sheet Introduction Page (2)
D12: Let’s compare the client’s current portfolio to one diversified with insurance and see how they perform in three areas: relative levels of risk, estate benefits, and liquidity as an interim benefit.
AC13: =UPPER(TEXT(TODAY(), "mmmmmmmmm dd, yyyy")) -> MAY 08, 2026 | AD13: =UPPER(TEXT(TODAY(), "mmmmmmmmm dd, yyyy")) -> MAY 08, 2026
E14: =UPPER("Capital preservation and risk analysis") -> CAPITAL PRESERVATION AND RISK ANALYSIS | J14: =UPPER("Estate value analysis ") -> ESTATE VALUE ANALYSIS | P14: LIQUIDITY ANALYSIS
D15: IMPACT ON INVESTMENT RISK AND VOLATILITY
D16: =CONCATENATE("Let’s examine the client’s potential future portfolio asset mix and its risk/return profile."," For this analysis, we assume the client’s current non-registered investment portfolio remains unchanged, with no rebalancing or divesting occurring."," For the portfolio diversified with insurance, we assume the existing investment portfolio is used to fund all insurance premiums.") -> Let’s examine the client’s potential future portfolio asset mix and its risk/return profile. For this analysis, we assume the client’s current non-registered investment portfolio remains unchanged, with no rebalancing or divesting occurring. For the portfolio diversified with insurance, we assume the existing investment portfolio is used to fund all insurance premiums. | E16: =CONCATENATE("When comparing portfolios, the question transcends simple return maximization."," “Which portfolio earns more?” becomes less relevant than “Which portfolio demonstrates superior resilience?”"," Standard deviation provides a straightforward measure of this robustness, quantifying how much portfolio values fluctuate around average returns.") -> When comparing portfolios, the question transcends simple return maximization. “Which portfolio earns more?” becomes less relevant than “Which portfolio demonstrates superior resilience?” Standard deviation provides a straightforward measure of this robustness, quantifying how much portfolio values fluctuate around average returns. | J16: Permanent life insurance demonstrates all essential characteristics of an asset class, operating within a comprehensive regulatory framework. What distinguishes it is its unique dual nature: simultaneously providing mortality protection and wealth accumulation. When structured and funded appropriately, it functions as a tax-advantaged wealth vehicle. The death benefit offers estate liquidity and legacy planning, and the cash value provides growth potential, portfolio diversification, and capital access. This is all within a tax-preferred structure that can enhance after-tax returns relative to comparable taxable investments. | P16: A common concern among clients contemplating permanent insurance centers on liquidity reduction. The perception is that allocating capital to insurance inevitably diminishes access to funds. Comparing collateral value often reveals a more nuanced reality. Permanent insurance offer several main options for accessing liquidity: 1. Policy loans: Insurers offer policy loans against the policy’s cash values. However, these may have tax consequences. 2. Third-party collateral loans: Clients may use the policy’s cash value as collateral to borrow from a third party. 3. Partial or full withdrawals: Clients may withdraw partially or fully from the policy, collecting the cash surrender values. This option may also have tax consequences.
E20: =CONCATENATE("With exceptionally low correlation to typical assets, insurance can often reduce overall portfolio volatility while maintaining or enhancing expected internal rate of return (IRR)."," The lower standard deviation means the portfolio diversified with insurance experiences less extreme swings in value, providing more consistent growth even during market downturns.") -> With exceptionally low correlation to typical assets, insurance can often reduce overall portfolio volatility while maintaining or enhancing expected internal rate of return (IRR). The lower standard deviation means the portfolio diversified with insurance experiences less extreme swings in value, providing more consistent growth even during market downturns.
F23: ='Introduction Page'!$M$27 -> Client’s current portfolio | G23: ='Introduction Page'!$N$27 -> Portfolio diversified with insurance
E24: ="IRR in year "&Calculations!$AS$2 -> IRR in year 35 | F24: ='Introduction Page'!$M$36 -> 0.03123383814 | G24: ='Introduction Page'!$O$36 -> 0.03551258777
E25: Standard deviation | F25: ='Portfolio Risk'!$A$41/100 -> 0.07349094705 | G25: ='Portfolio Risk'!$A$45/100 -> 0.07279148499
E27: =CONCATENATE("With a starting portfolio size of ",TEXT(Calculations!AT50,"$0,000"),", how might the changing IRR and standard deviation affect the portfolio's growth trajectory over time?") -> With a starting portfolio size of $5,000,000, how might the changing IRR and standard deviation affect the portfolio's growth trajectory over time? | J27: =CONCATENATE("By diversifying an investment portfolio with insurance, the clients could potentially save ",TEXT(Calculations!DX2,"$#,###,##0")," in taxes — ",TEXT(Calculations!DV2,"$#,###,##0")," during their lifetime and ",TEXT(Calculations!DW2,"$#,###,##0")," upon death in year ",Calculations!AS2,".") -> By diversifying an investment portfolio with insurance, the clients could potentially save $1,881,240 in taxes — $771,286 during their lifetime and $1,109,955 upon death in year 35.
M30: Tax on death
K31: Current portfolio | M31: =TEXT(Calculations!DT2,"$#,###,##0") -> $7,397,642
K33: =TEXT(Calculations!DT1,"$#,###,##0")&" tax on income" -> $5,642,085 tax on income | M33: Net to estate
M34: =TEXT('Introduction Page'!M35,"$#,###,##0") -> $14,671,362
K36: Diversified portfolio
M37: Tax on death | P37: In addition, UL has built-in liquidity features where clients can withdraw a portion of their investment account while disabled, ill, or injured, all tax-free under current tax rules. Similarly, for joint-last-to-die policies, the surviving policyowner can access up to 100% of the investment account tax-free at the loss of the first spouse. Par clients have the option to receive par dividends as cash.
K38: =TEXT(Calculations!DN1,"$#,###,##0")&" tax on income" -> $4,870,799 tax on income | M38: =TEXT(Calculations!DN2,"$#,###,##0") -> $6,287,687
K40: Insurance | M40: Net to estate
M41: =TEXT('Introduction Page'!O35,"$#,###,##0") -> $16,959,318
K42: No tax on growth
P43: Par policies allow clients to receive par dividends in cash.

Sheet Summary Page
Z1: =IF(AND(Scenario1!EL1=Scenario2!EL1,Scenario1!EL2=Scenario2!EL2,Scenario1!EL3=Scenario2!EL3,Scenario1!EM2=Scenario2!EM2,Scenario1!EM3=Scenario2!EM3,Scenario1!EN2=Scenario2!EN2,Scenario1!EN3=Scenario2!EN3),1,0) -> 1
D5: Assumptions
D6: Investment Initial Balance | I6: =Calculations!AT50 -> 5000000
F8: Current portfolio | I8: Diversified with insurance | L8: Loan-to-value ratio | M8: Return | N8: Std Dev | Q8: Product Name | U8: =IFERROR(IF(AND(Calculations!AU13="1",Calculations!AT35=FALSE),"",Scenario1!EJ1),"") -> Sun Par Protector II | V8: =IFERROR(IF(AND(Calculations!AU13="1",Calculations!AT35=FALSE),Scenario1!EJ1,""),"") ->  | X8: =IF(Calculations!AT43=TRUE,Scenario2!EJ1,"") -> SunUniversalLife II
D9: Cash | G9: =Calculations!$AT$51/100 -> 0.26 | I9: =Calculations!AU67 -> 0.26 | L9: =Calculations!$AY$51 -> 1 | M9: =Calculations!$AU$51/100 -> 0.0275 | N9: =Calculations!$AV$51/100 -> 0.0069 | Q9: Interest Rate/Dividend Scale | U9: =IF(AND(Calculations!AU13="1",Calculations!AT35=FALSE),"",Scenario1!EJ6&Scenario1!EJ20) -> Current minus 1% | V9: =IF(AND(Calculations!AU13="1",Calculations!AT35=FALSE),Scenario1!EJ6&Scenario1!EJ20,"") ->  | X9: =IF(Calculations!AT43=TRUE,Scenario2!EJ6&Scenario2!EJ20,"") -> Primary rate 5.90%
D10: Fixed Income | G10: =Calculations!$AT$52/100 -> 0.18 | I10: =Calculations!AU68 -> 0.06400078 | L10: =Calculations!$AY$52 -> 0.9 | M10: =Calculations!$AU$52/100 -> 0.0375 | N10: =Calculations!$AV$52/100 -> 0.0507 | Q10: Initial Total Premium/ Payment | U10: =IFERROR(IF(AND(Calculations!AU13="1",Calculations!AT35=FALSE),"",Scenario1!EJ7),"") -> 50000 | V10: =IFERROR(IF(AND(Calculations!AU13="1",Calculations!AT35=FALSE),Scenario1!EJ7,""),"") ->  | X10: =IF(Calculations!AT43=TRUE,Scenario2!EJ7,"") -> 40000
D11: Equities | G11: =Calculations!$AT$53/100 -> 0.22 | I11: =Calculations!AU71 -> 0.156 | L11: =Calculations!$AY$53 -> 0.5 | M11: =Calculations!$AU$53/100 -> 0.0641 | N11: =Calculations!$AV$53/100 -> 0.1363 | Q11: Initial Face Amount | U11: =IFERROR(IF(AND(Calculations!AU13="1",Calculations!AT35=FALSE),"",Scenario1!EJ10),"") -> 940796 | V11: =IFERROR(IF(AND(Calculations!AU13="1",Calculations!AT35=FALSE),Scenario1!EJ10,""),"") ->  | X11: =IF(Calculations!AT43=TRUE,Scenario2!EJ10,"") -> 1262143
D12: Real Estate | G12: =Calculations!$AT$54/100 -> 0.19 | I12: =Calculations!AU72 -> 0.19 | L12: =Calculations!$AY$54 -> 0.65 | M12: =Calculations!$AU$54/100 -> 0.0719 | N12: =Calculations!$AV$54/100 -> 0.1572 | Q12: =IF(Calculations!$AT$35=TRUE,"Corporate Investment Tax Rate","Marginal Tax Rate on Income") -> Corporate Investment Tax Rate | U12: =IF(AND(Calculations!AU13="1",Calculations!AT35=FALSE),"",IF(Calculations!AT35=TRUE,Calculations!AT37/100,Calculations!AT39/100)) -> 0.4667 | V12: =IF(AND(Calculations!AU13="1",Calculations!AT35=FALSE),IF(Calculations!AT35=TRUE,Calculations!AT37/100,Calculations!AT39/100),"") -> 
D13: Alternative Investment | G13: =Calculations!$AT$55/100 -> 0.15 | I13: =Calculations!AU73 -> 0.15 | L13: =Calculations!$AY$55 -> 0 | M13: =Calculations!$AU$55/100 -> 0.0515 | N13: =Calculations!$AV$55/100 -> 0.2106 | Q13: =IF(Calculations!$AT$35=TRUE,"Shareholder Dividend Tax Rate","Marginal Tax Rate on Dividend") -> Shareholder Dividend Tax Rate | U13: =IF(AND(Calculations!AU13="1",Calculations!AT35=FALSE),"",IF(Calculations!AT35=TRUE,Calculations!AT38/100,Calculations!AT38/100)) -> 0.423 | V13: =IF(AND(Calculations!AU13="1",Calculations!AT35=FALSE),IF(Calculations!AT35=TRUE,Calculations!AT38/100,Calculations!AT38/100),"") -> 
D14: =Calculations!AS69 -> Par | J14: =Calculations!AU69 -> 0.09999922 | L14: =IF(Calculations!$AZ$4="YES",Calculations!$AZ$51,Calculations!$AZ$52) -> 0.9
D15: =Calculations!AS70 -> UL | J15: =IF(D15<>"",Calculations!AU70,"") -> 0.08 | L15: =IF($D$15<>"",IF(Calculations!$AZ$5="YES",Calculations!$AZ$51,Calculations!$AZ$52),"") -> 0.75
D17: Comparison of values
D18: =IFERROR(CONCATENATE("The following ledger provides a comparison between two portfolios: the client’s current non-registered investment portfolio without additional funding, rebalancing, or divesting, and a portfolio diversified with ",IF(Calculations!AT43=TRUE,Scenario1!EJ1&" and "&Scenario2!EJ1,Scenario1!EJ1)," for a ",IF(Calculations!AS29="",Calculations!AT28&"-year-old "&Calculations!AV28&" "&Calculations!AU28,Calculations!AT28&"-year-old "&Calculations!AV28&" "&Calculations!AU28&" and "&Calculations!AT29&"-year-old "&Calculations!AV29&" "&Calculations!AU29),IF(Calculations!AT35=TRUE," corporate policy."," personal policy.")),"") -> The following ledger provides a comparison between two portfolios: the client’s current non-registered investment portfolio without additional funding, rebalancing, or divesting, and a portfolio diversified with Sun Par Protector II and SunUniversalLife II for a 55-year-old male non-smoker and 50-year-old female non-smoker corporate policy.
L19: ='Introduction Page'!L26 -> Sun Par Protector II and SunUniversalLife II
F21: ='Introduction Page'!M27 -> Client’s current portfolio | M21: Collateral value | Q21: Estate value
F22: Portfolio | G22: Total | I22: Net | J22: IRR on | L22: Transfer to | M22: Remaining | N22: Cash | O22: Total | Q22: Remaining | R22: =IF(Calculations!AZ4="Yes","Par","UL") -> Par | S22: =IF(Calculations!AZ5="Yes","Par","UL") -> UL | U22: Asset | V22: Insurance | W22: Total | X22: IRR on
F23: Asset | G23: Collateral | H23: Total | I23: to | J23: Net to | L23: Insurance | M23: Portfolio | N23: Value | O23: Collateral | Q23: Asset | R23: Death | S23: Death | T23: Total | U23: Net to | V23: Net to | W23: Net to | X23: Net to
D24: =Calculations!A2 -> Year | E24: Age | F24: Balance | G24: Available | H24: CDA | I24: Estate | J24: Estate | L24: (Premium) | M24: Collateral | N24: Collateral | O24: Available | Q24: Balance | R24: Benefit | S24: Benefit | T24: CDA | U24: Estate | V24: Estate | W24: Estate | X24: Estate | AD24: =MIN(_xlfn.ANCHORARRAY(AD26),_xlfn.ANCHORARRAY(AE26)) -> 4752837.452 | AK24: =MIN(_xlfn.ANCHORARRAY(AK26),_xlfn.ANCHORARRAY(AL26)) -> 3681969.267
D26: 1 | E26: =IFERROR(Calculations!$AT$28+D26,0) -> 56 | F26: =Calculations!AE3 -> 5184851.368 | G26: =Calculations!AF3 -> 3375919.467 | H26: =IFERROR(Calculations!AG3,0) -> 61095 | I26: =Calculations!AM3 -> 3038201.395 | J26: =IFERROR(Calculations!AO3,0) -> -0.3923597211 | L26: =IFERROR(Calculations!B3,0)+IFERROR(Calculations!H3,0) -> 89999.61 | M26: =Calculations!O3 -> 3305805.877 | N26: =Calculations!P3 -> 28111.35 | O26: =Calculations!Q3 -> 3333917.227 | Q26: =Calculations!R3 -> 5091951.811 | R26: =IFERROR(Calculations!E3,0) -> 1041327 | S26: =IFERROR(Calculations!K3,0) -> 1289846 | T26: =IFERROR(Calculations!S3,0) -> 2302803.58 | U26: =Calculations!Y3 -> 2983800.578 | V26: =IFERROR(Calculations!G3,0)+IFERROR(Calculations!M3,0) -> 2293628.019 | W26: =Calculations!AA3 -> 5277428.597 | X26: =IFERROR(Calculations!AC3,0) -> 0.05548571933 | AC26: =OFFSET(E26,65-E26,0,36,1) -> 65 | AD26: =OFFSET(I26,65-E26,0,36,1) -> 4752837.452 | AE26: =OFFSET(W26,65-E26,0,36,1) -> 7287391.712 | AG26: 5 | AH26: =VLOOKUP(AG26,D26:O125,4,FALSE) -> 3795633.811 | AI26: =VLOOKUP(AG26,D26:O125,12,FALSE) -> 3681969.267 | AJ26: =OFFSET(AG26,0,0,Calculations!AS2/5,1) -> 5 | AK26: =OFFSET(AH26,0,0,Calculations!AS2/5,1) -> 3795633.811 | AL26: =OFFSET(AI26,0,0,Calculations!AS2/5,1) -> 3681969.267
D27: 2 | E27: =IFERROR(Calculations!$AT$28+D27,0) -> 57 | F27: =Calculations!AE4 -> 5373594.624 | G27: =Calculations!AF4 -> 3476602.593 | H27: =IFERROR(Calculations!AG4,0) -> 125400.8022 | I27: =Calculations!AM4 -> 3198309.025 | J27: =IFERROR(Calculations!AO4,0) -> -0.2002113997 | L27: =IFERROR(Calculations!B4,0)+IFERROR(Calculations!H4,0) -> 89999.61 | M27: =Calculations!O4 -> 3334294.702 | N27: =Calculations!P4 -> 78615.15 | O27: =Calculations!Q4 -> 3412909.852 | Q27: =Calculations!R4 -> 5184580.582 | R27: =IFERROR(Calculations!E4,0) -> 1141557 | S27: =IFERROR(Calculations!K4,0) -> 1319184 | T27: =IFERROR(Calculations!S4,0) -> 2406966.635 | U27: =Calculations!Y4 -> 3086938.224 | V27: =IFERROR(Calculations!G4,0)+IFERROR(Calculations!M4,0) -> 2385861.54 | W27: =Calculations!AA4 -> 5472799.764 | X27: =IFERROR(Calculations!AC4,0) -> 0.04621219296 | AC27: 66 | AD27: 4985659.584 | AE27: 7482583.502 | AG27: =AG26+5 -> 10 | AH27: =VLOOKUP(AG27,D27:O126,4,FALSE) -> 4400845.567 | AI27: =VLOOKUP(AG27,D27:O126,12,FALSE) -> 4307803.197 | AJ27: 10 | AK27: 4400845.567 | AL27: 4307803.197
D28: 3 | E28: =IFERROR(Calculations!$AT$28+D28,0) -> 58 | F28: =Calculations!AE5 -> 5567087.876 | G28: =Calculations!AF5 -> 3579905.94 | H28: =IFERROR(Calculations!AG5,0) -> 192985.2703 | I28: =Calculations!AM5 -> 3365475.068 | J28: =IFERROR(Calculations!AO5,0) -> -0.123620673 | L28: =IFERROR(Calculations!B5,0)+IFERROR(Calculations!H5,0) -> 89999.61 | M28: =Calculations!O5 -> 3363324.447 | N28: =Calculations!P5 -> 132210.15 | O28: =Calculations!Q5 -> 3495534.597 | Q28: =Calculations!R5 -> 5278766.169 | R28: =IFERROR(Calculations!E5,0) -> 1241605 | S28: =IFERROR(Calculations!K5,0) -> 1350252 | T28: =IFERROR(Calculations!S5,0) -> 2515629.276 | U28: =Calculations!Y5 -> 3194453.647 | V28: =IFERROR(Calculations!G5,0)+IFERROR(Calculations!M5,0) -> 2479838.356 | W28: =Calculations!AA5 -> 5674292.003 | X28: =IFERROR(Calculations!AC5,0) -> 0.04307105083 | AC28: 67 | AD28: 5228216.894 | AE28: 7689638.065 | AG28: =AG27+5 -> 15 | AH28: 5125118.613 | AI28: 5142547.712 | AJ28: 15 | AK28: 5125118.613 | AL28: 5142547.712
D29: 4 | E29: =IFERROR(Calculations!$AT$28+D29,0) -> 59 | F29: =Calculations!AE6 -> 5766094.493 | G29: =Calculations!AF6 -> 3686151.258 | H29: =IFERROR(Calculations!AG6,0) -> 263934.843 | I29: =Calculations!AM6 -> 3539887.975 | J29: =IFERROR(Calculations!AO6,0) -> -0.08271376066 | L29: =IFERROR(Calculations!B6,0)+IFERROR(Calculations!H6,0) -> 89999.61 | M29: =Calculations!O6 -> 3393197.496 | N29: =Calculations!P6 -> 193932.15 | O29: =Calculations!Q6 -> 3587129.646 | Q29: =Calculations!R6 -> 5375252.518 | R29: =IFERROR(Calculations!E6,0) -> 1341569 | S29: =IFERROR(Calculations!K6,0) -> 1383154 | T29: =IFERROR(Calculations!S6,0) -> 2629045.433 | U29: =Calculations!Y6 -> 3306425.414 | V29: =IFERROR(Calculations!G6,0)+IFERROR(Calculations!M6,0) -> 2575764.396 | W29: =Calculations!AA6 -> 5882189.81 | X29: =IFERROR(Calculations!AC6,0) -> 0.04145919219 | AC29: 68 | AD29: 5480925.216 | AE29: 7908967.552 | AG29: 20 | AH29: 6000876.616 | AI29: 6073806.386 | AJ29: 20 | AK29: 6000876.616 | AL29: 6073806.386
D30: 5 | E30: =IFERROR(Calculations!$AT$28+D30,0) -> 60 | F30: =Calculations!AE7 -> 5971304.67 | G30: =Calculations!AF7 -> 3795633.811 | H30: =IFERROR(Calculations!AG7,0) -> 338352.4125 | I30: =Calculations!AM7 -> 3721768.469 | J30: =IFERROR(Calculations!AO7,0) -> -0.05733828404 | L30: =IFERROR(Calculations!B7,0)+IFERROR(Calculations!H7,0) -> 89999.61 | M30: =Calculations!O7 -> 3424174.167 | N30: =Calculations!P7 -> 257795.1 | O30: =Calculations!Q7 -> 3681969.267 | Q30: =Calculations!R7 -> 5474679.621 | R30: =IFERROR(Calculations!E7,0) -> 1441575 | S30: =IFERROR(Calculations!K7,0) -> 1417997 | T30: =IFERROR(Calculations!S7,0) -> 2747559.221 | U30: =Calculations!Y7 -> 3422964.131 | V30: =IFERROR(Calculations!G7,0)+IFERROR(Calculations!M7,0) -> 2673894.623 | W30: =Calculations!AA7 -> 6096858.754 | X30: =IFERROR(Calculations!AC7,0) -> 0.04046440168 | AC30: 69 | AD30: 5744222.918 | AE30: 8141056.193 | AG30: 25 | AH30: 7066197.438 | AI30: 7221954.996 | AJ30: 25 | AK30: 7066197.438 | AL30: 7221954.996
D31: 6 | E31: =IFERROR(Calculations!$AT$28+D31,0) -> 61 | F31: =Calculations!AE8 -> 6183352.97 | G31: =Calculations!AF8 -> 3908629.174 | H31: =IFERROR(Calculations!AG8,0) -> 416355.6804 | I31: =Calculations!AM8 -> 3911366.455 | J31: =IFERROR(Calculations!AO8,0) -> -0.04009905974 | L31: =IFERROR(Calculations!B8,0)+IFERROR(Calculations!H8,0) -> 89999.61 | M31: =Calculations!O8 -> 3456483.171 | N31: =Calculations!P8 -> 331701.3 | O31: =Calculations!Q8 -> 3788184.471 | Q31: =Calculations!R8 -> 5577608.404 | R31: =IFERROR(Calculations!E8,0) -> 1541767 | S31: =IFERROR(Calculations!K8,0) -> 1454896 | T31: =IFERROR(Calculations!S8,0) -> 2871583.392 | U31: =Calculations!Y8 -> 3544208.008 | V31: =IFERROR(Calculations!G8,0)+IFERROR(Calculations!M8,0) -> 2774522.008 | W31: =Calculations!AA8 -> 6318730.016 | X31: =IFERROR(Calculations!AC8,0) -> 0.03978440431 | AC31: 70 | AD31: 6018571.288 | AE31: 8386473.604 | AG31: 30 | AH31: 8368025.684 | AI31: 8640928.865 | AJ31: 30 | AK31: 8368025.684 | AL31: 8640928.865
D32: 7 | E32: =IFERROR(Calculations!$AT$28+D32,0) -> 62 | F32: =Calculations!AE9 -> 6402832.638 | G32: =Calculations!AF9 -> 4025398.779 | H32: =IFERROR(Calculations!AG9,0) -> 498075.903 | I32: =Calculations!AM9 -> 4108958.673 | J32: =IFERROR(Calculations!AO9,0) -> -0.0276489 | L32: =IFERROR(Calculations!B9,0)+IFERROR(Calculations!H9,0) -> 89999.61 | M32: =Calculations!O9 -> 3490329.765 | N32: =Calculations!P9 -> 411273.45 | O32: =Calculations!Q9 -> 3901603.215 | Q32: =Calculations!R9 -> 5684540.249 | R32: =IFERROR(Calculations!E9,0) -> 1642227 | S32: =IFERROR(Calculations!K9,0) -> 1493971 | T32: =IFERROR(Calculations!S9,0) -> 3001458.94 | U32: =Calculations!Y9 -> 3670319.481 | V32: =IFERROR(Calculations!G9,0)+IFERROR(Calculations!M9,0) -> 2877870.999 | W32: =Calculations!AA9 -> 6548190.48 | X32: =IFERROR(Calculations!AC9,0) -> 0.03928796932 | AC32: 71 | AD32: 6304455.062 | AE32: 8645714.494 | AG32: 35 | AH32: =VLOOKUP(AG32,D32:O134,4,FALSE) -> 9965082.496 | AI32: =VLOOKUP(AG32,D32:O134,12,FALSE) -> 10393843.7 | AJ32: 35 | AK32: 9965082.496 | AL32: 10393843.7
D33: 8 | E33: =IFERROR(Calculations!$AT$28+D33,0) -> 63 | F33: =Calculations!AE10 -> 6630307.313 | G33: =Calculations!AF10 -> 4146194.477 | H33: =IFERROR(Calculations!AG10,0) -> 583656.9528 | I33: =Calculations!AM10 -> 4314846.954 | J33: =IFERROR(Calculations!AO10,0) -> -0.01825335915 | L33: =IFERROR(Calculations!B10,0)+IFERROR(Calculations!H10,0) -> 89999.61 | M33: =Calculations!O10 -> 3525902.143 | N33: =Calculations!P10 -> 507877.2 | O33: =Calculations!Q10 -> 4033779.343 | Q33: =Calculations!R10 -> 5795932.382 | R33: =IFERROR(Calculations!E10,0) -> 1743114 | S33: =IFERROR(Calculations!K10,0) -> 1535353 | T33: =IFERROR(Calculations!S10,0) -> 3137675.208 | U33: =Calculations!Y10 -> 3801482.683 | V33: =IFERROR(Calculations!G10,0)+IFERROR(Calculations!M10,0) -> 2984274.853 | W33: =Calculations!AA10 -> 6785757.535 | X33: =IFERROR(Calculations!AC10,0) -> 0.03891147139 | AC33: 72 | AD33: 6602383.09 | AE33: 8918935.279 | AG33: 40 | AH33: 11931150.71 | AI33: 12552118.96
D34: 9 | E34: =IFERROR(Calculations!$AT$28+D34,0) -> 64 | F34: =Calculations!AE11 -> 6866320.655 | G34: =Calculations!AF11 -> 4271262.297 | H34: =IFERROR(Calculations!AG11,0) -> 673254.6401 | I34: =Calculations!AM11 -> 4529356.981 | J34: =IFERROR(Calculations!AO11,0) -> -0.01092410823 | L34: =IFERROR(Calculations!B11,0)+IFERROR(Calculations!H11,0) -> 89999.61 | M34: =Calculations!O11 -> 3563376.483 | N34: =Calculations!P11 -> 602384.7 | O34: =Calculations!Q11 -> 4165761.183 | Q34: =Calculations!R11 -> 5912210.074 | R34: =IFERROR(Calculations!E11,0) -> 1844585 | S34: =IFERROR(Calculations!K11,0) -> 1579175 | T34: =IFERROR(Calculations!S11,0) -> 3280728.274 | U34: =Calculations!Y11 -> 3937901.565 | V34: =IFERROR(Calculations!G11,0)+IFERROR(Calculations!M11,0) -> 3094065.374 | W34: =Calculations!AA11 -> 7031966.938 | X34: =IFERROR(Calculations!AC11,0) -> 0.03861911901 | AC34: 73 | AD34: 6912889.11 | AE34: 9206759.838 | AG34: 45 | AH34: 14359092.51 | AI34: 15240931.14
D35: 10 | E35: =IFERROR(Calculations!$AT$28+D35,0) -> 65 | F35: =Calculations!AE12 -> 7111404.285 | G35: =Calculations!AF12 -> 4400845.567 | H35: =IFERROR(Calculations!AG12,0) -> 767036.2463 | I35: =Calculations!AM12 -> 4752837.452 | J35: =IFERROR(Calculations!AO12,0) -> -0.005056782648 | L35: =IFERROR(Calculations!B12,0)+IFERROR(Calculations!H12,0) -> 89999.61 | M35: =Calculations!O12 -> 3602920.947 | N35: =Calculations!P12 -> 704882.25 | O35: =Calculations!Q12 -> 4307803.197 | Q35: =Calculations!R12 -> 6033776.36 | R35: =IFERROR(Calculations!E12,0) -> 1946794 | S35: =IFERROR(Calculations!K12,0) -> 1625584 | T35: =IFERROR(Calculations!S12,0) -> 3431153.095 | U35: =Calculations!Y12 -> 4079798.549 | V35: =IFERROR(Calculations!G12,0)+IFERROR(Calculations!M12,0) -> 3207593.163 | W35: =Calculations!AA12 -> 7287391.712 | X35: =IFERROR(Calculations!AC12,0) -> 0.03838931597 | AC35: 74 | AD35: 7236532.625 | AE35: 9509846.415 | AG35: 50 | AH35: 17365880.86 | AI35: 18467597.18
D36: 11 | E36: =IFERROR(Calculations!$AT$28+D36,0) -> 66 | F36: =Calculations!AE13 -> 7366084.388 | G36: =Calculations!AF13 -> 4535187.523 | H36: =IFERROR(Calculations!AG13,0) -> 865180.2337 | I36: =Calculations!AM13 -> 4985659.584 | J36: =IFERROR(Calculations!AO13,0) -> -0.0002610753625 | L36: =IFERROR(Calculations!B13,0)+IFERROR(Calculations!H13,0) -> 0 | M36: =Calculations!O13 -> 3715299.686 | N36: =Calculations!P13 -> 740628.6 | O36: =Calculations!Q13 -> 4455928.286 | Q36: =Calculations!R13 -> 6254893.806 | R36: =IFERROR(Calculations!E13,0) -> 1928567 | S36: =IFERROR(Calculations!K13,0) -> 1633641 | T36: =IFERROR(Calculations!S13,0) -> 3517558.861 | U36: =Calculations!Y13 -> 4281814.408 | V36: =IFERROR(Calculations!G13,0)+IFERROR(Calculations!M13,0) -> 3200769.093 | W36: =Calculations!AA13 -> 7482583.502 | X36: =IFERROR(Calculations!AC13,0) -> 0.03732896841 | AC36: 75 | AD36: 7573899.88 | AE36: 9828802.615 | AG36: 55 | AH36: 21098942.37 | AI36: 22487408.36
D37: 12 | E37: =IFERROR(Calculations!$AT$28+D37,0) -> 67 | F37: =Calculations!AE14 -> 7630887.239 | G37: =Calculations!AF14 -> 4674533.515 | H37: =IFERROR(Calculations!AG14,0) -> 967876.1006 | I37: =Calculations!AM14 -> 5228216.894 | J37: =IFERROR(Calculations!AO14,0) -> 0.003726289547 | L37: =IFERROR(Calculations!B14,0)+IFERROR(Calculations!H14,0) -> 0 | M37: =Calculations!O14 -> 3831966.321 | N37: =Calculations!P14 -> 781089 | O37: =Calculations!Q14 -> 4613055.321 | Q37: =Calculations!R14 -> 6484908.986 | R37: =IFERROR(Calculations!E14,0) -> 1912737 | S37: =IFERROR(Calculations!K14,0) -> 1642173 | T37: =IFERROR(Calculations!S14,0) -> 3611888.043 | U37: =Calculations!Y14 -> 4492417.525 | V37: =IFERROR(Calculations!G14,0)+IFERROR(Calculations!M14,0) -> 3197220.54 | W37: =Calculations!AA14 -> 7689638.065 | X37: =IFERROR(Calculations!AC14,0) -> 0.03652072758 | AC37: 76 | AD37: 7925604.927 | AE37: 10164328.38 | AG37: 60 | AH37: 25744168.24 | AI37: 21961324.62
D38: 13 | E38: =IFERROR(Calculations!$AT$28+D38,0) -> 68 | F38: =Calculations!AE15 -> 7906343.862 | G38: =Calculations!AF15 -> 4819132.883 | H38: =IFERROR(Calculations!AG15,0) -> 1075324.358 | I38: =Calculations!AM15 -> 5480925.216 | J38: =IFERROR(Calculations!AO15,0) -> 0.007089319502 | L38: =IFERROR(Calculations!B15,0)+IFERROR(Calculations!H15,0) -> 0 | M38: =Calculations!O15 -> 3953140.772 | N38: =Calculations!P15 -> 826463.4 | O38: =Calculations!Q15 -> 4779604.172 | Q38: =Calculations!R15 -> 6724298.223 | R38: =IFERROR(Calculations!E15,0) -> 1899277 | S38: =IFERROR(Calculations!K15,0) -> 1651209 | T38: =IFERROR(Calculations!S15,0) -> 3714420.65 | U38: =Calculations!Y15 -> 4711976.256 | V38: =IFERROR(Calculations!G15,0)+IFERROR(Calculations!M15,0) -> 3196991.296 | W38: =Calculations!AA15 -> 7908967.552 | X38: =IFERROR(Calculations!AC15,0) -> 0.03590329523 | AC38: 77 | AD38: 8292290.777 | AE38: 10517147.52 | AG38: 65 | AH38: 31536037.38 | AI38: 27008690.95
D39: 14 | E39: =IFERROR(Calculations!$AT$28+D39,0) -> 69 | F39: =Calculations!AE16 -> 8192994.019 | G39: =Calculations!AF16 -> 4969240.584 | H39: =IFERROR(Calculations!AG16,0) -> 1187736.607 | I39: =Calculations!AM16 -> 5744222.918 | J39: =IFERROR(Calculations!AO16,0) -> 0.00996047338 | L39: =IFERROR(Calculations!B16,0)+IFERROR(Calculations!H16,0) -> 0 | M39: =Calculations!O16 -> 4079047.627 | N39: =Calculations!P16 -> 876913.05 | O39: =Calculations!Q16 -> 4955960.677 | Q39: =Calculations!R16 -> 6973544.772 | R39: =IFERROR(Calculations!E16,0) -> 1888207 | S39: =IFERROR(Calculations!K16,0) -> 1660778 | T39: =IFERROR(Calculations!S16,0) -> 3825505.125 | U39: =Calculations!Y16 -> 4940879.205 | V39: =IFERROR(Calculations!G16,0)+IFERROR(Calculations!M16,0) -> 3200176.988 | W39: =Calculations!AA16 -> 8141056.193 | X39: =IFERROR(Calculations!AC16,0) -> 0.03543346288 | AC39: 78 | AD39: 8674630.628 | AE39: 10887970.36 | AG39: 70 | AH39: 38770411.09 | AI39: 33328977.02
D40: 15 | E40: =IFERROR(Calculations!$AT$28+D40,0) -> 70 | F40: =Calculations!AE17 -> 8491389.646 | G40: =Calculations!AF17 -> 5125118.613 | H40: =IFERROR(Calculations!AG17,0) -> 1305335.709 | I40: =Calculations!AM17 -> 6018571.288 | J40: =IFERROR(Calculations!AO17,0) -> 0.01243750983 | L40: =IFERROR(Calculations!B17,0)+IFERROR(Calculations!H17,0) -> 0 | M40: =Calculations!O17 -> 4209917.462 | N40: =Calculations!P17 -> 932630.25 | O40: =Calculations!Q17 -> 5142547.712 | Q40: =Calculations!R17 -> 7233142.042 | R40: =IFERROR(Calculations!E17,0) -> 1879587 | S40: =IFERROR(Calculations!K17,0) -> 1670912 | T40: =IFERROR(Calculations!S17,0) -> 3945594.649 | U40: =Calculations!Y17 -> 5179535.53 | V40: =IFERROR(Calculations!G17,0)+IFERROR(Calculations!M17,0) -> 3206938.074 | W40: =Calculations!AA17 -> 8386473.604 | X40: =IFERROR(Calculations!AC17,0) -> 0.03508009896 | AC40: 79 | AD40: 9073329.184 | AE40: 11277565.48 | AG40: 75 | AH40: 47820705.62 | AI40: 41253769.23
D41: 16 | E41: =IFERROR(Calculations!$AT$28+D41,0) -> 71 | F41: =Calculations!AE18 -> 8802097.872 | G41: =Calculations!AF18 -> 5287037.271 | H41: =IFERROR(Calculations!AG18,0) -> 1428356.025 | I41: =Calculations!AM18 -> 6304455.062 | J41: =IFERROR(Calculations!AO18,0) -> 0.01459413343 | L41: =IFERROR(Calculations!B18,0)+IFERROR(Calculations!H18,0) -> 0 | M41: =Calculations!O18 -> 4345988.008 | N41: =Calculations!P18 -> 967726.2 | O41: =Calculations!Q18 -> 5313714.208 | Q41: =Calculations!R18 -> 7503596.424 | R41: =IFERROR(Calculations!E18,0) -> 1873397 | S41: =IFERROR(Calculations!K18,0) -> 1681643 | T41: =IFERROR(Calculations!S18,0) -> 4075035.119 | U41: =Calculations!Y18 -> 5428375.389 | V41: =IFERROR(Calculations!G18,0)+IFERROR(Calculations!M18,0) -> 3217339.105 | W41: =Calculations!AA18 -> 8645714.494 | X41: =IFERROR(Calculations!AC18,0) -> 0.03481908643 | AC41: 80 | AD41: 9489124.05 | AE41: 11686719.68 | AG41: 80 | AH41: 59158335.4 | AI41: 51201950.43
D42: 17 | E42: =IFERROR(Calculations!$AT$28+D42,0) -> 72 | F42: =Calculations!AE19 -> 9125703.699 | G42: =Calculations!AF19 -> 5455276.307 | H42: =IFERROR(Calculations!AG19,0) -> 1557043.723 | I42: =Calculations!AM19 -> 6602383.09 | J42: =IFERROR(Calculations!AO19,0) -> 0.01648694859 | L42: =IFERROR(Calculations!B19,0)+IFERROR(Calculations!H19,0) -> 0 | M42: =Calculations!O19 -> 4487505.202 | N42: =Calculations!P19 -> 1004554.05 | O42: =Calculations!Q19 -> 5492059.252 | Q42: =Calculations!R19 -> 7785429.78 | R42: =IFERROR(Calculations!E19,0) -> 1869448 | S42: =IFERROR(Calculations!K19,0) -> 1693008 | T42: =IFERROR(Calculations!S19,0) -> 4213556.004 | U42: =Calculations!Y19 -> 5687850.508 | V42: =IFERROR(Calculations!G19,0)+IFERROR(Calculations!M19,0) -> 3231084.771 | W42: =Calculations!AA19 -> 8918935.279 | X42: =IFERROR(Calculations!AC19,0) -> 0.03462956124 | AC42: 81 | AD42: 9922787.202 | AE42: 12116295.44 | AG42: 85 | AH42: 73378555.93 | AI42: 63702762.24
D43: 18 | E43: =IFERROR(Calculations!$AT$28+D43,0) -> 73 | F43: =Calculations!AE20 -> 9462812.432 | G43: =Calculations!AF20 -> 5630125.974 | H43: =IFERROR(Calculations!AG20,0) -> 1691657.144 | I43: =Calculations!AM20 -> 6912889.11 | J43: =IFERROR(Calculations!AO20,0) -> 0.01816013366 | L43: =IFERROR(Calculations!B20,0)+IFERROR(Calculations!H20,0) -> 0 | M43: =Calculations!O20 -> 4634724.15 | N43: =Calculations!P20 -> 1043231.7 | O43: =Calculations!Q20 -> 5677955.85 | Q43: =Calculations!R20 -> 8079181.696 | R43: =IFERROR(Calculations!E20,0) -> 1867806 | S43: =IFERROR(Calculations!K20,0) -> 1705043 | T43: =IFERROR(Calculations!S20,0) -> 4361603.748 | U43: =Calculations!Y20 -> 5958434.848 | V43: =IFERROR(Calculations!G20,0)+IFERROR(Calculations!M20,0) -> 3248324.99 | W43: =Calculations!AA20 -> 9206759.838 | X43: =IFERROR(Calculations!AC20,0) -> 0.03449839878 | AC43: 82 | AD43: 10375126.55 | AE43: 12567102.48 | AG43: 90 | AH43: 91233133.37 | AI43: 79424967.23
D44: 19 | E44: =IFERROR(Calculations!$AT$28+D44,0) -> 74 | F44: =Calculations!AE21 -> 9814051.91 | G44: =Calculations!AF21 -> 5811888.018 | H44: =IFERROR(Calculations!AG21,0) -> 1832467.222 | I44: =Calculations!AM21 -> 7236532.625 | J44: =IFERROR(Calculations!AO21,0) -> 0.01964866201 | L44: =IFERROR(Calculations!B21,0)+IFERROR(Calculations!H21,0) -> 0 | M44: =Calculations!O21 -> 4787910.029 | N44: =Calculations!P21 -> 1083843 | O44: =Calculations!Q21 -> 5871753.029 | Q44: =Calculations!R21 -> 8385411.541 | R44: =IFERROR(Calculations!E21,0) -> 1868541 | S44: =IFERROR(Calculations!K21,0) -> 1717789 | T44: =IFERROR(Calculations!S21,0) -> 4519650.631 | U44: =Calculations!Y21 -> 6240625.378 | V44: =IFERROR(Calculations!G21,0)+IFERROR(Calculations!M21,0) -> 3269221.037 | W44: =Calculations!AA21 -> 9509846.415 | X44: =IFERROR(Calculations!AC21,0) -> 0.0344152653 | AC44: 83 | AD44: 10846987.56 | AE44: 13039973.5 | AG44: 95 | AH44: 113671645.5 | AI44: 99213724.98
D45: 20 | E45: =IFERROR(Calculations!$AT$28+D45,0) -> 75 | F45: =Calculations!AE22 -> 10180074.59 | G45: =Calculations!AF22 -> 6000876.616 | H45: =IFERROR(Calculations!AG22,0) -> 1979757.947 | I45: =Calculations!AM22 -> 7573899.88 | J45: =IFERROR(Calculations!AO22,0) -> 0.02098057129 | L45: =IFERROR(Calculations!B22,0)+IFERROR(Calculations!H22,0) -> 0 | M45: =Calculations!O22 -> 4947338.936 | N45: =Calculations!P22 -> 1126467.45 | O45: =Calculations!Q22 -> 6073806.386 | Q45: =Calculations!R22 -> 8704700.383 | R45: =IFERROR(Calculations!E22,0) -> 1871651 | S45: =IFERROR(Calculations!K22,0) -> 1731286 | T45: =IFERROR(Calculations!S22,0) -> 4688104.073 | U45: =Calculations!Y22 -> 6534942.929 | V45: =IFERROR(Calculations!G22,0)+IFERROR(Calculations!M22,0) -> 3293859.686 | W45: =Calculations!AA22 -> 9828802.615 | X45: =IFERROR(Calculations!AC22,0) -> 0.03437146314 | AC45: 84 | AD45: 11339255.02 | AE45: 13535842.81 | AG45: 100 | AH45: 141893696 | AI45: 124137223.2
D46: 21 | E46: =IFERROR(Calculations!$AT$28+D46,0) -> 76 | F46: =Calculations!AE23 -> 10561559.56 | G46: =Calculations!AF23 -> 6197419.28 | H46: =IFERROR(Calculations!AG23,0) -> 2133826.882 | I46: =Calculations!AM23 -> 7925604.927 | J46: =IFERROR(Calculations!AO23,0) -> 0.02217859348 | L46: =IFERROR(Calculations!B23,0)+IFERROR(Calculations!H23,0) -> 0 | M46: =Calculations!O23 -> 5113298.713 | N46: =Calculations!P23 -> 1171216.2 | O46: =Calculations!Q23 -> 6284514.913 | Q46: =Calculations!R23 -> 9037652.804 | R46: =IFERROR(Calculations!E23,0) -> 1877187 | S46: =IFERROR(Calculations!K23,0) -> 1745579 | T46: =IFERROR(Calculations!S23,0) -> 4867464.159 | U46: =Calculations!Y23 -> 6841933.134 | V46: =IFERROR(Calculations!G23,0)+IFERROR(Calculations!M23,0) -> 3322395.248 | W46: =Calculations!AA23 -> 10164328.38 | X46: =IFERROR(Calculations!AC23,0) -> 0.03436029669 | AC46: 85 | AD46: 11852854.8 | AE46: 14056103.03
D47: 22 | E47: =IFERROR(Calculations!$AT$28+D47,0) -> 77 | F47: =Calculations!AE24 -> 10959214.4 | G47: =Calculations!AF24 -> 6401857.755 | H47: =IFERROR(Calculations!AG24,0) -> 2294985.709 | I47: =Calculations!AM24 -> 8292290.777 | J47: =IFERROR(Calculations!AO24,0) -> 0.02326134642 | L47: =IFERROR(Calculations!B24,0)+IFERROR(Calculations!H24,0) -> 0 | M47: =Calculations!O24 -> 5286089.746 | N47: =Calculations!P24 -> 1218177.45 | O47: =Calculations!Q24 -> 6504267.196 | Q47: =Calculations!R24 -> 9384898.643 | R47: =IFERROR(Calculations!E24,0) -> 1885191 | S47: =IFERROR(Calculations!K24,0) -> 1760716 | T47: =IFERROR(Calculations!S24,0) -> 5058247.138 | U47: =Calculations!Y24 -> 7162167.442 | V47: =IFERROR(Calculations!G24,0)+IFERROR(Calculations!M24,0) -> 3354980.074 | W47: =Calculations!AA24 -> 10517147.52 | X47: =IFERROR(Calculations!AC24,0) -> 0.03437625811 | AC47: 86 | AD47: 12388755.79 | AE47: 14596073.78
D48: 23 | E48: =IFERROR(Calculations!$AT$28+D48,0) -> 78 | F48: =Calculations!AE25 -> 11373777.12 | G48: =Calculations!AF25 -> 6614548.892 | H48: =IFERROR(Calculations!AG25,0) -> 2463560.831 | I48: =Calculations!AM25 -> 8674630.628 | J48: =IFERROR(Calculations!AO25,0) -> 0.02424421845 | L48: =IFERROR(Calculations!B25,0)+IFERROR(Calculations!H25,0) -> 0 | M48: =Calculations!O25 -> 5466025.76 | N48: =Calculations!P25 -> 1267443.75 | O48: =Calculations!Q25 -> 6733469.51 | Q48: =Calculations!R25 -> 9747094.701 | R48: =IFERROR(Calculations!E25,0) -> 1895660 | S48: =IFERROR(Calculations!K25,0) -> 1776746 | T48: =IFERROR(Calculations!S25,0) -> 5260947.002 | U48: =Calculations!Y25 -> 7496244.212 | V48: =IFERROR(Calculations!G25,0)+IFERROR(Calculations!M25,0) -> 3391726.152 | W48: =Calculations!AA25 -> 10887970.36 | X48: =IFERROR(Calculations!AC25,0) -> 0.03441461735 | AC48: 87 | AD48: 12933975.12 | AE48: 15144970.34
D49: 24 | E49: =IFERROR(Calculations!$AT$28+D49,0) -> 79 | F49: =Calculations!AE26 -> 11806017.99 | G49: =Calculations!AF26 -> 6835865.541 | H49: =IFERROR(Calculations!AG26,0) -> 2639894.004 | I49: =Calculations!AM26 -> 9073329.184 | J49: =IFERROR(Calculations!AO26,0) -> 0.02514003467 | L49: =IFERROR(Calculations!B26,0)+IFERROR(Calculations!H26,0) -> 0 | M49: =Calculations!O26 -> 5653434.612 | N49: =Calculations!P26 -> 1319119.65 | O49: =Calculations!Q26 -> 6972554.262 | Q49: =Calculations!R26 -> 10124926.42 | R49: =IFERROR(Calculations!E26,0) -> 1908613 | S49: =IFERROR(Calculations!K26,0) -> 1793722 | T49: =IFERROR(Calculations!S26,0) -> 5476107.22 | U49: =Calculations!Y26 -> 7844789.876 | V49: =IFERROR(Calculations!G26,0)+IFERROR(Calculations!M26,0) -> 3432775.606 | W49: =Calculations!AA26 -> 11277565.48 | X49: =IFERROR(Calculations!AC26,0) -> 0.03447156231 | AC49: 88 | AD49: 13488641.18 | AE49: 15720916.52
D50: 25 | E50: =IFERROR(Calculations!$AT$28+D50,0) -> 80 | F50: =Calculations!AE27 -> 12256741.4 | G50: =Calculations!AF27 -> 7066197.438 | H50: =IFERROR(Calculations!AG27,0) -> 2824343.008 | I50: =Calculations!AM27 -> 9489124.05 | J50: =IFERROR(Calculations!AO27,0) -> 0.0259595651 | L50: =IFERROR(Calculations!B27,0)+IFERROR(Calculations!H27,0) -> 0 | M50: =Calculations!O27 -> 5848659.096 | N50: =Calculations!P27 -> 1373295.9 | O50: =Calculations!Q27 -> 7221954.996 | Q50: =Calculations!R27 -> 10519109.56 | R50: =IFERROR(Calculations!E27,0) -> 1924064 | S50: =IFERROR(Calculations!K27,0) -> 1811699 | T50: =IFERROR(Calculations!S27,0) -> 5704263.514 | U50: =Calculations!Y27 -> 8208460.178 | V50: =IFERROR(Calculations!G27,0)+IFERROR(Calculations!M27,0) -> 3478259.504 | W50: =Calculations!AA27 -> 11686719.68 | X50: =IFERROR(Calculations!AC27,0) -> 0.03454385378 | AC50: 89 | AD50: 14067405.1 | AE50: 16325252.55
D51: 26 | E51: =IFERROR(Calculations!$AT$28+D51,0) -> 81 | F51: =Calculations!AE28 -> 12726787.76 | G51: =Calculations!AF28 -> 7305952.123 | H51: =IFERROR(Calculations!AG28,0) -> 3017282.366 | I51: =Calculations!AM28 -> 9922787.202 | J51: =IFERROR(Calculations!AO28,0) -> 0.02671191685 | L51: =IFERROR(Calculations!B28,0)+IFERROR(Calculations!H28,0) -> 0 | M51: =Calculations!O28 -> 6052057.753 | N51: =Calculations!P28 -> 1430109.3 | O51: =Calculations!Q28 -> 7482167.053 | Q51: =Calculations!R28 -> 10930391.89 | R51: =IFERROR(Calculations!E28,0) -> 1942052 | S51: =IFERROR(Calculations!K28,0) -> 1830737 | T51: =IFERROR(Calculations!S28,0) -> 5946032.093 | U51: =Calculations!Y28 -> 8587941.482 | V51: =IFERROR(Calculations!G28,0)+IFERROR(Calculations!M28,0) -> 3528353.954 | W51: =Calculations!AA28 -> 12116295.44 | X51: =IFERROR(Calculations!AC28,0) -> 0.03462891035 | AC51: 90 | AD51: 14671362.11 | AE51: 16959318.43
D52: 27 | E52: =IFERROR(Calculations!$AT$28+D52,0) -> 82 | F52: =Calculations!AE29 -> 13217035.4 | G52: =Calculations!AF29 -> 7555555.87 | H52: =IFERROR(Calculations!AG29,0) -> 3219104.093 | I52: =Calculations!AM29 -> 10375126.55 | J52: =IFERROR(Calculations!AO29,0) -> 0.02740484007 | L52: =IFERROR(Calculations!B29,0)+IFERROR(Calculations!H29,0) -> 0 | M52: =Calculations!O29 -> 6264005.708 | N52: =Calculations!P29 -> 1489661.25 | O52: =Calculations!Q29 -> 7753666.958 | Q52: =Calculations!R29 -> 11359554.9 | R52: =IFERROR(Calculations!E29,0) -> 1962533 | S52: =IFERROR(Calculations!K29,0) -> 1850898 | T52: =IFERROR(Calculations!S29,0) -> 6201954.917 | U52: =Calculations!Y29 -> 8983952.157 | V52: =IFERROR(Calculations!G29,0)+IFERROR(Calculations!M29,0) -> 3583150.32 | W52: =Calculations!AA29 -> 12567102.48 | X52: =IFERROR(Calculations!AC29,0) -> 0.0347242687 | AC52: 91 | AD52: 15301658.25 | AE52: 17624387.57
D53: 28 | E53: =IFERROR(Calculations!$AT$28+D53,0) -> 83 | F53: =Calculations!AE30 -> 13728402.51 | G53: =Calculations!AF30 -> 7815454.651 | H53: =IFERROR(Calculations!AG30,0) -> 3430218.493 | I53: =Calculations!AM30 -> 10846987.56 | J53: =IFERROR(Calculations!AO30,0) -> 0.02804496894 | L53: =IFERROR(Calculations!B30,0)+IFERROR(Calculations!H30,0) -> 0 | M53: =Calculations!O30 -> 6484895.53 | N53: =Calculations!P30 -> 1552047.9 | O53: =Calculations!Q30 -> 8036943.43 | Q53: =Calculations!R30 -> 11807415.59 | R53: =IFERROR(Calculations!E30,0) -> 1985457 | S53: =IFERROR(Calculations!K30,0) -> 1872249 | T53: =IFERROR(Calculations!S30,0) -> 6472566.779 | U53: =Calculations!Y30 -> 9397244.032 | V53: =IFERROR(Calculations!G30,0)+IFERROR(Calculations!M30,0) -> 3642729.465 | W53: =Calculations!AA30 -> 13039973.5 | X53: =IFERROR(Calculations!AC30,0) -> 0.03482782224 | AC53: 92 | AD53: 15959492.72 | AE53: 18321885.42
D54: 29 | E54: =IFERROR(Calculations!$AT$28+D54,0) -> 84 | F54: =Calculations!AE31 -> 14261849.2 | G54: =Calculations!AF31 -> 8086115.127 | H54: =IFERROR(Calculations!AG31,0) -> 3651054.99 | I54: =Calculations!AM31 -> 11339255.02 | J54: =IFERROR(Calculations!AO31,0) -> 0.02863801324 | L54: =IFERROR(Calculations!B31,0)+IFERROR(Calculations!H31,0) -> 0 | M54: =Calculations!O31 -> 6715138.117 | N54: =Calculations!P31 -> 1617382.05 | O54: =Calculations!Q31 -> 8332520.167 | Q54: =Calculations!R31 -> 12274828.2 | R54: =IFERROR(Calculations!E31,0) -> 2010824 | S54: =IFERROR(Calculations!K31,0) -> 1894860 | T54: =IFERROR(Calculations!S31,0) -> 6758504.744 | U54: =Calculations!Y31 -> 9828603.932 | V54: =IFERROR(Calculations!G31,0)+IFERROR(Calculations!M31,0) -> 3707238.88 | W54: =Calculations!AA31 -> 13535842.81 | X54: =IFERROR(Calculations!AC31,0) -> 0.03493796978 | AC54: 93 | AD54: 16646120.38 | AE54: 19036700.6
D55: 30 | E55: =IFERROR(Calculations!$AT$28+D55,0) -> 85 | F55: =Calculations!AE32 -> 14818379.57 | G55: =Calculations!AF32 -> 8368025.684 | H55: =IFERROR(Calculations!AG32,0) -> 3882063.007 | I55: =Calculations!AM32 -> 11852854.8 | J55: =IFERROR(Calculations!AO32,0) -> 0.02918891197 | L55: =IFERROR(Calculations!B32,0)+IFERROR(Calculations!H32,0) -> 0 | M55: =Calculations!O32 -> 6955163.615 | N55: =Calculations!P32 -> 1685765.25 | O55: =Calculations!Q32 -> 8640928.865 | Q55: =Calculations!R32 -> 12762686.17 | R55: =IFERROR(Calculations!E32,0) -> 2039063 | S55: =IFERROR(Calculations!K32,0) -> 1918804 | T55: =IFERROR(Calculations!S32,0) -> 7060831.3 | U55: =Calculations!Y32 -> 10278855.29 | V55: =IFERROR(Calculations!G32,0)+IFERROR(Calculations!M32,0) -> 3777247.739 | W55: =Calculations!AA32 -> 14056103.03 | X55: =IFERROR(Calculations!AC32,0) -> 0.03505437227 | AC55: 94 | AD55: 17362854.35 | AE55: 19769917.03
D56: 31 | E56: =IFERROR(Calculations!$AT$28+D56,0) -> 86 | F56: =Calculations!AE33 -> 15399043.82 | G56: =Calculations!AF33 -> 8661697.499 | H56: =IFERROR(Calculations!AG33,0) -> 4123712.89 | I56: =Calculations!AM33 -> 12388755.79 | J56: =IFERROR(Calculations!AO33,0) -> 0.02970195742 | L56: =IFERROR(Calculations!B33,0)+IFERROR(Calculations!H33,0) -> 0 | M56: =Calculations!O33 -> 7205422.375 | N56: =Calculations!P33 -> 1757218.8 | O56: =Calculations!Q33 -> 8962641.175 | Q56: =Calculations!R33 -> 13271923.97 | R56: =IFERROR(Calculations!E33,0) -> 2070570 | S56: =IFERROR(Calculations!K33,0) -> 1944161 | T56: =IFERROR(Calculations!S33,0) -> 7380599.265 | U56: =Calculations!Y33 -> 10742775.54 | V56: =IFERROR(Calculations!G33,0)+IFERROR(Calculations!M33,0) -> 3853298.236 | W56: =Calculations!AA33 -> 14596073.78 | X56: =IFERROR(Calculations!AC33,0) -> 0.03516262238 | AC56: 95 | AD56: 18111068.73 | AE56: 20536256.38
D57: 32 | E57: =IFERROR(Calculations!$AT$28+D57,0) -> 87 | F57: =Calculations!AE34 -> 16004940.57 | G57: =Calculations!AF34 -> 8967665.659 | H57: =IFERROR(Calculations!AG34,0) -> 4376496.868 | I57: =Calculations!AM34 -> 12933975.12 | J57: =IFERROR(Calculations!AO34,0) -> 0.03014607708 | L57: =IFERROR(Calculations!B34,0)+IFERROR(Calculations!H34,0) -> 0 | M57: =Calculations!O34 -> 7466385.943 | N57: =Calculations!P34 -> 1831849.95 | O57: =Calculations!Q34 -> 9298235.893 | Q57: =Calculations!R34 -> 13803519.15 | R57: =IFERROR(Calculations!E34,0) -> 2105463 | S57: =IFERROR(Calculations!K34,0) -> 1971014 | T57: =IFERROR(Calculations!S34,0) -> 7718606.155 | U57: =Calculations!Y34 -> 11209312.69 | V57: =IFERROR(Calculations!G34,0)+IFERROR(Calculations!M34,0) -> 3935657.652 | W57: =Calculations!AA34 -> 15144970.34 | X57: =IFERROR(Calculations!AC34,0) -> 0.03523888352 | AC57: 96 | AD57: 18892201.46 | AE57: 21336487.1
D58: 33 | E58: =IFERROR(Calculations!$AT$28+D58,0) -> 88 | F58: =Calculations!AE35 -> 16637219.09 | G58: =Calculations!AF35 -> 9286490.323 | H58: =IFERROR(Calculations!AG35,0) -> 4640930.07 | I58: =Calculations!AM35 -> 13488641.18 | J58: =IFERROR(Calculations!AO35,0) -> 0.03052979187 | L58: =IFERROR(Calculations!B35,0)+IFERROR(Calculations!H35,0) -> 0 | M58: =Calculations!O35 -> 7738548.099 | N58: =Calculations!P35 -> 1909676.85 | O58: =Calculations!Q35 -> 9648224.949 | Q58: =Calculations!R35 -> 14358494.42 | R58: =IFERROR(Calculations!E35,0) -> 2143935 | S58: =IFERROR(Calculations!K35,0) -> 1999452 | T58: =IFERROR(Calculations!S35,0) -> 8075753.912 | U58: =Calculations!Y35 -> 11696240.98 | V58: =IFERROR(Calculations!G35,0)+IFERROR(Calculations!M35,0) -> 4024675.548 | W58: =Calculations!AA35 -> 15720916.52 | X58: =IFERROR(Calculations!AC35,0) -> 0.03532331845 | AC58: 97 | AD58: 19707757.3 | AE58: 22170251.2
D59: 34 | E59: =IFERROR(Calculations!$AT$28+D59,0) -> 89 | F59: =Calculations!AE36 -> 17297081.83 | G59: =Calculations!AF36 -> 9618757.936 | H59: =IFERROR(Calculations!AG36,0) -> 4917551.589 | I59: =Calculations!AM36 -> 14067405.1 | J59: =IFERROR(Calculations!AO36,0) -> 0.03089173681 | L59: =IFERROR(Calculations!B36,0)+IFERROR(Calculations!H36,0) -> 0 | M59: =Calculations!O36 -> 8022425.939 | N59: =Calculations!P36 -> 1990784.7 | O59: =Calculations!Q36 -> 10013210.64 | Q59: =Calculations!R36 -> 14937919.79 | R59: =IFERROR(Calculations!E36,0) -> 2186201 | S59: =IFERROR(Calculations!K36,0) -> 2029567 | T59: =IFERROR(Calculations!S36,0) -> 8452960.828 | U59: =Calculations!Y36 -> 12204538.75 | V59: =IFERROR(Calculations!G36,0)+IFERROR(Calculations!M36,0) -> 4120713.8 | W59: =Calculations!AA36 -> 16325252.55 | X59: =IFERROR(Calculations!AC36,0) -> 0.03541489666 | AC59: 98 | AD59: 20559310.98 | AE59: 23039205
D60: 35 | E60: =IFERROR(Calculations!$AT$28+D60,0) -> 90 | F60: =Calculations!AE37 -> 17985786.87 | G60: =Calculations!AF37 -> 9965082.496 | H60: =IFERROR(Calculations!AG37,0) -> 5206925.589 | I60: =Calculations!AM37 -> 14671362.11 | J60: =IFERROR(Calculations!AO37,0) -> 0.03123383814 | L60: =IFERROR(Calculations!B37,0)+IFERROR(Calculations!H37,0) -> 0 | M60: =Calculations!O37 -> 8318561.002 | N60: =Calculations!P37 -> 2075282.7 | O60: =Calculations!Q37 -> 10393843.7 | Q60: =Calculations!R37 -> 15542914.83 | R60: =IFERROR(Calculations!E37,0) -> 2232466 | S60: =IFERROR(Calculations!K37,0) -> 2061459 | T60: =IFERROR(Calculations!S37,0) -> 8851177.422 | U60: =Calculations!Y37 -> 12735181.11 | V60: =IFERROR(Calculations!G37,0)+IFERROR(Calculations!M37,0) -> 4224137.318 | W60: =Calculations!AA37 -> 16959318.43 | X60: =IFERROR(Calculations!AC37,0) -> 0.03551258777 | AC60: 99 | AD60: 21448510.45 | AE60: 23944427.07
D61: 36 | E61: =IFERROR(Calculations!$AT$28+D61,0) -> 91 | F61: =Calculations!AE38 -> 18704650.6 | G61: =Calculations!AF38 -> 10326106.89 | H61: =IFERROR(Calculations!AG38,0) -> 5509642.475 | I61: =Calculations!AM38 -> 15301658.25 | J61: =IFERROR(Calculations!AO38,0) -> 0.03155780474 | L61: =IFERROR(Calculations!B38,0)+IFERROR(Calculations!H38,0) -> 0 | M61: =Calculations!O38 -> 8627520.451 | N61: =Calculations!P38 -> 2163189.3 | O61: =Calculations!Q38 -> 10790709.75 | Q61: =Calculations!R38 -> 16174651.04 | R61: =IFERROR(Calculations!E38,0) -> 2282827 | S61: =IFERROR(Calculations!K38,0) -> 2095233 | T61: =IFERROR(Calculations!S38,0) -> 9271253.577 | U61: =Calculations!Y38 -> 13289188.44 | V61: =IFERROR(Calculations!G38,0)+IFERROR(Calculations!M38,0) -> 4335199.127 | W61: =Calculations!AA38 -> 17624387.57 | X61: =IFERROR(Calculations!AC38,0) -> 0.03561526968 | AC61: 100 | AD61: 22377080.32 | AE61: 24887198.27
D62: 37 | E62: =IFERROR(Calculations!$AT$28+D62,0) -> 92 | F62: =Calculations!AE39 -> 19455050.47 | G62: =Calculations!AF39 -> 10702504.25 | H62: =IFERROR(Calculations!AG39,0) -> 5826320.116 | I62: =Calculations!AM39 -> 15959492.72 | J62: =IFERROR(Calculations!AO39,0) -> 0.03186515747 | L62: =IFERROR(Calculations!B39,0)+IFERROR(Calculations!H39,0) -> 0 | M62: =Calculations!O39 -> 8949898.312 | N62: =Calculations!P39 -> 2254621.95 | O62: =Calculations!Q39 -> 11204520.26 | Q62: =Calculations!R39 -> 16834354.28 | R62: =IFERROR(Calculations!E39,0) -> 2337482 | S62: =IFERROR(Calculations!K39,0) -> 2131000 | T62: =IFERROR(Calculations!S39,0) -> 9714165.141 | U62: =Calculations!Y39 -> 13867628.49 | V62: =IFERROR(Calculations!G39,0)+IFERROR(Calculations!M39,0) -> 4454256.937 | W62: =Calculations!AA39 -> 18321885.42 | X62: =IFERROR(Calculations!AC39,0) -> 0.03572211028
D63: 38 | E63: =IFERROR(Calculations!$AT$28+D63,0) -> 93 | F63: =Calculations!AE40 -> 20238427.88 | G63: =Calculations!AF40 -> 11094979.47 | H63: =IFERROR(Calculations!AG40,0) -> 6157605.117 | I63: =Calculations!AM40 -> 16646120.38 | J63: =IFERROR(Calculations!AO40,0) -> 0.03215725397 | L63: =IFERROR(Calculations!B40,0)+IFERROR(Calculations!H40,0) -> 0 | M63: =Calculations!O40 -> 9286316.765 | N63: =Calculations!P40 -> 2349433.65 | O63: =Calculations!Q40 -> 11635750.42 | Q63: =Calculations!R40 -> 17523307.37 | R63: =IFERROR(Calculations!E40,0) -> 2396206 | S63: =IFERROR(Calculations!K40,0) -> 2168876 | T63: =IFERROR(Calculations!S40,0) -> 10142272.24 | U63: =Calculations!Y40 -> 14471618.6 | V63: =IFERROR(Calculations!G40,0)+IFERROR(Calculations!M40,0) -> 4565082 | W63: =Calculations!AA40 -> 19036700.6 | X63: =IFERROR(Calculations!AC40,0) -> 0.03580861254
D64: 39 | E64: =IFERROR(Calculations!$AT$28+D64,0) -> 94 | F64: =Calculations!AE41 -> 21056291.17 | G64: =Calculations!AF41 -> 11504270.64 | H64: =IFERROR(Calculations!AG41,0) -> 6504174.164 | I64: =Calculations!AM41 -> 17362854.35 | J64: =IFERROR(Calculations!AO41,0) -> 0.03243530971 | L64: =IFERROR(Calculations!B41,0)+IFERROR(Calculations!H41,0) -> 0 | M64: =Calculations!O41 -> 9637427.495 | N64: =Calculations!P41 -> 2447320.95 | O64: =Calculations!Q41 -> 12084748.45 | Q64: =Calculations!R41 -> 18242852.75 | R64: =IFERROR(Calculations!E41,0) -> 2458601 | S64: =IFERROR(Calculations!K41,0) -> 2208988 | T64: =IFERROR(Calculations!S41,0) -> 10556346.91 | U64: =Calculations!Y41 -> 15102328.03 | V64: =IFERROR(Calculations!G41,0)+IFERROR(Calculations!M41,0) -> 4667589 | W64: =Calculations!AA41 -> 19769917.03 | X64: =IFERROR(Calculations!AC41,0) -> 0.03587794297
D65: 40 | E65: =IFERROR(Calculations!$AT$28+D65,0) -> 95 | F65: =Calculations!AE42 -> 21910218.83 | G65: =Calculations!AF42 -> 11931150.71 | H65: =IFERROR(Calculations!AG42,0) -> 6866735.426 | I65: =Calculations!AM42 -> 18111068.73 | J65: =IFERROR(Calculations!AO42,0) -> 0.03270041574 | L65: =IFERROR(Calculations!B42,0)+IFERROR(Calculations!H42,0) -> 0 | M65: =Calculations!O42 -> 10003913.11 | N65: =Calculations!P42 -> 2548205.85 | O65: =Calculations!Q42 -> 12552118.96 | Q65: =Calculations!R42 -> 18994395.3 | R65: =IFERROR(Calculations!E42,0) -> 2523810 | S65: =IFERROR(Calculations!K42,0) -> 2251466 | T65: =IFERROR(Calculations!S42,0) -> 10989923.18 | U65: =Calculations!Y42 -> 15760980.38 | V65: =IFERROR(Calculations!G42,0)+IFERROR(Calculations!M42,0) -> 4775276 | W65: =Calculations!AA42 -> 20536256.38 | X65: =IFERROR(Calculations!AC42,0) -> 0.03594996919
D66: 41 | E66: =IFERROR(Calculations!$AT$28+D66,0) -> 96 | F66: =Calculations!AE43 -> 22801862.73 | G66: =Calculations!AF43 -> 12376429.12 | H66: =IFERROR(Calculations!AG43,0) -> 7246030.02 | I66: =Calculations!AM43 -> 18892201.46 | J66: =IFERROR(Calculations!AO43,0) -> 0.03295355403 | L66: =IFERROR(Calculations!B43,0)+IFERROR(Calculations!H43,0) -> 0 | M66: =Calculations!O43 -> 10386488.64 | N66: =Calculations!P43 -> 2652248.25 | O66: =Calculations!Q43 -> 13038736.89 | Q66: =Calculations!R43 -> 19779405.3 | R66: =IFERROR(Calculations!E43,0) -> 2591181 | S66: =IFERROR(Calculations!K43,0) -> 2296450 | T66: =IFERROR(Calculations!S43,0) -> 11443150.46 | U66: =Calculations!Y43 -> 16448856.1 | V66: =IFERROR(Calculations!G43,0)+IFERROR(Calculations!M43,0) -> 4887631 | W66: =Calculations!AA43 -> 21336487.1 | X66: =IFERROR(Calculations!AC43,0) -> 0.03602344435
D67: 42 | E67: =IFERROR(Calculations!$AT$28+D67,0) -> 97 | F67: =Calculations!AE44 -> 23732951.62 | G67: =Calculations!AF44 -> 12840953.55 | H67: =IFERROR(Calculations!AG44,0) -> 7642833.552 | I67: =Calculations!AM44 -> 19707757.3 | J67: =IFERROR(Calculations!AO44,0) -> 0.03319561047 | L67: =IFERROR(Calculations!B44,0)+IFERROR(Calculations!H44,0) -> 0 | M67: =Calculations!O44 -> 10785903.06 | N67: =Calculations!P44 -> 2771097.15 | O67: =Calculations!Q44 -> 13557000.21 | Q67: =Calculations!R44 -> 20599421.43 | R67: =IFERROR(Calculations!E44,0) -> 2658868 | S67: =IFERROR(Calculations!K44,0) -> 2344088 | T67: =IFERROR(Calculations!S44,0) -> 11915022.79 | U67: =Calculations!Y44 -> 17167295.2 | V67: =IFERROR(Calculations!G44,0)+IFERROR(Calculations!M44,0) -> 5002956 | W67: =Calculations!AA44 -> 22170251.2 | X67: =IFERROR(Calculations!AC44,0) -> 0.03609604166
D68: 43 | E68: =IFERROR(Calculations!$AT$28+D68,0) -> 98 | F68: =Calculations!AE45 -> 24705294.75 | G68: =Calculations!AF45 -> 13325611.77 | H68: =IFERROR(Calculations!AG45,0) -> 8057957.724 | I68: =Calculations!AM45 -> 20559310.98 | J68: =IFERROR(Calculations!AO45,0) -> 0.03342738617 | L68: =IFERROR(Calculations!B45,0)+IFERROR(Calculations!H45,0) -> 0 | M68: =Calculations!O45 -> 11202940.94 | N68: =Calculations!P45 -> 2893408.8 | O68: =Calculations!Q45 -> 14096349.74 | Q68: =Calculations!R45 -> 21456054.1 | R68: =IFERROR(Calculations!E45,0) -> 2726968 | S68: =IFERROR(Calculations!K45,0) -> 2394537 | T68: =IFERROR(Calculations!S45,0) -> 12406518.35 | U68: =Calculations!Y45 -> 17917700 | V68: =IFERROR(Calculations!G45,0)+IFERROR(Calculations!M45,0) -> 5121505 | W68: =Calculations!AA45 -> 23039205 | X68: =IFERROR(Calculations!AC45,0) -> 0.03616799578
D69: 44 | E69: =IFERROR(Calculations!$AT$28+D69,0) -> 99 | F69: =Calculations!AE46 -> 25720785.62 | G69: =Calculations!AF46 -> 13831333.5 | H69: =IFERROR(Calculations!AG46,0) -> 8492252.022 | I69: =Calculations!AM46 -> 21448510.45 | J69: =IFERROR(Calculations!AO46,0) -> 0.03364960717 | L69: =IFERROR(Calculations!B46,0)+IFERROR(Calculations!H46,0) -> 0 | M69: =Calculations!O46 -> 11638424.16 | N69: =Calculations!P46 -> 3018985.5 | O69: =Calculations!Q46 -> 14657409.66 | Q69: =Calculations!R46 -> 22350988.71 | R69: =IFERROR(Calculations!E46,0) -> 2794926 | S69: =IFERROR(Calculations!K46,0) -> 2447963 | T69: =IFERROR(Calculations!S46,0) -> 12918005.93 | U69: =Calculations!Y46 -> 18701538.07 | V69: =IFERROR(Calculations!G46,0)+IFERROR(Calculations!M46,0) -> 5242889 | W69: =Calculations!AA46 -> 23944427.07 | X69: =IFERROR(Calculations!AC46,0) -> 0.03623885768
D70: 45 | E70: =IFERROR(Calculations!$AT$28+D70,0) -> 100 | F70: =Calculations!AE47 -> 26781405.97 | G70: =Calculations!AF47 -> 14359092.51 | H70: =IFERROR(Calculations!AG47,0) -> 8946605.477 | I70: =Calculations!AM47 -> 22377080.32 | J70: =IFERROR(Calculations!AO47,0) -> 0.03386293282 | L70: =IFERROR(Calculations!B47,0)+IFERROR(Calculations!H47,0) -> 0 | M70: =Calculations!O47 -> 12093213.69 | N70: =Calculations!P47 -> 3147717.45 | O70: =Calculations!Q47 -> 15240931.14 | Q70: =Calculations!R47 -> 23285989.25 | R70: =IFERROR(Calculations!E47,0) -> 2862313 | S70: =IFERROR(Calculations!K47,0) -> 2504540 | T70: =IFERROR(Calculations!S47,0) -> 13450023.46 | U70: =Calculations!Y47 -> 19520345.27 | V70: =IFERROR(Calculations!G47,0)+IFERROR(Calculations!M47,0) -> 5366853 | W70: =Calculations!AA47 -> 24887198.27 | X70: =IFERROR(Calculations!AC47,0) -> 0.03630840924
D71: 46 | E71: =IFERROR(Calculations!$AT$28+D71,0) -> 101 | F71: =Calculations!AE48 -> 27889229.88 | G71: =Calculations!AF48 -> 14909908.63 | H71: =IFERROR(Calculations!AG48,0) -> 9421948.514 | I71: =Calculations!AM48 -> 23346825.46 | J71: =IFERROR(Calculations!AO48,0) -> 0.03406796318 | L71: =IFERROR(Calculations!B48,0)+IFERROR(Calculations!H48,0) -> 0 | M71: =Calculations!O48 -> 12568211.43 | N71: =Calculations!P48 -> 3279290.25 | O71: =Calculations!Q48 -> 15847501.68 | Q71: =Calculations!R48 -> 24262901.95 | R71: =IFERROR(Calculations!E48,0) -> 2928376 | S71: =IFERROR(Calculations!K48,0) -> 2564456 | T71: =IFERROR(Calculations!S48,0) -> 14002835.71 | U71: =Calculations!Y48 -> 20375728.95 | V71: =IFERROR(Calculations!G48,0)+IFERROR(Calculations!M48,0) -> 5492832 | W71: =Calculations!AA48 -> 25868560.95 | X71: =IFERROR(Calculations!AC48,0) -> 0.03637622277
D72: 47 | E72: =IFERROR(Calculations!$AT$28+D72,0) -> 102 | F72: =Calculations!AE49 -> 29046428.2 | G72: =Calculations!AF49 -> 15484850 | H72: =IFERROR(Calculations!AG49,0) -> 9919254.886 | I72: =Calculations!AM49 -> 24359634.77 | J72: =IFERROR(Calculations!AO49,0) -> 0.03426524536 | L72: =IFERROR(Calculations!B49,0)+IFERROR(Calculations!H49,0) -> 0 | M72: =Calculations!O49 -> 13064362.24 | N72: =Calculations!P49 -> 3398927.1 | O72: =Calculations!Q49 -> 16463289.34 | Q72: =Calculations!R49 -> 25283659.16 | R72: =IFERROR(Calculations!E49,0) -> 2994549 | S72: =IFERROR(Calculations!K49,0) -> 2627907 | T72: =IFERROR(Calculations!S49,0) -> 14578940.94 | U72: =Calculations!Y49 -> 21269371.31 | V72: =IFERROR(Calculations!G49,0)+IFERROR(Calculations!M49,0) -> 5622456 | W72: =Calculations!AA49 -> 26891827.31 | X72: =IFERROR(Calculations!AC49,0) -> 0.03644378407
D73: 48 | E73: =IFERROR(Calculations!$AT$28+D73,0) -> 103 | F73: =Calculations!AE50 -> 30255273 | G73: =Calculations!AF50 -> 16085035.37 | H73: =IFERROR(Calculations!AG50,0) -> 10439543.7 | I73: =Calculations!AM50 -> 25413872.59 | J73: =IFERROR(Calculations!AO50,0) -> 0.03445221591 | L73: =IFERROR(Calculations!B50,0)+IFERROR(Calculations!H50,0) -> 0 | M73: =Calculations!O50 -> 13582655.94 | N73: =Calculations!P50 -> 3521578.2 | O73: =Calculations!Q50 -> 17104234.14 | Q73: =Calculations!R50 -> 26350283.38 | R73: =IFERROR(Calculations!E50,0) -> 3060540 | S73: =IFERROR(Calculations!K50,0) -> 2695101 | T73: =IFERROR(Calculations!S50,0) -> 15179163.76 | U73: =Calculations!Y50 -> 22199420.39 | V73: =IFERROR(Calculations!G50,0)+IFERROR(Calculations!M50,0) -> 5755641 | W73: =Calculations!AA50 -> 27955061.39 | X73: =IFERROR(Calculations!AC50,0) -> 0.03650814129
D74: 49 | E74: =IFERROR(Calculations!$AT$28+D74,0) -> 104 | F74: =Calculations!AE51 -> 31518142.38 | G74: =Calculations!AF51 -> 16711636.54 | H74: =IFERROR(Calculations!AG51,0) -> 10983881.52 | I74: =Calculations!AM51 -> 26510676.13 | J74: =IFERROR(Calculations!AO51,0) -> 0.03462914998 | L74: =IFERROR(Calculations!B51,0)+IFERROR(Calculations!H51,0) -> 0 | M74: =Calculations!O51 -> 14124129.48 | N74: =Calculations!P51 -> 3647784.6 | O74: =Calculations!Q51 -> 17771914.08 | Q74: =Calculations!R51 -> 27464891.53 | R74: =IFERROR(Calculations!E51,0) -> 3126492 | S74: =IFERROR(Calculations!K51,0) -> 2766259 | T74: =IFERROR(Calculations!S51,0) -> 15804818.96 | U74: =Calculations!Y51 -> 23165340.87 | V74: =IFERROR(Calculations!G51,0)+IFERROR(Calculations!M51,0) -> 5892751 | W74: =Calculations!AA51 -> 29058091.87 | X74: =IFERROR(Calculations!AC51,0) -> 0.03656824392
D75: 50 | E75: =IFERROR(Calculations!$AT$28+D75,0) -> 105 | F75: =Calculations!AE52 -> 32837525.46 | G75: =Calculations!AF52 -> 17365880.86 | H75: =IFERROR(Calculations!AG52,0) -> 11553384.63 | I75: =Calculations!AM52 -> 27656419.55 | J75: =IFERROR(Calculations!AO52,0) -> 0.03480023581 | L75: =IFERROR(Calculations!B52,0)+IFERROR(Calculations!H52,0) -> 0 | M75: =Calculations!O52 -> 14689869.23 | N75: =Calculations!P52 -> 3777727.95 | O75: =Calculations!Q52 -> 18467597.18 | Q75: =Calculations!R52 -> 28629699.33 | R75: =IFERROR(Calculations!E52,0) -> 3191833 | S75: =IFERROR(Calculations!K52,0) -> 2841616 | T75: =IFERROR(Calculations!S52,0) -> 16456564.48 | U75: =Calculations!Y52 -> 24174009.77 | V75: =IFERROR(Calculations!G52,0)+IFERROR(Calculations!M52,0) -> 6033449 | W75: =Calculations!AA52 -> 30207458.77 | X75: =IFERROR(Calculations!AC52,0) -> 0.03662787707
D76: 51 | E76: =IFERROR(Calculations!$AT$28+D76,0) -> 106 | F76: =Calculations!AE53 -> 34216027.56 | G76: =Calculations!AF53 -> 18049053.9 | H76: =IFERROR(Calculations!AG53,0) -> 12149221.3 | I76: =Calculations!AM53 -> 28853355.32 | J76: =IFERROR(Calculations!AO53,0) -> 0.03496581743 | L76: =IFERROR(Calculations!B53,0)+IFERROR(Calculations!H53,0) -> 0 | M76: =Calculations!O53 -> 15281013.31 | N76: =Calculations!P53 -> 3912397.05 | O76: =Calculations!Q53 -> 19193410.36 | Q76: =Calculations!R53 -> 29847026.01 | R76: =IFERROR(Calculations!E53,0) -> 3256406 | S76: =IFERROR(Calculations!K53,0) -> 2921420 | T76: =IFERROR(Calculations!S53,0) -> 17135532.52 | U76: =Calculations!Y53 -> 25228094.96 | V76: =IFERROR(Calculations!G53,0)+IFERROR(Calculations!M53,0) -> 6177826 | W76: =Calculations!AA53 -> 31405920.96 | X76: =IFERROR(Calculations!AC53,0) -> 0.03668752654
D77: 52 | E77: =IFERROR(Calculations!$AT$28+D77,0) -> 107 | F77: =Calculations!AE54 -> 35656375.69 | G77: =Calculations!AF54 -> 18762502.25 | H77: =IFERROR(Calculations!AG54,0) -> 12772614.26 | I77: =Calculations!AM54 -> 30103841.02 | J77: =IFERROR(Calculations!AO54,0) -> 0.03512621143 | L77: =IFERROR(Calculations!B54,0)+IFERROR(Calculations!H54,0) -> 0 | M77: =Calculations!O54 -> 15898754.08 | N77: =Calculations!P54 -> 4054002 | O77: =Calculations!Q54 -> 19952756.08 | Q77: =Calculations!R54 -> 31119299.1 | R77: =IFERROR(Calculations!E54,0) -> 3320482 | S77: =IFERROR(Calculations!K54,0) -> 3005931 | T77: =IFERROR(Calculations!S54,0) -> 17843343.62 | U77: =Calculations!Y54 -> 26329693.67 | V77: =IFERROR(Calculations!G54,0)+IFERROR(Calculations!M54,0) -> 6326413 | W77: =Calculations!AA54 -> 32656106.67 | X77: =IFERROR(Calculations!AC54,0) -> 0.0367474343
D78: 53 | E78: =IFERROR(Calculations!$AT$28+D78,0) -> 108 | F78: =Calculations!AE55 -> 37161424.28 | G78: =Calculations!AF55 -> 19507636.42 | H78: =IFERROR(Calculations!AG55,0) -> 13424843.21 | I78: =Calculations!AM55 -> 31410344.28 | J78: =IFERROR(Calculations!AO55,0) -> 0.03528170959 | L78: =IFERROR(Calculations!B55,0)+IFERROR(Calculations!H55,0) -> 0 | M78: =Calculations!O55 -> 16544340.73 | N78: =Calculations!P55 -> 4205905.5 | O78: =Calculations!Q55 -> 20750246.23 | Q78: =Calculations!R55 -> 32449059.58 | R78: =IFERROR(Calculations!E55,0) -> 3384171 | S78: =IFERROR(Calculations!K55,0) -> 3095429 | T78: =IFERROR(Calculations!S55,0) -> 18581527.99 | U78: =Calculations!Y55 -> 27481001.03 | V78: =IFERROR(Calculations!G55,0)+IFERROR(Calculations!M55,0) -> 6479600 | W78: =Calculations!AA55 -> 33960601.03 | X78: =IFERROR(Calculations!AC55,0) -> 0.03680770123
D79: 54 | E79: =IFERROR(Calculations!$AT$28+D79,0) -> 109 | F79: =Calculations!AE56 -> 38734161.16 | G79: =Calculations!AF56 -> 20285933.9 | H79: =IFERROR(Calculations!AG56,0) -> 14107247.54 | I79: =Calculations!AM56 -> 32775447.9 | J79: =IFERROR(Calculations!AO56,0) -> 0.03543258123 | L79: =IFERROR(Calculations!B56,0)+IFERROR(Calculations!H56,0) -> 0 | M79: =Calculations!O56 -> 17219082.06 | N79: =Calculations!P56 -> 4372803.9 | O79: =Calculations!Q56 -> 21591885.96 | Q79: =Calculations!R56 -> 33838967.18 | R79: =IFERROR(Calculations!E56,0) -> 3446968 | S79: =IFERROR(Calculations!K56,0) -> 3190207 | T79: =IFERROR(Calculations!S56,0) -> 19351066.79 | U79: =Calculations!Y56 -> 28684314.69 | V79: =IFERROR(Calculations!G56,0)+IFERROR(Calculations!M56,0) -> 6637175 | W79: =Calculations!AA56 -> 35321489.69 | X79: =IFERROR(Calculations!AC56,0) -> 0.03686806858
D80: 55 | E80: =IFERROR(Calculations!$AT$28+D80,0) -> 110 | F80: =Calculations!AE57 -> 40377713.83 | G80: =Calculations!AF57 -> 21098942.37 | H80: =IFERROR(Calculations!AG57,0) -> 14821229.06 | I80: =Calculations!AM57 -> 34201855.34 | J80: =IFERROR(Calculations!AO57,0) -> 0.03557907527 | L80: =IFERROR(Calculations!B57,0)+IFERROR(Calculations!H57,0) -> 0 | M80: =Calculations!O57 -> 17924349.26 | N80: =Calculations!P57 -> 4563059.1 | O80: =Calculations!Q57 -> 22487408.36 | Q80: =Calculations!R57 -> 35291805.95 | R80: =IFERROR(Calculations!E57,0) -> 3504053 | S80: =IFERROR(Calculations!K57,0) -> 3290577 | T80: =IFERROR(Calculations!S57,0) -> 20148700.71 | U80: =Calculations!Y57 -> 29942039.63 | V80: =IFERROR(Calculations!G57,0)+IFERROR(Calculations!M57,0) -> 6794630 | W80: =Calculations!AA57 -> 36736669.63 | X80: =IFERROR(Calculations!AC57,0) -> 0.03692611935
D81: 56 | E81: =IFERROR(Calculations!$AT$28+D81,0) -> 111 | F81: =Calculations!AE58 -> 42095356.02 | G81: =Calculations!AF58 -> 21948283.05 | H81: =IFERROR(Calculations!AG58,0) -> 15568254.96 | I81: =Calculations!AM58 -> 35689158.78 | J81: =IFERROR(Calculations!AO58,0) -> 0.03571974441 | L81: =IFERROR(Calculations!B58,0)+IFERROR(Calculations!H58,0) -> 0 | M81: =Calculations!O58 -> 18661578.96 | N81: =Calculations!P58 -> 4794055.5 | O81: =Calculations!Q58 -> 23455634.46 | Q81: =Calculations!R58 -> 36810490.16 | R81: =IFERROR(Calculations!E58,0) -> 3547790 | S81: =IFERROR(Calculations!K58,0) -> 3396869 | T81: =IFERROR(Calculations!S58,0) -> 20968430.45 | U81: =Calculations!Y58 -> 31256693.19 | V81: =IFERROR(Calculations!G58,0)+IFERROR(Calculations!M58,0) -> 6944659 | W81: =Calculations!AA58 -> 38201352.19 | X81: =IFERROR(Calculations!AC58,0) -> 0.0369786114
D82: 57 | E82: =IFERROR(Calculations!$AT$28+D82,0) -> 112 | F82: =Calculations!AE59 -> 43890514.61 | G82: =Calculations!AF59 -> 22835654.23 | H82: =IFERROR(Calculations!AG59,0) -> 16349860.85 | I82: =Calculations!AM59 -> 37240757.93 | J82: =IFERROR(Calculations!AO59,0) -> 0.03585530987 | L82: =IFERROR(Calculations!B59,0)+IFERROR(Calculations!H59,0) -> 0 | M82: =Calculations!O59 -> 19432276.32 | N82: =Calculations!P59 -> 0 | O82: =Calculations!Q59 -> 19432276.32 | Q82: =Calculations!R59 -> 38398070.35 | R82: =IFERROR(Calculations!E59,0) -> 0 | S82: =IFERROR(Calculations!K59,0) -> 0 | T82: =IFERROR(Calculations!S59,0) -> 14724361.49 | U82: =Calculations!Y59 -> 32630910.37 | V82: =IFERROR(Calculations!G59,0)+IFERROR(Calculations!M59,0) -> 0 | W82: =Calculations!AA59 -> 32630910.37 | X82: =IFERROR(Calculations!AC59,0) -> 0.03345665537
D83: 58 | E83: =IFERROR(Calculations!$AT$28+D83,0) -> 113 | F83: =Calculations!AE60 -> 45766776.81 | G83: =Calculations!AF60 -> 23762834.94 | H83: =IFERROR(Calculations!AG60,0) -> 17167653.98 | I83: =Calculations!AM60 -> 38862432.26 | J83: =IFERROR(Calculations!AO60,0) -> 0.0359874212 | L83: =IFERROR(Calculations!B60,0)+IFERROR(Calculations!H60,0) -> 0 | M83: =Calculations!O60 -> 20238018.36 | N83: =Calculations!P60 -> 0 | O83: =Calculations!Q60 -> 20238018.36 | Q83: =Calculations!R60 -> 40057739.8 | R83: =IFERROR(Calculations!E60,0) -> 0 | S83: =IFERROR(Calculations!K60,0) -> 0 | T83: =IFERROR(Calculations!S60,0) -> 15457271.94 | U83: =Calculations!Y60 -> 34067449.35 | V83: =IFERROR(Calculations!G60,0)+IFERROR(Calculations!M60,0) -> 0 | W83: =Calculations!AA60 -> 34067449.35 | X83: =IFERROR(Calculations!AC60,0) -> 0.03363793946
D84: 59 | E84: =IFERROR(Calculations!$AT$28+D84,0) -> 114 | F84: =Calculations!AE61 -> 47727897.68 | G84: =Calculations!AF61 -> 24731688.84 | H84: =IFERROR(Calculations!AG61,0) -> 18023316.57 | I84: =Calculations!AM61 -> 40557424.71 | J84: =IFERROR(Calculations!AO61,0) -> 0.03611623984 | L84: =IFERROR(Calculations!B61,0)+IFERROR(Calculations!H61,0) -> 0 | M84: =Calculations!O61 -> 21080457.4 | N84: =Calculations!P61 -> 0 | O84: =Calculations!Q61 -> 21080457.4 | Q84: =Calculations!R61 -> 41792841.19 | R84: =IFERROR(Calculations!E61,0) -> 0 | S84: =IFERROR(Calculations!K61,0) -> 0 | T84: =IFERROR(Calculations!S61,0) -> 16224000.45 | U84: =Calculations!Y61 -> 35569197.26 | V84: =IFERROR(Calculations!G61,0)+IFERROR(Calculations!M61,0) -> 0 | W84: =Calculations!AA61 -> 35569197.26 | X84: =IFERROR(Calculations!AC61,0) -> 0.03381407751
D85: 60 | E85: =IFERROR(Calculations!$AT$28+D85,0) -> 115 | F85: =Calculations!AE62 -> 49777808.09 | G85: =Calculations!AF62 -> 25744168.24 | H85: =IFERROR(Calculations!AG62,0) -> 18918609.34 | I85: =Calculations!AM62 -> 42329129.95 | J85: =IFERROR(Calculations!AO62,0) -> 0.03624191624 | L85: =IFERROR(Calculations!B62,0)+IFERROR(Calculations!H62,0) -> 0 | M85: =Calculations!O62 -> 21961324.62 | N85: =Calculations!P62 -> 0 | O85: =Calculations!Q62 -> 21961324.62 | Q85: =Calculations!R62 -> 43606873.68 | R85: =IFERROR(Calculations!E62,0) -> 0 | S85: =IFERROR(Calculations!K62,0) -> 0 | T85: =IFERROR(Calculations!S62,0) -> 17026114.36 | U85: =Calculations!Y62 -> 37139176.27 | V85: =IFERROR(Calculations!G62,0)+IFERROR(Calculations!M62,0) -> 0 | W85: =Calculations!AA62 -> 37139176.27 | X85: =IFERROR(Calculations!AC62,0) -> 0.03398531556
D86: 61 | E86: =IFERROR(Calculations!$AT$28+D86,0) -> 116 | F86: =Calculations!AE63 -> 51920622.96 | G86: =Calculations!AF63 -> 26802318.36 | H86: =IFERROR(Calculations!AG63,0) -> 19855375.18 | I86: =Calculations!AM63 -> 44181101.51 | J86: =IFERROR(Calculations!AO63,0) -> 0.03636459082 | L86: =IFERROR(Calculations!B63,0)+IFERROR(Calculations!H63,0) -> 0 | M86: =Calculations!O63 -> 22882433.92 | N86: =Calculations!P63 -> 0 | O86: =Calculations!Q63 -> 22882433.92 | Q86: =Calculations!R63 -> 45503500.22 | R86: =IFERROR(Calculations!E63,0) -> 0 | S86: =IFERROR(Calculations!K63,0) -> 0 | T86: =IFERROR(Calculations!S63,0) -> 17865253.97 | U86: =Calculations!Y63 -> 38780549.92 | V86: =IFERROR(Calculations!G63,0)+IFERROR(Calculations!M63,0) -> 0 | W86: =Calculations!AA63 -> 38780549.92 | X86: =IFERROR(Calculations!AC63,0) -> 0.03415188332
D87: 62 | E87: =IFERROR(Calculations!$AT$28+D87,0) -> 117 | F87: =Calculations!AE64 -> 54160649.91 | G87: =Calculations!AF64 -> 27908281.77 | H87: =IFERROR(Calculations!AG64,0) -> 20835542.98 | I87: =Calculations!AM64 -> 46117059.26 | J87: =IFERROR(Calculations!AO64,0) -> 0.03648439475 | L87: =IFERROR(Calculations!B64,0)+IFERROR(Calculations!H64,0) -> 0 | M87: =Calculations!O64 -> 23845685.83 | N87: =Calculations!P64 -> 0 | O87: =Calculations!Q64 -> 23845685.83 | Q87: =Calculations!R64 -> 47486555.3 | R87: =IFERROR(Calculations!E64,0) -> 0 | S87: =IFERROR(Calculations!K64,0) -> 0 | T87: =IFERROR(Calculations!S64,0) -> 18743135.91 | U87: =Calculations!Y64 -> 40496629.78 | V87: =IFERROR(Calculations!G64,0)+IFERROR(Calculations!M64,0) -> 0 | W87: =Calculations!AA64 -> 40496629.78 | X87: =IFERROR(Calculations!AC64,0) -> 0.03431399551
D88: 63 | E88: =IFERROR(Calculations!$AT$28+D88,0) -> 118 | F88: =Calculations!AE65 -> 56502398.38 | G88: =Calculations!AF65 -> 29064303.08 | H88: =IFERROR(Calculations!AG65,0) -> 21861131.69 | I88: =Calculations!AM65 -> 48140897.25 | J88: =IFERROR(Calculations!AO65,0) -> 0.03660145077 | L88: =IFERROR(Calculations!B65,0)+IFERROR(Calculations!H65,0) -> 0 | M88: =Calculations!O65 -> 24853071.68 | N88: =Calculations!P65 -> 0 | O88: =Calculations!Q65 -> 24853071.68 | Q88: =Calculations!R65 -> 49560052.99 | R88: =IFERROR(Calculations!E65,0) -> 0 | S88: =IFERROR(Calculations!K65,0) -> 0 | T88: =IFERROR(Calculations!S65,0) -> 19661556.69 | U88: =Calculations!Y65 -> 42290882.38 | V88: =IFERROR(Calculations!G65,0)+IFERROR(Calculations!M65,0) -> 0 | W88: =Calculations!AA65 -> 42290882.38 | X88: =IFERROR(Calculations!AC65,0) -> 0.03447185307
D89: 64 | E89: =IFERROR(Calculations!$AT$28+D89,0) -> 119 | F89: =Calculations!AE66 -> 58950589.1 | G89: =Calculations!AF66 -> 30272733.78 | H89: =IFERROR(Calculations!AG66,0) -> 22934254.5 | I89: =Calculations!AM66 -> 50256691.87 | J89: =IFERROR(Calculations!AO66,0) -> 0.0367158738 | L89: =IFERROR(Calculations!B66,0)+IFERROR(Calculations!H66,0) -> 0 | M89: =Calculations!O66 -> 25906677.98 | N89: =Calculations!P66 -> 0 | O89: =Calculations!Q66 -> 25906677.98 | Q89: =Calculations!R66 -> 51728195.41 | R89: =IFERROR(Calculations!E66,0) -> 0 | S89: =IFERROR(Calculations!K66,0) -> 0 | T89: =IFERROR(Calculations!S66,0) -> 20622396.52 | U89: =Calculations!Y66 -> 44166936.55 | V89: =IFERROR(Calculations!G66,0)+IFERROR(Calculations!M66,0) -> 0 | W89: =Calculations!AA66 -> 44166936.55 | X89: =IFERROR(Calculations!AC66,0) -> 0.03462564426
D90: 65 | E90: =IFERROR(Calculations!$AT$28+D90,0) -> 120 | F90: =Calculations!AE67 -> 61510164.06 | G90: =Calculations!AF67 -> 31536037.38 | H90: =IFERROR(Calculations!AG67,0) -> 24057123.28 | I90: =Calculations!AM67 -> 52468710.49 | J90: =IFERROR(Calculations!AO67,0) -> 0.0368277716 | L90: =IFERROR(Calculations!B67,0)+IFERROR(Calculations!H67,0) -> 0 | M90: =Calculations!O67 -> 27008690.95 | N90: =Calculations!P67 -> 0 | O90: =Calculations!Q67 -> 27008690.95 | Q90: =Calculations!R67 -> 53995381.59 | R90: =IFERROR(Calculations!E67,0) -> 0 | S90: =IFERROR(Calculations!K67,0) -> 0 | T90: =IFERROR(Calculations!S67,0) -> 21627623.13 | U90: =Calculations!Y67 -> 46128590.99 | V90: =IFERROR(Calculations!G67,0)+IFERROR(Calculations!M67,0) -> 0 | W90: =Calculations!AA67 -> 46128590.99 | X90: =IFERROR(Calculations!AC67,0) -> 0.03477554564
D91: 66 | E91: =IFERROR(Calculations!$AT$28+D91,0) -> 121 | F91: =Calculations!AE68 -> 64186296.93 | G91: =Calculations!AF68 -> 32856794.77 | H91: =IFERROR(Calculations!AG68,0) -> 25232053.21 | I91: =Calculations!AM68 -> 54781420.41 | J91: =IFERROR(Calculations!AO68,0) -> 0.03693724533 | L91: =IFERROR(Calculations!B68,0)+IFERROR(Calculations!H68,0) -> 0 | M91: =Calculations!O68 -> 28161401.32 | N91: =Calculations!P68 -> 0 | O91: =Calculations!Q68 -> 28161401.32 | Q91: =Calculations!R68 -> 56366216.69 | R91: =IFERROR(Calculations!E68,0) -> 0 | S91: =IFERROR(Calculations!K68,0) -> 0 | T91: =IFERROR(Calculations!S68,0) -> 22679295.88 | U91: =Calculations!Y68 -> 48179822.34 | V91: =IFERROR(Calculations!G68,0)+IFERROR(Calculations!M68,0) -> 0 | W91: =Calculations!AA68 -> 48179822.34 | X91: =IFERROR(Calculations!AC68,0) -> 0.03492172299
D92: 67 | E92: =IFERROR(Calculations!$AT$28+D92,0) -> 122 | F92: =Calculations!AE69 -> 66984403.97 | G92: =Calculations!AF69 -> 34237709.85 | H92: =IFERROR(Calculations!AG69,0) -> 26461467.59 | I92: =Calculations!AM69 -> 57199498.28 | J92: =IFERROR(Calculations!AO69,0) -> 0.03704439004 | L92: =IFERROR(Calculations!B69,0)+IFERROR(Calculations!H69,0) -> 0 | M92: =Calculations!O69 -> 29367209.35 | N92: =Calculations!P69 -> 0 | O92: =Calculations!Q69 -> 29367209.35 | Q92: =Calculations!R69 -> 58845521.78 | R92: =IFERROR(Calculations!E69,0) -> 0 | S92: =IFERROR(Calculations!K69,0) -> 0 | T92: =IFERROR(Calculations!S69,0) -> 23779570.09 | U92: =Calculations!Y69 -> 50324793.46 | V92: =IFERROR(Calculations!G69,0)+IFERROR(Calculations!M69,0) -> 0 | W92: =Calculations!AA69 -> 50324793.46 | X92: =IFERROR(Calculations!AC69,0) -> 0.03506433211
D93: 68 | E93: =IFERROR(Calculations!$AT$28+D93,0) -> 123 | F93: =Calculations!AE70 -> 69910155.46 | G93: =Calculations!AF70 -> 35681615.44 | H93: =IFERROR(Calculations!AG70,0) -> 27747902.93 | I93: =Calculations!AM70 -> 59727839.99 | J93: =IFERROR(Calculations!AO70,0) -> 0.03714929516 | L93: =IFERROR(Calculations!B70,0)+IFERROR(Calculations!H70,0) -> 0 | M93: =Calculations!O70 -> 30628630.08 | N93: =Calculations!P70 -> 0 | O93: =Calculations!Q70 -> 30628630.08 | Q93: =Calculations!R70 -> 61438343.95 | R93: =IFERROR(Calculations!E70,0) -> 0 | S93: =IFERROR(Calculations!K70,0) -> 0 | T93: =IFERROR(Calculations!S70,0) -> 24930701.48 | U93: =Calculations!Y70 -> 52567862.27 | V93: =IFERROR(Calculations!G70,0)+IFERROR(Calculations!M70,0) -> 0 | W93: =Calculations!AA70 -> 52567862.27 | X93: =IFERROR(Calculations!AC70,0) -> 0.03520351958
D94: 69 | E94: =IFERROR(Calculations!$AT$28+D94,0) -> 124 | F94: =Calculations!AE71 -> 72969487.71 | G94: =Calculations!AF71 -> 37191479.38 | H94: =IFERROR(Calculations!AG71,0) -> 29094014.25 | I94: =Calculations!AM71 -> 62371570.96 | J94: =IFERROR(Calculations!AO71,0) -> 0.03725204488 | L94: =IFERROR(Calculations!B71,0)+IFERROR(Calculations!H71,0) -> 0 | M94: =Calculations!O71 -> 31948298.84 | N94: =Calculations!P71 -> 0 | O94: =Calculations!Q71 -> 31948298.84 | Q94: =Calculations!R71 -> 64149966.98 | R94: =IFERROR(Calculations!E71,0) -> 0 | S94: =IFERROR(Calculations!K71,0) -> 0 | T94: =IFERROR(Calculations!S71,0) -> 26135050.87 | U94: =Calculations!Y71 -> 54913590.9 | V94: =IFERROR(Calculations!G71,0)+IFERROR(Calculations!M71,0) -> 0 | W94: =Calculations!AA71 -> 54913590.9 | X94: =IFERROR(Calculations!AC71,0) -> 0.03533942343
D95: 70 | E95: =IFERROR(Calculations!$AT$28+D95,0) -> 125 | F95: =Calculations!AE72 -> 76168615.54 | G95: =Calculations!AF72 -> 38770411.09 | H95: =IFERROR(Calculations!AG72,0) -> 30502580.64 | I95: =Calculations!AM72 -> 65136057 | J95: =IFERROR(Calculations!AO72,0) -> 0.03735271859 | L95: =IFERROR(Calculations!B72,0)+IFERROR(Calculations!H72,0) -> 0 | M95: =Calculations!O72 -> 33328977.02 | N95: =Calculations!P72 -> 0 | O95: =Calculations!Q72 -> 33328977.02 | Q95: =Calculations!R72 -> 66985922.47 | R95: =IFERROR(Calculations!E72,0) -> 0 | S95: =IFERROR(Calculations!K72,0) -> 0 | T95: =IFERROR(Calculations!S72,0) -> 27395089.12 | U95: =Calculations!Y72 -> 57366755.3 | V95: =IFERROR(Calculations!G72,0)+IFERROR(Calculations!M72,0) -> 0 | W95: =Calculations!AA72 -> 57366755.3 | X95: =IFERROR(Calculations!AC72,0) -> 0.03547217379
D96: 71 | E96: =IFERROR(Calculations!$AT$28+D96,0) -> 126 | F96: =Calculations!AE73 -> 79514045.47 | G96: =Calculations!AF73 -> 40421668.3 | H96: =IFERROR(Calculations!AG73,0) -> 31976511.07 | I96: =Calculations!AM73 -> 68026915.57 | J96: =IFERROR(Calculations!AO73,0) -> 0.03745139119 | L96: =IFERROR(Calculations!B73,0)+IFERROR(Calculations!H73,0) -> 0 | M96: =Calculations!O73 -> 34773558.11 | N96: =Calculations!P73 -> 0 | O96: =Calculations!Q73 -> 34773558.11 | Q96: =Calculations!R73 -> 69952001.54 | R96: =IFERROR(Calculations!E73,0) -> 0 | S96: =IFERROR(Calculations!K73,0) -> 0 | T96: =IFERROR(Calculations!S73,0) -> 28713402.23 | U96: =Calculations!Y73 -> 59932355.31 | V96: =IFERROR(Calculations!G73,0)+IFERROR(Calculations!M73,0) -> 0 | W96: =Calculations!AA73 -> 59932355.31 | X96: =IFERROR(Calculations!AC73,0) -> 0.03560189341
D97: 72 | E97: =IFERROR(Calculations!$AT$28+D97,0) -> 127 | F97: =Calculations!AE74 -> 83012589.43 | G97: =Calculations!AF74 -> 42148664.17 | H97: =IFERROR(Calculations!AG74,0) -> 33518850.45 | I97: =Calculations!AM74 -> 71050027.71 | J97: =IFERROR(Calculations!AO74,0) -> 0.03754813344 | L97: =IFERROR(Calculations!B74,0)+IFERROR(Calculations!H74,0) -> 0 | M97: =Calculations!O74 -> 36285074.08 | N97: =Calculations!P74 -> 0 | O97: =Calculations!Q74 -> 36285074.08 | Q97: =Calculations!R74 -> 73054267.05 | R97: =IFERROR(Calculations!E74,0) -> 0 | S97: =IFERROR(Calculations!K74,0) -> 0 | T97: =IFERROR(Calculations!S74,0) -> 30092696.79 | U97: =Calculations!Y74 -> 62615625.21 | V97: =IFERROR(Calculations!G74,0)+IFERROR(Calculations!M74,0) -> 0 | W97: =Calculations!AA74 -> 62615625.21 | X97: =IFERROR(Calculations!AC74,0) -> 0.03572869824
D98: 73 | E98: =IFERROR(Calculations!$AT$28+D98,0) -> 128 | F98: =Calculations!AE75 -> 86671379.19 | G98: =Calculations!AF75 -> 43954974.72 | H98: =IFERROR(Calculations!AG75,0) -> 35132786.09 | I98: =Calculations!AM75 -> 74211550.42 | J98: =IFERROR(Calculations!AO75,0) -> 0.03764301223 | L98: =IFERROR(Calculations!B75,0)+IFERROR(Calculations!H75,0) -> 0 | M98: =Calculations!O75 -> 37866701.95 | N98: =Calculations!P75 -> 0 | O98: =Calculations!Q75 -> 37866701.95 | Q98: =Calculations!R75 -> 76299066.39 | R98: =IFERROR(Calculations!E75,0) -> 0 | S98: =IFERROR(Calculations!K75,0) -> 0 | T98: =IFERROR(Calculations!S75,0) -> 31535805.57 | U98: =Calculations!Y75 -> 65422044.74 | V98: =IFERROR(Calculations!G75,0)+IFERROR(Calculations!M75,0) -> 0 | W98: =Calculations!AA75 -> 65422044.74 | X98: =IFERROR(Calculations!AC75,0) -> 0.03585269787
D99: 74 | E99: =IFERROR(Calculations!$AT$28+D99,0) -> 129 | F99: =Calculations!AE76 -> 90497881.43 | G99: =Calculations!AF76 -> 45844346.68 | H99: =IFERROR(Calculations!AG76,0) -> 36821654.28 | I99: =Calculations!AM76 -> 77517929.69 | J99: =IFERROR(Calculations!AO76,0) -> 0.03773609087 | L99: =IFERROR(Calculations!B76,0)+IFERROR(Calculations!H76,0) -> 0 | M99: =Calculations!O76 -> 39521770.85 | N99: =Calculations!P76 -> 0 | O99: =Calculations!Q76 -> 39521770.85 | Q99: =Calculations!R76 -> 79693044.91 | R99: =IFERROR(Calculations!E76,0) -> 0 | S99: =IFERROR(Calculations!K76,0) -> 0 | T99: =IFERROR(Calculations!S76,0) -> 33045693.42 | U99: =Calculations!Y76 -> 68357350.67 | V99: =IFERROR(Calculations!G76,0)+IFERROR(Calculations!M76,0) -> 0 | W99: =Calculations!AA76 -> 68357350.67 | X99: =IFERROR(Calculations!AC76,0) -> 0.03597399596
D100: 75 | E100: =IFERROR(Calculations!$AT$28+D100,0) -> 130 | F100: =Calculations!AE77 -> 94499913.55 | G100: =Calculations!AF77 -> 47820705.62 | H100: =IFERROR(Calculations!AG77,0) -> 38588947.34 | I100: =Calculations!AM77 -> 80975914.12 | J100: =IFERROR(Calculations!AO77,0) -> 0.03782742935 | L100: =IFERROR(Calculations!B77,0)+IFERROR(Calculations!H77,0) -> 0 | M100: =Calculations!O77 -> 41253769.23 | N100: =Calculations!P77 -> 0 | O100: =Calculations!Q77 -> 41253769.23 | Q100: =Calculations!R77 -> 83243159.94 | R100: =IFERROR(Calculations!E77,0) -> 0 | S100: =IFERROR(Calculations!K77,0) -> 0 | T100: =IFERROR(Calculations!S77,0) -> 34625463.52 | U100: =Calculations!Y77 -> 71427548.94 | V100: =IFERROR(Calculations!G77,0)+IFERROR(Calculations!M77,0) -> 0 | W100: =Calculations!AA77 -> 71427548.94 | X100: =IFERROR(Calculations!AC77,0) -> 0.0360926907
D101: 76 | E101: =IFERROR(Calculations!$AT$28+D101,0) -> 131 | F101: =Calculations!AE78 -> 98685660.21 | G101: =Calculations!AF78 -> 49888164.53 | H101: =IFERROR(Calculations!AG78,0) -> 40438320.91 | I101: =Calculations!AM78 -> 84588927.4 | J101: =IFERROR(Calculations!AO78,0) -> 0.03791649658 | L101: =IFERROR(Calculations!B78,0)+IFERROR(Calculations!H78,0) -> 0 | M101: =Calculations!O78 -> 43066352.58 | N101: =Calculations!P78 -> 0 | O101: =Calculations!Q78 -> 43066352.58 | Q101: =Calculations!R78 -> 86956695.52 | R101: =IFERROR(Calculations!E78,0) -> 0 | S101: =IFERROR(Calculations!K78,0) -> 0 | T101: =IFERROR(Calculations!S78,0) -> 36278363.77 | U101: =Calculations!Y78 -> 74635285.52 | V101: =IFERROR(Calculations!G78,0)+IFERROR(Calculations!M78,0) -> 0 | W101: =Calculations!AA78 -> 74635285.52 | X101: =IFERROR(Calculations!AC78,0) -> 0.03620820986
D102: 77 | E102: =IFERROR(Calculations!$AT$28+D102,0) -> 132 | F102: =Calculations!AE79 -> 103063690.7 | G102: =Calculations!AF79 -> 52051032.83 | H102: =IFERROR(Calculations!AG79,0) -> 42373601.62 | I102: =Calculations!AM79 -> 88365270.41 | J102: =IFERROR(Calculations!AO79,0) -> 0.03800358159 | L102: =IFERROR(Calculations!B79,0)+IFERROR(Calculations!H79,0) -> 0 | M102: =Calculations!O79 -> 44963351.4 | N102: =Calculations!P79 -> 0 | O102: =Calculations!Q79 -> 44963351.4 | Q102: =Calculations!R79 -> 90841277.8 | R102: =IFERROR(Calculations!E79,0) -> 0 | S102: =IFERROR(Calculations!K79,0) -> 0 | T102: =IFERROR(Calculations!S79,0) -> 38007793.6 | U102: =Calculations!Y79 -> 77988046.83 | V102: =IFERROR(Calculations!G79,0)+IFERROR(Calculations!M79,0) -> 0 | W102: =Calculations!AA79 -> 77988046.83 | X102: =IFERROR(Calculations!AC79,0) -> 0.03632090806
D103: 78 | E103: =IFERROR(Calculations!$AT$28+D103,0) -> 133 | F103: =Calculations!AE80 -> 107642976.9 | G103: =Calculations!AF80 -> 54313825.78 | H103: =IFERROR(Calculations!AG80,0) -> 44398795.12 | I103: =Calculations!AM80 -> 92315332.53 | J103: =IFERROR(Calculations!AO80,0) -> 0.03808918029 | L103: =IFERROR(Calculations!B80,0)+IFERROR(Calculations!H80,0) -> 0 | M103: =Calculations!O80 -> 46948779.63 | N103: =Calculations!P80 -> 0 | O103: =Calculations!Q80 -> 46948779.63 | Q103: =Calculations!R80 -> 94904891.16 | R103: =IFERROR(Calculations!E80,0) -> 0 | S103: =IFERROR(Calculations!K80,0) -> 0 | T103: =IFERROR(Calculations!S80,0) -> 39817311.09 | U103: =Calculations!Y80 -> 81495369.32 | V103: =IFERROR(Calculations!G80,0)+IFERROR(Calculations!M80,0) -> 0 | W103: =Calculations!AA80 -> 81495369.32 | X103: =IFERROR(Calculations!AC80,0) -> 0.03643137218
D104: 79 | E104: =IFERROR(Calculations!$AT$28+D104,0) -> 134 | F104: =Calculations!AE81 -> 112432912.7 | G104: =Calculations!AF81 -> 56681274.31 | H104: =IFERROR(Calculations!AG81,0) -> 46518094.49 | I104: =Calculations!AM81 -> 96447221.01 | J104: =IFERROR(Calculations!AO81,0) -> 0.03817333444 | L104: =IFERROR(Calculations!B81,0)+IFERROR(Calculations!H81,0) -> 0 | M104: =Calculations!O81 -> 49026843.43 | N104: =Calculations!P81 -> 0 | O104: =Calculations!Q81 -> 49026843.43 | Q104: =Calculations!R81 -> 99155895.12 | R104: =IFERROR(Calculations!E81,0) -> 0 | S104: =IFERROR(Calculations!K81,0) -> 0 | T104: =IFERROR(Calculations!S81,0) -> 41710640.35 | U104: =Calculations!Y81 -> 85164467.05 | V104: =IFERROR(Calculations!G81,0)+IFERROR(Calculations!M81,0) -> 0 | W104: =Calculations!AA81 -> 85164467.05 | X104: =IFERROR(Calculations!AC81,0) -> 0.03653967381
D105: 80 | E105: =IFERROR(Calculations!$AT$28+D105,0) -> 135 | F105: =Calculations!AE82 -> 117443333.4 | G105: =Calculations!AF82 -> 59158335.4 | H105: =IFERROR(Calculations!AG82,0) -> 48735889.01 | I105: =Calculations!AM82 -> 100769424.1 | J105: =IFERROR(Calculations!AO82,0) -> 0.03825608394 | L105: =IFERROR(Calculations!B82,0)+IFERROR(Calculations!H82,0) -> 0 | M105: =Calculations!O82 -> 51201950.43 | N105: =Calculations!P82 -> 0 | O105: =Calculations!Q82 -> 51201950.43 | Q105: =Calculations!R82 -> 103603042 | R105: =IFERROR(Calculations!E82,0) -> 0 | S105: =IFERROR(Calculations!K82,0) -> 0 | T105: =IFERROR(Calculations!S82,0) -> 43691679.33 | U105: =Calculations!Y82 -> 89002892.84 | V105: =IFERROR(Calculations!G82,0)+IFERROR(Calculations!M82,0) -> 0 | W105: =Calculations!AA82 -> 89002892.84 | X105: =IFERROR(Calculations!AC82,0) -> 0.03664588117
D106: 81 | E106: =IFERROR(Calculations!$AT$28+D106,0) -> 136 | F106: =Calculations!AE83 -> 122684537 | G106: =Calculations!AF83 -> 61750202.9 | H106: =IFERROR(Calculations!AG83,0) -> 51056773.36 | I106: =Calculations!AM83 -> 105290829 | J106: =IFERROR(Calculations!AO83,0) -> 0.03833746693 | L106: =IFERROR(Calculations!B83,0)+IFERROR(Calculations!H83,0) -> 0 | M106: =Calculations!O83 -> 53478719.43 | N106: =Calculations!P83 -> 0 | O106: =Calculations!Q83 -> 53478719.43 | Q106: =Calculations!R83 -> 108255495.5 | R106: =IFERROR(Calculations!E83,0) -> 0 | S106: =IFERROR(Calculations!K83,0) -> 0 | T106: =IFERROR(Calculations!S83,0) -> 45764507.95 | U106: =Calculations!Y83 -> 93018554.32 | V106: =IFERROR(Calculations!G83,0)+IFERROR(Calculations!M83,0) -> 0 | W106: =Calculations!AA83 -> 93018554.32 | X106: =IFERROR(Calculations!AC83,0) -> 0.03675005936
D107: 82 | E107: =IFERROR(Calculations!$AT$28+D107,0) -> 137 | F107: =Calculations!AE84 -> 128167305.6 | G107: =Calculations!AF84 -> 64462318.89 | H107: =IFERROR(Calculations!AG84,0) -> 53485557.33 | I107: =Calculations!AM84 -> 110020740.9 | J107: =IFERROR(Calculations!AO84,0) -> 0.03841751995 | L107: =IFERROR(Calculations!B84,0)+IFERROR(Calculations!H84,0) -> 0 | M107: =Calculations!O84 -> 55861990.47 | N107: =Calculations!P84 -> 0 | O107: =Calculations!Q84 -> 55861990.47 | Q107: =Calculations!R84 -> 113122850.2 | R107: =IFERROR(Calculations!E84,0) -> 0 | S107: =IFERROR(Calculations!K84,0) -> 0 | T107: =IFERROR(Calculations!S84,0) -> 47933396.62 | U107: =Calculations!Y84 -> 97219730.57 | V107: =IFERROR(Calculations!G84,0)+IFERROR(Calculations!M84,0) -> 0 | W107: =Calculations!AA84 -> 97219730.57 | X107: =IFERROR(Calculations!AC84,0) -> 0.03685227052
D108: 83 | E108: =IFERROR(Calculations!$AT$28+D108,0) -> 138 | F108: =Calculations!AE85 -> 133902928.8 | G108: =Calculations!AF85 -> 67300385.57 | H108: =IFERROR(Calculations!AG85,0) -> 56027275.84 | I108: =Calculations!AM85 -> 114968902.2 | J108: =IFERROR(Calculations!AO85,0) -> 0.03849627798 | L108: =IFERROR(Calculations!B85,0)+IFERROR(Calculations!H85,0) -> 0 | M108: =Calculations!O85 -> 58356835.5 | N108: =Calculations!P85 -> 0 | O108: =Calculations!Q85 -> 58356835.5 | Q108: =Calculations!R85 -> 118215151.4 | R108: =IFERROR(Calculations!E85,0) -> 0 | S108: =IFERROR(Calculations!K85,0) -> 0 | T108: =IFERROR(Calculations!S85,0) -> 50202815.19 | U108: =Calculations!Y85 -> 101615089.7 | V108: =IFERROR(Calculations!G85,0)+IFERROR(Calculations!M85,0) -> 0 | W108: =Calculations!AA85 -> 101615089.7 | X108: =IFERROR(Calculations!AC85,0) -> 0.03695257402
D109: 84 | E109: =IFERROR(Calculations!$AT$28+D109,0) -> 139 | F109: =Calculations!AE86 -> 139903227.2 | G109: =Calculations!AF86 -> 70270377.76 | H109: =IFERROR(Calculations!AG86,0) -> 58687199.55 | I109: =Calculations!AM86 -> 120145513.9 | J109: =IFERROR(Calculations!AO86,0) -> 0.03857377454 | L109: =IFERROR(Calculations!B86,0)+IFERROR(Calculations!H86,0) -> 0 | M109: =Calculations!O86 -> 60968569.52 | N109: =Calculations!P86 -> 0 | O109: =Calculations!Q86 -> 60968569.52 | Q109: =Calculations!R86 -> 123542917.2 | R109: =IFERROR(Calculations!E86,0) -> 0 | S109: =IFERROR(Calculations!K86,0) -> 0 | T109: =IFERROR(Calculations!S86,0) -> 52577442.23 | U109: =Calculations!Y86 -> 106213707.3 | V109: =IFERROR(Calculations!G86,0)+IFERROR(Calculations!M86,0) -> 0 | W109: =Calculations!AA86 -> 106213707.3 | X109: =IFERROR(Calculations!AC86,0) -> 0.03705102662
D110: 85 | E110: =IFERROR(Calculations!$AT$28+D110,0) -> 140 | F110: =Calculations!AE87 -> 146180577.7 | G110: =Calculations!AF87 -> 73378555.93 | H110: =IFERROR(Calculations!AG87,0) -> 61470845.93 | I110: =Calculations!AM87 -> 125561256.4 | J110: =IFERROR(Calculations!AO87,0) -> 0.0386500418 | L110: =IFERROR(Calculations!B87,0)+IFERROR(Calculations!H87,0) -> 0 | M110: =Calculations!O87 -> 63702762.24 | N110: =Calculations!P87 -> 0 | O110: =Calculations!Q87 -> 63702762.24 | Q110: =Calculations!R87 -> 129117160.1 | R110: =IFERROR(Calculations!E87,0) -> 0 | S110: =IFERROR(Calculations!K87,0) -> 0 | T110: =IFERROR(Calculations!S87,0) -> 55062174.92 | U110: =Calculations!Y87 -> 111025085.4 | V110: =IFERROR(Calculations!G87,0)+IFERROR(Calculations!M87,0) -> 0 | W110: =Calculations!AA87 -> 111025085.4 | X110: =IFERROR(Calculations!AC87,0) -> 0.03714768263
D111: 86 | E111: =IFERROR(Calculations!$AT$28+D111,0) -> 141 | F111: =Calculations!AE88 -> 152747939.8 | G111: =Calculations!AF88 -> 76631479.96 | H111: =IFERROR(Calculations!AG88,0) -> 64383990.86 | I111: =Calculations!AM88 -> 131227312.9 | J111: =IFERROR(Calculations!AO88,0) -> 0.03872511066 | L111: =IFERROR(Calculations!B88,0)+IFERROR(Calculations!H88,0) -> 0 | M111: =Calculations!O88 -> 66565250.3 | N111: =Calculations!P88 -> 0 | O111: =Calculations!Q88 -> 66565250.3 | Q111: =Calculations!R88 -> 134949410.7 | R111: =IFERROR(Calculations!E88,0) -> 0 | S111: =IFERROR(Calculations!K88,0) -> 0 | T111: =IFERROR(Calculations!S88,0) -> 57662139.16 | U111: =Calculations!Y88 -> 116059172.6 | V111: =IFERROR(Calculations!G88,0)+IFERROR(Calculations!M88,0) -> 0 | W111: =Calculations!AA88 -> 116059172.6 | X111: =IFERROR(Calculations!AC88,0) -> 0.03724259403
D112: 87 | E112: =IFERROR(Calculations!$AT$28+D112,0) -> 142 | F112: =Calculations!AE89 -> 159618882.8 | G112: =Calculations!AF89 -> 80036023.42 | H112: =IFERROR(Calculations!AG89,0) -> 67432680.74 | I112: =Calculations!AM89 -> 137155392.6 | J112: =IFERROR(Calculations!AO89,0) -> 0.03879901079 | L112: =IFERROR(Calculations!B89,0)+IFERROR(Calculations!H89,0) -> 0 | M112: =Calculations!O89 -> 69562150.11 | N112: =Calculations!P89 -> 0 | O112: =Calculations!Q89 -> 69562150.11 | Q112: =Calculations!R89 -> 141051742.2 | R112: =IFERROR(Calculations!E89,0) -> 0 | S112: =IFERROR(Calculations!K89,0) -> 0 | T112: =IFERROR(Calculations!S89,0) -> 60382700.43 | U112: =Calculations!Y89 -> 121326385.6 | V112: =IFERROR(Calculations!G89,0)+IFERROR(Calculations!M89,0) -> 0 | W112: =Calculations!AA89 -> 121326385.6 | X112: =IFERROR(Calculations!AC89,0) -> 0.03733581064
D113: 88 | E113: =IFERROR(Calculations!$AT$28+D113,0) -> 143 | F113: =Calculations!AE90 -> 166807615.2 | G113: =Calculations!AF90 -> 83599388.69 | H113: =IFERROR(Calculations!AG90,0) -> 70623245.23 | I113: =Calculations!AM90 -> 143357755.9 | J113: =IFERROR(Calculations!AO90,0) -> 0.03887177072 | L113: =IFERROR(Calculations!B90,0)+IFERROR(Calculations!H90,0) -> 0 | M113: =Calculations!O90 -> 72699871.27 | N113: =Calculations!P90 -> 0 | O113: =Calculations!Q90 -> 72699871.27 | Q113: =Calculations!R90 -> 147436795.5 | R113: =IFERROR(Calculations!E90,0) -> 0 | S113: =IFERROR(Calculations!K90,0) -> 0 | T113: =IFERROR(Calculations!S90,0) -> 63229474.92 | U113: =Calculations!Y90 -> 126837630.8 | V113: =IFERROR(Calculations!G90,0)+IFERROR(Calculations!M90,0) -> 0 | W113: =Calculations!AA90 -> 126837630.8 | X113: =IFERROR(Calculations!AC90,0) -> 0.03742738018
D114: 89 | E114: =IFERROR(Calculations!$AT$28+D114,0) -> 144 | F114: =Calculations!AE91 -> 174329014.5 | G114: =Calculations!AF91 -> 87329122.67 | H114: =IFERROR(Calculations!AG91,0) -> 73962310.51 | I114: =Calculations!AM91 -> 149847240.1 | J114: =IFERROR(Calculations!AO91,0) -> 0.0389434179 | L114: =IFERROR(Calculations!B91,0)+IFERROR(Calculations!H91,0) -> 0 | M114: =Calculations!O91 -> 75985130.67 | N114: =Calculations!P91 -> 0 | O114: =Calculations!Q91 -> 75985130.67 | Q114: =Calculations!R91 -> 154117806.8 | R114: =IFERROR(Calculations!E91,0) -> 0 | S114: =IFERROR(Calculations!K91,0) -> 0 | T114: =IFERROR(Calculations!S91,0) -> 66208341.31 | U114: =Calculations!Y91 -> 132604327.5 | V114: =IFERROR(Calculations!G91,0)+IFERROR(Calculations!M91,0) -> 0 | W114: =Calculations!AA91 -> 132604327.5 | X114: =IFERROR(Calculations!AC91,0) -> 0.03751734846
D115: 90 | E115: =IFERROR(Calculations!$AT$28+D115,0) -> 145 | F115: =Calculations!AE92 -> 182198658.7 | G115: =Calculations!AF92 -> 91233133.37 | H115: =IFERROR(Calculations!AG92,0) -> 77456813.31 | I115: =Calculations!AM92 -> 156637287.1 | J115: =IFERROR(Calculations!AO92,0) -> 0.03901397876 | L115: =IFERROR(Calculations!B92,0)+IFERROR(Calculations!H92,0) -> 0 | M115: =Calculations!O92 -> 79424967.23 | N115: =Calculations!P92 -> 0 | O115: =Calculations!Q92 -> 79424967.23 | Q115: =Calculations!R92 -> 161108635.2 | R115: =IFERROR(Calculations!E92,0) -> 0 | S115: =IFERROR(Calculations!K92,0) -> 0 | T115: =IFERROR(Calculations!S92,0) -> 69325453.12 | U115: =Calculations!Y92 -> 138638432.2 | V115: =IFERROR(Calculations!G92,0)+IFERROR(Calculations!M92,0) -> 0 | W115: =Calculations!AA92 -> 138638432.2 | X115: =IFERROR(Calculations!AC92,0) -> 0.03760575942
D116: 91 | E116: =IFERROR(Calculations!$AT$28+D116,0) -> 146 | F116: =Calculations!AE93 -> 190432859.8 | G116: =Calculations!AF93 -> 95319707.15 | H116: =IFERROR(Calculations!AG93,0) -> 81114015.37 | I116: =Calculations!AM93 -> 163741971.3 | J116: =IFERROR(Calculations!AO93,0) -> 0.03908347876 | L116: =IFERROR(Calculations!B93,0)+IFERROR(Calculations!H93,0) -> 0 | M116: =Calculations!O93 -> 83026757.37 | N116: =Calculations!P93 -> 0 | O116: =Calculations!Q93 -> 83026757.37 | Q116: =Calculations!R93 -> 168423792.1 | R116: =IFERROR(Calculations!E93,0) -> 0 | S116: =IFERROR(Calculations!K93,0) -> 0 | T116: =IFERROR(Calculations!S93,0) -> 72587251.56 | U116: =Calculations!Y93 -> 144952463.9 | V116: =IFERROR(Calculations!G93,0)+IFERROR(Calculations!M93,0) -> 0 | W116: =Calculations!AA93 -> 144952463.9 | X116: =IFERROR(Calculations!AC93,0) -> 0.03769265526
D117: 92 | E117: =IFERROR(Calculations!$AT$28+D117,0) -> 147 | F117: =Calculations!AE94 -> 199048698.2 | G117: =Calculations!AF94 -> 99597526.93 | H117: =IFERROR(Calculations!AG94,0) -> 84941518.85 | I117: =Calculations!AM94 -> 171176030.3 | J117: =IFERROR(Calculations!AO94,0) -> 0.03915194246 | L117: =IFERROR(Calculations!B94,0)+IFERROR(Calculations!H94,0) -> 0 | M117: =Calculations!O94 -> 86798231.24 | N117: =Calculations!P94 -> 0 | O117: =Calculations!Q94 -> 86798231.24 | Q117: =Calculations!R94 -> 176078472.1 | R117: =IFERROR(Calculations!E94,0) -> 0 | S117: =IFERROR(Calculations!K94,0) -> 0 | T117: =IFERROR(Calculations!S94,0) -> 76000479.02 | U117: =Calculations!Y94 -> 151559530.8 | V117: =IFERROR(Calculations!G94,0)+IFERROR(Calculations!M94,0) -> 0 | W117: =Calculations!AA94 -> 151559530.8 | X117: =IFERROR(Calculations!AC94,0) -> 0.03777807655
D118: 93 | E118: =IFERROR(Calculations!$AT$28+D118,0) -> 148 | F118: =Calculations!AE95 -> 208064059.2 | G118: =Calculations!AF95 -> 104075691.2 | H118: =IFERROR(Calculations!AG95,0) -> 88947282.24 | I118: =Calculations!AM95 -> 178954895.5 | J118: =IFERROR(Calculations!AO95,0) -> 0.03921939353 | L118: =IFERROR(Calculations!B95,0)+IFERROR(Calculations!H95,0) -> 0 | M118: =Calculations!O95 -> 90747489.7 | N118: =Calculations!P95 -> 0 | O118: =Calculations!Q95 -> 90747489.7 | Q118: =Calculations!R95 -> 184088585.5 | R118: =IFERROR(Calculations!E95,0) -> 0 | S118: =IFERROR(Calculations!K95,0) -> 0 | T118: =IFERROR(Calculations!S95,0) -> 79572193.23 | U118: =Calculations!Y95 -> 158473357.9 | V118: =IFERROR(Calculations!G95,0)+IFERROR(Calculations!M95,0) -> 0 | W118: =Calculations!AA95 -> 158473357.9 | X118: =IFERROR(Calculations!AC95,0) -> 0.03786206227
D119: 94 | E119: =IFERROR(Calculations!$AT$28+D119,0) -> 149 | F119: =Calculations!AE96 -> 217497671 | G119: =Calculations!AF96 -> 108763733.9 | H119: =IFERROR(Calculations!AG96,0) -> 93139637.13 | I119: =Calculations!AM96 -> 187094725.4 | J119: =IFERROR(Calculations!AO96,0) -> 0.03928585484 | L119: =IFERROR(Calculations!B96,0)+IFERROR(Calculations!H96,0) -> 0 | M119: =Calculations!O96 -> 94883022.09 | N119: =Calculations!P96 -> 0 | O119: =Calculations!Q96 -> 94883022.09 | Q119: =Calculations!R96 -> 192470791.8 | R119: =IFERROR(Calculations!E96,0) -> 0 | S119: =IFERROR(Calculations!K96,0) -> 0 | T119: =IFERROR(Calculations!S96,0) -> 83309782.05 | U119: =Calculations!Y96 -> 165708316.1 | V119: =IFERROR(Calculations!G96,0)+IFERROR(Calculations!M96,0) -> 0 | W119: =Calculations!AA96 -> 165708316.1 | X119: =IFERROR(Calculations!AC96,0) -> 0.03794464993
D120: 95 | E120: =IFERROR(Calculations!$AT$28+D120,0) -> 150 | F120: =Calculations!AE97 -> 227369144.3 | G120: =Calculations!AF97 -> 113671645.5 | H120: =IFERROR(Calculations!AG97,0) -> 97527305.81 | I120: =Calculations!AM97 -> 195612439.6 | J120: =IFERROR(Calculations!AO97,0) -> 0.03935134845 | L120: =IFERROR(Calculations!B97,0)+IFERROR(Calculations!H97,0) -> 0 | M120: =Calculations!O97 -> 99213724.98 | N120: =Calculations!P97 -> 0 | O120: =Calculations!Q97 -> 99213724.98 | Q120: =Calculations!R97 -> 201242535.2 | R120: =IFERROR(Calculations!E97,0) -> 0 | S120: =IFERROR(Calculations!K97,0) -> 0 | T120: =IFERROR(Calculations!S97,0) -> 87220978.92 | U120: =Calculations!Y97 -> 173279453.1 | V120: =IFERROR(Calculations!G97,0)+IFERROR(Calculations!M97,0) -> 0 | W120: =Calculations!AA97 -> 173279453.1 | X120: =IFERROR(Calculations!AC97,0) -> 0.03802587563
D121: 96 | E121: =IFERROR(Calculations!$AT$28+D121,0) -> 151 | F121: =Calculations!AE98 -> 237699014.7 | G121: =Calculations!AF98 -> 118809894.6 | H121: =IFERROR(Calculations!AG98,0) -> 102119419.5 | I121: =Calculations!AM98 -> 204525755.2 | J121: =IFERROR(Calculations!AO98,0) -> 0.03941589571 | L121: =IFERROR(Calculations!B98,0)+IFERROR(Calculations!H98,0) -> 0 | M121: =Calculations!O98 -> 103748921.6 | N121: =Calculations!P98 -> 0 | O121: =Calculations!Q98 -> 103748921.6 | Q121: =Calculations!R98 -> 210422081.8 | R121: =IFERROR(Calculations!E98,0) -> 0 | S121: =IFERROR(Calculations!K98,0) -> 0 | T121: =IFERROR(Calculations!S98,0) -> 91313879.13 | U121: =Calculations!Y98 -> 181202524.9 | V121: =IFERROR(Calculations!G98,0)+IFERROR(Calculations!M98,0) -> 0 | W121: =Calculations!AA98 -> 181202524.9 | X121: =IFERROR(Calculations!AC98,0) -> 0.03810577413
D122: 97 | E122: =IFERROR(Calculations!$AT$28+D122,0) -> 152 | F122: =Calculations!AE99 -> 248508785.6 | G122: =Calculations!AF99 -> 124189451.1 | H122: =IFERROR(Calculations!AG99,0) -> 106925537.9 | I122: =Calculations!AM99 -> 213853223.9 | J122: =IFERROR(Calculations!AO99,0) -> 0.03947951724 | L122: =IFERROR(Calculations!B99,0)+IFERROR(Calculations!H99,0) -> 0 | M122: =Calculations!O99 -> 108498382.6 | N122: =Calculations!P99 -> 0 | O122: =Calculations!Q99 -> 108498382.6 | Q122: =Calculations!R99 -> 220028558.2 | R122: =IFERROR(Calculations!E99,0) -> 0 | S122: =IFERROR(Calculations!K99,0) -> 0 | T122: =IFERROR(Calculations!S99,0) -> 95596956.79 | U122: =Calculations!Y99 -> 189494029.4 | V122: =IFERROR(Calculations!G99,0)+IFERROR(Calculations!M99,0) -> 0 | W122: =Calculations!AA99 -> 189494029.4 | X122: =IFERROR(Calculations!AC99,0) -> 0.03818437892
D123: 98 | E123: =IFERROR(Calculations!$AT$28+D123,0) -> 153 | F123: =Calculations!AE100 -> 259820974.6 | G123: =Calculations!AF100 -> 129821810.3 | H123: =IFERROR(Calculations!AG100,0) -> 111955668.8 | I123: =Calculations!AM100 -> 223614272.1 | J123: =IFERROR(Calculations!AO100,0) -> 0.03954223299 | L123: =IFERROR(Calculations!B100,0)+IFERROR(Calculations!H100,0) -> 0 | M123: =Calculations!O100 -> 113472347 | N123: =Calculations!P100 -> 0 | O123: =Calculations!Q100 -> 113472347 | Q123: =Calculations!R100 -> 230081992.5 | R123: =IFERROR(Calculations!E100,0) -> 0 | S123: =IFERROR(Calculations!K100,0) -> 0 | T123: =IFERROR(Calculations!S100,0) -> 100079082.6 | U123: =Calculations!Y100 -> 198171241.6 | V123: =IFERROR(Calculations!G100,0)+IFERROR(Calculations!M100,0) -> 0 | W123: =Calculations!AA100 -> 198171241.6 | X123: =IFERROR(Calculations!AC100,0) -> 0.03826172228
D124: 99 | E124: =IFERROR(Calculations!$AT$28+D124,0) -> 154 | F124: =Calculations!AE101 -> 271659161.3 | G124: =Calculations!AF101 -> 135719017.7 | H124: =IFERROR(Calculations!AG101,0) -> 117220289.8 | I124: =Calculations!AM101 -> 233829241.9 | J124: =IFERROR(Calculations!AO101,0) -> 0.03960406229 | L124: =IFERROR(Calculations!B101,0)+IFERROR(Calculations!H101,0) -> 0 | M124: =Calculations!O101 -> 118681545.4 | N124: =Calculations!P101 -> 0 | O124: =Calculations!Q101 -> 118681545.4 | Q124: =Calculations!R101 -> 240603356.4 | R124: =IFERROR(Calculations!E101,0) -> 0 | S124: =IFERROR(Calculations!K101,0) -> 0 | T124: =IFERROR(Calculations!S101,0) -> 104769542.5 | U124: =Calculations!Y101 -> 207252250.1 | V124: =IFERROR(Calculations!G101,0)+IFERROR(Calculations!M101,0) -> 0 | W124: =Calculations!AA101 -> 207252250.1 | X124: =IFERROR(Calculations!AC101,0) -> 0.03833783536
D125: 100 | E125: =IFERROR(Calculations!$AT$28+D125,0) -> 155 | F125: =Calculations!AE102 -> 284048037.5 | G125: =Calculations!AF102 -> 141893696 | H125: =IFERROR(Calculations!AG102,0) -> 122730369.8 | I125: =Calculations!AM102 -> 244519434.3 | J125: =IFERROR(Calculations!AO102,0) -> 0.03966502382 | L125: =IFERROR(Calculations!B102,0)+IFERROR(Calculations!H102,0) -> 0 | M125: =Calculations!O102 -> 124137223.2 | N125: =Calculations!P102 -> 0 | O125: =Calculations!Q102 -> 124137223.2 | Q125: =Calculations!R102 -> 251614610.6 | R125: =IFERROR(Calculations!E102,0) -> 0 | S125: =IFERROR(Calculations!K102,0) -> 0 | T125: =IFERROR(Calculations!S102,0) -> 109678057 | U125: =Calculations!Y102 -> 216755995.7 | V125: =IFERROR(Calculations!G102,0)+IFERROR(Calculations!M102,0) -> 0 | W125: =Calculations!AA102 -> 216755995.7 | X125: =IFERROR(Calculations!AC102,0) -> 0.03841274818
D128: About this presentation
D130: This presentation is for information purposes only and does not constitute an insurance contract or offer. It is not part of any policy and should not be considered professional legal or tax advice. Consult your tax and legal advisors for guidance specific to your situation. Unless explicitly stated, none of the values, rates or figures shown in this presentation are guaranteed. They are based on assumptions that are subject to change and do not represent estimates or guarantees of future performance. Actual results may differ from those shown, depending on future experience. This presentation should be read in conjunction with the accompanying product illustrations dated the same as this presentation, as it is incomplete without them.
D131: Asset assumptions: This tool uses the 10-year asset class expected returns, volatility, and correlations as published by Sun Life Global Investments Institutional Capital Market Assumptions published in July 2025. https://www.slgiinstitutional.com/en/news-and-insights/insights/capital-market-assumptions/ The corresponding asset classes are: cash is “cash”, fixed income is “Canadian bonds”, equity is “Canadian equity”, real estate is “global developed REITs”, and alternative investment is “commodities”.
D132: Asset transfer strategy: This tool assumes an asset transfer strategy, where premiums are paid by transferring a portion of the client’s assets from their non-registered investment portfolio to the life insurance policy. For the portion of UL investment account allocated to an equity fund, the order of liquidating investment portfolio to pay for insurance premiums is assumed to be the following: equity, fixed income, cash, alternative investment, then real estate. For Par and the portion of UL investment account allocated to Sun Life Diversified Account, the order of liquidating investment portfolio to pay for insurance premiums is assumed to be the following: fixed income, equity, cash, alternative investment, then real estate.
D133: Tax assumptions: This tool assumes the following tax treatments for each asset classes. Cash is treated as income. Fixed income is treated as income. Equity is assumed to have 2% dividend yield while the rest are treated as unrealized capital gains with a 20% turnover rate. Real estate is assumed to have 3.50% income while the rest are treated as unrealized capital gains with a 20% turnover rate. Alternative investment is treated as unrealized capital gains with a 20% turnover rate. The tax treatments used in this presentation are based on the Income Tax Act of Canada and are not guaranteed as tax laws are subject to change.

Sheet UL (hidden)
A2: 100% Sun Life Diversified Account
A3: Combination of SLDA and Equity
A4: 100% Sun Life Equity Account

Sheet Calculations (hidden)
B1: =IF(Scenario1!EG18="Empty",Scenario1!EG18,IF(AT3="English",CONCATENATE(Scenario1!EG18," ",IF(Scenario1!EJ1="Term",Scenario1!EJ3,Scenario1!EJ1)),IF(AT3="French",CONCATENATE(Scenario1!EG18," ",Scenario1!EJ1)))) -> Scenario 1: Sun Par Protector II | H1: =IF(Scenario2!EG18="Empty",Scenario2!EG18,IF(AT3="English",CONCATENATE(Scenario2!EG18," ",Scenario2!EJ1),IF(AT3="French",CONCATENATE(Scenario2!EG18," ",Scenario2!EJ1)))) -> Scenario 2: SunUniversalLife II | O1: With insurance | AE1: Without insurance | AP1: Premium | AS1: Policy Comparison Year | AT1: Scenario 1 Age 100 Premiums | AU1: Scenario 2 Age 100 Premiums | AV1: Scenario 3 Age 100 Premiums | AW1: Scenario 4 Age 100 Premiums | AX1: Scenario 5 Age 100 Premiums | AY1: Scenario 6 Age 100 Premiums | BB1: Premium | BE1: Current Asset | BJ1: Amount to Sell for Premium 1 | BO1: Amount to Sell for Premium 2 | BT1: Both Premiums | BY1: Remaining Balance After Both Premiums | CE1: Withdrawal | CH1: Current Asset | CM1: Withdrawal 1 | CR1: Withdrawal 2 | CW1: Both Withdrawal | DB1: Remaining Balance After Both Withdrawal | DI1: With Insurance | DN1: =VLOOKUP(Calculations!AS2,DH3:DS102,3,FALSE) -> 4870798.978 | DO1: Without Insurance | DT1: =VLOOKUP(Calculations!AS2,DH3:DS102,9,FALSE) -> 5642084.551 | DV1: Tax savings on annual tax | DW1: Tax savings on death | DX1: Ttotal savings
A2: =IF(AT3="English","Year",IF(AT3="French","Année","Year")) -> Year | B2: Annual Premiums | C2: Cumulative Premiums | D2: Cash Surrender Value | E2: Death Benefit | F2: ACB | G2: Net to Estate | H2: Annual Premiums | I2: Cumulative Premiums | J2: Cash Surrender Value | K2: Death Benefit | L2: ACB | M2: Net to Estate | O2: Remain Assets Collateral | P2: Insurance Collateral | Q2: Total Collateral | R2: Remain Assets | S2: CDA | T2: Cash Net to Estate | U2: Fixed Income Net to Estate | V2: Equities Net to Estate | W2: Real Estate Net to Estate | X2: Alternative Investment Net to Estate | Y2: Remain Assets Net to Estate | Z2: Insurance Net to Estate | AA2: Total Net to Estate | AB2: Cash Flow | AC2: IRR on Net to Estate | AE2: Total Assets | AF2: Assets Collateral | AG2: CDA | AH2: Cash Net to Estate | AI2: Fixed Income Net to Estate | AJ2: Equities Net to Estate | AK2: Real Estate Net to Estate | AL2: Alternative Investment Net to Estate | AM2: Assets Net to Estate | AN2: Cash Flow | AO2: IRR on Net to Estate | AP2: Par | AQ2: SLDA | AR2: Equity | AS2: 35 | AT2: =MAX(IF(ISNA(C3:C102),0,C3:C102)) -> 499996.1 | AU2: =MAX(IF(ISNA(I3:I102),0,I3:I102)) -> 400000 | AV2: =MAX(IF(ISNA(T3:T102),0,T3:T102)) -> 4449750.345 | AW2: =MAX(IF(ISNA(AH3:AH102),0,AH3:AH102)) -> 4449750.345 | AX2: =MAX(IF(ISNA(AN3:AN102),0,AN3:AN102)) -> 0 | AY2: =MAX(IF(ISNA(#REF!),0,#REF!)) ->  | BB2: =$AV$57 -> Fixed Income | BC2: =$AY$57 -> Equities | BD2: Total Premium | BE2: Cash | BF2: Fixed Income | BG2: Equities | BH2: Real Estate | BI2: Alternative Investment | BJ2: Cash | BK2: Fixed Income | BL2: Equities | BM2: Real Estate | BN2: Alternative Investment | BO2: Cash | BP2: Fixed Income | BQ2: Equities | BR2: Real Estate | BS2: Alternative Investment | BT2: Cash | BU2: Fixed Income | BV2: Equities | BW2: Real Estate | BX2: Alternative Investment | BY2: Cash | BZ2: Fixed Income | CA2: Equities | CB2: Real Estate | CC2: Alternative Investment | CE2: =$AV$57 -> Fixed Income | CF2: =$AY$57 -> Equities | CG2: Total withdrawal | CH2: Cash | CI2: Fixed Income | CJ2: Equities | CK2: Real Estate | CL2: Alternative Investment | CM2: Cash | CN2: Fixed Income | CO2: Equities | CP2: Real Estate | CQ2: Alternative Investment | CR2: Cash | CS2: Fixed Income | CT2: Equities | CU2: Real Estate | CV2: Alternative Investment | CW2: Cash | CX2: Fixed Income | CY2: Equities | CZ2: Real Estate | DA2: Alternative Investment | DB2: Cash | DC2: Fixed Income | DD2: Equities | DE2: Real Estate | DF2: Alternative Investment | DH2: Year | DI2: Annual tax | DJ2: Cumulative Tax | DK2: Tax on deferred gains | DL2: Tax on dividend | DM2: Tax on death | DN2: =VLOOKUP(Calculations!AS2,DH3:DS102,6,FALSE) -> 6287687.392 | DO2: Annual tax | DP2: Cumulative Tax | DQ2: Tax on deferred gains | DR2: Tax on dividend | DS2: Tax on death | DT2: =VLOOKUP(Calculations!AS2,DH3:DS102,12,FALSE) -> 7397641.915 | DV2: =DT1-DN1 -> 771285.5736 | DW2: =DT2-DN2 -> 1109954.523 | DX2: =DV2+DW2 -> 1881240.097
A3: 1 | B3: =IF(ISNUMBER(Scenario1!F2),IF(Scenario1!$EG$10="English",IF(Scenario1!$EG$8="Protect/Accum",IF(Scenario1!EG$4="Current",(Scenario1!F2-Scenario1!AJ2),IF(Scenario1!EG$4="Current minus 1%",(Scenario1!G2-Scenario1!AK2),IF(Scenario1!EG$4="Custom",(Scenario1!G2-Scenario1!AK2),IF(Scenario1!EG$4="Current minus 2%",(Scenario1!H2-Scenario1!AL2))))),IF(Scenario1!$EG$8="Accelerator",IF(Scenario1!EG$4="Current",(Scenario1!F2),IF(Scenario1!EG$4="Current minus 1%",(Scenario1!G2),IF(Scenario1!EG$4="Custom",(Scenario1!G2),IF(Scenario1!EG$4="Current minus 2%",(Scenario1!H2))))),IF(Scenario1!EG$4="Sun Life Evolve Term",IF(Scenario1!EG$6="Monthly",(Scenario1!K2),(Scenario1!G2)),IF(Scenario1!EG$4="Not applicable",IF(Scenario1!$EG$8="PermLife",IF(VLOOKUP("Premium Frequency",Scenario1!$A$150:'Scenario1'!$B$170,2,FALSE)="Monthly",(Scenario1!F2*12),(Scenario1!F2))),(Scenario1!C2))))),IF(Scenario1!$EG$8="Protect/Accum",IF(Scenario1!EG$4="Taux actuel",(Scenario1!F2-Scenario1!AJ2),IF(Scenario1!EG$4="Taux actuel moins 1%",(Scenario1!G2-Scenario1!AK2),IF(Scenario1!EG$4="Taux personnalisé",(Scenario1!G2-Scenario1!AK2),IF(Scenario1!EG$4="Taux actuel moins 2%",(Scenario1!H2-Scenario1!AL2))))),IF(Scenario1!$EG$8="Accelerator",IF(Scenario1!EG$4="Taux actuel",(Scenario1!F2),IF(Scenario1!EG$4="Taux actuel moins 1%",(Scenario1!G2),IF(Scenario1!EG$4="Taux personnalisé",(Scenario1!G2),IF(Scenario1!EG$4="Taux actuel moins 2%",(Scenario1!H2))))),IF(Scenario1!EG$4="Assurance-vie temporaire Évolution Sun Life",IF(Scenario1!EG$6="Monthly",(Scenario1!K2),(Scenario1!G2)),IF(Scenario1!EG$4="Pas applicable",IF(Scenario1!$EG$8="PermLife",IF(VLOOKUP("Périodicité de la prime",Scenario1!$A$150:'Scenario1'!$B$170,2,FALSE)="Mensuelle",(Scenario1!F2*12),(Scenario1!F2))),(Scenario1!C2)))))),NA()) -> 49999.61 | C3: =B3 -> 49999.61 | D3: =IF(ISNUMBER(Scenario1!J2),IF(Scenario1!$EG$10="English",IF(Scenario1!$EG$8="Protect/Accum",IF(Scenario1!EG$4="Current",(Scenario1!J2),IF(Scenario1!EG$4="Current minus 1%",(Scenario1!K2),IF(Scenario1!EG$4="Custom",(Scenario1!K2),IF(Scenario1!EG$4="Current minus 2%",(Scenario1!L2))))),IF(Scenario1!$EG$8="Accelerator",IF(Scenario1!EG$4="Current",(Scenario1!J2),IF(Scenario1!EG$4="Current minus 1%",(Scenario1!K2),IF(Scenario1!EG$4="Custom",(Scenario1!K2),IF(Scenario1!EG$4="Current minus 2%",(Scenario1!L2))))),IF(Scenario1!EG$4="Sun Term - NA",0,IF(Scenario1!$EG$8="SunSpectrumUL",(IF(Scenario1!EG$4="Primary rate",(Scenario1!M2),IF(Scenario1!EG$4="Secondary rate",(Scenario1!N2),IF(Scenario1!EG$4="Alternate rate",(Scenario1!O2),(Scenario1!C2))))),IF(Scenario1!$EG$8="PermLife",(Scenario1!C2),IF(AND(Scenario1!$EG$8="SunUniversalLife",Scenario1!$EJ$21=1),IF(Scenario1!EG$4="Primary rate",(Scenario1!N2),IF(Scenario1!EG$4="Secondary rate",(Scenario1!O2),IF(Scenario1!EG$4="Alternate rate",(Scenario1!P2)))),IF(Scenario1!EG$4="Primary rate",(Scenario1!M2),IF(Scenario1!EG$4="Secondary rate",(Scenario1!N2),IF(Scenario1!EG$4="Alternate rate",(Scenario1!O2)))))))))),IF(Scenario1!$EG$8="Protect/Accum",IF(Scenario1!EG$4="Taux actuel",(Scenario1!J2),IF(Scenario1!EG$4="Taux actuel moins 1%",(Scenario1!K2),IF(Scenario1!EG$4="Taux personnalisé",(Scenario1!K2),IF(Scenario1!EG$4="Taux actuel moins 2%",(Scenario1!L2))))),IF(Scenario1!$EG$8="Accelerator",IF(Scenario1!EG$4="Taux actuel",(Scenario1!J2),IF(Scenario1!EG$4="Taux actuel moins 1%",(Scenario1!K2),IF(Scenario1!EG$4="Taux personnalisé",(Scenario1!K2),IF(Scenario1!EG$4="Taux actuel moins 2%",(Scenario1!L2))))),IF(Scenario1!EG$4="Temporaire - NA",0,IF(Scenario1!$EG$8="SunSpectrumUL",(IF(Scenario1!EG$4="Taux principal",(Scenario1!M2),IF(Scenario1!EG$4="Taux secondaire",(Scenario1!N2),IF(Scenario1!EG$4="Autre taux",(Scenario1!O2),(Scenario1!C2))))),IF(Scenario1!$EG$8="PermLife",(Scenario1!C2),IF(AND(Scenario1!$EG$8="SunUniversalLife",Scenario1!$EJ$21=1),IF(Scenario1!EG$4="Taux principal",(Scenario1!N2),IF(Scenario1!EG$4="Taux secondaire",(Scenario1!O2),IF(Scenario1!EG$4="Autre taux",(Scenario1!P2),(Scenario1!C2)))),IF(Scenario1!EG$4="Taux principal",(Scenario1!M2),IF(Scenario1!EG$4="Taux secondaire",(Scenario1!N2),IF(Scenario1!EG$4="Autre taux",(Scenario1!O2),(Scenario1!C2))))))))))),NA()) -> 29774 | E3: =IF(ISNUMBER(Scenario1!C2),IF(Scenario1!$EG$10="English",IF(Scenario1!$EG$8="Protect/Accum",IF(Scenario1!EG$4="Current",(Scenario1!O2),IF(Scenario1!EG$4="Current minus 1%",(Scenario1!P2),IF(Scenario1!EG$4="Custom",(Scenario1!P2),IF(Scenario1!EG$4="Current minus 2%",(Scenario1!Q2))))),IF(Scenario1!$EG$8="Accelerator",IF(Scenario1!EG$4="Current",(Scenario1!O2),IF(Scenario1!EG$4="Current minus 1%",(Scenario1!P2),IF(Scenario1!EG$4="Custom",(Scenario1!P2),IF(Scenario1!EG$4="Current minus 2%",(Scenario1!Q2))))),IF(Scenario1!EG$4="Sun Life Evolve Term",HLOOKUP("Total Policy Death Benefit",Scenario1!$A$1:$G$100,Calculations!$A3+1,FALSE),IF(Scenario1!$EG$8="SunSpectrumUL",(IF(Scenario1!EG$4="Primary rate",(Scenario1!Q2),IF(Scenario1!EG$4="Secondary rate",(Scenario1!R2),IF(Scenario1!EG$4="Alternate rate",(Scenario1!S2))))),IF(Scenario1!$EG$8="PermLife",(Scenario1!E2),IF(AND(Scenario1!$EG$8="SunUniversalLife",Scenario1!$EJ$21=1),IF(Scenario1!EG$4="Primary rate",(Scenario1!S2),IF(Scenario1!EG$4="Secondary rate",(Scenario1!T2),IF(Scenario1!EG$4="Alternate rate",(Scenario1!U2)))),IF(Scenario1!EG$4="Primary rate",(Scenario1!R2),IF(Scenario1!EG$4="Secondary rate",(Scenario1!S2),IF(Scenario1!EG$4="Alternate rate",(Scenario1!T2)))))))))),IF(Scenario1!$EG$8="Protect/Accum",IF(Scenario1!EG$4="Taux actuel",(Scenario1!O2),IF(Scenario1!EG$4="Taux actuel moins 1%",(Scenario1!P2),IF(Scenario1!EG$4="Taux personnalisé",(Scenario1!P2),IF(Scenario1!EG$4="Taux actuel moins 2%",(Scenario1!Q2))))),IF(Scenario1!$EG$8="Accelerator",IF(Scenario1!EG$4="Taux actuel",(Scenario1!O2),IF(Scenario1!EG$4="Taux actuel moins 1%",(Scenario1!P2),IF(Scenario1!EG$4="Taux personnalisé",(Scenario1!P2),IF(Scenario1!EG$4="Taux actuel moins 2%",(Scenario1!Q2))))),IF(Scenario1!EG$4="Assurance-vie temporaire Évolution Sun Life",HLOOKUP("Capital-décès total du contrat",Scenario1!$A$1:$G$100,Calculations!$A3+1,FALSE),IF(Scenario1!$EG$8="SunSpectrumUL",(IF(Scenario1!EG$4="Taux principal",(Scenario1!Q2),IF(Scenario1!EG$4="Taux secondaire",(Scenario1!R2),IF(Scenario1!EG$4="Autre taux",(Scenario1!S2))))),IF(Scenario1!$EG$8="PermLife",(Scenario1!E2),IF(AND(Scenario1!$EG$8="SunUniversalLife",Scenario1!$EJ$21=1),IF(Scenario1!EG$4="Taux principal",(Scenario1!S2),IF(Scenario1!EG$4="Taux secondaire",(Scenario1!T2),IF(Scenario1!EG$4="Autre taux",(Scenario1!U2),(Scenario1!E2)))),IF(Scenario1!EG$4="Taux principal",(Scenario1!R2),IF(Scenario1!EG$4="Taux secondaire",(Scenario1!S2),IF(Scenario1!EG$4="Autre taux",(Scenario1!T2),(Scenario1!E2))))))))))),NA()) -> 1041327 | F3: =IF(ISNUMBER(Scenario1!M2),IF(Scenario1!$EG$10="English",IF(Scenario1!$EG$8="Protect/Accum",IF(Scenario1!EG$4="Current",(Scenario1!BO2),IF(Scenario1!EG$4="Current minus 1%",(Scenario1!BP2),IF(Scenario1!EG$4="Custom",(Scenario1!BP2),IF(Scenario1!EG$4="Current minus 2%",(Scenario1!BQ2))))),IF(Scenario1!$EG$8="Accelerator",IF(Scenario1!EG$4="Current",(Scenario1!BC2),IF(Scenario1!EG$4="Current minus 1%",(Scenario1!BD2),IF(Scenario1!EG$4="Custom",(Scenario1!BD2),IF(Scenario1!EG$4="Current minus 2%",(Scenario1!BE2))))),IF(Scenario1!EG$4="Sun Life Evolve Term",HLOOKUP("ACB",Scenario1!$A$1:$S$100,Calculations!$A3+1,FALSE),IF(Scenario1!$EG$8="SunSpectrumUL",(IF(Scenario1!EG$4="Primary rate",(Scenario1!BF2),IF(Scenario1!EG$4="Secondary rate",(Scenario1!BG2),IF(Scenario1!EG$4="Alternate rate",(Scenario1!BH2))))),IF(Scenario1!$EG$8="PermLife",(Scenario1!AD2),IF(Scenario1!$EG$8="SunUniversalLife",IF(Scenario1!EG$4="Primary rate",HLOOKUP("ACB (Primary rate)",Scenario1!$A$1:$EC$100,Calculations!$A3+1,FALSE),IF(Scenario1!EG$4="Secondary rate",HLOOKUP("ACB (Secondary rate)",Scenario1!$A$1:$EC$100,Calculations!$A3+1,FALSE),IF(Scenario1!EG$4="Alternate rate",HLOOKUP("ACB (Alternate rate)",Scenario1!$A$1:$EC$100,Calculations!$A3+1,FALSE)))))))))),IF(Scenario1!$EG$8="Protect/Accum",IF(Scenario1!EG$4="Taux actuel",(Scenario1!BO2),IF(Scenario1!EG$4="Taux actuel moins 1%",(Scenario1!BP2),IF(Scenario1!EG$4="Taux personnalisé",(Scenario1!BP2),IF(Scenario1!EG$4="Taux actuel moins 2%",(Scenario1!BQ2))))),IF(Scenario1!$EG$8="Accelerator",IF(Scenario1!EG$4="Taux actuel",(Scenario1!BC2),IF(Scenario1!EG$4="Taux actuel moins 1%",(Scenario1!BD2),IF(Scenario1!EG$4="Taux personnalisé",(Scenario1!BD2),IF(Scenario1!EG$4="Taux actuel moins 2%",(Scenario1!BE2))))),IF(Scenario1!EG$4="Assurance-vie temporaire Évolution Sun Life",HLOOKUP("CBR",Scenario1!$A$1:$S$100,Calculations!$A3+1,FALSE),IF(Scenario1!$EG$8="PermLife",(Scenario1!AD2),IF(Scenario1!$EG$8="SunSpectrumUL",(IF(Scenario1!EG$4="Taux principal",(Scenario1!BF2),IF(Scenario1!EG$4="Taux secondaire",(Scenario1!BG2),IF(Scenario1!EG$4="Autre taux",(Scenario1!BH2))))),IF(Scenario1!$EG$8="SunUniversalLife",IF(Scenario1!EG$4="Taux principal",HLOOKUP("CBR (taux principal)",Scenario1!$A$1:$EC$100,Calculations!$A3+1,FALSE),IF(Scenario1!EG$4="Taux secondaire",HLOOKUP("CBR (taux secondaire)",Scenario1!$A$1:$EC$100,Calculations!$A3+1,FALSE),IF(Scenario1!EG$4="Autre taux",(Scenario1!BL2),HLOOKUP("CBR (autre taux)",Scenario1!$A$1:$EC$100,Calculations!$A3+1,FALSE))))))))))),NA()) -> 49453 | G3: =E3-F3*IF(Calculations!$AT$35=TRUE,Calculations!$AT$38/100,0) -> 1020408.381 | H3: =IF(ISNUMBER(Scenario2!F2),IF(Scenario2!$EG$10="English",IF(Scenario2!$EG$8="Protect/Accum",IF(Scenario2!EG$4="Current",(Scenario2!F2-Scenario2!AJ2),IF(Scenario2!EG$4="Current minus 1%",(Scenario2!G2-Scenario2!AK2),IF(Scenario2!EG$4="Custom",(Scenario2!G2-Scenario2!AK2),IF(Scenario2!EG$4="Current minus 2%",(Scenario2!H2-Scenario2!AL2))))),IF(Scenario2!$EG$8="Accelerator",IF(Scenario2!EG$4="Current",(Scenario2!F2),IF(Scenario2!EG$4="Current minus 1%",(Scenario2!G2),IF(Scenario2!EG$4="Custom",(Scenario2!G2),IF(Scenario2!EG$4="Current minus 2%",(Scenario2!H2))))),IF(Scenario2!EG$4="Sun Term - NA",IF(Scenario2!EG$6="Monthly",(Scenario2!K2),(Scenario2!G2)),IF(Scenario2!EG$4="Not applicable",IF(Scenario2!$EG$8="PermLife",IF(VLOOKUP("Premium Frequency",Scenario2!$A$150:'Scenario2'!$B$170,2,FALSE)="Monthly",(Scenario2!F2*12),(Scenario2!F2))),(Scenario2!C2))))),IF(Scenario2!$EG$8="Protect/Accum",IF(Scenario2!EG$4="Taux actuel",(Scenario2!F2-Scenario2!AJ2),IF(Scenario2!EG$4="Taux actuel moins 1%",(Scenario2!G2-Scenario2!AK2),IF(Scenario2!EG$4="Taux personnalisé",(Scenario2!G2-Scenario2!AK2),IF(Scenario2!EG$4="Taux actuel moins 2%",(Scenario2!H2-Scenario2!AL2))))),IF(Scenario2!$EG$8="Accelerator",IF(Scenario2!EG$4="Taux actuel",(Scenario2!F2),IF(Scenario2!EG$4="Taux actuel moins 1%",(Scenario2!G2),IF(Scenario2!EG$4="Taux personnalisé",(Scenario2!G2),IF(Scenario2!EG$4="Taux actuel moins 2%",(Scenario2!H2))))),IF(Scenario2!EG$4="Temporaire - NA",IF(Scenario2!EG$6="Monthly",(Scenario2!K2),(Scenario2!G2)),IF(Scenario2!EG$4="Pas applicable",IF(Scenario2!$EG$8="PermLife",IF(VLOOKUP("Périodicité de la prime",Scenario2!$A$150:'Scenario2'!$B$170,2,FALSE)="Mensuelle",(Scenario2!F2*12),(Scenario2!F2))),(Scenario2!C2)))))),NA()) -> 40000 | I3: =H3 -> 40000 | J3: =IF(ISNUMBER(Scenario2!J2),IF(Scenario2!$EG$10="English",IF(Scenario2!$EG$8="Protect/Accum",IF(Scenario2!EG$4="Current",(Scenario2!J2),IF(Scenario2!EG$4="Current minus 1%",(Scenario2!K2),IF(Scenario2!EG$4="Custom",(Scenario2!K2),IF(Scenario2!EG$4="Current minus 2%",(Scenario2!L2))))),IF(Scenario2!$EG$8="Accelerator",IF(Scenario2!EG$4="Current",(Scenario2!J2),IF(Scenario2!EG$4="Current minus 1%",(Scenario2!K2),IF(Scenario2!EG$4="Custom",(Scenario2!K2),IF(Scenario2!EG$4="Current minus 2%",(Scenario2!L2))))),IF(Scenario2!EG$4="Sun Term - NA",0,IF(Scenario2!$EG$8="SunSpectrumUL",(IF(Scenario2!EG$4="Primary rate",(Scenario2!M2),IF(Scenario2!EG$4="Secondary rate",(Scenario2!N2),IF(Scenario2!EG$4="Alternate rate",(Scenario2!O2),(Scenario2!C2))))),IF(Scenario2!$EG$8="PermLife",(Scenario2!C2),IF(AND(Scenario2!$EG$8="SunUniversalLife",Scenario2!$EJ$21=1),IF(Scenario2!EG$4="Primary rate",(Scenario2!N2),IF(Scenario2!EG$4="Secondary rate",(Scenario2!O2),IF(Scenario2!EG$4="Alternate rate",(Scenario2!P2)))),IF(Scenario2!EG$4="Primary rate",(Scenario2!M2),IF(Scenario2!EG$4="Secondary rate",(Scenario2!N2),IF(Scenario2!EG$4="Alternate rate",(Scenario2!O2)))))))))),IF(Scenario2!$EG$8="Protect/Accum",IF(Scenario2!EG$4="Taux actuel",(Scenario2!J2),IF(Scenario2!EG$4="Taux actuel moins 1%",(Scenario2!K2),IF(Scenario2!EG$4="Taux personnalisé",(Scenario2!K2),IF(Scenario2!EG$4="Taux actuel moins 2%",(Scenario2!L2))))),IF(Scenario2!$EG$8="Accelerator",IF(Scenario2!EG$4="Taux actuel",(Scenario2!J2),IF(Scenario2!EG$4="Taux actuel moins 1%",(Scenario2!K2),IF(Scenario2!EG$4="Taux personnalisé",(Scenario2!K2),IF(Scenario2!EG$4="Taux actuel moins 2%",(Scenario2!L2))))),IF(Scenario2!EG$4="Temporaire - NA",0,IF(Scenario2!$EG$8="SunSpectrumUL",(IF(Scenario2!EG$4="Taux principal",(Scenario2!M2),IF(Scenario2!EG$4="Taux secondaire",(Scenario2!N2),IF(Scenario2!EG$4="Autre taux",(Scenario2!O2),(Scenario2!C2))))),IF(Scenario2!$EG$8="PermLife",(Scenario2!C2),IF(AND(Scenario2!$EG$8="SunUniversalLife",Scenario2!$EJ$21=1),IF(Scenario2!EG$4="Taux principal",(Scenario2!N2),IF(Scenario2!EG$4="Taux secondaire",(Scenario2!O2),IF(Scenario2!EG$4="Autre taux",(Scenario2!P2),(Scenario2!C2)))),IF(Scenario2!EG$4="Taux principal",(Scenario2!M2),IF(Scenario2!EG$4="Taux secondaire",(Scenario2!N2),IF(Scenario2!EG$4="Autre taux",(Scenario2!O2),(Scenario2!C2))))))))))),NA()) -> 1753 | K3: =IF(ISNUMBER(Scenario2!C2),IF(Scenario2!$EG$10="English",IF(Scenario2!$EG$8="Protect/Accum",IF(Scenario2!EG$4="Current",(Scenario2!O2),IF(Scenario2!EG$4="Current minus 1%",(Scenario2!P2),IF(Scenario2!EG$4="Custom",(Scenario2!P2),IF(Scenario2!EG$4="Current minus 2%",(Scenario2!Q2))))),IF(Scenario2!$EG$8="Accelerator",IF(Scenario2!EG$4="Current",(Scenario2!O2),IF(Scenario2!EG$4="Current minus 1%",(Scenario2!P2),IF(Scenario2!EG$4="Custom",(Scenario2!P2),IF(Scenario2!EG$4="Current minus 2%",(Scenario2!Q2))))),IF(Scenario2!EG$4="Sun Term - NA",HLOOKUP("Total Policy Death Benefit",Scenario2!$A$1:$G$100,Calculations!$A3+1,FALSE),IF(Scenario2!$EG$8="SunSpectrumUL",(IF(Scenario2!EG$4="Primary rate",(Scenario2!Q2),IF(Scenario2!EG$4="Secondary rate",(Scenario2!R2),IF(Scenario2!EG$4="Alternate rate",(Scenario2!S2))))),IF(Scenario2!$EG$8="PermLife",(Scenario2!E2),IF(AND(Scenario2!$EG$8="SunUniversalLife",Scenario2!$EJ$21=1),IF(Scenario2!EG$4="Primary rate",(Scenario2!S2),IF(Scenario2!EG$4="Secondary rate",(Scenario2!T2),IF(Scenario2!EG$4="Alternate rate",(Scenario2!U2)))),IF(Scenario2!EG$4="Primary rate",(Scenario2!R2),IF(Scenario2!EG$4="Secondary rate",(Scenario2!S2),IF(Scenario2!EG$4="Alternate rate",(Scenario2!T2)))))))))),IF(Scenario2!$EG$8="Protect/Accum",IF(Scenario2!EG$4="Taux actuel",(Scenario2!O2),IF(Scenario2!EG$4="Taux actuel moins 1%",(Scenario2!P2),IF(Scenario2!EG$4="Taux personnalisé",(Scenario2!P2),IF(Scenario2!EG$4="Taux actuel moins 2%",(Scenario2!Q2))))),IF(Scenario2!$EG$8="Accelerator",IF(Scenario2!EG$4="Taux actuel",(Scenario2!O2),IF(Scenario2!EG$4="Taux actuel moins 1%",(Scenario2!P2),IF(Scenario2!EG$4="Taux personnalisé",(Scenario2!P2),IF(Scenario2!EG$4="Taux actuel moins 2%",(Scenario2!Q2))))),IF(Scenario2!EG$4="Temporaire - NA",HLOOKUP("Capital-décès total du contrat",Scenario2!$A$1:$G$100,Calculations!$A3+1,FALSE),IF(Scenario2!$EG$8="SunSpectrumUL",(IF(Scenario2!EG$4="Taux principal",(Scenario2!Q2),IF(Scenario2!EG$4="Taux secondaire",(Scenario2!R2),IF(Scenario2!EG$4="Autre taux",(Scenario2!S2))))),IF(Scenario2!$EG$8="PermLife",(Scenario2!E2),IF(AND(Scenario2!$EG$8="SunUniversalLife",Scenario2!$EJ$21=1),IF(Scenario2!EG$4="Taux principal",(Scenario2!S2),IF(Scenario2!EG$4="Taux secondaire",(Scenario2!T2),IF(Scenario2!EG$4="Autre taux",(Scenario2!U2),(Scenario2!E2)))),IF(Scenario2!EG$4="Taux principal",(Scenario2!R2),IF(Scenario2!EG$4="Taux secondaire",(Scenario2!S2),IF(Scenario2!EG$4="Autre taux",(Scenario2!T2),(Scenario2!E2))))))))))),NA()) -> 1289846 | L3: =IF(ISNUMBER(Scenario2!M2),IF(Scenario2!$EG$10="English",IF(Scenario2!$EG$8="Protect/Accum",IF(Scenario2!EG$4="Current",(Scenario2!BO2),IF(Scenario2!EG$4="Current minus 1%",(Scenario2!BP2),IF(Scenario2!EG$4="Custom",(Scenario2!BP2),IF(Scenario2!EG$4="Current minus 2%",(Scenario2!BQ2))))),IF(Scenario2!$EG$8="Accelerator",IF(Scenario2!EG$4="Current",(Scenario2!BC2),IF(Scenario2!EG$4="Current minus 1%",(Scenario2!BD2),IF(Scenario2!EG$4="Custom",(Scenario2!BD2),IF(Scenario2!EG$4="Current minus 2%",(Scenario2!BE2))))),IF(Scenario2!EG$4="Sun Term - NA",HLOOKUP("ACB",Scenario2!$A$1:$S$100,Calculations!$A3+1,FALSE),IF(Scenario2!$EG$8="SunSpectrumUL",(IF(Scenario2!EG$4="Primary rate",(Scenario2!BF2),IF(Scenario2!EG$4="Secondary rate",(Scenario2!BG2),IF(Scenario2!EG$4="Alternate rate",(Scenario2!BH2))))),IF(Scenario2!$EG$8="PermLife",(Scenario2!AD2),IF(Scenario2!$EG$8="SunUniversalLife",IF(Scenario2!EG$4="Primary rate",HLOOKUP("ACB (Primary rate)",Scenario2!$A$1:$EC$100,Calculations!$A3+1,FALSE),IF(Scenario2!EG$4="Secondary rate",HLOOKUP("ACB (Secondary rate)",Scenario2!$A$1:$EC$100,Calculations!$A3+1,FALSE),IF(Scenario2!EG$4="Alternate rate",HLOOKUP("ACB (Alternate rate)",Scenario2!$A$1:$EC$100,Calculations!$A3+1,FALSE)))))))))),IF(Scenario2!$EG$8="Protect/Accum",IF(Scenario2!EG$4="Taux actuel",(Scenario2!BO2),IF(Scenario2!EG$4="Taux actuel moins 1%",(Scenario2!BP2),IF(Scenario2!EG$4="Taux personnalisé",(Scenario2!BP2),IF(Scenario2!EG$4="Taux actuel moins 2%",(Scenario2!BQ2))))),IF(Scenario2!$EG$8="Accelerator",IF(Scenario2!EG$4="Taux actuel",(Scenario2!BC2),IF(Scenario2!EG$4="Taux actuel moins 1%",(Scenario2!BD2),IF(Scenario2!EG$4="Taux personnalisé",(Scenario2!BD2),IF(Scenario2!EG$4="Taux actuel moins 2%",(Scenario2!BE2))))),IF(Scenario2!EG$4="Temporaire - NA",HLOOKUP("CBR",Scenario2!$A$1:$S$100,Calculations!$A3+1,FALSE),IF(Scenario2!$EG$8="PermLife",(Scenario2!AD2),IF(Scenario2!$EG$8="SunSpectrumUL",(IF(Scenario2!EG$4="Taux principal",(Scenario2!BF2),IF(Scenario2!EG$4="Taux secondaire",(Scenario2!BG2),IF(Scenario2!EG$4="Autre taux",(Scenario2!BH2))))),IF(Scenario2!$EG$8="SunUniversalLife",IF(Scenario2!EG$4="Taux principal",HLOOKUP("CBR (taux principal)",Scenario2!$A$1:$EC$100,Calculations!$A3+1,FALSE),IF(Scenario2!EG$4="Taux secondaire",HLOOKUP("CBR (taux secondaire)",Scenario2!$A$1:$EC$100,Calculations!$A3+1,FALSE),IF(Scenario2!EG$4="Autre taux",(Scenario2!BL2),HLOOKUP("CBR (autre taux)",Scenario2!$A$1:$EC$100,Calculations!$A3+1,FALSE))))))))))),NA()) -> 39305.82 | M3: =K3-L3*IF(Calculations!$AT$35=TRUE,Calculations!$AT$38/100,0) -> 1273219.638 | O3: =$AY$51*Cash!AD11+$AY$52*'Fixed Income'!AD11+$AY$53*Equities!AD11+$AY$54*'Real Estate'!AD11+$AY$55*'Alternative Investment'!AD11 -> 3305805.877 | P3: =IF($AZ$4="Yes",$AZ$51,$AZ$52)*IFERROR(D3,0)+IF($AZ$5="Yes",$AZ$51,$AZ$52)*IFERROR(J3,0) -> 28111.35 | Q3: =O3+P3 -> 3333917.227 | R3: =(Cash!AD11+'Fixed Income'!AD11+Equities!AD11+'Real Estate'!AD11+'Alternative Investment'!AD11) -> 5091951.811 | S3: =(Cash!AW11+'Fixed Income'!AW11+Equities!AW11+'Real Estate'!AW11+'Alternative Investment'!AW11)+IFERROR(E3-F3,0)+IFERROR(K3-L3,0) -> 2302803.58 | T3: =Cash!AZ11 -> 767427.31 | U3: ='Fixed Income'!AZ11 -> 501138.0031 | V3: =Equities!AZ11 -> 663524.0432 | W3: ='Real Estate'!AZ11 -> 590288.3387 | X3: ='Alternative Investment'!AZ11 -> 461422.8825 | Y3: =SUM(T3:X3) -> 2983800.578 | Z3: =IFERROR(G3,0)+IFERROR(M3,0) -> 2293628.019 | AA3: =SUM(T3:X3)+Z3 -> 5277428.597 | AB3: =-AT50 -> -5000000 | AC3: =IRR(($AB$3:$AB3,AA3),0.1) -> 0.05548571933 | AE3: =('Cash (2)'!AD11+'Fixed Income (2)'!AD11+'Equities (2)'!AD11+'Real Estate (2)'!AD11+'Alternative Investment (2)'!AD11) -> 5184851.368 | AF3: =($AY$51*'Cash (2)'!AD11+$AY$52*'Fixed Income (2)'!AD11+$AY$53*'Equities (2)'!AD11+$AY$54*'Real Estate (2)'!AD11+$AY$55*'Alternative Investment (2)'!AD11) -> 3375919.467 | AG3: =('Cash (2)'!AW11+'Fixed Income (2)'!AW11+'Equities (2)'!AW11+'Real Estate (2)'!AW11+'Alternative Investment (2)'!AW11) -> 61095 | AH3: ='Cash (2)'!AZ11 -> 767427.31 | AI3: ='Fixed Income (2)'!AZ11 -> 535657.95 | AJ3: ='Equities (2)'!AZ11 -> 683404.9134 | AK3: ='Real Estate (2)'!AZ11 -> 590288.3387 | AL3: ='Alternative Investment (2)'!AZ11 -> 461422.8825 | AM3: =SUM(AH3:AL3) -> 3038201.395 | AN3: =-AT50 -> -5000000 | AO3: =IRR(($AN$3:$AN3,AM3),0.1) -> -0.3923597211 | AP3: =IF($AZ$4="Yes",B3,0)+IF($AZ$5="Yes",H3,0) -> 49999.61 | AQ3: =IF(AND($AZ$4="No",$AT$45=1),$AT$46*B3,0)+IF(AND($AZ$5="No",$AT$45=1),$AT$46*H3,0) -> 8000 | AR3: =IF(AND($AZ$4="No",$AT$45=1),$AT$47*B3,0)+IF(AND($AZ$5="No",$AT$45=1),$AT$47*H3,0) -> 32000 | AS3: Language | AT3: English | AV3: Filepath | AZ3: Par ? | BA3: DB | BB3: =AP3+AQ3 -> 57999.61 | BC3: =AR3 -> 32000 | BD3: =BB3+BC3 -> 89999.61 | BE3: =$AT$50*$AT$51/100 -> 1300000 | BF3: =$AT$50*$AT$52/100 -> 900000 | BG3: =$AT$50*$AT$53/100 -> 1100000 | BH3: =$AT$50*$AT$54/100 -> 950000 | BI3: =$AT$50*$AT$55/100 -> 750000 | BJ3: =IF($BB$2="Equities", MAX(0,MIN($BE3,$BB3-SUM($BL3,$BK3))), MAX(0,MIN($BE3,$BB3-$BK3-$BL3))) -> 0 | BK3: =IF($BB$2="Equities", MAX(0,MIN($BF3,$BB3-$BL3)), MIN($BF3,$BB3)) -> 57999.61 | BL3: =IF($BB$2="Equities", MIN($BG3,$BB3), MAX(0,MIN($BG3,$BB3-$BK3))) -> 0 | BM3: =MAX(0,MIN($BH3,$BB3-SUM($BJ3:$BL3,$BN3))) -> 0 | BN3: =MAX(0,MIN($BI3,$BB3-SUM($BJ3:$BL3))) -> 0 | BO3: =IF($BC$2="Equities", MAX(0,MIN($BE3-$BJ3,$BC3-SUM($BQ3,$BP3))), MAX(0,MIN($BE3-$BJ3,$BC3-$BP3-$BQ3))) -> 0 | BP3: =IF($BC$2="Equities", MAX(0,MIN($BF3-$BK3,$BC3-$BQ3)), MIN($BF3-$BK3,$BC3)) -> 0 | BQ3: =IF($BC$2="Equities", MIN($BG3-$BL3,$BC3), MAX(0,MIN($BG3-$BL3,$BC3-$BP3))) -> 32000 | BR3: =MAX(0,MIN($BH3-$BM3,$BC3-SUM($BO3:$BQ3,$BS3))) -> 0 | BS3: =MAX(0,MIN($BI3-$BN3,$BC3-SUM($BO3:$BQ3))) -> 0 | BT3: =IFERROR(BJ3,0)+IFERROR(BO3,0) -> 0 | BU3: =IFERROR(BK3,0)+IFERROR(BP3,0) -> 57999.61 | BV3: =IFERROR(BL3,0)+IFERROR(BQ3,0) -> 32000 | BW3: =IFERROR(BM3,0)+IFERROR(BR3,0) -> 0 | BX3: =IFERROR(BN3,0)+IFERROR(BS3,0) -> 0 | BY3: =IF(BE3>0,BE3-BT3,0) -> 1300000 | BZ3: =IF(BF3>0,BF3-BU3,0) -> 842000.39 | CA3: =IF(BG3>0,BG3-BV3,0) -> 1068000 | CB3: =IF(BH3>0,BH3-BW3,0) -> 950000 | CC3: =IF(BI3>0,BI3-BX3,0) -> 750000 | CE3: =Scenario1!EP2 -> 0 | CF3: =Scenario2!EP2 -> 0 | CG3: =CE3+CF3 -> 0 | CH3: =$AT$50*$AT$51/100 -> 1300000 | CI3: =$AT$50*$AT$52/100 -> 900000 | CJ3: =$AT$50*$AT$53/100 -> 1100000 | CK3: =$AT$50*$AT$54/100 -> 950000 | CL3: =$AT$50*$AT$55/100 -> 750000 | CM3: =IF($CE$2="Equities", MAX(0,MIN($CH3,$CE3-SUM($CO3,$CN3))), MAX(0,MIN($CH3,$CE3-$CN3-$CO3))) -> 0 | CN3: =IF($CE$2="Equities", MAX(0,MIN($CI3,$CE3-$CO3)), MIN($CI3,$CE3)) -> 0 | CO3: =IF($CE$2="Equities", MIN($CJ3,$CE3), MAX(0,MIN($CJ3,$CE3-$CN3))) -> 0 | CP3: =MAX(0,MIN($CK3,$CE3-SUM($CM3:$CO3,$CQ3))) -> 0 | CQ3: =MAX(0,MIN($CL3,$CE3-SUM($CM3:$CO3))) -> 0 | CR3: =IF($CF$2="Equities", MAX(0,MIN($CH3,$CF3-SUM($CT3,$CS3))), MAX(0,MIN($CH3,$CF3-$CS3-$CT3))) -> 0 | CS3: =IF($CF$2="Equities", MAX(0,MIN($CI3,$CF3-$CT3)), MIN($CI3,$CF3)) -> 0 | CT3: =IF($CF$2="Equities", MIN($CJ3,$CF3), MAX(0,MIN($CJ3,$CF3-$CS3))) -> 0 | CU3: =MAX(0,MIN($CK3,$CF3-SUM($CR3:$CT3,$CV3))) -> 0 | CV3: =MAX(0,MIN($CL3,$CF3-SUM($CR3:$CT3))) -> 0 | CW3: =IFERROR(CM3,0)+IFERROR(CR3,0) -> 0 | CX3: =IFERROR(CN3,0)+IFERROR(CS3,0) -> 0 | CY3: =IFERROR(CO3,0)+IFERROR(CT3,0) -> 0 | CZ3: =IFERROR(CP3,0)+IFERROR(CU3,0) -> 0 | DA3: =IFERROR(CQ3,0)+IFERROR(CV3,0) -> 0 | DB3: =IF(CH3>0,CH3-CW3,0) -> 1300000 | DC3: =IF(CI3>0,CI3-CX3,0) -> 900000 | DD3: =IF(CJ3>0,CJ3-CY3,0) -> 1100000 | DE3: =IF(CK3>0,CK3-CZ3,0) -> 950000 | DF3: =IF(CL3>0,CL3-DA3,0) -> 750000 | DH3: 1 | DI3: =(Cash!AB11+'Fixed Income'!AB11+Equities!AB11+'Real Estate'!AB11+'Alternative Investment'!AB11) -> 60762.39392 | DJ3: =DI3 -> 60762.39392 | DK3: =(Cash!AT11+'Fixed Income'!AT11+Equities!AT11+'Real Estate'!AT11+'Alternative Investment'!AT11) -> 22546.98638 | DL3: =(Cash!AY11+'Fixed Income'!AY11+Equities!AY11+'Real Estate'!AY11+'Alternative Investment'!AY11) -> 2143159.321 | DM3: =DK3+DL3 -> 2165706.307 | DN3: =IFERROR(VLOOKUP(Calculations!AS2,'Summary Page'!D26:X125,20),0) -> 16959318.43 | DO3: =('Cash (2)'!AB11+'Fixed Income (2)'!AB11+'Equities (2)'!AB11+'Real Estate (2)'!AB11+'Alternative Investment (2)'!AB11) -> 62088.6323 | DP3: =DO3 -> 62088.6323 | DQ3: =('Cash (2)'!AT11+'Fixed Income (2)'!AT11+'Equities (2)'!AT11+'Real Estate (2)'!AT11+'Alternative Investment (2)'!AT11) -> 22810.4292 | DR3: =('Cash (2)'!AY11+'Fixed Income (2)'!AY11+'Equities (2)'!AY11+'Real Estate (2)'!AY11+'Alternative Investment (2)'!AY11) -> 2182523.405 | DS3: =DQ3+DR3 -> 2205333.835 | DT3: =VLOOKUP(Calculations!AS2,'Summary Page'!D28:J128,6) -> 14671362.11
A4: =IF(ISNUMBER(B4),(A3+1),IF(ISNUMBER(H4),(A3+1),IF(ISNUMBER(N4),(A3+1),IF(ISNUMBER(AD4),(A3+1),IF(ISNUMBER(#REF!),(A3+1),IF(ISNUMBER(#REF!),(A3+1),NA())))))) -> 2 | B4: =IF(ISNUMBER(Scenario1!F3),IF(Scenario1!$EG$10="English",IF(Scenario1!$EG$8="Protect/Accum",IF(Scenario1!EG$4="Current",(Scenario1!F3-Scenario1!AJ3),IF(Scenario1!EG$4="Current minus 1%",(Scenario1!G3-Scenario1!AK3),IF(Scenario1!EG$4="Custom",(Scenario1!G3-Scenario1!AK3),IF(Scenario1!EG$4="Current minus 2%",(Scenario1!H3-Scenario1!AL3))))),IF(Scenario1!$EG$8="Accelerator",IF(Scenario1!EG$4="Current",(Scenario1!F3),IF(Scenario1!EG$4="Current minus 1%",(Scenario1!G3),IF(Scenario1!EG$4="Custom",(Scenario1!G3),IF(Scenario1!EG$4="Current minus 2%",(Scenario1!H3))))),IF(Scenario1!EG$4="Sun Life Evolve Term",IF(Scenario1!EG$6="Monthly",(Scenario1!K3),(Scenario1!G3)),IF(Scenario1!EG$4="Not applicable",IF(Scenario1!$EG$8="PermLife",IF(VLOOKUP("Premium Frequency",Scenario1!$A$150:'Scenario1'!$B$170,2,FALSE)="Monthly",(Scenario1!F3*12),(Scenario1!F3))),(Scenario1!C3))))),IF(Scenario1!$EG$8="Protect/Accum",IF(Scenario1!EG$4="Taux actuel",(Scenario1!F3-Scenario1!AJ3),IF(Scenario1!EG$4="Taux actuel moins 1%",(Scenario1!G3-Scenario1!AK3),IF(Scenario1!EG$4="Taux personnalisé",(Scenario1!G3-Scenario1!AK3),IF(Scenario1!EG$4="Taux actuel moins 2%",(Scenario1!H3-Scenario1!AL3))))),IF(Scenario1!$EG$8="Accelerator",IF(Scenario1!EG$4="Taux actuel",(Scenario1!F3),IF(Scenario1!EG$4="Taux actuel moins 1%",(Scenario1!G3),IF(Scenario1!EG$4="Taux personnalisé",(Scenario1!G3),IF(Scenario1!EG$4="Taux actuel moins 2%",(Scenario1!H3))))),IF(Scenario1!EG$4="Assurance-vie temporaire Évolution Sun Life",IF(Scenario1!EG$6="Monthly",(Scenario1!K3),(Scenario1!G3)),IF(Scenario1!EG$4="Pas applicable",IF(Scenario1!$EG$8="PermLife",IF(VLOOKUP("Périodicité de la prime",Scenario1!$A$150:'Scenario1'!$B$170,2,FALSE)="Mensuelle",(Scenario1!F3*12),(Scenario1!F3))),(Scenario1!C3)))))),NA()) -> 49999.61 | C4: =SUM($B$3,NPV($AT$11,$B$4)) -> 99999.22 | D4: =IF(ISNUMBER(Scenario1!J3),IF(Scenario1!$EG$10="English",IF(Scenario1!$EG$8="Protect/Accum",IF(Scenario1!EG$4="Current",(Scenario1!J3),IF(Scenario1!EG$4="Current minus 1%",(Scenario1!K3),IF(Scenario1!EG$4="Custom",(Scenario1!K3),IF(Scenario1!EG$4="Current minus 2%",(Scenario1!L3))))),IF(Scenario1!$EG$8="Accelerator",IF(Scenario1!EG$4="Current",(Scenario1!J3),IF(Scenario1!EG$4="Current minus 1%",(Scenario1!K3),IF(Scenario1!EG$4="Custom",(Scenario1!K3),IF(Scenario1!EG$4="Current minus 2%",(Scenario1!L3))))),IF(Scenario1!EG$4="Sun Term - NA",0,IF(Scenario1!$EG$8="SunSpectrumUL",(IF(Scenario1!EG$4="Primary rate",(Scenario1!M3),IF(Scenario1!EG$4="Secondary rate",(Scenario1!N3),IF(Scenario1!EG$4="Alternate rate",(Scenario1!O3),(Scenario1!C3))))),IF(Scenario1!$EG$8="PermLife",(Scenario1!C3),IF(AND(Scenario1!$EG$8="SunUniversalLife",Scenario1!$EJ$21=1),IF(Scenario1!EG$4="Primary rate",(Scenario1!N3),IF(Scenario1!EG$4="Secondary rate",(Scenario1!O3),IF(Scenario1!EG$4="Alternate rate",(Scenario1!P3)))),IF(Scenario1!EG$4="Primary rate",(Scenario1!M3),IF(Scenario1!EG$4="Secondary rate",(Scenario1!N3),IF(Scenario1!EG$4="Alternate rate",(Scenario1!O3)))))))))),IF(Scenario1!$EG$8="Protect/Accum",IF(Scenario1!EG$4="Taux actuel",(Scenario1!J3),IF(Scenario1!EG$4="Taux actuel moins 1%",(Scenario1!K3),IF(Scenario1!EG$4="Taux personnalisé",(Scenario1!K3),IF(Scenario1!EG$4="Taux actuel moins 2%",(Scenario1!L3))))),IF(Scenario1!$EG$8="Accelerator",IF(Scenario1!EG$4="Taux actuel",(Scenario1!J3),IF(Scenario1!EG$4="Taux actuel moins 1%",(Scenario1!K3),IF(Scenario1!EG$4="Taux personnalisé",(Scenario1!K3),IF(Scenario1!EG$4="Taux actuel moins 2%",(Scenario1!L3))))),IF(Scenario1!EG$4="Temporaire - NA",0,IF(Scenario1!$EG$8="SunSpectrumUL",(IF(Scenario1!EG$4="Taux principal",(Scenario1!M3),IF(Scenario1!EG$4="Taux secondaire",(Scenario1!N3),IF(Scenario1!EG$4="Autre taux",(Scenario1!O3),(Scenario1!C3))))),IF(Scenario1!$EG$8="PermLife",(Scenario1!C3),IF(AND(Scenario1!$EG$8="SunUniversalLife",Scenario1!$EJ$21=1),IF(Scenario1!EG$4="Taux principal",(Scenario1!N3),IF(Scenario1!EG$4="Taux secondaire",(Scenario1!O3),IF(Scenario1!EG$4="Autre taux",(Scenario1!P3),(Scenario1!C3)))),IF(Scenario1!EG$4="Taux principal",(Scenario1!M3),IF(Scenario1!EG$4="Taux secondaire",(Scenario1!N3),IF(Scenario1!EG$4="Autre taux",(Scenario1!O3),(Scenario1!C3))))))))))),NA()) -> 61441 | E4: =IF(ISNUMBER(Scenario1!C3),IF(Scenario1!$EG$10="English",IF(Scenario1!$EG$8="Protect/Accum",IF(Scenario1!EG$4="Current",(Scenario1!O3),IF(Scenario1!EG$4="Current minus 1%",(Scenario1!P3),IF(Scenario1!EG$4="Custom",(Scenario1!P3),IF(Scenario1!EG$4="Current minus 2%",(Scenario1!Q3))))),IF(Scenario1!$EG$8="Accelerator",IF(Scenario1!EG$4="Current",(Scenario1!O3),IF(Scenario1!EG$4="Current minus 1%",(Scenario1!P3),IF(Scenario1!EG$4="Custom",(Scenario1!P3),IF(Scenario1!EG$4="Current minus 2%",(Scenario1!Q3))))),IF(Scenario1!EG$4="Sun Life Evolve Term",HLOOKUP("Total Policy Death Benefit",Scenario1!$A$1:$G$100,Calculations!$A4+1,FALSE),IF(Scenario1!$EG$8="SunSpectrumUL",(IF(Scenario1!EG$4="Primary rate",(Scenario1!Q3),IF(Scenario1!EG$4="Secondary rate",(Scenario1!R3),IF(Scenario1!EG$4="Alternate rate",(Scenario1!S3))))),IF(Scenario1!$EG$8="PermLife",(Scenario1!E3),IF(AND(Scenario1!$EG$8="SunUniversalLife",Scenario1!$EJ$21=1),IF(Scenario1!EG$4="Primary rate",(Scenario1!S3),IF(Scenario1!EG$4="Secondary rate",(Scenario1!T3),IF(Scenario1!EG$4="Alternate rate",(Scenario1!U3)))),IF(Scenario1!EG$4="Primary rate",(Scenario1!R3),IF(Scenario1!EG$4="Secondary rate",(Scenario1!S3),IF(Scenario1!EG$4="Alternate rate",(Scenario1!T3)))))))))),IF(Scenario1!$EG$8="Protect/Accum",IF(Scenario1!EG$4="Taux actuel",(Scenario1!O3),IF(Scenario1!EG$4="Taux actuel moins 1%",(Scenario1!P3),IF(Scenario1!EG$4="Taux personnalisé",(Scenario1!P3),IF(Scenario1!EG$4="Taux actuel moins 2%",(Scenario1!Q3))))),IF(Scenario1!$EG$8="Accelerator",IF(Scenario1!EG$4="Taux actuel",(Scenario1!O3),IF(Scenario1!EG$4="Taux actuel moins 1%",(Scenario1!P3),IF(Scenario1!EG$4="Taux personnalisé",(Scenario1!P3),IF(Scenario1!EG$4="Taux actuel moins 2%",(Scenario1!Q3))))),IF(Scenario1!EG$4="Assurance-vie temporaire Évolution Sun Life",HLOOKUP("Capital-décès total du contrat",Scenario1!$A$1:$G$100,Calculations!$A4+1,FALSE),IF(Scenario1!$EG$8="SunSpectrumUL",(IF(Scenario1!EG$4="Taux principal",(Scenario1!Q3),IF(Scenario1!EG$4="Taux secondaire",(Scenario1!R3),IF(Scenario1!EG$4="Autre taux",(Scenario1!S3))))),IF(Scenario1!$EG$8="PermLife",(Scenario1!E3),IF(AND(Scenario1!$EG$8="SunUniversalLife",Scenario1!$EJ$21=1),IF(Scenario1!EG$4="Taux principal",(Scenario1!S3),IF(Scenario1!EG$4="Taux secondaire",(Scenario1!T3),IF(Scenario1!EG$4="Autre taux",(Scenario1!U3),(Scenario1!E3)))),IF(Scenario1!EG$4="Taux principal",(Scenario1!R3),IF(Scenario1!EG$4="Taux secondaire",(Scenario1!S3),IF(Scenario1!EG$4="Autre taux",(Scenario1!T3),(Scenario1!E3))))))))))),NA()) -> 1141557 | F4: =IF(ISNUMBER(Scenario1!M3),IF(Scenario1!$EG$10="English",IF(Scenario1!$EG$8="Protect/Accum",IF(Scenario1!EG$4="Current",(Scenario1!BO3),IF(Scenario1!EG$4="Current minus 1%",(Scenario1!BP3),IF(Scenario1!EG$4="Custom",(Scenario1!BP3),IF(Scenario1!EG$4="Current minus 2%",(Scenario1!BQ3))))),IF(Scenario1!$EG$8="Accelerator",IF(Scenario1!EG$4="Current",(Scenario1!BC3),IF(Scenario1!EG$4="Current minus 1%",(Scenario1!BD3),IF(Scenario1!EG$4="Custom",(Scenario1!BD3),IF(Scenario1!EG$4="Current minus 2%",(Scenario1!BE3))))),IF(Scenario1!EG$4="Sun Life Evolve Term",HLOOKUP("ACB",Scenario1!$A$1:$S$100,Calculations!$A4+1,FALSE),IF(Scenario1!$EG$8="SunSpectrumUL",(IF(Scenario1!EG$4="Primary rate",(Scenario1!BF3),IF(Scenario1!EG$4="Secondary rate",(Scenario1!BG3),IF(Scenario1!EG$4="Alternate rate",(Scenario1!BH3))))),IF(Scenario1!$EG$8="PermLife",(Scenario1!AD3),IF(Scenario1!$EG$8="SunUniversalLife",IF(Scenario1!EG$4="Primary rate",HLOOKUP("ACB (Primary rate)",Scenario1!$A$1:$EC$100,Calculations!$A4+1,FALSE),IF(Scenario1!EG$4="Secondary rate",HLOOKUP("ACB (Secondary rate)",Scenario1!$A$1:$EC$100,Calculations!$A4+1,FALSE),IF(Scenario1!EG$4="Alternate rate",HLOOKUP("ACB (Alternate rate)",Scenario1!$A$1:$EC$100,Calculations!$A4+1,FALSE)))))))))),IF(Scenario1!$EG$8="Protect/Accum",IF(Scenario1!EG$4="Taux actuel",(Scenario1!BO3),IF(Scenario1!EG$4="Taux actuel moins 1%",(Scenario1!BP3),IF(Scenario1!EG$4="Taux personnalisé",(Scenario1!BP3),IF(Scenario1!EG$4="Taux actuel moins 2%",(Scenario1!BQ3))))),IF(Scenario1!$EG$8="Accelerator",IF(Scenario1!EG$4="Taux actuel",(Scenario1!BC3),IF(Scenario1!EG$4="Taux actuel moins 1%",(Scenario1!BD3),IF(Scenario1!EG$4="Taux personnalisé",(Scenario1!BD3),IF(Scenario1!EG$4="Taux actuel moins 2%",(Scenario1!BE3))))),IF(Scenario1!EG$4="Assurance-vie temporaire Évolution Sun Life",HLOOKUP("CBR",Scenario1!$A$1:$S$100,Calculations!$A4+1,FALSE),IF(Scenario1!$EG$8="PermLife",(Scenario1!AD3),IF(Scenario1!$EG$8="SunSpectrumUL",(IF(Scenario1!EG$4="Taux principal",(Scenario1!BF3),IF(Scenario1!EG$4="Taux secondaire",(Scenario1!BG3),IF(Scenario1!EG$4="Autre taux",(Scenario1!BH3))))),IF(Scenario1!$EG$8="SunUniversalLife",IF(Scenario1!EG$4="Taux principal",HLOOKUP("CBR (taux principal)",Scenario1!$A$1:$EC$100,Calculations!$A4+1,FALSE),IF(Scenario1!EG$4="Taux secondaire",HLOOKUP("CBR (taux secondaire)",Scenario1!$A$1:$EC$100,Calculations!$A4+1,FALSE),IF(Scenario1!EG$4="Autre taux",(Scenario1!BL3),HLOOKUP("CBR (autre taux)",Scenario1!$A$1:$EC$100,Calculations!$A4+1,FALSE))))))))))),NA()) -> 98658 | G4: =E4-F4*IF(Calculations!$AT$35=TRUE,Calculations!$AT$38/100,0) -> 1099824.666 | H4: =IF(ISNUMBER(Scenario2!F3),IF(Scenario2!$EG$10="English",IF(Scenario2!$EG$8="Protect/Accum",IF(Scenario2!EG$4="Current",(Scenario2!F3-Scenario2!AJ3),IF(Scenario2!EG$4="Current minus 1%",(Scenario2!G3-Scenario2!AK3),IF(Scenario2!EG$4="Custom",(Scenario2!G3-Scenario2!AK3),IF(Scenario2!EG$4="Current minus 2%",(Scenario2!H3-Scenario2!AL3))))),IF(Scenario2!$EG$8="Accelerator",IF(Scenario2!EG$4="Current",(Scenario2!F3),IF(Scenario2!EG$4="Current minus 1%",(Scenario2!G3),IF(Scenario2!EG$4="Custom",(Scenario2!G3),IF(Scenario2!EG$4="Current minus 2%",(Scenario2!H3))))),IF(Scenario2!EG$4="Sun Term - NA",IF(Scenario2!EG$6="Monthly",(Scenario2!K3),(Scenario2!G3)),IF(Scenario2!EG$4="Not applicable",IF(Scenario2!$EG$8="PermLife",IF(VLOOKUP("Premium Frequency",Scenario2!$A$150:'Scenario2'!$B$170,2,FALSE)="Monthly",(Scenario2!F3*12),(Scenario2!F3))),(Scenario2!C3))))),IF(Scenario2!$EG$8="Protect/Accum",IF(Scenario2!EG$4="Taux actuel",(Scenario2!F3-Scenario2!AJ3),IF(Scenario2!EG$4="Taux actuel moins 1%",(Scenario2!G3-Scenario2!AK3),IF(Scenario2!EG$4="Taux personnalisé",(Scenario2!G3-Scenario2!AK3),IF(Scenario2!EG$4="Taux actuel moins 2%",(Scenario2!H3-Scenario2!AL3))))),IF(Scenario2!$EG$8="Accelerator",IF(Scenario2!EG$4="Taux actuel",(Scenario2!F3),IF(Scenario2!EG$4="Taux actuel moins 1%",(Scenario2!G3),IF(Scenario2!EG$4="Taux personnalisé",(Scenario2!G3),IF(Scenario2!EG$4="Taux actuel moins 2%",(Scenario2!H3))))),IF(Scenario2!EG$4="Temporaire - NA",IF(Scenario2!EG$6="Monthly",(Scenario2!K3),(Scenario2!G3)),IF(Scenario2!EG$4="Pas applicable",IF(Scenario2!$EG$8="PermLife",IF(VLOOKUP("Périodicité de la prime",Scenario2!$A$150:'Scenario2'!$B$170,2,FALSE)="Mensuelle",(Scenario2!F3*12),(Scenario2!F3))),(Scenario2!C3)))))),NA()) -> 40000 | I4: =SUM($H$3,NPV($AT$11,$H$4)) -> 80000 | J4: =IF(ISNUMBER(Scenario2!J3),IF(Scenario2!$EG$10="English",IF(Scenario2!$EG$8="Protect/Accum",IF(Scenario2!EG$4="Current",(Scenario2!J3),IF(Scenario2!EG$4="Current minus 1%",(Scenario2!K3),IF(Scenario2!EG$4="Custom",(Scenario2!K3),IF(Scenario2!EG$4="Current minus 2%",(Scenario2!L3))))),IF(Scenario2!$EG$8="Accelerator",IF(Scenario2!EG$4="Current",(Scenario2!J3),IF(Scenario2!EG$4="Current minus 1%",(Scenario2!K3),IF(Scenario2!EG$4="Custom",(Scenario2!K3),IF(Scenario2!EG$4="Current minus 2%",(Scenario2!L3))))),IF(Scenario2!EG$4="Sun Term - NA",0,IF(Scenario2!$EG$8="SunSpectrumUL",(IF(Scenario2!EG$4="Primary rate",(Scenario2!M3),IF(Scenario2!EG$4="Secondary rate",(Scenario2!N3),IF(Scenario2!EG$4="Alternate rate",(Scenario2!O3),(Scenario2!C3))))),IF(Scenario2!$EG$8="PermLife",(Scenario2!C3),IF(AND(Scenario2!$EG$8="SunUniversalLife",Scenario2!$EJ$21=1),IF(Scenario2!EG$4="Primary rate",(Scenario2!N3),IF(Scenario2!EG$4="Secondary rate",(Scenario2!O3),IF(Scenario2!EG$4="Alternate rate",(Scenario2!P3)))),IF(Scenario2!EG$4="Primary rate",(Scenario2!M3),IF(Scenario2!EG$4="Secondary rate",(Scenario2!N3),IF(Scenario2!EG$4="Alternate rate",(Scenario2!O3)))))))))),IF(Scenario2!$EG$8="Protect/Accum",IF(Scenario2!EG$4="Taux actuel",(Scenario2!J3),IF(Scenario2!EG$4="Taux actuel moins 1%",(Scenario2!K3),IF(Scenario2!EG$4="Taux personnalisé",(Scenario2!K3),IF(Scenario2!EG$4="Taux actuel moins 2%",(Scenario2!L3))))),IF(Scenario2!$EG$8="Accelerator",IF(Scenario2!EG$4="Taux actuel",(Scenario2!J3),IF(Scenario2!EG$4="Taux actuel moins 1%",(Scenario2!K3),IF(Scenario2!EG$4="Taux personnalisé",(Scenario2!K3),IF(Scenario2!EG$4="Taux actuel moins 2%",(Scenario2!L3))))),IF(Scenario2!EG$4="Temporaire - NA",0,IF(Scenario2!$EG$8="SunSpectrumUL",(IF(Scenario2!EG$4="Taux principal",(Scenario2!M3),IF(Scenario2!EG$4="Taux secondaire",(Scenario2!N3),IF(Scenario2!EG$4="Autre taux",(Scenario2!O3),(Scenario2!C3))))),IF(Scenario2!$EG$8="PermLife",(Scenario2!C3),IF(AND(Scenario2!$EG$8="SunUniversalLife",Scenario2!$EJ$21=1),IF(Scenario2!EG$4="Taux principal",(Scenario2!N3),IF(Scenario2!EG$4="Taux secondaire",(Scenario2!O3),IF(Scenario2!EG$4="Autre taux",(Scenario2!P3),(Scenario2!C3)))),IF(Scenario2!EG$4="Taux principal",(Scenario2!M3),IF(Scenario2!EG$4="Taux secondaire",(Scenario2!N3),IF(Scenario2!EG$4="Autre taux",(Scenario2!O3),(Scenario2!C3))))))))))),NA()) -> 31091 | K4: =IF(ISNUMBER(Scenario2!C3),IF(Scenario2!$EG$10="English",IF(Scenario2!$EG$8="Protect/Accum",IF(Scenario2!EG$4="Current",(Scenario2!O3),IF(Scenario2!EG$4="Current minus 1%",(Scenario2!P3),IF(Scenario2!EG$4="Custom",(Scenario2!P3),IF(Scenario2!EG$4="Current minus 2%",(Scenario2!Q3))))),IF(Scenario2!$EG$8="Accelerator",IF(Scenario2!EG$4="Current",(Scenario2!O3),IF(Scenario2!EG$4="Current minus 1%",(Scenario2!P3),IF(Scenario2!EG$4="Custom",(Scenario2!P3),IF(Scenario2!EG$4="Current minus 2%",(Scenario2!Q3))))),IF(Scenario2!EG$4="Sun Term - NA",HLOOKUP("Total Policy Death Benefit",Scenario2!$A$1:$G$100,Calculations!$A4+1,FALSE),IF(Scenario2!$EG$8="SunSpectrumUL",(IF(Scenario2!EG$4="Primary rate",(Scenario2!Q3),IF(Scenario2!EG$4="Secondary rate",(Scenario2!R3),IF(Scenario2!EG$4="Alternate rate",(Scenario2!S3))))),IF(Scenario2!$EG$8="PermLife",(Scenario2!E3),IF(AND(Scenario2!$EG$8="SunUniversalLife",Scenario2!$EJ$21=1),IF(Scenario2!EG$4="Primary rate",(Scenario2!S3),IF(Scenario2!EG$4="Secondary rate",(Scenario2!T3),IF(Scenario2!EG$4="Alternate rate",(Scenario2!U3)))),IF(Scenario2!EG$4="Primary rate",(Scenario2!R3),IF(Scenario2!EG$4="Secondary rate",(Scenario2!S3),IF(Scenario2!EG$4="Alternate rate",(Scenario2!T3)))))))))),IF(Scenario2!$EG$8="Protect/Accum",IF(Scenario2!EG$4="Taux actuel",(Scenario2!O3),IF(Scenario2!EG$4="Taux actuel moins 1%",(Scenario2!P3),IF(Scenario2!EG$4="Taux personnalisé",(Scenario2!P3),IF(Scenario2!EG$4="Taux actuel moins 2%",(Scenario2!Q3))))),IF(Scenario2!$EG$8="Accelerator",IF(Scenario2!EG$4="Taux actuel",(Scenario2!O3),IF(Scenario2!EG$4="Taux actuel moins 1%",(Scenario2!P3),IF(Scenario2!EG$4="Taux personnalisé",(Scenario2!P3),IF(Scenario2!EG$4="Taux actuel moins 2%",(Scenario2!Q3))))),IF(Scenario2!EG$4="Temporaire - NA",HLOOKUP("Capital-décès total du contrat",Scenario2!$A$1:$G$100,Calculations!$A4+1,FALSE),IF(Scenario2!$EG$8="SunSpectrumUL",(IF(Scenario2!EG$4="Taux principal",(Scenario2!Q3),IF(Scenario2!EG$4="Taux secondaire",(Scenario2!R3),IF(Scenario2!EG$4="Autre taux",(Scenario2!S3))))),IF(Scenario2!$EG$8="PermLife",(Scenario2!E3),IF(AND(Scenario2!$EG$8="SunUniversalLife",Scenario2!$EJ$21=1),IF(Scenario2!EG$4="Taux principal",(Scenario2!S3),IF(Scenario2!EG$4="Taux secondaire",(Scenario2!T3),IF(Scenario2!EG$4="Autre taux",(Scenario2!U3),(Scenario2!E3)))),IF(Scenario2!EG$4="Taux principal",(Scenario2!R3),IF(Scenario2!EG$4="Taux secondaire",(Scenario2!S3),IF(Scenario2!EG$4="Autre taux",(Scenario2!T3),(Scenario2!E3))))))))))),NA()) -> 1319184 | L4: =IF(ISNUMBER(Scenario2!M3),IF(Scenario2!$EG$10="English",IF(Scenario2!$EG$8="Protect/Accum",IF(Scenario2!EG$4="Current",(Scenario2!BO3),IF(Scenario2!EG$4="Current minus 1%",(Scenario2!BP3),IF(Scenario2!EG$4="Custom",(Scenario2!BP3),IF(Scenario2!EG$4="Current minus 2%",(Scenario2!BQ3))))),IF(Scenario2!$EG$8="Accelerator",IF(Scenario2!EG$4="Current",(Scenario2!BC3),IF(Scenario2!EG$4="Current minus 1%",(Scenario2!BD3),IF(Scenario2!EG$4="Custom",(Scenario2!BD3),IF(Scenario2!EG$4="Current minus 2%",(Scenario2!BE3))))),IF(Scenario2!EG$4="Sun Term - NA",HLOOKUP("ACB",Scenario2!$A$1:$S$100,Calculations!$A4+1,FALSE),IF(Scenario2!$EG$8="SunSpectrumUL",(IF(Scenario2!EG$4="Primary rate",(Scenario2!BF3),IF(Scenario2!EG$4="Secondary rate",(Scenario2!BG3),IF(Scenario2!EG$4="Alternate rate",(Scenario2!BH3))))),IF(Scenario2!$EG$8="PermLife",(Scenario2!AD3),IF(Scenario2!$EG$8="SunUniversalLife",IF(Scenario2!EG$4="Primary rate",HLOOKUP("ACB (Primary rate)",Scenario2!$A$1:$EC$100,Calculations!$A4+1,FALSE),IF(Scenario2!EG$4="Secondary rate",HLOOKUP("ACB (Secondary rate)",Scenario2!$A$1:$EC$100,Calculations!$A4+1,FALSE),IF(Scenario2!EG$4="Alternate rate",HLOOKUP("ACB (Alternate rate)",Scenario2!$A$1:$EC$100,Calculations!$A4+1,FALSE)))))))))),IF(Scenario2!$EG$8="Protect/Accum",IF(Scenario2!EG$4="Taux actuel",(Scenario2!BO3),IF(Scenario2!EG$4="Taux actuel moins 1%",(Scenario2!BP3),IF(Scenario2!EG$4="Taux personnalisé",(Scenario2!BP3),IF(Scenario2!EG$4="Taux actuel moins 2%",(Scenario2!BQ3))))),IF(Scenario2!$EG$8="Accelerator",IF(Scenario2!EG$4="Taux actuel",(Scenario2!BC3),IF(Scenario2!EG$4="Taux actuel moins 1%",(Scenario2!BD3),IF(Scenario2!EG$4="Taux personnalisé",(Scenario2!BD3),IF(Scenario2!EG$4="Taux actuel moins 2%",(Scenario2!BE3))))),IF(Scenario2!EG$4="Temporaire - NA",HLOOKUP("CBR",Scenario2!$A$1:$S$100,Calculations!$A4+1,FALSE),IF(Scenario2!$EG$8="PermLife",(Scenario2!AD3),IF(Scenario2!$EG$8="SunSpectrumUL",(IF(Scenario2!EG$4="Taux principal",(Scenario2!BF3),IF(Scenario2!EG$4="Taux secondaire",(Scenario2!BG3),IF(Scenario2!EG$4="Autre taux",(Scenario2!BH3))))),IF(Scenario2!$EG$8="SunUniversalLife",IF(Scenario2!EG$4="Taux principal",HLOOKUP("CBR (taux principal)",Scenario2!$A$1:$EC$100,Calculations!$A4+1,FALSE),IF(Scenario2!EG$4="Taux secondaire",HLOOKUP("CBR (taux secondaire)",Scenario2!$A$1:$EC$100,Calculations!$A4+1,FALSE),IF(Scenario2!EG$4="Autre taux",(Scenario2!BL3),HLOOKUP("CBR (autre taux)",Scenario2!$A$1:$EC$100,Calculations!$A4+1,FALSE))))))))))),NA()) -> 78362 | M4: =K4-L4*IF(Calculations!$AT$35=TRUE,Calculations!$AT$38/100,0) -> 1286036.874 | O4: =$AY$51*Cash!AD12+$AY$52*'Fixed Income'!AD12+$AY$53*Equities!AD12+$AY$54*'Real Estate'!AD12+$AY$55*'Alternative Investment'!AD12 -> 3334294.702 | P4: =IF($AZ$4="Yes",$AZ$51,$AZ$52)*IFERROR(D4,0)+IF($AZ$5="Yes",$AZ$51,$AZ$52)*IFERROR(J4,0) -> 78615.15 | Q4: =O4+P4 -> 3412909.852 | R4: =(Cash!AD12+'Fixed Income'!AD12+Equities!AD12+'Real Estate'!AD12+'Alternative Investment'!AD12) -> 5184580.582 | S4: =(Cash!AW12+'Fixed Income'!AW12+Equities!AW12+'Real Estate'!AW12+'Alternative Investment'!AW12)+IFERROR(E4-F4,0)+IFERROR(K4-L4,0) -> 2406966.635 | T4: =Cash!AZ12 -> 785008.738 | U4: ='Fixed Income'!AZ12 -> 482227.8908 | V4: =Equities!AZ12 -> 693502.5439 | W4: ='Real Estate'!AZ12 -> 634695.5479 | X4: ='Alternative Investment'!AZ12 -> 491503.503 | Y4: =SUM(T4:X4) -> 3086938.224 | Z4: =IFERROR(G4,0)+IFERROR(M4,0) -> 2385861.54 | AA4: =SUM(T4:X4)+Z4 -> 5472799.764 | AB4: 0 | AC4: =IRR(($AB$3:$AB4,AA4),0.1) -> 0.04621219296 | AE4: =('Cash (2)'!AD12+'Fixed Income (2)'!AD12+'Equities (2)'!AD12+'Real Estate (2)'!AD12+'Alternative Investment (2)'!AD12) -> 5373594.624 | AF4: =($AY$51*'Cash (2)'!AD12+$AY$52*'Fixed Income (2)'!AD12+$AY$53*'Equities (2)'!AD12+$AY$54*'Real Estate (2)'!AD12+$AY$55*'Alternative Investment (2)'!AD12) -> 3476602.593 | AG4: =('Cash (2)'!AW12+'Fixed Income (2)'!AW12+'Equities (2)'!AW12+'Real Estate (2)'!AW12+'Alternative Investment (2)'!AW12) -> 125400.8022 | AH4: ='Cash (2)'!AZ12 -> 785008.738 | AI4: ='Fixed Income (2)'!AZ12 -> 552343.0386 | AJ4: ='Equities (2)'!AZ12 -> 734758.198 | AK4: ='Real Estate (2)'!AZ12 -> 634695.5479 | AL4: ='Alternative Investment (2)'!AZ12 -> 491503.503 | AM4: =SUM(AH4:AL4) -> 3198309.025 | AN4: 0 | AO4: =IRR(($AN$3:$AN4,AM4),0.1) -> -0.2002113997 | AP4: =IF($AZ$4="Yes",B4,0)+IF($AZ$5="Yes",H4,0) -> 49999.61 | AQ4: =IF(AND($AZ$4="No",$AT$45=1),$AT$46*B4,0)+IF(AND($AZ$5="No",$AT$45=1),$AT$46*H4,0) -> 8000 | AR4: =IF(AND($AZ$4="No",$AT$45=1),$AT$47*B4,0)+IF(AND($AZ$5="No",$AT$45=1),$AT$47*H4,0) -> 32000 | AS4: FileName 1 | AT4: Test 1_Par JLTD M55 f50 50K x 10yrs.xlsx | AU4: Filepath1 | AV4: C:\Users\dd69\OneDrive - Sun Life Financial\Excel Tool\Life-insurance-as-an-asset-class\v17\Test 1_Par JLTD M55 f50 50K x 10yrs.xlsx | AZ4: =IF(AV4<>"",IF(AT3="English",IF(LEFT(Scenario1!EJ1,7)="Sun Par","Yes","No"),IF(RIGHT(Scenario1!EJ1,16)="participation II","Yes","No")),"") -> Yes | BA4: =IF(AV4<>"",Scenario1!EJ10) -> 940796 | BB4: =AP4+AQ4 -> 57999.61 | BC4: =AR4 -> 32000 | BD4: =BB4+BC4 -> 89999.61 | BE4: =BY3 -> 1300000 | BF4: =BZ3 -> 842000.39 | BG4: 1068000 | BH4: 950000 | BI4: 750000 | BJ4: =IF($BB$2="Equities", MAX(0,MIN($BE4,$BB4-SUM($BL4,$BK4))), MAX(0,MIN($BE4,$BB4-$BK4-$BL4))) -> 0 | BK4: =IF($BB$2="Equities", MAX(0,MIN($BF4,$BB4-$BL4)), MIN($BF4,$BB4)) -> 57999.61 | BL4: =IF($BB$2="Equities", MIN($BG4,$BB4), MAX(0,MIN($BG4,$BB4-$BK4))) -> 0 | BM4: =MAX(0,MIN($BH4,$BB4-SUM($BJ4:$BL4,$BN4))) -> 0 | BN4: =MAX(0,MIN($BI4,$BB4-SUM($BJ4:$BL4))) -> 0 | BO4: =IF($BC$2="Equities", MAX(0,MIN($BE4-$BJ4,$BC4-SUM($BQ4,$BP4))), MAX(0,MIN($BE4-$BJ4,$BC4-$BP4-$BQ4))) -> 0 | BP4: =IF($BC$2="Equities", MAX(0,MIN($BF4-$BK4,$BC4-$BQ4)), MIN($BF4-$BK4,$BC4)) -> 0 | BQ4: =IF($BC$2="Equities", MIN($BG4-$BL4,$BC4), MAX(0,MIN($BG4-$BL4,$BC4-$BP4))) -> 32000 | BR4: =MAX(0,MIN($BH4-$BM4,$BC4-SUM($BO4:$BQ4,$BS4))) -> 0 | BS4: =MAX(0,MIN($BI4-$BN4,$BC4-SUM($BO4:$BQ4))) -> 0 | BT4: =IFERROR(BJ4,0)+IFERROR(BO4,0) -> 0 | BU4: =IFERROR(BK4,0)+IFERROR(BP4,0) -> 57999.61 | BV4: =IFERROR(BL4,0)+IFERROR(BQ4,0) -> 32000 | BW4: =IFERROR(BM4,0)+IFERROR(BR4,0) -> 0 | BX4: =IFERROR(BN4,0)+IFERROR(BS4,0) -> 0 | BY4: =IF(BE4>0,BE4-BT4,0) -> 1300000 | BZ4: 784000.78 | CA4: 1036000 | CB4: 950000 | CC4: 750000 | CE4: =Scenario1!EP3 -> 0 | CF4: =Scenario2!EP3 -> 0 | CG4: =CE4+CF4 -> 0 | CH4: =DB3 -> 1300000 | CI4: =DC3 -> 900000 | CJ4: =DD3 -> 1100000 | CK4: =DE3 -> 950000 | CL4: =DF3 -> 750000 | CM4: =IF($CE$2="Equities", MAX(0,MIN($CH4,$CE4-SUM($CO4,$CN4))), MAX(0,MIN($CH4,$CE4-$CN4-$CO4))) -> 0 | CN4: =IF($CE$2="Equities", MAX(0,MIN($CI4,$CE4-$CO4)), MIN($CI4,$CE4)) -> 0 | CO4: =IF($CE$2="Equities", MIN($CJ4,$CE4), MAX(0,MIN($CJ4,$CE4-$CN4))) -> 0 | CP4: =MAX(0,MIN($CK4,$CE4-SUM($CM4:$CO4,$CQ4))) -> 0 | CQ4: =MAX(0,MIN($CL4,$CE4-SUM($CM4:$CO4))) -> 0 | CR4: =IF($CF$2="Equities", MAX(0,MIN($CH4,$CF4-SUM($CT4,$CS4))), MAX(0,MIN($CH4,$CF4-$CS4-$CT4))) -> 0 | CS4: =IF($CF$2="Equities", MAX(0,MIN($CI4,$CF4-$CT4)), MIN($CI4,$CF4)) -> 0 | CT4: =IF($CF$2="Equities", MIN($CJ4,$CF4), MAX(0,MIN($CJ4,$CF4-$CS4))) -> 0 | CU4: =MAX(0,MIN($CK4,$CF4-SUM($CR4:$CT4,$CV4))) -> 0 | CV4: =MAX(0,MIN($CL4,$CF4-SUM($CR4:$CT4))) -> 0 | CW4: =IFERROR(CM4,0)+IFERROR(CR4,0) -> 0 | CX4: =IFERROR(CN4,0)+IFERROR(CS4,0) -> 0 | CY4: =IFERROR(CO4,0)+IFERROR(CT4,0) -> 0 | CZ4: =IFERROR(CP4,0)+IFERROR(CU4,0) -> 0 | DA4: =IFERROR(CQ4,0)+IFERROR(CV4,0) -> 0 | DB4: =IF(CH4>0,CH4-CW4,0) -> 1300000 | DC4: =IF(CI4>0,CI4-CX4,0) -> 900000 | DD4: =IF(CJ4>0,CJ4-CY4,0) -> 1100000 | DE4: =IF(CK4>0,CK4-CZ4,0) -> 950000 | DF4: =IF(CL4>0,CL4-DA4,0) -> 750000 | DH4: 2 | DI4: =(Cash!AB12+'Fixed Income'!AB12+Equities!AB12+'Real Estate'!AB12+'Alternative Investment'!AB12) -> 66311.63853 | DJ4: =DI4+DJ3 -> 127074.0324 | DK4: =(Cash!AT12+'Fixed Income'!AT12+Equities!AT12+'Real Estate'!AT12+'Alternative Investment'!AT12) -> 41255.7362 | DL4: =(Cash!AY12+'Fixed Income'!AY12+Equities!AY12+'Real Estate'!AY12+'Alternative Investment'!AY12) -> 2172689.714 | DM4: =DK4+DL4 -> 2213945.45 | DO4: =('Cash (2)'!AB12+'Fixed Income (2)'!AB12+'Equities (2)'!AB12+'Real Estate (2)'!AB12+'Alternative Investment (2)'!AB12) -> 68804.16753 | DP4: =DP3+DO4 -> 130892.7998 | DQ4: =('Cash (2)'!AT12+'Fixed Income (2)'!AT12+'Equities (2)'!AT12+'Real Estate (2)'!AT12+'Alternative Investment (2)'!AT12) -> 42257.55766 | DR4: =('Cash (2)'!AY12+'Fixed Income (2)'!AY12+'Equities (2)'!AY12+'Real Estate (2)'!AY12+'Alternative Investment (2)'!AY12) -> 2252755.942 | DS4: =DQ4+DR4 -> 2295013.5
A5: =IF(ISNUMBER(B5),(A4+1),IF(ISNUMBER(H5),(A4+1),IF(ISNUMBER(N5),(A4+1),IF(ISNUMBER(AD5),(A4+1),IF(ISNUMBER(#REF!),(A4+1),IF(ISNUMBER(#REF!),(A4+1),NA())))))) -> 3 | B5: =IF(ISNUMBER(Scenario1!F4),IF(Scenario1!$EG$10="English",IF(Scenario1!$EG$8="Protect/Accum",IF(Scenario1!EG$4="Current",(Scenario1!F4-Scenario1!AJ4),IF(Scenario1!EG$4="Current minus 1%",(Scenario1!G4-Scenario1!AK4),IF(Scenario1!EG$4="Custom",(Scenario1!G4-Scenario1!AK4),IF(Scenario1!EG$4="Current minus 2%",(Scenario1!H4-Scenario1!AL4))))),IF(Scenario1!$EG$8="Accelerator",IF(Scenario1!EG$4="Current",(Scenario1!F4),IF(Scenario1!EG$4="Current minus 1%",(Scenario1!G4),IF(Scenario1!EG$4="Custom",(Scenario1!G4),IF(Scenario1!EG$4="Current minus 2%",(Scenario1!H4))))),IF(Scenario1!EG$4="Sun Life Evolve Term",IF(Scenario1!EG$6="Monthly",(Scenario1!K4),(Scenario1!G4)),IF(Scenario1!EG$4="Not applicable",IF(Scenario1!$EG$8="PermLife",IF(VLOOKUP("Premium Frequency",Scenario1!$A$150:'Scenario1'!$B$170,2,FALSE)="Monthly",(Scenario1!F4*12),(Scenario1!F4))),(Scenario1!C4))))),IF(Scenario1!$EG$8="Protect/Accum",IF(Scenario1!EG$4="Taux actuel",(Scenario1!F4-Scenario1!AJ4),IF(Scenario1!EG$4="Taux actuel moins 1%",(Scenario1!G4-Scenario1!AK4),IF(Scenario1!EG$4="Taux personnalisé",(Scenario1!G4-Scenario1!AK4),IF(Scenario1!EG$4="Taux actuel moins 2%",(Scenario1!H4-Scenario1!AL4))))),IF(Scenario1!$EG$8="Accelerator",IF(Scenario1!EG$4="Taux actuel",(Scenario1!F4),IF(Scenario1!EG$4="Taux actuel moins 1%",(Scenario1!G4),IF(Scenario1!EG$4="Taux personnalisé",(Scenario1!G4),IF(Scenario1!EG$4="Taux actuel moins 2%",(Scenario1!H4))))),IF(Scenario1!EG$4="Assurance-vie temporaire Évolution Sun Life",IF(Scenario1!EG$6="Monthly",(Scenario1!K4),(Scenario1!G4)),IF(Scenario1!EG$4="Pas applicable",IF(Scenario1!$EG$8="PermLife",IF(VLOOKUP("Périodicité de la prime",Scenario1!$A$150:'Scenario1'!$B$170,2,FALSE)="Mensuelle",(Scenario1!F4*12),(Scenario1!F4))),(Scenario1!C4)))))),NA()) -> 49999.61 | C5: =SUM($B$3,NPV($AT$11,B$4:B5)) -> 149998.83 | D5: =IF(ISNUMBER(Scenario1!J4),IF(Scenario1!$EG$10="English",IF(Scenario1!$EG$8="Protect/Accum",IF(Scenario1!EG$4="Current",(Scenario1!J4),IF(Scenario1!EG$4="Current minus 1%",(Scenario1!K4),IF(Scenario1!EG$4="Custom",(Scenario1!K4),IF(Scenario1!EG$4="Current minus 2%",(Scenario1!L4))))),IF(Scenario1!$EG$8="Accelerator",IF(Scenario1!EG$4="Current",(Scenario1!J4),IF(Scenario1!EG$4="Current minus 1%",(Scenario1!K4),IF(Scenario1!EG$4="Custom",(Scenario1!K4),IF(Scenario1!EG$4="Current minus 2%",(Scenario1!L4))))),IF(Scenario1!EG$4="Sun Term - NA",0,IF(Scenario1!$EG$8="SunSpectrumUL",(IF(Scenario1!EG$4="Primary rate",(Scenario1!M4),IF(Scenario1!EG$4="Secondary rate",(Scenario1!N4),IF(Scenario1!EG$4="Alternate rate",(Scenario1!O4),(Scenario1!C4))))),IF(Scenario1!$EG$8="PermLife",(Scenario1!C4),IF(AND(Scenario1!$EG$8="SunUniversalLife",Scenario1!$EJ$21=1),IF(Scenario1!EG$4="Primary rate",(Scenario1!N4),IF(Scenario1!EG$4="Secondary rate",(Scenario1!O4),IF(Scenario1!EG$4="Alternate rate",(Scenario1!P4)))),IF(Scenario1!EG$4="Primary rate",(Scenario1!M4),IF(Scenario1!EG$4="Secondary rate",(Scenario1!N4),IF(Scenario1!EG$4="Alternate rate",(Scenario1!O4)))))))))),IF(Scenario1!$EG$8="Protect/Accum",IF(Scenario1!EG$4="Taux actuel",(Scenario1!J4),IF(Scenario1!EG$4="Taux actuel moins 1%",(Scenario1!K4),IF(Scenario1!EG$4="Taux personnalisé",(Scenario1!K4),IF(Scenario1!EG$4="Taux actuel moins 2%",(Scenario1!L4))))),IF(Scenario1!$EG$8="Accelerator",IF(Scenario1!EG$4="Taux actuel",(Scenario1!J4),IF(Scenario1!EG$4="Taux actuel moins 1%",(Scenario1!K4),IF(Scenario1!EG$4="Taux personnalisé",(Scenario1!K4),IF(Scenario1!EG$4="Taux actuel moins 2%",(Scenario1!L4))))),IF(Scenario1!EG$4="Temporaire - NA",0,IF(Scenario1!$EG$8="SunSpectrumUL",(IF(Scenario1!EG$4="Taux principal",(Scenario1!M4),IF(Scenario1!EG$4="Taux secondaire",(Scenario1!N4),IF(Scenario1!EG$4="Autre taux",(Scenario1!O4),(Scenario1!C4))))),IF(Scenario1!$EG$8="PermLife",(Scenario1!C4),IF(AND(Scenario1!$EG$8="SunUniversalLife",Scenario1!$EJ$21=1),IF(Scenario1!EG$4="Taux principal",(Scenario1!N4),IF(Scenario1!EG$4="Taux secondaire",(Scenario1!O4),IF(Scenario1!EG$4="Autre taux",(Scenario1!P4),(Scenario1!C4)))),IF(Scenario1!EG$4="Taux principal",(Scenario1!M4),IF(Scenario1!EG$4="Taux secondaire",(Scenario1!N4),IF(Scenario1!EG$4="Autre taux",(Scenario1!O4),(Scenario1!C4))))))))))),NA()) -> 95101 | E5: =IF(ISNUMBER(Scenario1!C4),IF(Scenario1!$EG$10="English",IF(Scenario1!$EG$8="Protect/Accum",IF(Scenario1!EG$4="Current",(Scenario1!O4),IF(Scenario1!EG$4="Current minus 1%",(Scenario1!P4),IF(Scenario1!EG$4="Custom",(Scenario1!P4),IF(Scenario1!EG$4="Current minus 2%",(Scenario1!Q4))))),IF(Scenario1!$EG$8="Accelerator",IF(Scenario1!EG$4="Current",(Scenario1!O4),IF(Scenario1!EG$4="Current minus 1%",(Scenario1!P4),IF(Scenario1!EG$4="Custom",(Scenario1!P4),IF(Scenario1!EG$4="Current minus 2%",(Scenario1!Q4))))),IF(Scenario1!EG$4="Sun Life Evolve Term",HLOOKUP("Total Policy Death Benefit",Scenario1!$A$1:$G$100,Calculations!$A5+1,FALSE),IF(Scenario1!$EG$8="SunSpectrumUL",(IF(Scenario1!EG$4="Primary rate",(Scenario1!Q4),IF(Scenario1!EG$4="Secondary rate",(Scenario1!R4),IF(Scenario1!EG$4="Alternate rate",(Scenario1!S4))))),IF(Scenario1!$EG$8="PermLife",(Scenario1!E4),IF(AND(Scenario1!$EG$8="SunUniversalLife",Scenario1!$EJ$21=1),IF(Scenario1!EG$4="Primary rate",(Scenario1!S4),IF(Scenario1!EG$4="Secondary rate",(Scenario1!T4),IF(Scenario1!EG$4="Alternate rate",(Scenario1!U4)))),IF(Scenario1!EG$4="Primary rate",(Scenario1!R4),IF(Scenario1!EG$4="Secondary rate",(Scenario1!S4),IF(Scenario1!EG$4="Alternate rate",(Scenario1!T4)))))))))),IF(Scenario1!$EG$8="Protect/Accum",IF(Scenario1!EG$4="Taux actuel",(Scenario1!O4),IF(Scenario1!EG$4="Taux actuel moins 1%",(Scenario1!P4),IF(Scenario1!EG$4="Taux personnalisé",(Scenario1!P4),IF(Scenario1!EG$4="Taux actuel moins 2%",(Scenario1!Q4))))),IF(Scenario1!$EG$8="Accelerator",IF(Scenario1!EG$4="Taux actuel",(Scenario1!O4),IF(Scenario1!EG$4="Taux actuel moins 1%",(Scenario1!P4),IF(Scenario1!EG$4="Taux personnalisé",(Scenario1!P4),IF(Scenario1!EG$4="Taux actuel moins 2%",(Scenario1!Q4))))),IF(Scenario1!EG$4="Assurance-vie temporaire Évolution Sun Life",HLOOKUP("Capital-décès total du contrat",Scenario1!$A$1:$G$100,Calculations!$A5+1,FALSE),IF(Scenario1!$EG$8="SunSpectrumUL",(IF(Scenario1!EG$4="Taux principal",(Scenario1!Q4),IF(Scenario1!EG$4="Taux secondaire",(Scenario1!R4),IF(Scenario1!EG$4="Autre taux",(Scenario1!S4))))),IF(Scenario1!$EG$8="PermLife",(Scenario1!E4),IF(AND(Scenario1!$EG$8="SunUniversalLife",Scenario1!$EJ$21=1),IF(Scenario1!EG$4="Taux principal",(Scenario1!S4),IF(Scenario1!EG$4="Taux secondaire",(Scenario1!T4),IF(Scenario1!EG$4="Autre taux",(Scenario1!U4),(Scenario1!E4)))),IF(Scenario1!EG$4="Taux principal",(Scenario1!R4),IF(Scenario1!EG$4="Taux secondaire",(Scenario1!S4),IF(Scenario1!EG$4="Autre taux",(Scenario1!T4),(Scenario1!E4))))))))))),NA()) -> 1241605 | F5: =IF(ISNUMBER(Scenario1!M4),IF(Scenario1!$EG$10="English",IF(Scenario1!$EG$8="Protect/Accum",IF(Scenario1!EG$4="Current",(Scenario1!BO4),IF(Scenario1!EG$4="Current minus 1%",(Scenario1!BP4),IF(Scenario1!EG$4="Custom",(Scenario1!BP4),IF(Scenario1!EG$4="Current minus 2%",(Scenario1!BQ4))))),IF(Scenario1!$EG$8="Accelerator",IF(Scenario1!EG$4="Current",(Scenario1!BC4),IF(Scenario1!EG$4="Current minus 1%",(Scenario1!BD4),IF(Scenario1!EG$4="Custom",(Scenario1!BD4),IF(Scenario1!EG$4="Current minus 2%",(Scenario1!BE4))))),IF(Scenario1!EG$4="Sun Life Evolve Term",HLOOKUP("ACB",Scenario1!$A$1:$S$100,Calculations!$A5+1,FALSE),IF(Scenario1!$EG$8="SunSpectrumUL",(IF(Scenario1!EG$4="Primary rate",(Scenario1!BF4),IF(Scenario1!EG$4="Secondary rate",(Scenario1!BG4),IF(Scenario1!EG$4="Alternate rate",(Scenario1!BH4))))),IF(Scenario1!$EG$8="PermLife",(Scenario1!AD4),IF(Scenario1!$EG$8="SunUniversalLife",IF(Scenario1!EG$4="Primary rate",HLOOKUP("ACB (Primary rate)",Scenario1!$A$1:$EC$100,Calculations!$A5+1,FALSE),IF(Scenario1!EG$4="Secondary rate",HLOOKUP("ACB (Secondary rate)",Scenario1!$A$1:$EC$100,Calculations!$A5+1,FALSE),IF(Scenario1!EG$4="Alternate rate",HLOOKUP("ACB (Alternate rate)",Scenario1!$A$1:$EC$100,Calculations!$A5+1,FALSE)))))))))),IF(Scenario1!$EG$8="Protect/Accum",IF(Scenario1!EG$4="Taux actuel",(Scenario1!BO4),IF(Scenario1!EG$4="Taux actuel moins 1%",(Scenario1!BP4),IF(Scenario1!EG$4="Taux personnalisé",(Scenario1!BP4),IF(Scenario1!EG$4="Taux actuel moins 2%",(Scenario1!BQ4))))),IF(Scenario1!$EG$8="Accelerator",IF(Scenario1!EG$4="Taux actuel",(Scenario1!BC4),IF(Scenario1!EG$4="Taux actuel moins 1%",(Scenario1!BD4),IF(Scenario1!EG$4="Taux personnalisé",(Scenario1!BD4),IF(Scenario1!EG$4="Taux actuel moins 2%",(Scenario1!BE4))))),IF(Scenario1!EG$4="Assurance-vie temporaire Évolution Sun Life",HLOOKUP("CBR",Scenario1!$A$1:$S$100,Calculations!$A5+1,FALSE),IF(Scenario1!$EG$8="PermLife",(Scenario1!AD4),IF(Scenario1!$EG$8="SunSpectrumUL",(IF(Scenario1!EG$4="Taux principal",(Scenario1!BF4),IF(Scenario1!EG$4="Taux secondaire",(Scenario1!BG4),IF(Scenario1!EG$4="Autre taux",(Scenario1!BH4))))),IF(Scenario1!$EG$8="SunUniversalLife",IF(Scenario1!EG$4="Taux principal",HLOOKUP("CBR (taux principal)",Scenario1!$A$1:$EC$100,Calculations!$A5+1,FALSE),IF(Scenario1!EG$4="Taux secondaire",HLOOKUP("CBR (taux secondaire)",Scenario1!$A$1:$EC$100,Calculations!$A5+1,FALSE),IF(Scenario1!EG$4="Autre taux",(Scenario1!BL4),HLOOKUP("CBR (autre taux)",Scenario1!$A$1:$EC$100,Calculations!$A5+1,FALSE))))))))))),NA()) -> 147618 | G5: =E5-F5*IF(Calculations!$AT$35=TRUE,Calculations!$AT$38/100,0) -> 1179162.586 | H5: =IF(ISNUMBER(Scenario2!F4),IF(Scenario2!$EG$10="English",IF(Scenario2!$EG$8="Protect/Accum",IF(Scenario2!EG$4="Current",(Scenario2!F4-Scenario2!AJ4),IF(Scenario2!EG$4="Current minus 1%",(Scenario2!G4-Scenario2!AK4),IF(Scenario2!EG$4="Custom",(Scenario2!G4-Scenario2!AK4),IF(Scenario2!EG$4="Current minus 2%",(Scenario2!H4-Scenario2!AL4))))),IF(Scenario2!$EG$8="Accelerator",IF(Scenario2!EG$4="Current",(Scenario2!F4),IF(Scenario2!EG$4="Current minus 1%",(Scenario2!G4),IF(Scenario2!EG$4="Custom",(Scenario2!G4),IF(Scenario2!EG$4="Current minus 2%",(Scenario2!H4))))),IF(Scenario2!EG$4="Sun Term - NA",IF(Scenario2!EG$6="Monthly",(Scenario2!K4),(Scenario2!G4)),IF(Scenario2!EG$4="Not applicable",IF(Scenario2!$EG$8="PermLife",IF(VLOOKUP("Premium Frequency",Scenario2!$A$150:'Scenario2'!$B$170,2,FALSE)="Monthly",(Scenario2!F4*12),(Scenario2!F4))),(Scenario2!C4))))),IF(Scenario2!$EG$8="Protect/Accum",IF(Scenario2!EG$4="Taux actuel",(Scenario2!F4-Scenario2!AJ4),IF(Scenario2!EG$4="Taux actuel moins 1%",(Scenario2!G4-Scenario2!AK4),IF(Scenario2!EG$4="Taux personnalisé",(Scenario2!G4-Scenario2!AK4),IF(Scenario2!EG$4="Taux actuel moins 2%",(Scenario2!H4-Scenario2!AL4))))),IF(Scenario2!$EG$8="Accelerator",IF(Scenario2!EG$4="Taux actuel",(Scenario2!F4),IF(Scenario2!EG$4="Taux actuel moins 1%",(Scenario2!G4),IF(Scenario2!EG$4="Taux personnalisé",(Scenario2!G4),IF(Scenario2!EG$4="Taux actuel moins 2%",(Scenario2!H4))))),IF(Scenario2!EG$4="Temporaire - NA",IF(Scenario2!EG$6="Monthly",(Scenario2!K4),(Scenario2!G4)),IF(Scenario2!EG$4="Pas applicable",IF(Scenario2!$EG$8="PermLife",IF(VLOOKUP("Périodicité de la prime",Scenario2!$A$150:'Scenario2'!$B$170,2,FALSE)="Mensuelle",(Scenario2!F4*12),(Scenario2!F4))),(Scenario2!C4)))))),NA()) -> 40000 | I5: =SUM($H$3,NPV($AT$11,H$4:H5)) -> 120000 | J5: =IF(ISNUMBER(Scenario2!J4),IF(Scenario2!$EG$10="English",IF(Scenario2!$EG$8="Protect/Accum",IF(Scenario2!EG$4="Current",(Scenario2!J4),IF(Scenario2!EG$4="Current minus 1%",(Scenario2!K4),IF(Scenario2!EG$4="Custom",(Scenario2!K4),IF(Scenario2!EG$4="Current minus 2%",(Scenario2!L4))))),IF(Scenario2!$EG$8="Accelerator",IF(Scenario2!EG$4="Current",(Scenario2!J4),IF(Scenario2!EG$4="Current minus 1%",(Scenario2!K4),IF(Scenario2!EG$4="Custom",(Scenario2!K4),IF(Scenario2!EG$4="Current minus 2%",(Scenario2!L4))))),IF(Scenario2!EG$4="Sun Term - NA",0,IF(Scenario2!$EG$8="SunSpectrumUL",(IF(Scenario2!EG$4="Primary rate",(Scenario2!M4),IF(Scenario2!EG$4="Secondary rate",(Scenario2!N4),IF(Scenario2!EG$4="Alternate rate",(Scenario2!O4),(Scenario2!C4))))),IF(Scenario2!$EG$8="PermLife",(Scenario2!C4),IF(AND(Scenario2!$EG$8="SunUniversalLife",Scenario2!$EJ$21=1),IF(Scenario2!EG$4="Primary rate",(Scenario2!N4),IF(Scenario2!EG$4="Secondary rate",(Scenario2!O4),IF(Scenario2!EG$4="Alternate rate",(Scenario2!P4)))),IF(Scenario2!EG$4="Primary rate",(Scenario2!M4),IF(Scenario2!EG$4="Secondary rate",(Scenario2!N4),IF(Scenario2!EG$4="Alternate rate",(Scenario2!O4)))))))))),IF(Scenario2!$EG$8="Protect/Accum",IF(Scenario2!EG$4="Taux actuel",(Scenario2!J4),IF(Scenario2!EG$4="Taux actuel moins 1%",(Scenario2!K4),IF(Scenario2!EG$4="Taux personnalisé",(Scenario2!K4),IF(Scenario2!EG$4="Taux actuel moins 2%",(Scenario2!L4))))),IF(Scenario2!$EG$8="Accelerator",IF(Scenario2!EG$4="Taux actuel",(Scenario2!J4),IF(Scenario2!EG$4="Taux actuel moins 1%",(Scenario2!K4),IF(Scenario2!EG$4="Taux personnalisé",(Scenario2!K4),IF(Scenario2!EG$4="Taux actuel moins 2%",(Scenario2!L4))))),IF(Scenario2!EG$4="Temporaire - NA",0,IF(Scenario2!$EG$8="SunSpectrumUL",(IF(Scenario2!EG$4="Taux principal",(Scenario2!M4),IF(Scenario2!EG$4="Taux secondaire",(Scenario2!N4),IF(Scenario2!EG$4="Autre taux",(Scenario2!O4),(Scenario2!C4))))),IF(Scenario2!$EG$8="PermLife",(Scenario2!C4),IF(AND(Scenario2!$EG$8="SunUniversalLife",Scenario2!$EJ$21=1),IF(Scenario2!EG$4="Taux principal",(Scenario2!N4),IF(Scenario2!EG$4="Taux secondaire",(Scenario2!O4),IF(Scenario2!EG$4="Autre taux",(Scenario2!P4),(Scenario2!C4)))),IF(Scenario2!EG$4="Taux principal",(Scenario2!M4),IF(Scenario2!EG$4="Taux secondaire",(Scenario2!N4),IF(Scenario2!EG$4="Autre taux",(Scenario2!O4),(Scenario2!C4))))))))))),NA()) -> 62159 | K5: =IF(ISNUMBER(Scenario2!C4),IF(Scenario2!$EG$10="English",IF(Scenario2!$EG$8="Protect/Accum",IF(Scenario2!EG$4="Current",(Scenario2!O4),IF(Scenario2!EG$4="Current minus 1%",(Scenario2!P4),IF(Scenario2!EG$4="Custom",(Scenario2!P4),IF(Scenario2!EG$4="Current minus 2%",(Scenario2!Q4))))),IF(Scenario2!$EG$8="Accelerator",IF(Scenario2!EG$4="Current",(Scenario2!O4),IF(Scenario2!EG$4="Current minus 1%",(Scenario2!P4),IF(Scenario2!EG$4="Custom",(Scenario2!P4),IF(Scenario2!EG$4="Current minus 2%",(Scenario2!Q4))))),IF(Scenario2!EG$4="Sun Term - NA",HLOOKUP("Total Policy Death Benefit",Scenario2!$A$1:$G$100,Calculations!$A5+1,FALSE),IF(Scenario2!$EG$8="SunSpectrumUL",(IF(Scenario2!EG$4="Primary rate",(Scenario2!Q4),IF(Scenario2!EG$4="Secondary rate",(Scenario2!R4),IF(Scenario2!EG$4="Alternate rate",(Scenario2!S4))))),IF(Scenario2!$EG$8="PermLife",(Scenario2!E4),IF(AND(Scenario2!$EG$8="SunUniversalLife",Scenario2!$EJ$21=1),IF(Scenario2!EG$4="Primary rate",(Scenario2!S4),IF(Scenario2!EG$4="Secondary rate",(Scenario2!T4),IF(Scenario2!EG$4="Alternate rate",(Scenario2!U4)))),IF(Scenario2!EG$4="Primary rate",(Scenario2!R4),IF(Scenario2!EG$4="Secondary rate",(Scenario2!S4),IF(Scenario2!EG$4="Alternate rate",(Scenario2!T4)))))))))),IF(Scenario2!$EG$8="Protect/Accum",IF(Scenario2!EG$4="Taux actuel",(Scenario2!O4),IF(Scenario2!EG$4="Taux actuel moins 1%",(Scenario2!P4),IF(Scenario2!EG$4="Taux personnalisé",(Scenario2!P4),IF(Scenario2!EG$4="Taux actuel moins 2%",(Scenario2!Q4))))),IF(Scenario2!$EG$8="Accelerator",IF(Scenario2!EG$4="Taux actuel",(Scenario2!O4),IF(Scenario2!EG$4="Taux actuel moins 1%",(Scenario2!P4),IF(Scenario2!EG$4="Taux personnalisé",(Scenario2!P4),IF(Scenario2!EG$4="Taux actuel moins 2%",(Scenario2!Q4))))),IF(Scenario2!EG$4="Temporaire - NA",HLOOKUP("Capital-décès total du contrat",Scenario2!$A$1:$G$100,Calculations!$A5+1,FALSE),IF(Scenario2!$EG$8="SunSpectrumUL",(IF(Scenario2!EG$4="Taux principal",(Scenario2!Q4),IF(Scenario2!EG$4="Taux secondaire",(Scenario2!R4),IF(Scenario2!EG$4="Autre taux",(Scenario2!S4))))),IF(Scenario2!$EG$8="PermLife",(Scenario2!E4),IF(AND(Scenario2!$EG$8="SunUniversalLife",Scenario2!$EJ$21=1),IF(Scenario2!EG$4="Taux principal",(Scenario2!S4),IF(Scenario2!EG$4="Taux secondaire",(Scenario2!T4),IF(Scenario2!EG$4="Autre taux",(Scenario2!U4),(Scenario2!E4)))),IF(Scenario2!EG$4="Taux principal",(Scenario2!R4),IF(Scenario2!EG$4="Taux secondaire",(Scenario2!S4),IF(Scenario2!EG$4="Autre taux",(Scenario2!T4),(Scenario2!E4))))))))))),NA()) -> 1350252 | L5: =IF(ISNUMBER(Scenario2!M4),IF(Scenario2!$EG$10="English",IF(Scenario2!$EG$8="Protect/Accum",IF(Scenario2!EG$4="Current",(Scenario2!BO4),IF(Scenario2!EG$4="Current minus 1%",(Scenario2!BP4),IF(Scenario2!EG$4="Custom",(Scenario2!BP4),IF(Scenario2!EG$4="Current minus 2%",(Scenario2!BQ4))))),IF(Scenario2!$EG$8="Accelerator",IF(Scenario2!EG$4="Current",(Scenario2!BC4),IF(Scenario2!EG$4="Current minus 1%",(Scenario2!BD4),IF(Scenario2!EG$4="Custom",(Scenario2!BD4),IF(Scenario2!EG$4="Current minus 2%",(Scenario2!BE4))))),IF(Scenario2!EG$4="Sun Term - NA",HLOOKUP("ACB",Scenario2!$A$1:$S$100,Calculations!$A5+1,FALSE),IF(Scenario2!$EG$8="SunSpectrumUL",(IF(Scenario2!EG$4="Primary rate",(Scenario2!BF4),IF(Scenario2!EG$4="Secondary rate",(Scenario2!BG4),IF(Scenario2!EG$4="Alternate rate",(Scenario2!BH4))))),IF(Scenario2!$EG$8="PermLife",(Scenario2!AD4),IF(Scenario2!$EG$8="SunUniversalLife",IF(Scenario2!EG$4="Primary rate",HLOOKUP("ACB (Primary rate)",Scenario2!$A$1:$EC$100,Calculations!$A5+1,FALSE),IF(Scenario2!EG$4="Secondary rate",HLOOKUP("ACB (Secondary rate)",Scenario2!$A$1:$EC$100,Calculations!$A5+1,FALSE),IF(Scenario2!EG$4="Alternate rate",HLOOKUP("ACB (Alternate rate)",Scenario2!$A$1:$EC$100,Calculations!$A5+1,FALSE)))))))))),IF(Scenario2!$EG$8="Protect/Accum",IF(Scenario2!EG$4="Taux actuel",(Scenario2!BO4),IF(Scenario2!EG$4="Taux actuel moins 1%",(Scenario2!BP4),IF(Scenario2!EG$4="Taux personnalisé",(Scenario2!BP4),IF(Scenario2!EG$4="Taux actuel moins 2%",(Scenario2!BQ4))))),IF(Scenario2!$EG$8="Accelerator",IF(Scenario2!EG$4="Taux actuel",(Scenario2!BC4),IF(Scenario2!EG$4="Taux actuel moins 1%",(Scenario2!BD4),IF(Scenario2!EG$4="Taux personnalisé",(Scenario2!BD4),IF(Scenario2!EG$4="Taux actuel moins 2%",(Scenario2!BE4))))),IF(Scenario2!EG$4="Temporaire - NA",HLOOKUP("CBR",Scenario2!$A$1:$S$100,Calculations!$A5+1,FALSE),IF(Scenario2!$EG$8="PermLife",(Scenario2!AD4),IF(Scenario2!$EG$8="SunSpectrumUL",(IF(Scenario2!EG$4="Taux principal",(Scenario2!BF4),IF(Scenario2!EG$4="Taux secondaire",(Scenario2!BG4),IF(Scenario2!EG$4="Autre taux",(Scenario2!BH4))))),IF(Scenario2!$EG$8="SunUniversalLife",IF(Scenario2!EG$4="Taux principal",HLOOKUP("CBR (taux principal)",Scenario2!$A$1:$EC$100,Calculations!$A5+1,FALSE),IF(Scenario2!EG$4="Taux secondaire",HLOOKUP("CBR (taux secondaire)",Scenario2!$A$1:$EC$100,Calculations!$A5+1,FALSE),IF(Scenario2!EG$4="Autre taux",(Scenario2!BL4),HLOOKUP("CBR (autre taux)",Scenario2!$A$1:$EC$100,Calculations!$A5+1,FALSE))))))))))),NA()) -> 117201.49 | M5: =K5-L5*IF(Calculations!$AT$35=TRUE,Calculations!$AT$38/100,0) -> 1300675.77 | O5: =$AY$51*Cash!AD13+$AY$52*'Fixed Income'!AD13+$AY$53*Equities!AD13+$AY$54*'Real Estate'!AD13+$AY$55*'Alternative Investment'!AD13 -> 3363324.447 | P5: 132210.15 | Q5: 3495534.597 | R5: =(Cash!AD13+'Fixed Income'!AD13+Equities!AD13+'Real Estate'!AD13+'Alternative Investment'!AD13) -> 5278766.169 | S5: =(Cash!AW13+'Fixed Income'!AW13+Equities!AW13+'Real Estate'!AW13+'Alternative Investment'!AW13)+IFERROR(E5-F5,0)+IFERROR(K5-L5,0) -> 2515629.276 | T5: =Cash!AZ13 -> 802848.0108 | U5: ='Fixed Income'!AZ13 -> 462554.7015 | V5: =Equities!AZ13 -> 724609.3531 | W5: ='Real Estate'!AZ13 -> 681435.7372 | X5: ='Alternative Investment'!AZ13 -> 523005.8443 | Y5: 3194453.647 | Z5: 2479838.356 | AA5: 5674292.003 | AB5: 0 | AC5: =IRR(($AB$3:$AB5,AA5),0.1) -> 0.04307105083 | AE5: =('Cash (2)'!AD13+'Fixed Income (2)'!AD13+'Equities (2)'!AD13+'Real Estate (2)'!AD13+'Alternative Investment (2)'!AD13) -> 5567087.876 | AF5: =($AY$51*'Cash (2)'!AD13+$AY$52*'Fixed Income (2)'!AD13+$AY$53*'Equities (2)'!AD13+$AY$54*'Real Estate (2)'!AD13+$AY$55*'Alternative Investment (2)'!AD13) -> 3579905.94 | AG5: =('Cash (2)'!AW13+'Fixed Income (2)'!AW13+'Equities (2)'!AW13+'Real Estate (2)'!AW13+'Alternative Investment (2)'!AW13) -> 192985.2703 | AH5: ='Cash (2)'!AZ13 -> 802848.0108 | AI5: ='Fixed Income (2)'!AZ13 -> 569361.808 | AJ5: ='Equities (2)'!AZ13 -> 788823.6678 | AK5: ='Real Estate (2)'!AZ13 -> 681435.7372 | AL5: ='Alternative Investment (2)'!AZ13 -> 523005.8443 | AM5: 3365475.068 | AN5: 0 | AO5: =IRR(($AN$3:$AN5,AM5),0.1) -> -0.123620673 | AP5: 49999.61 | AQ5: 8000 | AR5: 32000 | AS5: FileName 2 | AT5: Test 1_UL JLTD M55 F50 40k X 10yrs.xlsx | AU5: Filepath2 | AV5: C:\Users\dd69\OneDrive - Sun Life Financial\Excel Tool\Life-insurance-as-an-asset-class\v17\Test 1_UL JLTD M55 F50 40k X 10yrs.xlsx | AY5: Difference Age 100 | AZ5: =IF(AV5<>"",IF(AT3="English",IF(LEFT(Scenario2!EJ1,7)="Sun Par","Yes","No"),IF(RIGHT(Scenario2!EJ1,16)="participation II","Yes","No")),"") -> No | BA5: =IF(AV5<>"",Scenario2!EJ10) -> 1262143 | BB5: 57999.61 | BC5: 32000 | BD5: 89999.61 | BE5: =BY4 -> 1300000 | BF5: =BZ4 -> 784000.78 | BG5: =CA4 -> 1036000 | BH5: =CB4 -> 950000 | BI5: =CC4 -> 750000 | BJ5: 0 | BK5: 57999.61 | BL5: 0 | BM5: 0 | BN5: 0 | BO5: 0 | BP5: 0 | BQ5: 32000 | BR5: 0 | BS5: 0 | BT5: 0 | BU5: 57999.61 | BV5: 32000 | BW5: 0 | BX5: 0 | BY5: 1300000 | BZ5: 726001.17 | CA5: 1004000 | CB5: 950000 | CC5: 750000 | CE5: =Scenario1!EP4 -> 0 | CF5: =Scenario2!EP4 -> 0 | CG5: 0 | CH5: =DB4 -> 1300000 | CI5: 900000 | CJ5: 1100000 | CK5: 950000 | CL5: 750000 | CM5: 0 | CN5: 0 | CO5: 0 | CP5: 0 | CQ5: 0 | CR5: 0 | CS5: 0 | CT5: 0 | CU5: 0 | CV5: 0 | CW5: 0 | CX5: 0 | CY5: 0 | CZ5: 0 | DA5: 0 | DB5: 1300000 | DC5: 900000 | DD5: 1100000 | DE5: 950000 | DF5: 750000 | DH5: 3 | DI5: =(Cash!AB13+'Fixed Income'!AB13+Equities!AB13+'Real Estate'!AB13+'Alternative Investment'!AB13) -> 71042.75027 | DJ5: =DI5+DJ4 -> 198116.7827 | DK5: =(Cash!AT13+'Fixed Income'!AT13+Equities!AT13+'Real Estate'!AT13+'Alternative Investment'!AT13) -> 56963.40929 | DL5: =(Cash!AY13+'Fixed Income'!AY13+Equities!AY13+'Real Estate'!AY13+'Alternative Investment'!AY13) -> 2203604.117 | DM5: 2260567.526 | DO5: =('Cash (2)'!AB13+'Fixed Income (2)'!AB13+'Equities (2)'!AB13+'Real Estate (2)'!AB13+'Alternative Investment (2)'!AB13) -> 74897.92268 | DP5: 205790.7225 | DQ5: =('Cash (2)'!AT13+'Fixed Income (2)'!AT13+'Equities (2)'!AT13+'Real Estate (2)'!AT13+'Alternative Investment (2)'!AT13) -> 59039.38314 | DR5: =('Cash (2)'!AY13+'Fixed Income (2)'!AY13+'Equities (2)'!AY13+'Real Estate (2)'!AY13+'Alternative Investment (2)'!AY13) -> 2325759.418 | DS5: 2384798.802
A6: =IF(ISNUMBER(B6),(A5+1),IF(ISNUMBER(H6),(A5+1),IF(ISNUMBER(N6),(A5+1),IF(ISNUMBER(AD6),(A5+1),IF(ISNUMBER(#REF!),(A5+1),IF(ISNUMBER(#REF!),(A5+1),NA())))))) -> 4 | B6: =IF(ISNUMBER(Scenario1!F5),IF(Scenario1!$EG$10="English",IF(Scenario1!$EG$8="Protect/Accum",IF(Scenario1!EG$4="Current",(Scenario1!F5-Scenario1!AJ5),IF(Scenario1!EG$4="Current minus 1%",(Scenario1!G5-Scenario1!AK5),IF(Scenario1!EG$4="Custom",(Scenario1!G5-Scenario1!AK5),IF(Scenario1!EG$4="Current minus 2%",(Scenario1!H5-Scenario1!AL5))))),IF(Scenario1!$EG$8="Accelerator",IF(Scenario1!EG$4="Current",(Scenario1!F5),IF(Scenario1!EG$4="Current minus 1%",(Scenario1!G5),IF(Scenario1!EG$4="Custom",(Scenario1!G5),IF(Scenario1!EG$4="Current minus 2%",(Scenario1!H5))))),IF(Scenario1!EG$4="Sun Life Evolve Term",IF(Scenario1!EG$6="Monthly",(Scenario1!K5),(Scenario1!G5)),IF(Scenario1!EG$4="Not applicable",IF(Scenario1!$EG$8="PermLife",IF(VLOOKUP("Premium Frequency",Scenario1!$A$150:'Scenario1'!$B$170,2,FALSE)="Monthly",(Scenario1!F5*12),(Scenario1!F5))),(Scenario1!C5))))),IF(Scenario1!$EG$8="Protect/Accum",IF(Scenario1!EG$4="Taux actuel",(Scenario1!F5-Scenario1!AJ5),IF(Scenario1!EG$4="Taux actuel moins 1%",(Scenario1!G5-Scenario1!AK5),IF(Scenario1!EG$4="Taux personnalisé",(Scenario1!G5-Scenario1!AK5),IF(Scenario1!EG$4="Taux actuel moins 2%",(Scenario1!H5-Scenario1!AL5))))),IF(Scenario1!$EG$8="Accelerator",IF(Scenario1!EG$4="Taux actuel",(Scenario1!F5),IF(Scenario1!EG$4="Taux actuel moins 1%",(Scenario1!G5),IF(Scenario1!EG$4="Taux personnalisé",(Scenario1!G5),IF(Scenario1!EG$4="Taux actuel moins 2%",(Scenario1!H5))))),IF(Scenario1!EG$4="Assurance-vie temporaire Évolution Sun Life",IF(Scenario1!EG$6="Monthly",(Scenario1!K5),(Scenario1!G5)),IF(Scenario1!EG$4="Pas applicable",IF(Scenario1!$EG$8="PermLife",IF(VLOOKUP("Périodicité de la prime",Scenario1!$A$150:'Scenario1'!$B$170,2,FALSE)="Mensuelle",(Scenario1!F5*12),(Scenario1!F5))),(Scenario1!C5)))))),NA()) -> 49999.61 | C6: =SUM($B$3,NPV($AT$11,B$4:B6)) -> 199998.44 | D6: =IF(ISNUMBER(Scenario1!J5),IF(Scenario1!$EG$10="English",IF(Scenario1!$EG$8="Protect/Accum",IF(Scenario1!EG$4="Current",(Scenario1!J5),IF(Scenario1!EG$4="Current minus 1%",(Scenario1!K5),IF(Scenario1!EG$4="Custom",(Scenario1!K5),IF(Scenario1!EG$4="Current minus 2%",(Scenario1!L5))))),IF(Scenario1!$EG$8="Accelerator",IF(Scenario1!EG$4="Current",(Scenario1!J5),IF(Scenario1!EG$4="Current minus 1%",(Scenario1!K5),IF(Scenario1!EG$4="Custom",(Scenario1!K5),IF(Scenario1!EG$4="Current minus 2%",(Scenario1!L5))))),IF(Scenario1!EG$4="Sun Term - NA",0,IF(Scenario1!$EG$8="SunSpectrumUL",(IF(Scenario1!EG$4="Primary rate",(Scenario1!M5),IF(Scenario1!EG$4="Secondary rate",(Scenario1!N5),IF(Scenario1!EG$4="Alternate rate",(Scenario1!O5),(Scenario1!C5))))),IF(Scenario1!$EG$8="PermLife",(Scenario1!C5),IF(AND(Scenario1!$EG$8="SunUniversalLife",Scenario1!$EJ$21=1),IF(Scenario1!EG$4="Primary rate",(Scenario1!N5),IF(Scenario1!EG$4="Secondary rate",(Scenario1!O5),IF(Scenario1!EG$4="Alternate rate",(Scenario1!P5)))),IF(Scenario1!EG$4="Primary rate",(Scenario1!M5),IF(Scenario1!EG$4="Secondary rate",(Scenario1!N5),IF(Scenario1!EG$4="Alternate rate",(Scenario1!O5)))))))))),IF(Scenario1!$EG$8="Protect/Accum",IF(Scenario1!EG$4="Taux actuel",(Scenario1!J5),IF(Scenario1!EG$4="Taux actuel moins 1%",(Scenario1!K5),IF(Scenario1!EG$4="Taux personnalisé",(Scenario1!K5),IF(Scenario1!EG$4="Taux actuel moins 2%",(Scenario1!L5))))),IF(Scenario1!$EG$8="Accelerator",IF(Scenario1!EG$4="Taux actuel",(Scenario1!J5),IF(Scenario1!EG$4="Taux actuel moins 1%",(Scenario1!K5),IF(Scenario1!EG$4="Taux personnalisé",(Scenario1!K5),IF(Scenario1!EG$4="Taux actuel moins 2%",(Scenario1!L5))))),IF(Scenario1!EG$4="Temporaire - NA",0,IF(Scenario1!$EG$8="SunSpectrumUL",(IF(Scenario1!EG$4="Taux principal",(Scenario1!M5),IF(Scenario1!EG$4="Taux secondaire",(Scenario1!N5),IF(Scenario1!EG$4="Autre taux",(Scenario1!O5),(Scenario1!C5))))),IF(Scenario1!$EG$8="PermLife",(Scenario1!C5),IF(AND(Scenario1!$EG$8="SunUniversalLife",Scenario1!$EJ$21=1),IF(Scenario1!EG$4="Taux principal",(Scenario1!N5),IF(Scenario1!EG$4="Taux secondaire",(Scenario1!O5),IF(Scenario1!EG$4="Autre taux",(Scenario1!P5),(Scenario1!C5)))),IF(Scenario1!EG$4="Taux principal",(Scenario1!M5),IF(Scenario1!EG$4="Taux secondaire",(Scenario1!N5),IF(Scenario1!EG$4="Autre taux",(Scenario1!O5),(Scenario1!C5))))))))))),NA()) -> 130856 | E6: =IF(ISNUMBER(Scenario1!C5),IF(Scenario1!$EG$10="English",IF(Scenario1!$EG$8="Protect/Accum",IF(Scenario1!EG$4="Current",(Scenario1!O5),IF(Scenario1!EG$4="Current minus 1%",(Scenario1!P5),IF(Scenario1!EG$4="Custom",(Scenario1!P5),IF(Scenario1!EG$4="Current minus 2%",(Scenario1!Q5))))),IF(Scenario1!$EG$8="Accelerator",IF(Scenario1!EG$4="Current",(Scenario1!O5),IF(Scenario1!EG$4="Current minus 1%",(Scenario1!P5),IF(Scenario1!EG$4="Custom",(Scenario1!P5),IF(Scenario1!EG$4="Current minus 2%",(Scenario1!Q5))))),IF(Scenario1!EG$4="Sun Life Evolve Term",HLOOKUP("Total Policy Death Benefit",Scenario1!$A$1:$G$100,Calculations!$A6+1,FALSE),IF(Scenario1!$EG$8="SunSpectrumUL",(IF(Scenario1!EG$4="Primary rate",(Scenario1!Q5),IF(Scenario1!EG$4="Secondary rate",(Scenario1!R5),IF(Scenario1!EG$4="Alternate rate",(Scenario1!S5))))),IF(Scenario1!$EG$8="PermLife",(Scenario1!E5),IF(AND(Scenario1!$EG$8="SunUniversalLife",Scenario1!$EJ$21=1),IF(Scenario1!EG$4="Primary rate",(Scenario1!S5),IF(Scenario1!EG$4="Secondary rate",(Scenario1!T5),IF(Scenario1!EG$4="Alternate rate",(Scenario1!U5)))),IF(Scenario1!EG$4="Primary rate",(Scenario1!R5),IF(Scenario1!EG$4="Secondary rate",(Scenario1!S5),IF(Scenario1!EG$4="Alternate rate",(Scenario1!T5)))))))))),IF(Scenario1!$EG$8="Protect/Accum",IF(Scenario1!EG$4="Taux actuel",(Scenario1!O5),IF(Scenario1!EG$4="Taux actuel moins 1%",(Scenario1!P5),IF(Scenario1!EG$4="Taux personnalisé",(Scenario1!P5),IF(Scenario1!EG$4="Taux actuel moins 2%",(Scenario1!Q5))))),IF(Scenario1!$EG$8="Accelerator",IF(Scenario1!EG$4="Taux actuel",(Scenario1!O5),IF(Scenario1!EG$4="Taux actuel moins 1%",(Scenario1!P5),IF(Scenario1!EG$4="Taux personnalisé",(Scenario1!P5),IF(Scenario1!EG$4="Taux actuel moins 2%",(Scenario1!Q5))))),IF(Scenario1!EG$4="Assurance-vie temporaire Évolution Sun Life",HLOOKUP("Capital-décès total du contrat",Scenario1!$A$1:$G$100,Calculations!$A6+1,FALSE),IF(Scenario1!$EG$8="SunSpectrumUL",(IF(Scenario1!EG$4="Taux principal",(Scenario1!Q5),IF(Scenario1!EG$4="Taux secondaire",(Scenario1!R5),IF(Scenario1!EG$4="Autre taux",(Scenario1!S5))))),IF(Scenario1!$EG$8="PermLife",(Scenario1!E5),IF(AND(Scenario1!$EG$8="SunUniversalLife",Scenario1!$EJ$21=1),IF(Scenario1!EG$4="Taux principal",(Scenario1!S5),IF(Scenario1!EG$4="Taux secondaire",(Scenario1!T5),IF(Scenario1!EG$4="Autre taux",(Scenario1!U5),(Scenario1!E5)))),IF(Scenario1!EG$4="Taux principal",(Scenario1!R5),IF(Scenario1!EG$4="Taux secondaire",(Scenario1!S5),IF(Scenario1!EG$4="Autre taux",(Scenario1!T5),(Scenario1!E5))))))))))),NA()) -> 1341569 | F6: =IF(ISNUMBER(Scenario1!M5),IF(Scenario1!$EG$10="English",IF(Scenario1!$EG$8="Protect/Accum",IF(Scenario1!EG$4="Current",(Scenario1!BO5),IF(Scenario1!EG$4="Current minus 1%",(Scenario1!BP5),IF(Scenario1!EG$4="Custom",(Scenario1!BP5),IF(Scenario1!EG$4="Current minus 2%",(Scenario1!BQ5))))),IF(Scenario1!$EG$8="Accelerator",IF(Scenario1!EG$4="Current",(Scenario1!BC5),IF(Scenario1!EG$4="Current minus 1%",(Scenario1!BD5),IF(Scenario1!EG$4="Custom",(Scenario1!BD5),IF(Scenario1!EG$4="Current minus 2%",(Scenario1!BE5))))),IF(Scenario1!EG$4="Sun Life Evolve Term",HLOOKUP("ACB",Scenario1!$A$1:$S$100,Calculations!$A6+1,FALSE),IF(Scenario1!$EG$8="SunSpectrumUL",(IF(Scenario1!EG$4="Primary rate",(Scenario1!BF5),IF(Scenario1!EG$4="Secondary rate",(Scenario1!BG5),IF(Scenario1!EG$4="Alternate rate",(Scenario1!BH5))))),IF(Scenario1!$EG$8="PermLife",(Scenario1!AD5),IF(Scenario1!$EG$8="SunUniversalLife",IF(Scenario1!EG$4="Primary rate",HLOOKUP("ACB (Primary rate)",Scenario1!$A$1:$EC$100,Calculations!$A6+1,FALSE),IF(Scenario1!EG$4="Secondary rate",HLOOKUP("ACB (Secondary rate)",Scenario1!$A$1:$EC$100,Calculations!$A6+1,FALSE),IF(Scenario1!EG$4="Alternate rate",HLOOKUP("ACB (Alternate rate)",Scenario1!$A$1:$EC$100,Calculations!$A6+1,FALSE)))))))))),IF(Scenario1!$EG$8="Protect/Accum",IF(Scenario1!EG$4="Taux actuel",(Scenario1!BO5),IF(Scenario1!EG$4="Taux actuel moins 1%",(Scenario1!BP5),IF(Scenario1!EG$4="Taux personnalisé",(Scenario1!BP5),IF(Scenario1!EG$4="Taux actuel moins 2%",(Scenario1!BQ5))))),IF(Scenario1!$EG$8="Accelerator",IF(Scenario1!EG$4="Taux actuel",(Scenario1!BC5),IF(Scenario1!EG$4="Taux actuel moins 1%",(Scenario1!BD5),IF(Scenario1!EG$4="Taux personnalisé",(Scenario1!BD5),IF(Scenario1!EG$4="Taux actuel moins 2%",(Scenario1!BE5))))),IF(Scenario1!EG$4="Assurance-vie temporaire Évolution Sun Life",HLOOKUP("CBR",Scenario1!$A$1:$S$100,Calculations!$A6+1,FALSE),IF(Scenario1!$EG$8="PermLife",(Scenario1!AD5),IF(Scenario1!$EG$8="SunSpectrumUL",(IF(Scenario1!EG$4="Taux principal",(Scenario1!BF5),IF(Scenario1!EG$4="Taux secondaire",(Scenario1!BG5),IF(Scenario1!EG$4="Autre taux",(Scenario1!BH5))))),IF(Scenario1!$EG$8="SunUniversalLife",IF(Scenario1!EG$4="Taux principal",HLOOKUP("CBR (taux principal)",Scenario1!$A$1:$EC$100,Calculations!$A6+1,FALSE),IF(Scenario1!EG$4="Taux secondaire",HLOOKUP("CBR (taux secondaire)",Scenario1!$A$1:$EC$100,Calculations!$A6+1,FALSE),IF(Scenario1!EG$4="Autre taux",(Scenario1!BL5),HLOOKUP("CBR (autre taux)",Scenario1!$A$1:$EC$100,Calculations!$A6+1,FALSE))))))))))),NA()) -> 196316 | G6: =E6-F6*IF(Calculations!$AT$35=TRUE,Calculations!$AT$38/100,0) -> 1258527.332 | H6: =IF(ISNUMBER(Scenario2!F5),IF(Scenario2!$EG$10="English",IF(Scenario2!$EG$8="Protect/Accum",IF(Scenario2!EG$4="Current",(Scenario2!F5-Scenario2!AJ5),IF(Scenario2!EG$4="Current minus 1%",(Scenario2!G5-Scenario2!AK5),IF(Scenario2!EG$4="Custom",(Scenario2!G5-Scenario2!AK5),IF(Scenario2!EG$4="Current minus 2%",(Scenario2!H5-Scenario2!AL5))))),IF(Scenario2!$EG$8="Accelerator",IF(Scenario2!EG$4="Current",(Scenario2!F5),IF(Scenario2!EG$4="Current minus 1%",(Scenario2!G5),IF(Scenario2!EG$4="Custom",(Scenario2!G5),IF(Scenario2!EG$4="Current minus 2%",(Scenario2!H5))))),IF(Scenario2!EG$4="Sun Term - NA",IF(Scenario2!EG$6="Monthly",(Scenario2!K5),(Scenario2!G5)),IF(Scenario2!EG$4="Not applicable",IF(Scenario2!$EG$8="PermLife",IF(VLOOKUP("Premium Frequency",Scenario2!$A$150:'Scenario2'!$B$170,2,FALSE)="Monthly",(Scenario2!F5*12),(Scenario2!F5))),(Scenario2!C5))))),IF(Scenario2!$EG$8="Protect/Accum",IF(Scenario2!EG$4="Taux actuel",(Scenario2!F5-Scenario2!AJ5),IF(Scenario2!EG$4="Taux actuel moins 1%",(Scenario2!G5-Scenario2!AK5),IF(Scenario2!EG$4="Taux personnalisé",(Scenario2!G5-Scenario2!AK5),IF(Scenario2!EG$4="Taux actuel moins 2%",(Scenario2!H5-Scenario2!AL5))))),IF(Scenario2!$EG$8="Accelerator",IF(Scenario2!EG$4="Taux actuel",(Scenario2!F5),IF(Scenario2!EG$4="Taux actuel moins 1%",(Scenario2!G5),IF(Scenario2!EG$4="Taux personnalisé",(Scenario2!G5),IF(Scenario2!EG$4="Taux actuel moins 2%",(Scenario2!H5))))),IF(Scenario2!EG$4="Temporaire - NA",IF(Scenario2!EG$6="Monthly",(Scenario2!K5),(Scenario2!G5)),IF(Scenario2!EG$4="Pas applicable",IF(Scenario2!$EG$8="PermLife",IF(VLOOKUP("Périodicité de la prime",Scenario2!$A$150:'Scenario2'!$B$170,2,FALSE)="Mensuelle",(Scenario2!F5*12),(Scenario2!F5))),(Scenario2!C5)))))),NA()) -> 40000 | I6: =SUM($H$3,NPV($AT$11,H$4:H6)) -> 160000 | J6: =IF(ISNUMBER(Scenario2!J5),IF(Scenario2!$EG$10="English",IF(Scenario2!$EG$8="Protect/Accum",IF(Scenario2!EG$4="Current",(Scenario2!J5),IF(Scenario2!EG$4="Current minus 1%",(Scenario2!K5),IF(Scenario2!EG$4="Custom",(Scenario2!K5),IF(Scenario2!EG$4="Current minus 2%",(Scenario2!L5))))),IF(Scenario2!$EG$8="Accelerator",IF(Scenario2!EG$4="Current",(Scenario2!J5),IF(Scenario2!EG$4="Current minus 1%",(Scenario2!K5),IF(Scenario2!EG$4="Custom",(Scenario2!K5),IF(Scenario2!EG$4="Current minus 2%",(Scenario2!L5))))),IF(Scenario2!EG$4="Sun Term - NA",0,IF(Scenario2!$EG$8="SunSpectrumUL",(IF(Scenario2!EG$4="Primary rate",(Scenario2!M5),IF(Scenario2!EG$4="Secondary rate",(Scenario2!N5),IF(Scenario2!EG$4="Alternate rate",(Scenario2!O5),(Scenario2!C5))))),IF(Scenario2!$EG$8="PermLife",(Scenario2!C5),IF(AND(Scenario2!$EG$8="SunUniversalLife",Scenario2!$EJ$21=1),IF(Scenario2!EG$4="Primary rate",(Scenario2!N5),IF(Scenario2!EG$4="Secondary rate",(Scenario2!O5),IF(Scenario2!EG$4="Alternate rate",(Scenario2!P5)))),IF(Scenario2!EG$4="Primary rate",(Scenario2!M5),IF(Scenario2!EG$4="Secondary rate",(Scenario2!N5),IF(Scenario2!EG$4="Alternate rate",(Scenario2!O5)))))))))),IF(Scenario2!$EG$8="Protect/Accum",IF(Scenario2!EG$4="Taux actuel",(Scenario2!J5),IF(Scenario2!EG$4="Taux actuel moins 1%",(Scenario2!K5),IF(Scenario2!EG$4="Taux personnalisé",(Scenario2!K5),IF(Scenario2!EG$4="Taux actuel moins 2%",(Scenario2!L5))))),IF(Scenario2!$EG$8="Accelerator",IF(Scenario2!EG$4="Taux actuel",(Scenario2!J5),IF(Scenario2!EG$4="Taux actuel moins 1%",(Scenario2!K5),IF(Scenario2!EG$4="Taux personnalisé",(Scenario2!K5),IF(Scenario2!EG$4="Taux actuel moins 2%",(Scenario2!L5))))),IF(Scenario2!EG$4="Temporaire - NA",0,IF(Scenario2!$EG$8="SunSpectrumUL",(IF(Scenario2!EG$4="Taux principal",(Scenario2!M5),IF(Scenario2!EG$4="Taux secondaire",(Scenario2!N5),IF(Scenario2!EG$4="Autre taux",(Scenario2!O5),(Scenario2!C5))))),IF(Scenario2!$EG$8="PermLife",(Scenario2!C5),IF(AND(Scenario2!$EG$8="SunUniversalLife",Scenario2!$EJ$21=1),IF(Scenario2!EG$4="Taux principal",(Scenario2!N5),IF(Scenario2!EG$4="Taux secondaire",(Scenario2!O5),IF(Scenario2!EG$4="Autre taux",(Scenario2!P5),(Scenario2!C5)))),IF(Scenario2!EG$4="Taux principal",(Scenario2!M5),IF(Scenario2!EG$4="Taux secondaire",(Scenario2!N5),IF(Scenario2!EG$4="Autre taux",(Scenario2!O5),(Scenario2!C5))))))))))),NA()) -> 101549 | K6: =IF(ISNUMBER(Scenario2!C5),IF(Scenario2!$EG$10="English",IF(Scenario2!$EG$8="Protect/Accum",IF(Scenario2!EG$4="Current",(Scenario2!O5),IF(Scenario2!EG$4="Current minus 1%",(Scenario2!P5),IF(Scenario2!EG$4="Custom",(Scenario2!P5),IF(Scenario2!EG$4="Current minus 2%",(Scenario2!Q5))))),IF(Scenario2!$EG$8="Accelerator",IF(Scenario2!EG$4="Current",(Scenario2!O5),IF(Scenario2!EG$4="Current minus 1%",(Scenario2!P5),IF(Scenario2!EG$4="Custom",(Scenario2!P5),IF(Scenario2!EG$4="Current minus 2%",(Scenario2!Q5))))),IF(Scenario2!EG$4="Sun Term - NA",HLOOKUP("Total Policy Death Benefit",Scenario2!$A$1:$G$100,Calculations!$A6+1,FALSE),IF(Scenario2!$EG$8="SunSpectrumUL",(IF(Scenario2!EG$4="Primary rate",(Scenario2!Q5),IF(Scenario2!EG$4="Secondary rate",(Scenario2!R5),IF(Scenario2!EG$4="Alternate rate",(Scenario2!S5))))),IF(Scenario2!$EG$8="PermLife",(Scenario2!E5),IF(AND(Scenario2!$EG$8="SunUniversalLife",Scenario2!$EJ$21=1),IF(Scenario2!EG$4="Primary rate",(Scenario2!S5),IF(Scenario2!EG$4="Secondary rate",(Scenario2!T5),IF(Scenario2!EG$4="Alternate rate",(Scenario2!U5)))),IF(Scenario2!EG$4="Primary rate",(Scenario2!R5),IF(Scenario2!EG$4="Secondary rate",(Scenario2!S5),IF(Scenario2!EG$4="Alternate rate",(Scenario2!T5)))))))))),IF(Scenario2!$EG$8="Protect/Accum",IF(Scenario2!EG$4="Taux actuel",(Scenario2!O5),IF(Scenario2!EG$4="Taux actuel moins 1%",(Scenario2!P5),IF(Scenario2!EG$4="Taux personnalisé",(Scenario2!P5),IF(Scenario2!EG$4="Taux actuel moins 2%",(Scenario2!Q5))))),IF(Scenario2!$EG$8="Accelerator",IF(Scenario2!EG$4="Taux actuel",(Scenario2!O5),IF(Scenario2!EG$4="Taux actuel moins 1%",(Scenario2!P5),IF(Scenario2!EG$4="Taux personnalisé",(Scenario2!P5),IF(Scenario2!EG$4="Taux actuel moins 2%",(Scenario2!Q5))))),IF(Scenario2!EG$4="Temporaire - NA",HLOOKUP("Capital-décès total du contrat",Scenario2!$A$1:$G$100,Calculations!$A6+1,FALSE),IF(Scenario2!$EG$8="SunSpectrumUL",(IF(Scenario2!EG$4="Taux principal",(Scenario2!Q5),IF(Scenario2!EG$4="Taux secondaire",(Scenario2!R5),IF(Scenario2!EG$4="Autre taux",(Scenario2!S5))))),IF(Scenario2!$EG$8="PermLife",(Scenario2!E5),IF(AND(Scenario2!$EG$8="SunUniversalLife",Scenario2!$EJ$21=1),IF(Scenario2!EG$4="Taux principal",(Scenario2!S5),IF(Scenario2!EG$4="Taux secondaire",(Scenario2!T5),IF(Scenario2!EG$4="Autre taux",(Scenario2!U5),(Scenario2!E5)))),IF(Scenario2!EG$4="Taux principal",(Scenario2!R5),IF(Scenario2!EG$4="Taux secondaire",(Scenario2!S5),IF(Scenario2!EG$4="Autre taux",(Scenario2!T5),(Scenario2!E5))))))))))),NA()) -> 1383154 | L6: =IF(ISNUMBER(Scenario2!M5),IF(Scenario2!$EG$10="English",IF(Scenario2!$EG$8="Protect/Accum",IF(Scenario2!EG$4="Current",(Scenario2!BO5),IF(Scenario2!EG$4="Current minus 1%",(Scenario2!BP5),IF(Scenario2!EG$4="Custom",(Scenario2!BP5),IF(Scenario2!EG$4="Current minus 2%",(Scenario2!BQ5))))),IF(Scenario2!$EG$8="Accelerator",IF(Scenario2!EG$4="Current",(Scenario2!BC5),IF(Scenario2!EG$4="Current minus 1%",(Scenario2!BD5),IF(Scenario2!EG$4="Custom",(Scenario2!BD5),IF(Scenario2!EG$4="Current minus 2%",(Scenario2!BE5))))),IF(Scenario2!EG$4="Sun Term - NA",HLOOKUP("ACB",Scenario2!$A$1:$S$100,Calculations!$A6+1,FALSE),IF(Scenario2!$EG$8="SunSpectrumUL",(IF(Scenario2!EG$4="Primary rate",(Scenario2!BF5),IF(Scenario2!EG$4="Secondary rate",(Scenario2!BG5),IF(Scenario2!EG$4="Alternate rate",(Scenario2!BH5))))),IF(Scenario2!$EG$8="PermLife",(Scenario2!AD5),IF(Scenario2!$EG$8="SunUniversalLife",IF(Scenario2!EG$4="Primary rate",HLOOKUP("ACB (Primary rate)",Scenario2!$A$1:$EC$100,Calculations!$A6+1,FALSE),IF(Scenario2!EG$4="Secondary rate",HLOOKUP("ACB (Secondary rate)",Scenario2!$A$1:$EC$100,Calculations!$A6+1,FALSE),IF(Scenario2!EG$4="Alternate rate",HLOOKUP("ACB (Alternate rate)",Scenario2!$A$1:$EC$100,Calculations!$A6+1,FALSE)))))))))),IF(Scenario2!$EG$8="Protect/Accum",IF(Scenario2!EG$4="Taux actuel",(Scenario2!BO5),IF(Scenario2!EG$4="Taux actuel moins 1%",(Scenario2!BP5),IF(Scenario2!EG$4="Taux personnalisé",(Scenario2!BP5),IF(Scenario2!EG$4="Taux actuel moins 2%",(Scenario2!BQ5))))),IF(Scenario2!$EG$8="Accelerator",IF(Scenario2!EG$4="Taux actuel",(Scenario2!BC5),IF(Scenario2!EG$4="Taux actuel moins 1%",(Scenario2!BD5),IF(Scenario2!EG$4="Taux personnalisé",(Scenario2!BD5),IF(Scenario2!EG$4="Taux actuel moins 2%",(Scenario2!BE5))))),IF(Scenario2!EG$4="Temporaire - NA",HLOOKUP("CBR",Scenario2!$A$1:$S$100,Calculations!$A6+1,FALSE),IF(Scenario2!$EG$8="PermLife",(Scenario2!AD5),IF(Scenario2!$EG$8="SunSpectrumUL",(IF(Scenario2!EG$4="Taux principal",(Scenario2!BF5),IF(Scenario2!EG$4="Taux secondaire",(Scenario2!BG5),IF(Scenario2!EG$4="Autre taux",(Scenario2!BH5))))),IF(Scenario2!$EG$8="SunUniversalLife",IF(Scenario2!EG$4="Taux principal",HLOOKUP("CBR (taux principal)",Scenario2!$A$1:$EC$100,Calculations!$A6+1,FALSE),IF(Scenario2!EG$4="Taux secondaire",HLOOKUP("CBR (taux secondaire)",Scenario2!$A$1:$EC$100,Calculations!$A6+1,FALSE),IF(Scenario2!EG$4="Autre taux",(Scenario2!BL5),HLOOKUP("CBR (autre taux)",Scenario2!$A$1:$EC$100,Calculations!$A6+1,FALSE))))))))))),NA()) -> 155832 | M6: =K6-L6*IF(Calculations!$AT$35=TRUE,Calculations!$AT$38/100,0) -> 1317237.064 | O6: =$AY$51*Cash!AD14+$AY$52*'Fixed Income'!AD14+$AY$53*Equities!AD14+$AY$54*'Real Estate'!AD14+$AY$55*'Alternative Investment'!AD14 -> 3393197.496 | P6: 193932.15 | Q6: 3587129.646 | R6: =(Cash!AD14+'Fixed Income'!AD14+Equities!AD14+'Real Estate'!AD14+'Alternative Investment'!AD14) -> 5375252.518 | S6: =(Cash!AW14+'Fixed Income'!AW14+Equities!AW14+'Real Estate'!AW14+'Alternative Investment'!AW14)+IFERROR(E6-F6,0)+IFERROR(K6-L6,0) -> 2629045.433 | T6: =Cash!AZ14 -> 820948.91 | U6: ='Fixed Income'!AZ14 -> 442103.1749 | V6: =Equities!AZ14 -> 756835.4805 | W6: ='Real Estate'!AZ14 -> 730584.9533 | X6: ='Alternative Investment'!AZ14 -> 555952.895 | Y6: 3306425.414 | Z6: 2575764.396 | AA6: 5882189.81 | AB6: 0 | AC6: =IRR(($AB$3:$AB6,AA6),0.1) -> 0.04145919219 | AE6: =('Cash (2)'!AD14+'Fixed Income (2)'!AD14+'Equities (2)'!AD14+'Real Estate (2)'!AD14+'Alternative Investment (2)'!AD14) -> 5766094.493 | AF6: =($AY$51*'Cash (2)'!AD14+$AY$52*'Fixed Income (2)'!AD14+$AY$53*'Equities (2)'!AD14+$AY$54*'Real Estate (2)'!AD14+$AY$55*'Alternative Investment (2)'!AD14) -> 3686151.258 | AG6: =('Cash (2)'!AW14+'Fixed Income (2)'!AW14+'Equities (2)'!AW14+'Real Estate (2)'!AW14+'Alternative Investment (2)'!AW14) -> 263934.843 | AH6: ='Cash (2)'!AZ14 -> 820948.91 | AI6: ='Fixed Income (2)'!AZ14 -> 586720.9316 | AJ6: ='Equities (2)'!AZ14 -> 845680.2847 | AK6: ='Real Estate (2)'!AZ14 -> 730584.9533 | AL6: ='Alternative Investment (2)'!AZ14 -> 555952.895 | AM6: 3539887.975 | AN6: 0 | AO6: =IRR(($AN$3:$AN6,AM6),0.1) -> -0.08271376066 | AP6: 49999.61 | AQ6: 8000 | AR6: 32000 | AS6: FileName 3 | AU6: Filepath3 | AY6: =MAX(IF(ISNA(BC2:BC102),0,BC2:BC102)) -> 32000 | AZ6: =IF(OR(AZ4="No",AZ5="No"),AV46/100-MAX(Scenario1!EK20,Scenario2!EK20),0) -> 2e-05 | BA6: CSV | BB6: 57999.61 | BC6: 32000 | BD6: 89999.61 | BE6: 1300000 | BF6: 726001.17 | BG6: 1004000 | BH6: 950000 | BI6: 750000 | BJ6: 0 | BK6: 57999.61 | BL6: 0 | BM6: 0 | BN6: 0 | BO6: 0 | BP6: 0 | BQ6: 32000 | BR6: 0 | BS6: 0 | BT6: 0 | BU6: 57999.61 | BV6: 32000 | BW6: 0 | BX6: 0 | BY6: 1300000 | BZ6: 668001.56 | CA6: 972000 | CB6: 950000 | CC6: 750000 | CE6: =Scenario1!EP5 -> 0 | CF6: =Scenario2!EP5 -> 0 | CG6: 0 | CH6: 1300000 | CI6: 900000 | CJ6: 1100000 | CK6: 950000 | CL6: 750000 | CM6: 0 | CN6: 0 | CO6: 0 | CP6: 0 | CQ6: 0 | CR6: 0 | CS6: 0 | CT6: 0 | CU6: 0 | CV6: 0 | CW6: 0 | CX6: 0 | CY6: 0 | CZ6: 0 | DA6: 0 | DB6: 1300000 | DC6: 900000 | DD6: 1100000 | DE6: 950000 | DF6: 750000 | DH6: 4 | DI6: =(Cash!AB14+'Fixed Income'!AB14+Equities!AB14+'Real Estate'!AB14+'Alternative Investment'!AB14) -> 75147.452 | DJ6: 273264.2347 | DK6: =(Cash!AT14+'Fixed Income'!AT14+Equities!AT14+'Real Estate'!AT14+'Alternative Investment'!AT14) -> 70331.71002 | DL6: =(Cash!AY14+'Fixed Income'!AY14+Equities!AY14+'Real Estate'!AY14+'Alternative Investment'!AY14) -> 2235928.868 | DM6: 2306260.578 | DO6: =('Cash (2)'!AB14+'Fixed Income (2)'!AB14+'Equities (2)'!AB14+'Real Estate (2)'!AB14+'Alternative Investment (2)'!AB14) -> 80518.42825 | DP6: 286309.1508 | DQ6: =('Cash (2)'!AT14+'Fixed Income (2)'!AT14+'Equities (2)'!AT14+'Real Estate (2)'!AT14+'Alternative Investment (2)'!AT14) -> 73721.239 | DR6: =('Cash (2)'!AY14+'Fixed Income (2)'!AY14+'Equities (2)'!AY14+'Real Estate (2)'!AY14+'Alternative Investment (2)'!AY14) -> 2401608.622 | DS6: 2475329.861
A7: =IF(ISNUMBER(B7),(A6+1),IF(ISNUMBER(H7),(A6+1),IF(ISNUMBER(N7),(A6+1),IF(ISNUMBER(AD7),(A6+1),IF(ISNUMBER(#REF!),(A6+1),IF(ISNUMBER(#REF!),(A6+1),NA())))))) -> 5 | B7: =IF(ISNUMBER(Scenario1!F6),IF(Scenario1!$EG$10="English",IF(Scenario1!$EG$8="Protect/Accum",IF(Scenario1!EG$4="Current",(Scenario1!F6-Scenario1!AJ6),IF(Scenario1!EG$4="Current minus 1%",(Scenario1!G6-Scenario1!AK6),IF(Scenario1!EG$4="Custom",(Scenario1!G6-Scenario1!AK6),IF(Scenario1!EG$4="Current minus 2%",(Scenario1!H6-Scenario1!AL6))))),IF(Scenario1!$EG$8="Accelerator",IF(Scenario1!EG$4="Current",(Scenario1!F6),IF(Scenario1!EG$4="Current minus 1%",(Scenario1!G6),IF(Scenario1!EG$4="Custom",(Scenario1!G6),IF(Scenario1!EG$4="Current minus 2%",(Scenario1!H6))))),IF(Scenario1!EG$4="Sun Life Evolve Term",IF(Scenario1!EG$6="Monthly",(Scenario1!K6),(Scenario1!G6)),IF(Scenario1!EG$4="Not applicable",IF(Scenario1!$EG$8="PermLife",IF(VLOOKUP("Premium Frequency",Scenario1!$A$150:'Scenario1'!$B$170,2,FALSE)="Monthly",(Scenario1!F6*12),(Scenario1!F6))),(Scenario1!C6))))),IF(Scenario1!$EG$8="Protect/Accum",IF(Scenario1!EG$4="Taux actuel",(Scenario1!F6-Scenario1!AJ6),IF(Scenario1!EG$4="Taux actuel moins 1%",(Scenario1!G6-Scenario1!AK6),IF(Scenario1!EG$4="Taux personnalisé",(Scenario1!G6-Scenario1!AK6),IF(Scenario1!EG$4="Taux actuel moins 2%",(Scenario1!H6-Scenario1!AL6))))),IF(Scenario1!$EG$8="Accelerator",IF(Scenario1!EG$4="Taux actuel",(Scenario1!F6),IF(Scenario1!EG$4="Taux actuel moins 1%",(Scenario1!G6),IF(Scenario1!EG$4="Taux personnalisé",(Scenario1!G6),IF(Scenario1!EG$4="Taux actuel moins 2%",(Scenario1!H6))))),IF(Scenario1!EG$4="Assurance-vie temporaire Évolution Sun Life",IF(Scenario1!EG$6="Monthly",(Scenario1!K6),(Scenario1!G6)),IF(Scenario1!EG$4="Pas applicable",IF(Scenario1!$EG$8="PermLife",IF(VLOOKUP("Périodicité de la prime",Scenario1!$A$150:'Scenario1'!$B$170,2,FALSE)="Mensuelle",(Scenario1!F6*12),(Scenario1!F6))),(Scenario1!C6)))))),NA()) -> 49999.61 | C7: =SUM($B$3,NPV($AT$11,B$4:B7)) -> 249998.05 | D7: =IF(ISNUMBER(Scenario1!J6),IF(Scenario1!$EG$10="English",IF(Scenario1!$EG$8="Protect/Accum",IF(Scenario1!EG$4="Current",(Scenario1!J6),IF(Scenario1!EG$4="Current minus 1%",(Scenario1!K6),IF(Scenario1!EG$4="Custom",(Scenario1!K6),IF(Scenario1!EG$4="Current minus 2%",(Scenario1!L6))))),IF(Scenario1!$EG$8="Accelerator",IF(Scenario1!EG$4="Current",(Scenario1!J6),IF(Scenario1!EG$4="Current minus 1%",(Scenario1!K6),IF(Scenario1!EG$4="Custom",(Scenario1!K6),IF(Scenario1!EG$4="Current minus 2%",(Scenario1!L6))))),IF(Scenario1!EG$4="Sun Term - NA",0,IF(Scenario1!$EG$8="SunSpectrumUL",(IF(Scenario1!EG$4="Primary rate",(Scenario1!M6),IF(Scenario1!EG$4="Secondary rate",(Scenario1!N6),IF(Scenario1!EG$4="Alternate rate",(Scenario1!O6),(Scenario1!C6))))),IF(Scenario1!$EG$8="PermLife",(Scenario1!C6),IF(AND(Scenario1!$EG$8="SunUniversalLife",Scenario1!$EJ$21=1),IF(Scenario1!EG$4="Primary rate",(Scenario1!N6),IF(Scenario1!EG$4="Secondary rate",(Scenario1!O6),IF(Scenario1!EG$4="Alternate rate",(Scenario1!P6)))),IF(Scenario1!EG$4="Primary rate",(Scenario1!M6),IF(Scenario1!EG$4="Secondary rate",(Scenario1!N6),IF(Scenario1!EG$4="Alternate rate",(Scenario1!O6)))))))))),IF(Scenario1!$EG$8="Protect/Accum",IF(Scenario1!EG$4="Taux actuel",(Scenario1!J6),IF(Scenario1!EG$4="Taux actuel moins 1%",(Scenario1!K6),IF(Scenario1!EG$4="Taux personnalisé",(Scenario1!K6),IF(Scenario1!EG$4="Taux actuel moins 2%",(Scenario1!L6))))),IF(Scenario1!$EG$8="Accelerator",IF(Scenario1!EG$4="Taux actuel",(Scenario1!J6),IF(Scenario1!EG$4="Taux actuel moins 1%",(Scenario1!K6),IF(Scenario1!EG$4="Taux personnalisé",(Scenario1!K6),IF(Scenario1!EG$4="Taux actuel moins 2%",(Scenario1!L6))))),IF(Scenario1!EG$4="Temporaire - NA",0,IF(Scenario1!$EG$8="SunSpectrumUL",(IF(Scenario1!EG$4="Taux principal",(Scenario1!M6),IF(Scenario1!EG$4="Taux secondaire",(Scenario1!N6),IF(Scenario1!EG$4="Autre taux",(Scenario1!O6),(Scenario1!C6))))),IF(Scenario1!$EG$8="PermLife",(Scenario1!C6),IF(AND(Scenario1!$EG$8="SunUniversalLife",Scenario1!$EJ$21=1),IF(Scenario1!EG$4="Taux principal",(Scenario1!N6),IF(Scenario1!EG$4="Taux secondaire",(Scenario1!O6),IF(Scenario1!EG$4="Autre taux",(Scenario1!P6),(Scenario1!C6)))),IF(Scenario1!EG$4="Taux principal",(Scenario1!M6),IF(Scenario1!EG$4="Taux secondaire",(Scenario1!N6),IF(Scenario1!EG$4="Autre taux",(Scenario1!O6),(Scenario1!C6))))))))))),NA()) -> 172779 | E7: =IF(ISNUMBER(Scenario1!C6),IF(Scenario1!$EG$10="English",IF(Scenario1!$EG$8="Protect/Accum",IF(Scenario1!EG$4="Current",(Scenario1!O6),IF(Scenario1!EG$4="Current minus 1%",(Scenario1!P6),IF(Scenario1!EG$4="Custom",(Scenario1!P6),IF(Scenario1!EG$4="Current minus 2%",(Scenario1!Q6))))),IF(Scenario1!$EG$8="Accelerator",IF(Scenario1!EG$4="Current",(Scenario1!O6),IF(Scenario1!EG$4="Current minus 1%",(Scenario1!P6),IF(Scenario1!EG$4="Custom",(Scenario1!P6),IF(Scenario1!EG$4="Current minus 2%",(Scenario1!Q6))))),IF(Scenario1!EG$4="Sun Life Evolve Term",HLOOKUP("Total Policy Death Benefit",Scenario1!$A$1:$G$100,Calculations!$A7+1,FALSE),IF(Scenario1!$EG$8="SunSpectrumUL",(IF(Scenario1!EG$4="Primary rate",(Scenario1!Q6),IF(Scenario1!EG$4="Secondary rate",(Scenario1!R6),IF(Scenario1!EG$4="Alternate rate",(Scenario1!S6))))),IF(Scenario1!$EG$8="PermLife",(Scenario1!E6),IF(AND(Scenario1!$EG$8="SunUniversalLife",Scenario1!$EJ$21=1),IF(Scenario1!EG$4="Primary rate",(Scenario1!S6),IF(Scenario1!EG$4="Secondary rate",(Scenario1!T6),IF(Scenario1!EG$4="Alternate rate",(Scenario1!U6)))),IF(Scenario1!EG$4="Primary rate",(Scenario1!R6),IF(Scenario1!EG$4="Secondary rate",(Scenario1!S6),IF(Scenario1!EG$4="Alternate rate",(Scenario1!T6)))))))))),IF(Scenario1!$EG$8="Protect/Accum",IF(Scenario1!EG$4="Taux actuel",(Scenario1!O6),IF(Scenario1!EG$4="Taux actuel moins 1%",(Scenario1!P6),IF(Scenario1!EG$4="Taux personnalisé",(Scenario1!P6),IF(Scenario1!EG$4="Taux actuel moins 2%",(Scenario1!Q6))))),IF(Scenario1!$EG$8="Accelerator",IF(Scenario1!EG$4="Taux actuel",(Scenario1!O6),IF(Scenario1!EG$4="Taux actuel moins 1%",(Scenario1!P6),IF(Scenario1!EG$4="Taux personnalisé",(Scenario1!P6),IF(Scenario1!EG$4="Taux actuel moins 2%",(Scenario1!Q6))))),IF(Scenario1!EG$4="Assurance-vie temporaire Évolution Sun Life",HLOOKUP("Capital-décès total du contrat",Scenario1!$A$1:$G$100,Calculations!$A7+1,FALSE),IF(Scenario1!$EG$8="SunSpectrumUL",(IF(Scenario1!EG$4="Taux principal",(Scenario1!Q6),IF(Scenario1!EG$4="Taux secondaire",(Scenario1!R6),IF(Scenario1!EG$4="Autre taux",(Scenario1!S6))))),IF(Scenario1!$EG$8="PermLife",(Scenario1!E6),IF(AND(Scenario1!$EG$8="SunUniversalLife",Scenario1!$EJ$21=1),IF(Scenario1!EG$4="Taux principal",(Scenario1!S6),IF(Scenario1!EG$4="Taux secondaire",(Scenario1!T6),IF(Scenario1!EG$4="Autre taux",(Scenario1!U6),(Scenario1!E6)))),IF(Scenario1!EG$4="Taux principal",(Scenario1!R6),IF(Scenario1!EG$4="Taux secondaire",(Scenario1!S6),IF(Scenario1!EG$4="Autre taux",(Scenario1!T6),(Scenario1!E6))))))))))),NA()) -> 1441575 | F7: =IF(ISNUMBER(Scenario1!M6),IF(Scenario1!$EG$10="English",IF(Scenario1!$EG$8="Protect/Accum",IF(Scenario1!EG$4="Current",(Scenario1!BO6),IF(Scenario1!EG$4="Current minus 1%",(Scenario1!BP6),IF(Scenario1!EG$4="Custom",(Scenario1!BP6),IF(Scenario1!EG$4="Current minus 2%",(Scenario1!BQ6))))),IF(Scenario1!$EG$8="Accelerator",IF(Scenario1!EG$4="Current",(Scenario1!BC6),IF(Scenario1!EG$4="Current minus 1%",(Scenario1!BD6),IF(Scenario1!EG$4="Custom",(Scenario1!BD6),IF(Scenario1!EG$4="Current minus 2%",(Scenario1!BE6))))),IF(Scenario1!EG$4="Sun Life Evolve Term",HLOOKUP("ACB",Scenario1!$A$1:$S$100,Calculations!$A7+1,FALSE),IF(Scenario1!$EG$8="SunSpectrumUL",(IF(Scenario1!EG$4="Primary rate",(Scenario1!BF6),IF(Scenario1!EG$4="Secondary rate",(Scenario1!BG6),IF(Scenario1!EG$4="Alternate rate",(Scenario1!BH6))))),IF(Scenario1!$EG$8="PermLife",(Scenario1!AD6),IF(Scenario1!$EG$8="SunUniversalLife",IF(Scenario1!EG$4="Primary rate",HLOOKUP("ACB (Primary rate)",Scenario1!$A$1:$EC$100,Calculations!$A7+1,FALSE),IF(Scenario1!EG$4="Secondary rate",HLOOKUP("ACB (Secondary rate)",Scenario1!$A$1:$EC$100,Calculations!$A7+1,FALSE),IF(Scenario1!EG$4="Alternate rate",HLOOKUP("ACB (Alternate rate)",Scenario1!$A$1:$EC$100,Calculations!$A7+1,FALSE)))))))))),IF(Scenario1!$EG$8="Protect/Accum",IF(Scenario1!EG$4="Taux actuel",(Scenario1!BO6),IF(Scenario1!EG$4="Taux actuel moins 1%",(Scenario1!BP6),IF(Scenario1!EG$4="Taux personnalisé",(Scenario1!BP6),IF(Scenario1!EG$4="Taux actuel moins 2%",(Scenario1!BQ6))))),IF(Scenario1!$EG$8="Accelerator",IF(Scenario1!EG$4="Taux actuel",(Scenario1!BC6),IF(Scenario1!EG$4="Taux actuel moins 1%",(Scenario1!BD6),IF(Scenario1!EG$4="Taux personnalisé",(Scenario1!BD6),IF(Scenario1!EG$4="Taux actuel moins 2%",(Scenario1!BE6))))),IF(Scenario1!EG$4="Assurance-vie temporaire Évolution Sun Life",HLOOKUP("CBR",Scenario1!$A$1:$S$100,Calculations!$A7+1,FALSE),IF(Scenario1!$EG$8="PermLife",(Scenario1!AD6),IF(Scenario1!$EG$8="SunSpectrumUL",(IF(Scenario1!EG$4="Taux principal",(Scenario1!BF6),IF(Scenario1!EG$4="Taux secondaire",(Scenario1!BG6),IF(Scenario1!EG$4="Autre taux",(Scenario1!BH6))))),IF(Scenario1!$EG$8="SunUniversalLife",IF(Scenario1!EG$4="Taux principal",HLOOKUP("CBR (taux principal)",Scenario1!$A$1:$EC$100,Calculations!$A7+1,FALSE),IF(Scenario1!EG$4="Taux secondaire",HLOOKUP("CBR (taux secondaire)",Scenario1!$A$1:$EC$100,Calculations!$A7+1,FALSE),IF(Scenario1!EG$4="Autre taux",(Scenario1!BL6),HLOOKUP("CBR (autre taux)",Scenario1!$A$1:$EC$100,Calculations!$A7+1,FALSE))))))))))),NA()) -> 244716 | G7: =E7-F7*IF(Calculations!$AT$35=TRUE,Calculations!$AT$38/100,0) -> 1338060.132 | H7: =IF(ISNUMBER(Scenario2!F6),IF(Scenario2!$EG$10="English",IF(Scenario2!$EG$8="Protect/Accum",IF(Scenario2!EG$4="Current",(Scenario2!F6-Scenario2!AJ6),IF(Scenario2!EG$4="Current minus 1%",(Scenario2!G6-Scenario2!AK6),IF(Scenario2!EG$4="Custom",(Scenario2!G6-Scenario2!AK6),IF(Scenario2!EG$4="Current minus 2%",(Scenario2!H6-Scenario2!AL6))))),IF(Scenario2!$EG$8="Accelerator",IF(Scenario2!EG$4="Current",(Scenario2!F6),IF(Scenario2!EG$4="Current minus 1%",(Scenario2!G6),IF(Scenario2!EG$4="Custom",(Scenario2!G6),IF(Scenario2!EG$4="Current minus 2%",(Scenario2!H6))))),IF(Scenario2!EG$4="Sun Term - NA",IF(Scenario2!EG$6="Monthly",(Scenario2!K6),(Scenario2!G6)),IF(Scenario2!EG$4="Not applicable",IF(Scenario2!$EG$8="PermLife",IF(VLOOKUP("Premium Frequency",Scenario2!$A$150:'Scenario2'!$B$170,2,FALSE)="Monthly",(Scenario2!F6*12),(Scenario2!F6))),(Scenario2!C6))))),IF(Scenario2!$EG$8="Protect/Accum",IF(Scenario2!EG$4="Taux actuel",(Scenario2!F6-Scenario2!AJ6),IF(Scenario2!EG$4="Taux actuel moins 1%",(Scenario2!G6-Scenario2!AK6),IF(Scenario2!EG$4="Taux personnalisé",(Scenario2!G6-Scenario2!AK6),IF(Scenario2!EG$4="Taux actuel moins 2%",(Scenario2!H6-Scenario2!AL6))))),IF(Scenario2!$EG$8="Accelerator",IF(Scenario2!EG$4="Taux actuel",(Scenario2!F6),IF(Scenario2!EG$4="Taux actuel moins 1%",(Scenario2!G6),IF(Scenario2!EG$4="Taux personnalisé",(Scenario2!G6),IF(Scenario2!EG$4="Taux actuel moins 2%",(Scenario2!H6))))),IF(Scenario2!EG$4="Temporaire - NA",IF(Scenario2!EG$6="Monthly",(Scenario2!K6),(Scenario2!G6)),IF(Scenario2!EG$4="Pas applicable",IF(Scenario2!$EG$8="PermLife",IF(VLOOKUP("Périodicité de la prime",Scenario2!$A$150:'Scenario2'!$B$170,2,FALSE)="Mensuelle",(Scenario2!F6*12),(Scenario2!F6))),(Scenario2!C6)))))),NA()) -> 40000 | I7: =SUM($H$3,NPV($AT$11,H$4:H7)) -> 200000 | J7: =IF(ISNUMBER(Scenario2!J6),IF(Scenario2!$EG$10="English",IF(Scenario2!$EG$8="Protect/Accum",IF(Scenario2!EG$4="Current",(Scenario2!J6),IF(Scenario2!EG$4="Current minus 1%",(Scenario2!K6),IF(Scenario2!EG$4="Custom",(Scenario2!K6),IF(Scenario2!EG$4="Current minus 2%",(Scenario2!L6))))),IF(Scenario2!$EG$8="Accelerator",IF(Scenario2!EG$4="Current",(Scenario2!J6),IF(Scenario2!EG$4="Current minus 1%",(Scenario2!K6),IF(Scenario2!EG$4="Custom",(Scenario2!K6),IF(Scenario2!EG$4="Current minus 2%",(Scenario2!L6))))),IF(Scenario2!EG$4="Sun Term - NA",0,IF(Scenario2!$EG$8="SunSpectrumUL",(IF(Scenario2!EG$4="Primary rate",(Scenario2!M6),IF(Scenario2!EG$4="Secondary rate",(Scenario2!N6),IF(Scenario2!EG$4="Alternate rate",(Scenario2!O6),(Scenario2!C6))))),IF(Scenario2!$EG$8="PermLife",(Scenario2!C6),IF(AND(Scenario2!$EG$8="SunUniversalLife",Scenario2!$EJ$21=1),IF(Scenario2!EG$4="Primary rate",(Scenario2!N6),IF(Scenario2!EG$4="Secondary rate",(Scenario2!O6),IF(Scenario2!EG$4="Alternate rate",(Scenario2!P6)))),IF(Scenario2!EG$4="Primary rate",(Scenario2!M6),IF(Scenario2!EG$4="Secondary rate",(Scenario2!N6),IF(Scenario2!EG$4="Alternate rate",(Scenario2!O6)))))))))),IF(Scenario2!$EG$8="Protect/Accum",IF(Scenario2!EG$4="Taux actuel",(Scenario2!J6),IF(Scenario2!EG$4="Taux actuel moins 1%",(Scenario2!K6),IF(Scenario2!EG$4="Taux personnalisé",(Scenario2!K6),IF(Scenario2!EG$4="Taux actuel moins 2%",(Scenario2!L6))))),IF(Scenario2!$EG$8="Accelerator",IF(Scenario2!EG$4="Taux actuel",(Scenario2!J6),IF(Scenario2!EG$4="Taux actuel moins 1%",(Scenario2!K6),IF(Scenario2!EG$4="Taux personnalisé",(Scenario2!K6),IF(Scenario2!EG$4="Taux actuel moins 2%",(Scenario2!L6))))),IF(Scenario2!EG$4="Temporaire - NA",0,IF(Scenario2!$EG$8="SunSpectrumUL",(IF(Scenario2!EG$4="Taux principal",(Scenario2!M6),IF(Scenario2!EG$4="Taux secondaire",(Scenario2!N6),IF(Scenario2!EG$4="Autre taux",(Scenario2!O6),(Scenario2!C6))))),IF(Scenario2!$EG$8="PermLife",(Scenario2!C6),IF(AND(Scenario2!$EG$8="SunUniversalLife",Scenario2!$EJ$21=1),IF(Scenario2!EG$4="Taux principal",(Scenario2!N6),IF(Scenario2!EG$4="Taux secondaire",(Scenario2!O6),IF(Scenario2!EG$4="Autre taux",(Scenario2!P6),(Scenario2!C6)))),IF(Scenario2!EG$4="Taux principal",(Scenario2!M6),IF(Scenario2!EG$4="Taux secondaire",(Scenario2!N6),IF(Scenario2!EG$4="Autre taux",(Scenario2!O6),(Scenario2!C6))))))))))),NA()) -> 136392 | K7: =IF(ISNUMBER(Scenario2!C6),IF(Scenario2!$EG$10="English",IF(Scenario2!$EG$8="Protect/Accum",IF(Scenario2!EG$4="Current",(Scenario2!O6),IF(Scenario2!EG$4="Current minus 1%",(Scenario2!P6),IF(Scenario2!EG$4="Custom",(Scenario2!P6),IF(Scenario2!EG$4="Current minus 2%",(Scenario2!Q6))))),IF(Scenario2!$EG$8="Accelerator",IF(Scenario2!EG$4="Current",(Scenario2!O6),IF(Scenario2!EG$4="Current minus 1%",(Scenario2!P6),IF(Scenario2!EG$4="Custom",(Scenario2!P6),IF(Scenario2!EG$4="Current minus 2%",(Scenario2!Q6))))),IF(Scenario2!EG$4="Sun Term - NA",HLOOKUP("Total Policy Death Benefit",Scenario2!$A$1:$G$100,Calculations!$A7+1,FALSE),IF(Scenario2!$EG$8="SunSpectrumUL",(IF(Scenario2!EG$4="Primary rate",(Scenario2!Q6),IF(Scenario2!EG$4="Secondary rate",(Scenario2!R6),IF(Scenario2!EG$4="Alternate rate",(Scenario2!S6))))),IF(Scenario2!$EG$8="PermLife",(Scenario2!E6),IF(AND(Scenario2!$EG$8="SunUniversalLife",Scenario2!$EJ$21=1),IF(Scenario2!EG$4="Primary rate",(Scenario2!S6),IF(Scenario2!EG$4="Secondary rate",(Scenario2!T6),IF(Scenario2!EG$4="Alternate rate",(Scenario2!U6)))),IF(Scenario2!EG$4="Primary rate",(Scenario2!R6),IF(Scenario2!EG$4="Secondary rate",(Scenario2!S6),IF(Scenario2!EG$4="Alternate rate",(Scenario2!T6)))))))))),IF(Scenario2!$EG$8="Protect/Accum",IF(Scenario2!EG$4="Taux actuel",(Scenario2!O6),IF(Scenario2!EG$4="Taux actuel moins 1%",(Scenario2!P6),IF(Scenario2!EG$4="Taux personnalisé",(Scenario2!P6),IF(Scenario2!EG$4="Taux actuel moins 2%",(Scenario2!Q6))))),IF(Scenario2!$EG$8="Accelerator",IF(Scenario2!EG$4="Taux actuel",(Scenario2!O6),IF(Scenario2!EG$4="Taux actuel moins 1%",(Scenario2!P6),IF(Scenario2!EG$4="Taux personnalisé",(Scenario2!P6),IF(Scenario2!EG$4="Taux actuel moins 2%",(Scenario2!Q6))))),IF(Scenario2!EG$4="Temporaire - NA",HLOOKUP("Capital-décès total du contrat",Scenario2!$A$1:$G$100,Calculations!$A7+1,FALSE),IF(Scenario2!$EG$8="SunSpectrumUL",(IF(Scenario2!EG$4="Taux principal",(Scenario2!Q6),IF(Scenario2!EG$4="Taux secondaire",(Scenario2!R6),IF(Scenario2!EG$4="Autre taux",(Scenario2!S6))))),IF(Scenario2!$EG$8="PermLife",(Scenario2!E6),IF(AND(Scenario2!$EG$8="SunUniversalLife",Scenario2!$EJ$21=1),IF(Scenario2!EG$4="Taux principal",(Scenario2!S6),IF(Scenario2!EG$4="Taux secondaire",(Scenario2!T6),IF(Scenario2!EG$4="Autre taux",(Scenario2!U6),(Scenario2!E6)))),IF(Scenario2!EG$4="Taux principal",(Scenario2!R6),IF(Scenario2!EG$4="Taux secondaire",(Scenario2!S6),IF(Scenario2!EG$4="Autre taux",(Scenario2!T6),(Scenario2!E6))))))))))),NA()) -> 1417997 | L7: =IF(ISNUMBER(Scenario2!M6),IF(Scenario2!$EG$10="English",IF(Scenario2!$EG$8="Protect/Accum",IF(Scenario2!EG$4="Current",(Scenario2!BO6),IF(Scenario2!EG$4="Current minus 1%",(Scenario2!BP6),IF(Scenario2!EG$4="Custom",(Scenario2!BP6),IF(Scenario2!EG$4="Current minus 2%",(Scenario2!BQ6))))),IF(Scenario2!$EG$8="Accelerator",IF(Scenario2!EG$4="Current",(Scenario2!BC6),IF(Scenario2!EG$4="Current minus 1%",(Scenario2!BD6),IF(Scenario2!EG$4="Custom",(Scenario2!BD6),IF(Scenario2!EG$4="Current minus 2%",(Scenario2!BE6))))),IF(Scenario2!EG$4="Sun Term - NA",HLOOKUP("ACB",Scenario2!$A$1:$S$100,Calculations!$A7+1,FALSE),IF(Scenario2!$EG$8="SunSpectrumUL",(IF(Scenario2!EG$4="Primary rate",(Scenario2!BF6),IF(Scenario2!EG$4="Secondary rate",(Scenario2!BG6),IF(Scenario2!EG$4="Alternate rate",(Scenario2!BH6))))),IF(Scenario2!$EG$8="PermLife",(Scenario2!AD6),IF(Scenario2!$EG$8="SunUniversalLife",IF(Scenario2!EG$4="Primary rate",HLOOKUP("ACB (Primary rate)",Scenario2!$A$1:$EC$100,Calculations!$A7+1,FALSE),IF(Scenario2!EG$4="Secondary rate",HLOOKUP("ACB (Secondary rate)",Scenario2!$A$1:$EC$100,Calculations!$A7+1,FALSE),IF(Scenario2!EG$4="Alternate rate",HLOOKUP("ACB (Alternate rate)",Scenario2!$A$1:$EC$100,Calculations!$A7+1,FALSE)))))))))),IF(Scenario2!$EG$8="Protect/Accum",IF(Scenario2!EG$4="Taux actuel",(Scenario2!BO6),IF(Scenario2!EG$4="Taux actuel moins 1%",(Scenario2!BP6),IF(Scenario2!EG$4="Taux personnalisé",(Scenario2!BP6),IF(Scenario2!EG$4="Taux actuel moins 2%",(Scenario2!BQ6))))),IF(Scenario2!$EG$8="Accelerator",IF(Scenario2!EG$4="Taux actuel",(Scenario2!BC6),IF(Scenario2!EG$4="Taux actuel moins 1%",(Scenario2!BD6),IF(Scenario2!EG$4="Taux personnalisé",(Scenario2!BD6),IF(Scenario2!EG$4="Taux actuel moins 2%",(Scenario2!BE6))))),IF(Scenario2!EG$4="Temporaire - NA",HLOOKUP("CBR",Scenario2!$A$1:$S$100,Calculations!$A7+1,FALSE),IF(Scenario2!$EG$8="PermLife",(Scenario2!AD6),IF(Scenario2!$EG$8="SunSpectrumUL",(IF(Scenario2!EG$4="Taux principal",(Scenario2!BF6),IF(Scenario2!EG$4="Taux secondaire",(Scenario2!BG6),IF(Scenario2!EG$4="Autre taux",(Scenario2!BH6))))),IF(Scenario2!$EG$8="SunUniversalLife",IF(Scenario2!EG$4="Taux principal",HLOOKUP("CBR (taux principal)",Scenario2!$A$1:$EC$100,Calculations!$A7+1,FALSE),IF(Scenario2!EG$4="Taux secondaire",HLOOKUP("CBR (taux secondaire)",Scenario2!$A$1:$EC$100,Calculations!$A7+1,FALSE),IF(Scenario2!EG$4="Autre taux",(Scenario2!BL6),HLOOKUP("CBR (autre taux)",Scenario2!$A$1:$EC$100,Calculations!$A7+1,FALSE))))))))))),NA()) -> 194237.61 | M7: =K7-L7*IF(Calculations!$AT$35=TRUE,Calculations!$AT$38/100,0) -> 1335834.491 | O7: =$AY$51*Cash!AD15+$AY$52*'Fixed Income'!AD15+$AY$53*Equities!AD15+$AY$54*'Real Estate'!AD15+$AY$55*'Alternative Investment'!AD15 -> 3424174.167 | P7: 257795.1 | Q7: 3681969.267 | R7: =(Cash!AD15+'Fixed Income'!AD15+Equities!AD15+'Real Estate'!AD15+'Alternative Investment'!AD15) -> 5474679.621 | S7: =(Cash!AW15+'Fixed Income'!AW15+Equities!AW15+'Real Estate'!AW15+'Alternative Investment'!AW15)+IFERROR(E7-F7,0)+IFERROR(K7-L7,0) -> 2747559.221 | T7: =Cash!AZ15 -> 839315.2724 | U7: ='Fixed Income'!AZ15 -> 420857.745 | V7: =Equities!AZ15 -> 790185.6753 | W7: ='Real Estate'!AZ15 -> 782230.037 | X7: ='Alternative Investment'!AZ15 -> 590375.4017 | Y7: 3422964.131 | Z7: 2673894.623 | AA7: 6096858.754 | AB7: 0 | AC7: =IRR(($AB$3:$AB7,AA7),0.1) -> 0.04046440168 | AE7: =('Cash (2)'!AD15+'Fixed Income (2)'!AD15+'Equities (2)'!AD15+'Real Estate (2)'!AD15+'Alternative Investment (2)'!AD15) -> 5971304.67 | AF7: =($AY$51*'Cash (2)'!AD15+$AY$52*'Fixed Income (2)'!AD15+$AY$53*'Equities (2)'!AD15+$AY$54*'Real Estate (2)'!AD15+$AY$55*'Alternative Investment (2)'!AD15) -> 3795633.811 | AG7: =('Cash (2)'!AW15+'Fixed Income (2)'!AW15+'Equities (2)'!AW15+'Real Estate (2)'!AW15+'Alternative Investment (2)'!AW15) -> 338352.4125 | AH7: ='Cash (2)'!AZ15 -> 839315.2724 | AI7: ='Fixed Income (2)'!AZ15 -> 604427.216 | AJ7: ='Equities (2)'!AZ15 -> 905420.5418 | AK7: ='Real Estate (2)'!AZ15 -> 782230.037 | AL7: ='Alternative Investment (2)'!AZ15 -> 590375.4017 | AM7: 3721768.469 | AN7: 0 | AO7: =IRR(($AN$3:$AN7,AM7),0.1) -> -0.05733828404 | AP7: 49999.61 | AQ7: 8000 | AR7: 32000 | AS7: FileName 4 | AU7: Filepath4 | AZ7: =IFERROR((MAX(Scenario1!EK20,Scenario2!EK20)*100-AT46*AU46)/AT47,AZ8) -> 6.4075 | BA7: =IF(AV4<>"",VLOOKUP(AS2,A3:AR102,4,FALSE),0) -> 1639773 | BB7: 57999.61 | BC7: 32000 | BD7: 89999.61 | BE7: 1300000 | BF7: 668001.56 | BG7: 972000 | BH7: 950000 | BI7: 750000 | BJ7: 0 | BK7: 57999.61 | BL7: 0 | BM7: 0 | BN7: 0 | BO7: 0 | BP7: 0 | BQ7: 32000 | BR7: 0 | BS7: 0 | BT7: 0 | BU7: 57999.61 | BV7: 32000 | BW7: 0 | BX7: 0 | BY7: 1300000 | BZ7: 610001.95 | CA7: 940000 | CB7: 950000 | CC7: 750000 | CE7: =Scenario1!EP6 -> 0 | CF7: =Scenario2!EP6 -> 0 | CG7: 0 | CH7: 1300000 | CI7: 900000 | CJ7: 1100000 | CK7: 950000 | CL7: 750000 | CM7: 0 | CN7: 0 | CO7: 0 | CP7: 0 | CQ7: 0 | CR7: 0 | CS7: 0 | CT7: 0 | CU7: 0 | CV7: 0 | CW7: 0 | CX7: 0 | CY7: 0 | CZ7: 0 | DA7: 0 | DB7: 1300000 | DC7: 900000 | DD7: 1100000 | DE7: 950000 | DF7: 750000 | DH7: 5 | DI7: =(Cash!AB15+'Fixed Income'!AB15+Equities!AB15+'Real Estate'!AB15+'Alternative Investment'!AB15) -> 78777.02426 | DJ7: 352041.259 | DK7: =(Cash!AT15+'Fixed Income'!AT15+Equities!AT15+'Real Estate'!AT15+'Alternative Investment'!AT15) -> 81884.90287 | DL7: =(Cash!AY15+'Fixed Income'!AY15+Equities!AY15+'Real Estate'!AY15+'Alternative Investment'!AY15) -> 2269701.657 | DM7: 2351586.56 | DO7: =('Cash (2)'!AB15+'Fixed Income (2)'!AB15+'Equities (2)'!AB15+'Real Estate (2)'!AB15+'Alternative Investment (2)'!AB15) -> 85786.78634 | DP7: 372095.9371 | DQ7: =('Cash (2)'!AT15+'Fixed Income (2)'!AT15+'Equities (2)'!AT15+'Real Estate (2)'!AT15+'Alternative Investment (2)'!AT15) -> 86761.53494 | DR7: =('Cash (2)'!AY15+'Fixed Income (2)'!AY15+'Equities (2)'!AY15+'Real Estate (2)'!AY15+'Alternative Investment (2)'!AY15) -> 2480389.934 | DS7: 2567151.469
A8: =IF(ISNUMBER(B8),(A7+1),IF(ISNUMBER(H8),(A7+1),IF(ISNUMBER(N8),(A7+1),IF(ISNUMBER(AD8),(A7+1),IF(ISNUMBER(#REF!),(A7+1),IF(ISNUMBER(#REF!),(A7+1),NA())))))) -> 6 | B8: =IF(ISNUMBER(Scenario1!F7),IF(Scenario1!$EG$10="English",IF(Scenario1!$EG$8="Protect/Accum",IF(Scenario1!EG$4="Current",(Scenario1!F7-Scenario1!AJ7),IF(Scenario1!EG$4="Current minus 1%",(Scenario1!G7-Scenario1!AK7),IF(Scenario1!EG$4="Custom",(Scenario1!G7-Scenario1!AK7),IF(Scenario1!EG$4="Current minus 2%",(Scenario1!H7-Scenario1!AL7))))),IF(Scenario1!$EG$8="Accelerator",IF(Scenario1!EG$4="Current",(Scenario1!F7),IF(Scenario1!EG$4="Current minus 1%",(Scenario1!G7),IF(Scenario1!EG$4="Custom",(Scenario1!G7),IF(Scenario1!EG$4="Current minus 2%",(Scenario1!H7))))),IF(Scenario1!EG$4="Sun Life Evolve Term",IF(Scenario1!EG$6="Monthly",(Scenario1!K7),(Scenario1!G7)),IF(Scenario1!EG$4="Not applicable",IF(Scenario1!$EG$8="PermLife",IF(VLOOKUP("Premium Frequency",Scenario1!$A$150:'Scenario1'!$B$170,2,FALSE)="Monthly",(Scenario1!F7*12),(Scenario1!F7))),(Scenario1!C7))))),IF(Scenario1!$EG$8="Protect/Accum",IF(Scenario1!EG$4="Taux actuel",(Scenario1!F7-Scenario1!AJ7),IF(Scenario1!EG$4="Taux actuel moins 1%",(Scenario1!G7-Scenario1!AK7),IF(Scenario1!EG$4="Taux personnalisé",(Scenario1!G7-Scenario1!AK7),IF(Scenario1!EG$4="Taux actuel moins 2%",(Scenario1!H7-Scenario1!AL7))))),IF(Scenario1!$EG$8="Accelerator",IF(Scenario1!EG$4="Taux actuel",(Scenario1!F7),IF(Scenario1!EG$4="Taux actuel moins 1%",(Scenario1!G7),IF(Scenario1!EG$4="Taux personnalisé",(Scenario1!G7),IF(Scenario1!EG$4="Taux actuel moins 2%",(Scenario1!H7))))),IF(Scenario1!EG$4="Assurance-vie temporaire Évolution Sun Life",IF(Scenario1!EG$6="Monthly",(Scenario1!K7),(Scenario1!G7)),IF(Scenario1!EG$4="Pas applicable",IF(Scenario1!$EG$8="PermLife",IF(VLOOKUP("Périodicité de la prime",Scenario1!$A$150:'Scenario1'!$B$170,2,FALSE)="Mensuelle",(Scenario1!F7*12),(Scenario1!F7))),(Scenario1!C7)))))),NA()) -> 49999.61 | C8: =SUM($B$3,NPV($AT$11,B$4:B8)) -> 299997.66 | D8: =IF(ISNUMBER(Scenario1!J7),IF(Scenario1!$EG$10="English",IF(Scenario1!$EG$8="Protect/Accum",IF(Scenario1!EG$4="Current",(Scenario1!J7),IF(Scenario1!EG$4="Current minus 1%",(Scenario1!K7),IF(Scenario1!EG$4="Custom",(Scenario1!K7),IF(Scenario1!EG$4="Current minus 2%",(Scenario1!L7))))),IF(Scenario1!$EG$8="Accelerator",IF(Scenario1!EG$4="Current",(Scenario1!J7),IF(Scenario1!EG$4="Current minus 1%",(Scenario1!K7),IF(Scenario1!EG$4="Custom",(Scenario1!K7),IF(Scenario1!EG$4="Current minus 2%",(Scenario1!L7))))),IF(Scenario1!EG$4="Sun Term - NA",0,IF(Scenario1!$EG$8="SunSpectrumUL",(IF(Scenario1!EG$4="Primary rate",(Scenario1!M7),IF(Scenario1!EG$4="Secondary rate",(Scenario1!N7),IF(Scenario1!EG$4="Alternate rate",(Scenario1!O7),(Scenario1!C7))))),IF(Scenario1!$EG$8="PermLife",(Scenario1!C7),IF(AND(Scenario1!$EG$8="SunUniversalLife",Scenario1!$EJ$21=1),IF(Scenario1!EG$4="Primary rate",(Scenario1!N7),IF(Scenario1!EG$4="Secondary rate",(Scenario1!O7),IF(Scenario1!EG$4="Alternate rate",(Scenario1!P7)))),IF(Scenario1!EG$4="Primary rate",(Scenario1!M7),IF(Scenario1!EG$4="Secondary rate",(Scenario1!N7),IF(Scenario1!EG$4="Alternate rate",(Scenario1!O7)))))))))),IF(Scenario1!$EG$8="Protect/Accum",IF(Scenario1!EG$4="Taux actuel",(Scenario1!J7),IF(Scenario1!EG$4="Taux actuel moins 1%",(Scenario1!K7),IF(Scenario1!EG$4="Taux personnalisé",(Scenario1!K7),IF(Scenario1!EG$4="Taux actuel moins 2%",(Scenario1!L7))))),IF(Scenario1!$EG$8="Accelerator",IF(Scenario1!EG$4="Taux actuel",(Scenario1!J7),IF(Scenario1!EG$4="Taux actuel moins 1%",(Scenario1!K7),IF(Scenario1!EG$4="Taux personnalisé",(Scenario1!K7),IF(Scenario1!EG$4="Taux actuel moins 2%",(Scenario1!L7))))),IF(Scenario1!EG$4="Temporaire - NA",0,IF(Scenario1!$EG$8="SunSpectrumUL",(IF(Scenario1!EG$4="Taux principal",(Scenario1!M7),IF(Scenario1!EG$4="Taux secondaire",(Scenario1!N7),IF(Scenario1!EG$4="Autre taux",(Scenario1!O7),(Scenario1!C7))))),IF(Scenario1!$EG$8="PermLife",(Scenario1!C7),IF(AND(Scenario1!$EG$8="SunUniversalLife",Scenario1!$EJ$21=1),IF(Scenario1!EG$4="Taux principal",(Scenario1!N7),IF(Scenario1!EG$4="Taux secondaire",(Scenario1!O7),IF(Scenario1!EG$4="Autre taux",(Scenario1!P7),(Scenario1!C7)))),IF(Scenario1!EG$4="Taux principal",(Scenario1!M7),IF(Scenario1!EG$4="Taux secondaire",(Scenario1!N7),IF(Scenario1!EG$4="Autre taux",(Scenario1!O7),(Scenario1!C7))))))))))),NA()) -> 218742 | E8: =IF(ISNUMBER(Scenario1!C7),IF(Scenario1!$EG$10="English",IF(Scenario1!$EG$8="Protect/Accum",IF(Scenario1!EG$4="Current",(Scenario1!O7),IF(Scenario1!EG$4="Current minus 1%",(Scenario1!P7),IF(Scenario1!EG$4="Custom",(Scenario1!P7),IF(Scenario1!EG$4="Current minus 2%",(Scenario1!Q7))))),IF(Scenario1!$EG$8="Accelerator",IF(Scenario1!EG$4="Current",(Scenario1!O7),IF(Scenario1!EG$4="Current minus 1%",(Scenario1!P7),IF(Scenario1!EG$4="Custom",(Scenario1!P7),IF(Scenario1!EG$4="Current minus 2%",(Scenario1!Q7))))),IF(Scenario1!EG$4="Sun Life Evolve Term",HLOOKUP("Total Policy Death Benefit",Scenario1!$A$1:$G$100,Calculations!$A8+1,FALSE),IF(Scenario1!$EG$8="SunSpectrumUL",(IF(Scenario1!EG$4="Primary rate",(Scenario1!Q7),IF(Scenario1!EG$4="Secondary rate",(Scenario1!R7),IF(Scenario1!EG$4="Alternate rate",(Scenario1!S7))))),IF(Scenario1!$EG$8="PermLife",(Scenario1!E7),IF(AND(Scenario1!$EG$8="SunUniversalLife",Scenario1!$EJ$21=1),IF(Scenario1!EG$4="Primary rate",(Scenario1!S7),IF(Scenario1!EG$4="Secondary rate",(Scenario1!T7),IF(Scenario1!EG$4="Alternate rate",(Scenario1!U7)))),IF(Scenario1!EG$4="Primary rate",(Scenario1!R7),IF(Scenario1!EG$4="Secondary rate",(Scenario1!S7),IF(Scenario1!EG$4="Alternate rate",(Scenario1!T7)))))))))),IF(Scenario1!$EG$8="Protect/Accum",IF(Scenario1!EG$4="Taux actuel",(Scenario1!O7),IF(Scenario1!EG$4="Taux actuel moins 1%",(Scenario1!P7),IF(Scenario1!EG$4="Taux personnalisé",(Scenario1!P7),IF(Scenario1!EG$4="Taux actuel moins 2%",(Scenario1!Q7))))),IF(Scenario1!$EG$8="Accelerator",IF(Scenario1!EG$4="Taux actuel",(Scenario1!O7),IF(Scenario1!EG$4="Taux actuel moins 1%",(Scenario1!P7),IF(Scenario1!EG$4="Taux personnalisé",(Scenario1!P7),IF(Scenario1!EG$4="Taux actuel moins 2%",(Scenario1!Q7))))),IF(Scenario1!EG$4="Assurance-vie temporaire Évolution Sun Life",HLOOKUP("Capital-décès total du contrat",Scenario1!$A$1:$G$100,Calculations!$A8+1,FALSE),IF(Scenario1!$EG$8="SunSpectrumUL",(IF(Scenario1!EG$4="Taux principal",(Scenario1!Q7),IF(Scenario1!EG$4="Taux secondaire",(Scenario1!R7),IF(Scenario1!EG$4="Autre taux",(Scenario1!S7))))),IF(Scenario1!$EG$8="PermLife",(Scenario1!E7),IF(AND(Scenario1!$EG$8="SunUniversalLife",Scenario1!$EJ$21=1),IF(Scenario1!EG$4="Taux principal",(Scenario1!S7),IF(Scenario1!EG$4="Taux secondaire",(Scenario1!T7),IF(Scenario1!EG$4="Autre taux",(Scenario1!U7),(Scenario1!E7)))),IF(Scenario1!EG$4="Taux principal",(Scenario1!R7),IF(Scenario1!EG$4="Taux secondaire",(Scenario1!S7),IF(Scenario1!EG$4="Autre taux",(Scenario1!T7),(Scenario1!E7))))))))))),NA()) -> 1541767 | F8: =IF(ISNUMBER(Scenario1!M7),IF(Scenario1!$EG$10="English",IF(Scenario1!$EG$8="Protect/Accum",IF(Scenario1!EG$4="Current",(Scenario1!BO7),IF(Scenario1!EG$4="Current minus 1%",(Scenario1!BP7),IF(Scenario1!EG$4="Custom",(Scenario1!BP7),IF(Scenario1!EG$4="Current minus 2%",(Scenario1!BQ7))))),IF(Scenario1!$EG$8="Accelerator",IF(Scenario1!EG$4="Current",(Scenario1!BC7),IF(Scenario1!EG$4="Current minus 1%",(Scenario1!BD7),IF(Scenario1!EG$4="Custom",(Scenario1!BD7),IF(Scenario1!EG$4="Current minus 2%",(Scenario1!BE7))))),IF(Scenario1!EG$4="Sun Life Evolve Term",HLOOKUP("ACB",Scenario1!$A$1:$S$100,Calculations!$A8+1,FALSE),IF(Scenario1!$EG$8="SunSpectrumUL",(IF(Scenario1!EG$4="Primary rate",(Scenario1!BF7),IF(Scenario1!EG$4="Secondary rate",(Scenario1!BG7),IF(Scenario1!EG$4="Alternate rate",(Scenario1!BH7))))),IF(Scenario1!$EG$8="PermLife",(Scenario1!AD7),IF(Scenario1!$EG$8="SunUniversalLife",IF(Scenario1!EG$4="Primary rate",HLOOKUP("ACB (Primary rate)",Scenario1!$A$1:$EC$100,Calculations!$A8+1,FALSE),IF(Scenario1!EG$4="Secondary rate",HLOOKUP("ACB (Secondary rate)",Scenario1!$A$1:$EC$100,Calculations!$A8+1,FALSE),IF(Scenario1!EG$4="Alternate rate",HLOOKUP("ACB (Alternate rate)",Scenario1!$A$1:$EC$100,Calculations!$A8+1,FALSE)))))))))),IF(Scenario1!$EG$8="Protect/Accum",IF(Scenario1!EG$4="Taux actuel",(Scenario1!BO7),IF(Scenario1!EG$4="Taux actuel moins 1%",(Scenario1!BP7),IF(Scenario1!EG$4="Taux personnalisé",(Scenario1!BP7),IF(Scenario1!EG$4="Taux actuel moins 2%",(Scenario1!BQ7))))),IF(Scenario1!$EG$8="Accelerator",IF(Scenario1!EG$4="Taux actuel",(Scenario1!BC7),IF(Scenario1!EG$4="Taux actuel moins 1%",(Scenario1!BD7),IF(Scenario1!EG$4="Taux personnalisé",(Scenario1!BD7),IF(Scenario1!EG$4="Taux actuel moins 2%",(Scenario1!BE7))))),IF(Scenario1!EG$4="Assurance-vie temporaire Évolution Sun Life",HLOOKUP("CBR",Scenario1!$A$1:$S$100,Calculations!$A8+1,FALSE),IF(Scenario1!$EG$8="PermLife",(Scenario1!AD7),IF(Scenario1!$EG$8="SunSpectrumUL",(IF(Scenario1!EG$4="Taux principal",(Scenario1!BF7),IF(Scenario1!EG$4="Taux secondaire",(Scenario1!BG7),IF(Scenario1!EG$4="Autre taux",(Scenario1!BH7))))),IF(Scenario1!$EG$8="SunUniversalLife",IF(Scenario1!EG$4="Taux principal",HLOOKUP("CBR (taux principal)",Scenario1!$A$1:$EC$100,Calculations!$A8+1,FALSE),IF(Scenario1!EG$4="Taux secondaire",HLOOKUP("CBR (taux secondaire)",Scenario1!$A$1:$EC$100,Calculations!$A8+1,FALSE),IF(Scenario1!EG$4="Autre taux",(Scenario1!BL7),HLOOKUP("CBR (autre taux)",Scenario1!$A$1:$EC$100,Calculations!$A8+1,FALSE))))))))))),NA()) -> 292764 | G8: =E8-F8*IF(Calculations!$AT$35=TRUE,Calculations!$AT$38/100,0) -> 1417927.828 | H8: =IF(ISNUMBER(Scenario2!F7),IF(Scenario2!$EG$10="English",IF(Scenario2!$EG$8="Protect/Accum",IF(Scenario2!EG$4="Current",(Scenario2!F7-Scenario2!AJ7),IF(Scenario2!EG$4="Current minus 1%",(Scenario2!G7-Scenario2!AK7),IF(Scenario2!EG$4="Custom",(Scenario2!G7-Scenario2!AK7),IF(Scenario2!EG$4="Current minus 2%",(Scenario2!H7-Scenario2!AL7))))),IF(Scenario2!$EG$8="Accelerator",IF(Scenario2!EG$4="Current",(Scenario2!F7),IF(Scenario2!EG$4="Current minus 1%",(Scenario2!G7),IF(Scenario2!EG$4="Custom",(Scenario2!G7),IF(Scenario2!EG$4="Current minus 2%",(Scenario2!H7))))),IF(Scenario2!EG$4="Sun Term - NA",IF(Scenario2!EG$6="Monthly",(Scenario2!K7),(Scenario2!G7)),IF(Scenario2!EG$4="Not applicable",IF(Scenario2!$EG$8="PermLife",IF(VLOOKUP("Premium Frequency",Scenario2!$A$150:'Scenario2'!$B$170,2,FALSE)="Monthly",(Scenario2!F7*12),(Scenario2!F7))),(Scenario2!C7))))),IF(Scenario2!$EG$8="Protect/Accum",IF(Scenario2!EG$4="Taux actuel",(Scenario2!F7-Scenario2!AJ7),IF(Scenario2!EG$4="Taux actuel moins 1%",(Scenario2!G7-Scenario2!AK7),IF(Scenario2!EG$4="Taux personnalisé",(Scenario2!G7-Scenario2!AK7),IF(Scenario2!EG$4="Taux actuel moins 2%",(Scenario2!H7-Scenario2!AL7))))),IF(Scenario2!$EG$8="Accelerator",IF(Scenario2!EG$4="Taux actuel",(Scenario2!F7),IF(Scenario2!EG$4="Taux actuel moins 1%",(Scenario2!G7),IF(Scenario2!EG$4="Taux personnalisé",(Scenario2!G7),IF(Scenario2!EG$4="Taux actuel moins 2%",(Scenario2!H7))))),IF(Scenario2!EG$4="Temporaire - NA",IF(Scenario2!EG$6="Monthly",(Scenario2!K7),(Scenario2!G7)),IF(Scenario2!EG$4="Pas applicable",IF(Scenario2!$EG$8="PermLife",IF(VLOOKUP("Périodicité de la prime",Scenario2!$A$150:'Scenario2'!$B$170,2,FALSE)="Mensuelle",(Scenario2!F7*12),(Scenario2!F7))),(Scenario2!C7)))))),NA()) -> 40000 | I8: =SUM($H$3,NPV($AT$11,H$4:H8)) -> 240000 | J8: =IF(ISNUMBER(Scenario2!J7),IF(Scenario2!$EG$10="English",IF(Scenario2!$EG$8="Protect/Accum",IF(Scenario2!EG$4="Current",(Scenario2!J7),IF(Scenario2!EG$4="Current minus 1%",(Scenario2!K7),IF(Scenario2!EG$4="Custom",(Scenario2!K7),IF(Scenario2!EG$4="Current minus 2%",(Scenario2!L7))))),IF(Scenario2!$EG$8="Accelerator",IF(Scenario2!EG$4="Current",(Scenario2!J7),IF(Scenario2!EG$4="Current minus 1%",(Scenario2!K7),IF(Scenario2!EG$4="Custom",(Scenario2!K7),IF(Scenario2!EG$4="Current minus 2%",(Scenario2!L7))))),IF(Scenario2!EG$4="Sun Term - NA",0,IF(Scenario2!$EG$8="SunSpectrumUL",(IF(Scenario2!EG$4="Primary rate",(Scenario2!M7),IF(Scenario2!EG$4="Secondary rate",(Scenario2!N7),IF(Scenario2!EG$4="Alternate rate",(Scenario2!O7),(Scenario2!C7))))),IF(Scenario2!$EG$8="PermLife",(Scenario2!C7),IF(AND(Scenario2!$EG$8="SunUniversalLife",Scenario2!$EJ$21=1),IF(Scenario2!EG$4="Primary rate",(Scenario2!N7),IF(Scenario2!EG$4="Secondary rate",(Scenario2!O7),IF(Scenario2!EG$4="Alternate rate",(Scenario2!P7)))),IF(Scenario2!EG$4="Primary rate",(Scenario2!M7),IF(Scenario2!EG$4="Secondary rate",(Scenario2!N7),IF(Scenario2!EG$4="Alternate rate",(Scenario2!O7)))))))))),IF(Scenario2!$EG$8="Protect/Accum",IF(Scenario2!EG$4="Taux actuel",(Scenario2!J7),IF(Scenario2!EG$4="Taux actuel moins 1%",(Scenario2!K7),IF(Scenario2!EG$4="Taux personnalisé",(Scenario2!K7),IF(Scenario2!EG$4="Taux actuel moins 2%",(Scenario2!L7))))),IF(Scenario2!$EG$8="Accelerator",IF(Scenario2!EG$4="Taux actuel",(Scenario2!J7),IF(Scenario2!EG$4="Taux actuel moins 1%",(Scenario2!K7),IF(Scenario2!EG$4="Taux personnalisé",(Scenario2!K7),IF(Scenario2!EG$4="Taux actuel moins 2%",(Scenario2!L7))))),IF(Scenario2!EG$4="Temporaire - NA",0,IF(Scenario2!$EG$8="SunSpectrumUL",(IF(Scenario2!EG$4="Taux principal",(Scenario2!M7),IF(Scenario2!EG$4="Taux secondaire",(Scenario2!N7),IF(Scenario2!EG$4="Autre taux",(Scenario2!O7),(Scenario2!C7))))),IF(Scenario2!$EG$8="PermLife",(Scenario2!C7),IF(AND(Scenario2!$EG$8="SunUniversalLife",Scenario2!$EJ$21=1),IF(Scenario2!EG$4="Taux principal",(Scenario2!N7),IF(Scenario2!EG$4="Taux secondaire",(Scenario2!O7),IF(Scenario2!EG$4="Autre taux",(Scenario2!P7),(Scenario2!C7)))),IF(Scenario2!EG$4="Taux principal",(Scenario2!M7),IF(Scenario2!EG$4="Taux secondaire",(Scenario2!N7),IF(Scenario2!EG$4="Autre taux",(Scenario2!O7),(Scenario2!C7))))))))))),NA()) -> 179778 | K8: =IF(ISNUMBER(Scenario2!C7),IF(Scenario2!$EG$10="English",IF(Scenario2!$EG$8="Protect/Accum",IF(Scenario2!EG$4="Current",(Scenario2!O7),IF(Scenario2!EG$4="Current minus 1%",(Scenario2!P7),IF(Scenario2!EG$4="Custom",(Scenario2!P7),IF(Scenario2!EG$4="Current minus 2%",(Scenario2!Q7))))),IF(Scenario2!$EG$8="Accelerator",IF(Scenario2!EG$4="Current",(Scenario2!O7),IF(Scenario2!EG$4="Current minus 1%",(Scenario2!P7),IF(Scenario2!EG$4="Custom",(Scenario2!P7),IF(Scenario2!EG$4="Current minus 2%",(Scenario2!Q7))))),IF(Scenario2!EG$4="Sun Term - NA",HLOOKUP("Total Policy Death Benefit",Scenario2!$A$1:$G$100,Calculations!$A8+1,FALSE),IF(Scenario2!$EG$8="SunSpectrumUL",(IF(Scenario2!EG$4="Primary rate",(Scenario2!Q7),IF(Scenario2!EG$4="Secondary rate",(Scenario2!R7),IF(Scenario2!EG$4="Alternate rate",(Scenario2!S7))))),IF(Scenario2!$EG$8="PermLife",(Scenario2!E7),IF(AND(Scenario2!$EG$8="SunUniversalLife",Scenario2!$EJ$21=1),IF(Scenario2!EG$4="Primary rate",(Scenario2!S7),IF(Scenario2!EG$4="Secondary rate",(Scenario2!T7),IF(Scenario2!EG$4="Alternate rate",(Scenario2!U7)))),IF(Scenario2!EG$4="Primary rate",(Scenario2!R7),IF(Scenario2!EG$4="Secondary rate",(Scenario2!S7),IF(Scenario2!EG$4="Alternate rate",(Scenario2!T7)))))))))),IF(Scenario2!$EG$8="Protect/Accum",IF(Scenario2!EG$4="Taux actuel",(Scenario2!O7),IF(Scenario2!EG$4="Taux actuel moins 1%",(Scenario2!P7),IF(Scenario2!EG$4="Taux personnalisé",(Scenario2!P7),IF(Scenario2!EG$4="Taux actuel moins 2%",(Scenario2!Q7))))),IF(Scenario2!$EG$8="Accelerator",IF(Scenario2!EG$4="Taux actuel",(Scenario2!O7),IF(Scenario2!EG$4="Taux actuel moins 1%",(Scenario2!P7),IF(Scenario2!EG$4="Taux personnalisé",(Scenario2!P7),IF(Scenario2!EG$4="Taux actuel moins 2%",(Scenario2!Q7))))),IF(Scenario2!EG$4="Temporaire - NA",HLOOKUP("Capital-décès total du contrat",Scenario2!$A$1:$G$100,Calculations!$A8+1,FALSE),IF(Scenario2!$EG$8="SunSpectrumUL",(IF(Scenario2!EG$4="Taux principal",(Scenario2!Q7),IF(Scenario2!EG$4="Taux secondaire",(Scenario2!R7),IF(Scenario2!EG$4="Autre taux",(Scenario2!S7))))),IF(Scenario2!$EG$8="PermLife",(Scenario2!E7),IF(AND(Scenario2!$EG$8="SunUniversalLife",Scenario2!$EJ$21=1),IF(Scenario2!EG$4="Taux principal",(Scenario2!S7),IF(Scenario2!EG$4="Taux secondaire",(Scenario2!T7),IF(Scenario2!EG$4="Autre taux",(Scenario2!U7),(Scenario2!E7)))),IF(Scenario2!EG$4="Taux principal",(Scenario2!R7),IF(Scenario2!EG$4="Taux secondaire",(Scenario2!S7),IF(Scenario2!EG$4="Autre taux",(Scenario2!T7),(Scenario2!E7))))))))))),NA()) -> 1454896 | L8: =IF(ISNUMBER(Scenario2!M7),IF(Scenario2!$EG$10="English",IF(Scenario2!$EG$8="Protect/Accum",IF(Scenario2!EG$4="Current",(Scenario2!BO7),IF(Scenario2!EG$4="Current minus 1%",(Scenario2!BP7),IF(Scenario2!EG$4="Custom",(Scenario2!BP7),IF(Scenario2!EG$4="Current minus 2%",(Scenario2!BQ7))))),IF(Scenario2!$EG$8="Accelerator",IF(Scenario2!EG$4="Current",(Scenario2!BC7),IF(Scenario2!EG$4="Current minus 1%",(Scenario2!BD7),IF(Scenario2!EG$4="Custom",(Scenario2!BD7),IF(Scenario2!EG$4="Current minus 2%",(Scenario2!BE7))))),IF(Scenario2!EG$4="Sun Term - NA",HLOOKUP("ACB",Scenario2!$A$1:$S$100,Calculations!$A8+1,FALSE),IF(Scenario2!$EG$8="SunSpectrumUL",(IF(Scenario2!EG$4="Primary rate",(Scenario2!BF7),IF(Scenario2!EG$4="Secondary rate",(Scenario2!BG7),IF(Scenario2!EG$4="Alternate rate",(Scenario2!BH7))))),IF(Scenario2!$EG$8="PermLife",(Scenario2!AD7),IF(Scenario2!$EG$8="SunUniversalLife",IF(Scenario2!EG$4="Primary rate",HLOOKUP("ACB (Primary rate)",Scenario2!$A$1:$EC$100,Calculations!$A8+1,FALSE),IF(Scenario2!EG$4="Secondary rate",HLOOKUP("ACB (Secondary rate)",Scenario2!$A$1:$EC$100,Calculations!$A8+1,FALSE),IF(Scenario2!EG$4="Alternate rate",HLOOKUP("ACB (Alternate rate)",Scenario2!$A$1:$EC$100,Calculations!$A8+1,FALSE)))))))))),IF(Scenario2!$EG$8="Protect/Accum",IF(Scenario2!EG$4="Taux actuel",(Scenario2!BO7),IF(Scenario2!EG$4="Taux actuel moins 1%",(Scenario2!BP7),IF(Scenario2!EG$4="Taux personnalisé",(Scenario2!BP7),IF(Scenario2!EG$4="Taux actuel moins 2%",(Scenario2!BQ7))))),IF(Scenario2!$EG$8="Accelerator",IF(Scenario2!EG$4="Taux actuel",(Scenario2!BC7),IF(Scenario2!EG$4="Taux actuel moins 1%",(Scenario2!BD7),IF(Scenario2!EG$4="Taux personnalisé",(Scenario2!BD7),IF(Scenario2!EG$4="Taux actuel moins 2%",(Scenario2!BE7))))),IF(Scenario2!EG$4="Temporaire - NA",HLOOKUP("CBR",Scenario2!$A$1:$S$100,Calculations!$A8+1,FALSE),IF(Scenario2!$EG$8="PermLife",(Scenario2!AD7),IF(Scenario2!$EG$8="SunSpectrumUL",(IF(Scenario2!EG$4="Taux principal",(Scenario2!BF7),IF(Scenario2!EG$4="Taux secondaire",(Scenario2!BG7),IF(Scenario2!EG$4="Autre taux",(Scenario2!BH7))))),IF(Scenario2!$EG$8="SunUniversalLife",IF(Scenario2!EG$4="Taux principal",HLOOKUP("CBR (taux principal)",Scenario2!$A$1:$EC$100,Calculations!$A8+1,FALSE),IF(Scenario2!EG$4="Taux secondaire",HLOOKUP("CBR (taux secondaire)",Scenario2!$A$1:$EC$100,Calculations!$A8+1,FALSE),IF(Scenario2!EG$4="Autre taux",(Scenario2!BL7),HLOOKUP("CBR (autre taux)",Scenario2!$A$1:$EC$100,Calculations!$A8+1,FALSE))))))))))),NA()) -> 232392.01 | M8: =K8-L8*IF(Calculations!$AT$35=TRUE,Calculations!$AT$38/100,0) -> 1356594.18 | O8: =$AY$51*Cash!AD16+$AY$52*'Fixed Income'!AD16+$AY$53*Equities!AD16+$AY$54*'Real Estate'!AD16+$AY$55*'Alternative Investment'!AD16 -> 3456483.171 | P8: 331701.3 | Q8: 3788184.471 | R8: =(Cash!AD16+'Fixed Income'!AD16+Equities!AD16+'Real Estate'!AD16+'Alternative Investment'!AD16) -> 5577608.404 | S8: =(Cash!AW16+'Fixed Income'!AW16+Equities!AW16+'Real Estate'!AW16+'Alternative Investment'!AW16)+IFERROR(E8-F8,0)+IFERROR(K8-L8,0) -> 2871583.392 | T8: =Cash!AZ16 -> 857950.9912 | U8: ='Fixed Income'!AZ16 -> 398802.5349 | V8: =Equities!AZ16 -> 824675.8434 | W8: ='Real Estate'!AZ16 -> 836467.7598 | X8: ='Alternative Investment'!AZ16 -> 626310.879 | Y8: 3544208.008 | Z8: 2774522.008 | AA8: 6318730.016 | AB8: 0 | AC8: =IRR(($AB$3:$AB8,AA8),0.1) -> 0.03978440431 | AE8: =('Cash (2)'!AD16+'Fixed Income (2)'!AD16+'Equities (2)'!AD16+'Real Estate (2)'!AD16+'Alternative Investment (2)'!AD16) -> 6183352.97 | AF8: =($AY$51*'Cash (2)'!AD16+$AY$52*'Fixed Income (2)'!AD16+$AY$53*'Equities (2)'!AD16+$AY$54*'Real Estate (2)'!AD16+$AY$55*'Alternative Investment (2)'!AD16) -> 3908629.174 | AG8: =('Cash (2)'!AW16+'Fixed Income (2)'!AW16+'Equities (2)'!AW16+'Real Estate (2)'!AW16+'Alternative Investment (2)'!AW16) -> 416355.6804 | AH8: ='Cash (2)'!AZ16 -> 857950.9912 | AI8: ='Fixed Income (2)'!AZ16 -> 622487.6039 | AJ8: ='Equities (2)'!AZ16 -> 968149.2215 | AK8: ='Real Estate (2)'!AZ16 -> 836467.7598 | AL8: ='Alternative Investment (2)'!AZ16 -> 626310.879 | AM8: 3911366.455 | AN8: 0 | AO8: =IRR(($AN$3:$AN8,AM8),0.1) -> -0.04009905974 | AP8: 49999.61 | AQ8: 8000 | AR8: 32000 | AS8: FileName 5 | AU8: Filepath5 | AZ8: =MAX(Scenario1!EK20,Scenario2!EK20)*100 -> 5.9 | BA8: =IF(AV5<>"",VLOOKUP(AS2,A3:AR102,10,FALSE),0) -> 799316 | BB8: 57999.61 | BC8: 32000 | BD8: 89999.61 | BE8: 1300000 | BF8: 610001.95 | BG8: 940000 | BH8: 950000 | BI8: 750000 | BJ8: 0 | BK8: 57999.61 | BL8: 0 | BM8: 0 | BN8: 0 | BO8: 0 | BP8: 0 | BQ8: 32000 | BR8: 0 | BS8: 0 | BT8: 0 | BU8: 57999.61 | BV8: 32000 | BW8: 0 | BX8: 0 | BY8: 1300000 | BZ8: 552002.34 | CA8: 908000 | CB8: 950000 | CC8: 750000 | CE8: =Scenario1!EP7 -> 0 | CF8: =Scenario2!EP7 -> 0 | CG8: 0 | CH8: 1300000 | CI8: 900000 | CJ8: 1100000 | CK8: 950000 | CL8: 750000 | CM8: 0 | CN8: 0 | CO8: 0 | CP8: 0 | CQ8: 0 | CR8: 0 | CS8: 0 | CT8: 0 | CU8: 0 | CV8: 0 | CW8: 0 | CX8: 0 | CY8: 0 | CZ8: 0 | DA8: 0 | DB8: 1300000 | DC8: 900000 | DD8: 1100000 | DE8: 950000 | DF8: 750000 | DH8: 6 | DI8: =(Cash!AB16+'Fixed Income'!AB16+Equities!AB16+'Real Estate'!AB16+'Alternative Investment'!AB16) -> 82051.3707 | DJ8: 434092.6297 | DK8: =(Cash!AT16+'Fixed Income'!AT16+Equities!AT16+'Real Estate'!AT16+'Alternative Investment'!AT16) -> 92039.34015 | DL8: =(Cash!AY16+'Fixed Income'!AY16+Equities!AY16+'Real Estate'!AY16+'Alternative Investment'!AY16) -> 2304969.965 | DM8: 2397009.305 | DO8: =('Cash (2)'!AB16+'Fixed Income (2)'!AB16+'Equities (2)'!AB16+'Real Estate (2)'!AB16+'Alternative Investment (2)'!AB16) -> 90802.03129 | DP8: 462897.9684 | DQ8: =('Cash (2)'!AT16+'Fixed Income (2)'!AT16+'Equities (2)'!AT16+'Real Estate (2)'!AT16+'Alternative Investment (2)'!AT16) -> 98532.52806 | DR8: =('Cash (2)'!AY16+'Fixed Income (2)'!AY16+'Equities (2)'!AY16+'Real Estate (2)'!AY16+'Alternative Investment (2)'!AY16) -> 2562200.273 | DS8: 2660732.802
A9: =IF(ISNUMBER(B9),(A8+1),IF(ISNUMBER(H9),(A8+1),IF(ISNUMBER(N9),(A8+1),IF(ISNUMBER(AD9),(A8+1),IF(ISNUMBER(#REF!),(A8+1),IF(ISNUMBER(#REF!),(A8+1),NA())))))) -> 7 | B9: =IF(ISNUMBER(Scenario1!F8),IF(Scenario1!$EG$10="English",IF(Scenario1!$EG$8="Protect/Accum",IF(Scenario1!EG$4="Current",(Scenario1!F8-Scenario1!AJ8),IF(Scenario1!EG$4="Current minus 1%",(Scenario1!G8-Scenario1!AK8),IF(Scenario1!EG$4="Custom",(Scenario1!G8-Scenario1!AK8),IF(Scenario1!EG$4="Current minus 2%",(Scenario1!H8-Scenario1!AL8))))),IF(Scenario1!$EG$8="Accelerator",IF(Scenario1!EG$4="Current",(Scenario1!F8),IF(Scenario1!EG$4="Current minus 1%",(Scenario1!G8),IF(Scenario1!EG$4="Custom",(Scenario1!G8),IF(Scenario1!EG$4="Current minus 2%",(Scenario1!H8))))),IF(Scenario1!EG$4="Sun Life Evolve Term",IF(Scenario1!EG$6="Monthly",(Scenario1!K8),(Scenario1!G8)),IF(Scenario1!EG$4="Not applicable",IF(Scenario1!$EG$8="PermLife",IF(VLOOKUP("Premium Frequency",Scenario1!$A$150:'Scenario1'!$B$170,2,FALSE)="Monthly",(Scenario1!F8*12),(Scenario1!F8))),(Scenario1!C8))))),IF(Scenario1!$EG$8="Protect/Accum",IF(Scenario1!EG$4="Taux actuel",(Scenario1!F8-Scenario1!AJ8),IF(Scenario1!EG$4="Taux actuel moins 1%",(Scenario1!G8-Scenario1!AK8),IF(Scenario1!EG$4="Taux personnalisé",(Scenario1!G8-Scenario1!AK8),IF(Scenario1!EG$4="Taux actuel moins 2%",(Scenario1!H8-Scenario1!AL8))))),IF(Scenario1!$EG$8="Accelerator",IF(Scenario1!EG$4="Taux actuel",(Scenario1!F8),IF(Scenario1!EG$4="Taux actuel moins 1%",(Scenario1!G8),IF(Scenario1!EG$4="Taux personnalisé",(Scenario1!G8),IF(Scenario1!EG$4="Taux actuel moins 2%",(Scenario1!H8))))),IF(Scenario1!EG$4="Assurance-vie temporaire Évolution Sun Life",IF(Scenario1!EG$6="Monthly",(Scenario1!K8),(Scenario1!G8)),IF(Scenario1!EG$4="Pas applicable",IF(Scenario1!$EG$8="PermLife",IF(VLOOKUP("Périodicité de la prime",Scenario1!$A$150:'Scenario1'!$B$170,2,FALSE)="Mensuelle",(Scenario1!F8*12),(Scenario1!F8))),(Scenario1!C8)))))),NA()) -> 49999.61 | C9: =SUM($B$3,NPV($AT$11,B$4:B9)) -> 349997.27 | D9: =IF(ISNUMBER(Scenario1!J8),IF(Scenario1!$EG$10="English",IF(Scenario1!$EG$8="Protect/Accum",IF(Scenario1!EG$4="Current",(Scenario1!J8),IF(Scenario1!EG$4="Current minus 1%",(Scenario1!K8),IF(Scenario1!EG$4="Custom",(Scenario1!K8),IF(Scenario1!EG$4="Current minus 2%",(Scenario1!L8))))),IF(Scenario1!$EG$8="Accelerator",IF(Scenario1!EG$4="Current",(Scenario1!J8),IF(Scenario1!EG$4="Current minus 1%",(Scenario1!K8),IF(Scenario1!EG$4="Custom",(Scenario1!K8),IF(Scenario1!EG$4="Current minus 2%",(Scenario1!L8))))),IF(Scenario1!EG$4="Sun Term - NA",0,IF(Scenario1!$EG$8="SunSpectrumUL",(IF(Scenario1!EG$4="Primary rate",(Scenario1!M8),IF(Scenario1!EG$4="Secondary rate",(Scenario1!N8),IF(Scenario1!EG$4="Alternate rate",(Scenario1!O8),(Scenario1!C8))))),IF(Scenario1!$EG$8="PermLife",(Scenario1!C8),IF(AND(Scenario1!$EG$8="SunUniversalLife",Scenario1!$EJ$21=1),IF(Scenario1!EG$4="Primary rate",(Scenario1!N8),IF(Scenario1!EG$4="Secondary rate",(Scenario1!O8),IF(Scenario1!EG$4="Alternate rate",(Scenario1!P8)))),IF(Scenario1!EG$4="Primary rate",(Scenario1!M8),IF(Scenario1!EG$4="Secondary rate",(Scenario1!N8),IF(Scenario1!EG$4="Alternate rate",(Scenario1!O8)))))))))),IF(Scenario1!$EG$8="Protect/Accum",IF(Scenario1!EG$4="Taux actuel",(Scenario1!J8),IF(Scenario1!EG$4="Taux actuel moins 1%",(Scenario1!K8),IF(Scenario1!EG$4="Taux personnalisé",(Scenario1!K8),IF(Scenario1!EG$4="Taux actuel moins 2%",(Scenario1!L8))))),IF(Scenario1!$EG$8="Accelerator",IF(Scenario1!EG$4="Taux actuel",(Scenario1!J8),IF(Scenario1!EG$4="Taux actuel moins 1%",(Scenario1!K8),IF(Scenario1!EG$4="Taux personnalisé",(Scenario1!K8),IF(Scenario1!EG$4="Taux actuel moins 2%",(Scenario1!L8))))),IF(Scenario1!EG$4="Temporaire - NA",0,IF(Scenario1!$EG$8="SunSpectrumUL",(IF(Scenario1!EG$4="Taux principal",(Scenario1!M8),IF(Scenario1!EG$4="Taux secondaire",(Scenario1!N8),IF(Scenario1!EG$4="Autre taux",(Scenario1!O8),(Scenario1!C8))))),IF(Scenario1!$EG$8="PermLife",(Scenario1!C8),IF(AND(Scenario1!$EG$8="SunUniversalLife",Scenario1!$EJ$21=1),IF(Scenario1!EG$4="Taux principal",(Scenario1!N8),IF(Scenario1!EG$4="Taux secondaire",(Scenario1!O8),IF(Scenario1!EG$4="Autre taux",(Scenario1!P8),(Scenario1!C8)))),IF(Scenario1!EG$4="Taux principal",(Scenario1!M8),IF(Scenario1!EG$4="Taux secondaire",(Scenario1!N8),IF(Scenario1!EG$4="Autre taux",(Scenario1!O8),(Scenario1!C8))))))))))),NA()) -> 274593 | E9: =IF(ISNUMBER(Scenario1!C8),IF(Scenario1!$EG$10="English",IF(Scenario1!$EG$8="Protect/Accum",IF(Scenario1!EG$4="Current",(Scenario1!O8),IF(Scenario1!EG$4="Current minus 1%",(Scenario1!P8),IF(Scenario1!EG$4="Custom",(Scenario1!P8),IF(Scenario1!EG$4="Current minus 2%",(Scenario1!Q8))))),IF(Scenario1!$EG$8="Accelerator",IF(Scenario1!EG$4="Current",(Scenario1!O8),IF(Scenario1!EG$4="Current minus 1%",(Scenario1!P8),IF(Scenario1!EG$4="Custom",(Scenario1!P8),IF(Scenario1!EG$4="Current minus 2%",(Scenario1!Q8))))),IF(Scenario1!EG$4="Sun Life Evolve Term",HLOOKUP("Total Policy Death Benefit",Scenario1!$A$1:$G$100,Calculations!$A9+1,FALSE),IF(Scenario1!$EG$8="SunSpectrumUL",(IF(Scenario1!EG$4="Primary rate",(Scenario1!Q8),IF(Scenario1!EG$4="Secondary rate",(Scenario1!R8),IF(Scenario1!EG$4="Alternate rate",(Scenario1!S8))))),IF(Scenario1!$EG$8="PermLife",(Scenario1!E8),IF(AND(Scenario1!$EG$8="SunUniversalLife",Scenario1!$EJ$21=1),IF(Scenario1!EG$4="Primary rate",(Scenario1!S8),IF(Scenario1!EG$4="Secondary rate",(Scenario1!T8),IF(Scenario1!EG$4="Alternate rate",(Scenario1!U8)))),IF(Scenario1!EG$4="Primary rate",(Scenario1!R8),IF(Scenario1!EG$4="Secondary rate",(Scenario1!S8),IF(Scenario1!EG$4="Alternate rate",(Scenario1!T8)))))))))),IF(Scenario1!$EG$8="Protect/Accum",IF(Scenario1!EG$4="Taux actuel",(Scenario1!O8),IF(Scenario1!EG$4="Taux actuel moins 1%",(Scenario1!P8),IF(Scenario1!EG$4="Taux personnalisé",(Scenario1!P8),IF(Scenario1!EG$4="Taux actuel moins 2%",(Scenario1!Q8))))),IF(Scenario1!$EG$8="Accelerator",IF(Scenario1!EG$4="Taux actuel",(Scenario1!O8),IF(Scenario1!EG$4="Taux actuel moins 1%",(Scenario1!P8),IF(Scenario1!EG$4="Taux personnalisé",(Scenario1!P8),IF(Scenario1!EG$4="Taux actuel moins 2%",(Scenario1!Q8))))),IF(Scenario1!EG$4="Assurance-vie temporaire Évolution Sun Life",HLOOKUP("Capital-décès total du contrat",Scenario1!$A$1:$G$100,Calculations!$A9+1,FALSE),IF(Scenario1!$EG$8="SunSpectrumUL",(IF(Scenario1!EG$4="Taux principal",(Scenario1!Q8),IF(Scenario1!EG$4="Taux secondaire",(Scenario1!R8),IF(Scenario1!EG$4="Autre taux",(Scenario1!S8))))),IF(Scenario1!$EG$8="PermLife",(Scenario1!E8),IF(AND(Scenario1!$EG$8="SunUniversalLife",Scenario1!$EJ$21=1),IF(Scenario1!EG$4="Taux principal",(Scenario1!S8),IF(Scenario1!EG$4="Taux secondaire",(Scenario1!T8),IF(Scenario1!EG$4="Autre taux",(Scenario1!U8),(Scenario1!E8)))),IF(Scenario1!EG$4="Taux principal",(Scenario1!R8),IF(Scenario1!EG$4="Taux secondaire",(Scenario1!S8),IF(Scenario1!EG$4="Autre taux",(Scenario1!T8),(Scenario1!E8))))))))))),NA()) -> 1642227 | F9: =IF(ISNUMBER(Scenario1!M8),IF(Scenario1!$EG$10="English",IF(Scenario1!$EG$8="Protect/Accum",IF(Scenario1!EG$4="Current",(Scenario1!BO8),IF(Scenario1!EG$4="Current minus 1%",(Scenario1!BP8),IF(Scenario1!EG$4="Custom",(Scenario1!BP8),IF(Scenario1!EG$4="Current minus 2%",(Scenario1!BQ8))))),IF(Scenario1!$EG$8="Accelerator",IF(Scenario1!EG$4="Current",(Scenario1!BC8),IF(Scenario1!EG$4="Current minus 1%",(Scenario1!BD8),IF(Scenario1!EG$4="Custom",(Scenario1!BD8),IF(Scenario1!EG$4="Current minus 2%",(Scenario1!BE8))))),IF(Scenario1!EG$4="Sun Life Evolve Term",HLOOKUP("ACB",Scenario1!$A$1:$S$100,Calculations!$A9+1,FALSE),IF(Scenario1!$EG$8="SunSpectrumUL",(IF(Scenario1!EG$4="Primary rate",(Scenario1!BF8),IF(Scenario1!EG$4="Secondary rate",(Scenario1!BG8),IF(Scenario1!EG$4="Alternate rate",(Scenario1!BH8))))),IF(Scenario1!$EG$8="PermLife",(Scenario1!AD8),IF(Scenario1!$EG$8="SunUniversalLife",IF(Scenario1!EG$4="Primary rate",HLOOKUP("ACB (Primary rate)",Scenario1!$A$1:$EC$100,Calculations!$A9+1,FALSE),IF(Scenario1!EG$4="Secondary rate",HLOOKUP("ACB (Secondary rate)",Scenario1!$A$1:$EC$100,Calculations!$A9+1,FALSE),IF(Scenario1!EG$4="Alternate rate",HLOOKUP("ACB (Alternate rate)",Scenario1!$A$1:$EC$100,Calculations!$A9+1,FALSE)))))))))),IF(Scenario1!$EG$8="Protect/Accum",IF(Scenario1!EG$4="Taux actuel",(Scenario1!BO8),IF(Scenario1!EG$4="Taux actuel moins 1%",(Scenario1!BP8),IF(Scenario1!EG$4="Taux personnalisé",(Scenario1!BP8),IF(Scenario1!EG$4="Taux actuel moins 2%",(Scenario1!BQ8))))),IF(Scenario1!$EG$8="Accelerator",IF(Scenario1!EG$4="Taux actuel",(Scenario1!BC8),IF(Scenario1!EG$4="Taux actuel moins 1%",(Scenario1!BD8),IF(Scenario1!EG$4="Taux personnalisé",(Scenario1!BD8),IF(Scenario1!EG$4="Taux actuel moins 2%",(Scenario1!BE8))))),IF(Scenario1!EG$4="Assurance-vie temporaire Évolution Sun Life",HLOOKUP("CBR",Scenario1!$A$1:$S$100,Calculations!$A9+1,FALSE),IF(Scenario1!$EG$8="PermLife",(Scenario1!AD8),IF(Scenario1!$EG$8="SunSpectrumUL",(IF(Scenario1!EG$4="Taux principal",(Scenario1!BF8),IF(Scenario1!EG$4="Taux secondaire",(Scenario1!BG8),IF(Scenario1!EG$4="Autre taux",(Scenario1!BH8))))),IF(Scenario1!$EG$8="SunUniversalLife",IF(Scenario1!EG$4="Taux principal",HLOOKUP("CBR (taux principal)",Scenario1!$A$1:$EC$100,Calculations!$A9+1,FALSE),IF(Scenario1!EG$4="Taux secondaire",HLOOKUP("CBR (taux secondaire)",Scenario1!$A$1:$EC$100,Calculations!$A9+1,FALSE),IF(Scenario1!EG$4="Autre taux",(Scenario1!BL8),HLOOKUP("CBR (autre taux)",Scenario1!$A$1:$EC$100,Calculations!$A9+1,FALSE))))))))))),NA()) -> 340420 | G9: =E9-F9*IF(Calculations!$AT$35=TRUE,Calculations!$AT$38/100,0) -> 1498229.34 | H9: =IF(ISNUMBER(Scenario2!F8),IF(Scenario2!$EG$10="English",IF(Scenario2!$EG$8="Protect/Accum",IF(Scenario2!EG$4="Current",(Scenario2!F8-Scenario2!AJ8),IF(Scenario2!EG$4="Current minus 1%",(Scenario2!G8-Scenario2!AK8),IF(Scenario2!EG$4="Custom",(Scenario2!G8-Scenario2!AK8),IF(Scenario2!EG$4="Current minus 2%",(Scenario2!H8-Scenario2!AL8))))),IF(Scenario2!$EG$8="Accelerator",IF(Scenario2!EG$4="Current",(Scenario2!F8),IF(Scenario2!EG$4="Current minus 1%",(Scenario2!G8),IF(Scenario2!EG$4="Custom",(Scenario2!G8),IF(Scenario2!EG$4="Current minus 2%",(Scenario2!H8))))),IF(Scenario2!EG$4="Sun Term - NA",IF(Scenario2!EG$6="Monthly",(Scenario2!K8),(Scenario2!G8)),IF(Scenario2!EG$4="Not applicable",IF(Scenario2!$EG$8="PermLife",IF(VLOOKUP("Premium Frequency",Scenario2!$A$150:'Scenario2'!$B$170,2,FALSE)="Monthly",(Scenario2!F8*12),(Scenario2!F8))),(Scenario2!C8))))),IF(Scenario2!$EG$8="Protect/Accum",IF(Scenario2!EG$4="Taux actuel",(Scenario2!F8-Scenario2!AJ8),IF(Scenario2!EG$4="Taux actuel moins 1%",(Scenario2!G8-Scenario2!AK8),IF(Scenario2!EG$4="Taux personnalisé",(Scenario2!G8-Scenario2!AK8),IF(Scenario2!EG$4="Taux actuel moins 2%",(Scenario2!H8-Scenario2!AL8))))),IF(Scenario2!$EG$8="Accelerator",IF(Scenario2!EG$4="Taux actuel",(Scenario2!F8),IF(Scenario2!EG$4="Taux actuel moins 1%",(Scenario2!G8),IF(Scenario2!EG$4="Taux personnalisé",(Scenario2!G8),IF(Scenario2!EG$4="Taux actuel moins 2%",(Scenario2!H8))))),IF(Scenario2!EG$4="Temporaire - NA",IF(Scenario2!EG$6="Monthly",(Scenario2!K8),(Scenario2!G8)),IF(Scenario2!EG$4="Pas applicable",IF(Scenario2!$EG$8="PermLife",IF(VLOOKUP("Périodicité de la prime",Scenario2!$A$150:'Scenario2'!$B$170,2,FALSE)="Mensuelle",(Scenario2!F8*12),(Scenario2!F8))),(Scenario2!C8)))))),NA()) -> 40000 | I9: =SUM($H$3,NPV($AT$11,H$4:H9)) -> 280000 | J9: =IF(ISNUMBER(Scenario2!J8),IF(Scenario2!$EG$10="English",IF(Scenario2!$EG$8="Protect/Accum",IF(Scenario2!EG$4="Current",(Scenario2!J8),IF(Scenario2!EG$4="Current minus 1%",(Scenario2!K8),IF(Scenario2!EG$4="Custom",(Scenario2!K8),IF(Scenario2!EG$4="Current minus 2%",(Scenario2!L8))))),IF(Scenario2!$EG$8="Accelerator",IF(Scenario2!EG$4="Current",(Scenario2!J8),IF(Scenario2!EG$4="Current minus 1%",(Scenario2!K8),IF(Scenario2!EG$4="Custom",(Scenario2!K8),IF(Scenario2!EG$4="Current minus 2%",(Scenario2!L8))))),IF(Scenario2!EG$4="Sun Term - NA",0,IF(Scenario2!$EG$8="SunSpectrumUL",(IF(Scenario2!EG$4="Primary rate",(Scenario2!M8),IF(Scenario2!EG$4="Secondary rate",(Scenario2!N8),IF(Scenario2!EG$4="Alternate rate",(Scenario2!O8),(Scenario2!C8))))),IF(Scenario2!$EG$8="PermLife",(Scenario2!C8),IF(AND(Scenario2!$EG$8="SunUniversalLife",Scenario2!$EJ$21=1),IF(Scenario2!EG$4="Primary rate",(Scenario2!N8),IF(Scenario2!EG$4="Secondary rate",(Scenario2!O8),IF(Scenario2!EG$4="Alternate rate",(Scenario2!P8)))),IF(Scenario2!EG$4="Primary rate",(Scenario2!M8),IF(Scenario2!EG$4="Secondary rate",(Scenario2!N8),IF(Scenario2!EG$4="Alternate rate",(Scenario2!O8)))))))))),IF(Scenario2!$EG$8="Protect/Accum",IF(Scenario2!EG$4="Taux actuel",(Scenario2!J8),IF(Scenario2!EG$4="Taux actuel moins 1%",(Scenario2!K8),IF(Scenario2!EG$4="Taux personnalisé",(Scenario2!K8),IF(Scenario2!EG$4="Taux actuel moins 2%",(Scenario2!L8))))),IF(Scenario2!$EG$8="Accelerator",IF(Scenario2!EG$4="Taux actuel",(Scenario2!J8),IF(Scenario2!EG$4="Taux actuel moins 1%",(Scenario2!K8),IF(Scenario2!EG$4="Taux personnalisé",(Scenario2!K8),IF(Scenario2!EG$4="Taux actuel moins 2%",(Scenario2!L8))))),IF(Scenario2!EG$4="Temporaire - NA",0,IF(Scenario2!$EG$8="SunSpectrumUL",(IF(Scenario2!EG$4="Taux principal",(Scenario2!M8),IF(Scenario2!EG$4="Taux secondaire",(Scenario2!N8),IF(Scenario2!EG$4="Autre taux",(Scenario2!O8),(Scenario2!C8))))),IF(Scenario2!$EG$8="PermLife",(Scenario2!C8),IF(AND(Scenario2!$EG$8="SunUniversalLife",Scenario2!$EJ$21=1),IF(Scenario2!EG$4="Taux principal",(Scenario2!N8),IF(Scenario2!EG$4="Taux secondaire",(Scenario2!O8),IF(Scenario2!EG$4="Autre taux",(Scenario2!P8),(Scenario2!C8)))),IF(Scenario2!EG$4="Taux principal",(Scenario2!M8),IF(Scenario2!EG$4="Taux secondaire",(Scenario2!N8),IF(Scenario2!EG$4="Autre taux",(Scenario2!O8),(Scenario2!C8))))))))))),NA()) -> 218853 | K9: =IF(ISNUMBER(Scenario2!C8),IF(Scenario2!$EG$10="English",IF(Scenario2!$EG$8="Protect/Accum",IF(Scenario2!EG$4="Current",(Scenario2!O8),IF(Scenario2!EG$4="Current minus 1%",(Scenario2!P8),IF(Scenario2!EG$4="Custom",(Scenario2!P8),IF(Scenario2!EG$4="Current minus 2%",(Scenario2!Q8))))),IF(Scenario2!$EG$8="Accelerator",IF(Scenario2!EG$4="Current",(Scenario2!O8),IF(Scenario2!EG$4="Current minus 1%",(Scenario2!P8),IF(Scenario2!EG$4="Custom",(Scenario2!P8),IF(Scenario2!EG$4="Current minus 2%",(Scenario2!Q8))))),IF(Scenario2!EG$4="Sun Term - NA",HLOOKUP("Total Policy Death Benefit",Scenario2!$A$1:$G$100,Calculations!$A9+1,FALSE),IF(Scenario2!$EG$8="SunSpectrumUL",(IF(Scenario2!EG$4="Primary rate",(Scenario2!Q8),IF(Scenario2!EG$4="Secondary rate",(Scenario2!R8),IF(Scenario2!EG$4="Alternate rate",(Scenario2!S8))))),IF(Scenario2!$EG$8="PermLife",(Scenario2!E8),IF(AND(Scenario2!$EG$8="SunUniversalLife",Scenario2!$EJ$21=1),IF(Scenario2!EG$4="Primary rate",(Scenario2!S8),IF(Scenario2!EG$4="Secondary rate",(Scenario2!T8),IF(Scenario2!EG$4="Alternate rate",(Scenario2!U8)))),IF(Scenario2!EG$4="Primary rate",(Scenario2!R8),IF(Scenario2!EG$4="Secondary rate",(Scenario2!S8),IF(Scenario2!EG$4="Alternate rate",(Scenario2!T8)))))))))),IF(Scenario2!$EG$8="Protect/Accum",IF(Scenario2!EG$4="Taux actuel",(Scenario2!O8),IF(Scenario2!EG$4="Taux actuel moins 1%",(Scenario2!P8),IF(Scenario2!EG$4="Taux personnalisé",(Scenario2!P8),IF(Scenario2!EG$4="Taux actuel moins 2%",(Scenario2!Q8))))),IF(Scenario2!$EG$8="Accelerator",IF(Scenario2!EG$4="Taux actuel",(Scenario2!O8),IF(Scenario2!EG$4="Taux actuel moins 1%",(Scenario2!P8),IF(Scenario2!EG$4="Taux personnalisé",(Scenario2!P8),IF(Scenario2!EG$4="Taux actuel moins 2%",(Scenario2!Q8))))),IF(Scenario2!EG$4="Temporaire - NA",HLOOKUP("Capital-décès total du contrat",Scenario2!$A$1:$G$100,Calculations!$A9+1,FALSE),IF(Scenario2!$EG$8="SunSpectrumUL",(IF(Scenario2!EG$4="Taux principal",(Scenario2!Q8),IF(Scenario2!EG$4="Taux secondaire",(Scenario2!R8),IF(Scenario2!EG$4="Autre taux",(Scenario2!S8))))),IF(Scenario2!$EG$8="PermLife",(Scenario2!E8),IF(AND(Scenario2!$EG$8="SunUniversalLife",Scenario2!$EJ$21=1),IF(Scenario2!EG$4="Taux principal",(Scenario2!S8),IF(Scenario2!EG$4="Taux secondaire",(Scenario2!T8),IF(Scenario2!EG$4="Autre taux",(Scenario2!U8),(Scenario2!E8)))),IF(Scenario2!EG$4="Taux principal",(Scenario2!R8),IF(Scenario2!EG$4="Taux secondaire",(Scenario2!S8),IF(Scenario2!EG$4="Autre taux",(Scenario2!T8),(Scenario2!E8))))))))))),NA()) -> 1493971 | L9: =IF(ISNUMBER(Scenario2!M8),IF(Scenario2!$EG$10="English",IF(Scenario2!$EG$8="Protect/Accum",IF(Scenario2!EG$4="Current",(Scenario2!BO8),IF(Scenario2!EG$4="Current minus 1%",(Scenario2!BP8),IF(Scenario2!EG$4="Custom",(Scenario2!BP8),IF(Scenario2!EG$4="Current minus 2%",(Scenario2!BQ8))))),IF(Scenario2!$EG$8="Accelerator",IF(Scenario2!EG$4="Current",(Scenario2!BC8),IF(Scenario2!EG$4="Current minus 1%",(Scenario2!BD8),IF(Scenario2!EG$4="Custom",(Scenario2!BD8),IF(Scenario2!EG$4="Current minus 2%",(Scenario2!BE8))))),IF(Scenario2!EG$4="Sun Term - NA",HLOOKUP("ACB",Scenario2!$A$1:$S$100,Calculations!$A9+1,FALSE),IF(Scenario2!$EG$8="SunSpectrumUL",(IF(Scenario2!EG$4="Primary rate",(Scenario2!BF8),IF(Scenario2!EG$4="Secondary rate",(Scenario2!BG8),IF(Scenario2!EG$4="Alternate rate",(Scenario2!BH8))))),IF(Scenario2!$EG$8="PermLife",(Scenario2!AD8),IF(Scenario2!$EG$8="SunUniversalLife",IF(Scenario2!EG$4="Primary rate",HLOOKUP("ACB (Primary rate)",Scenario2!$A$1:$EC$100,Calculations!$A9+1,FALSE),IF(Scenario2!EG$4="Secondary rate",HLOOKUP("ACB (Secondary rate)",Scenario2!$A$1:$EC$100,Calculations!$A9+1,FALSE),IF(Scenario2!EG$4="Alternate rate",HLOOKUP("ACB (Alternate rate)",Scenario2!$A$1:$EC$100,Calculations!$A9+1,FALSE)))))))))),IF(Scenario2!$EG$8="Protect/Accum",IF(Scenario2!EG$4="Taux actuel",(Scenario2!BO8),IF(Scenario2!EG$4="Taux actuel moins 1%",(Scenario2!BP8),IF(Scenario2!EG$4="Taux personnalisé",(Scenario2!BP8),IF(Scenario2!EG$4="Taux actuel moins 2%",(Scenario2!BQ8))))),IF(Scenario2!$EG$8="Accelerator",IF(Scenario2!EG$4="Taux actuel",(Scenario2!BC8),IF(Scenario2!EG$4="Taux actuel moins 1%",(Scenario2!BD8),IF(Scenario2!EG$4="Taux personnalisé",(Scenario2!BD8),IF(Scenario2!EG$4="Taux actuel moins 2%",(Scenario2!BE8))))),IF(Scenario2!EG$4="Temporaire - NA",HLOOKUP("CBR",Scenario2!$A$1:$S$100,Calculations!$A9+1,FALSE),IF(Scenario2!$EG$8="PermLife",(Scenario2!AD8),IF(Scenario2!$EG$8="SunSpectrumUL",(IF(Scenario2!EG$4="Taux principal",(Scenario2!BF8),IF(Scenario2!EG$4="Taux secondaire",(Scenario2!BG8),IF(Scenario2!EG$4="Autre taux",(Scenario2!BH8))))),IF(Scenario2!$EG$8="SunUniversalLife",IF(Scenario2!EG$4="Taux principal",HLOOKUP("CBR (taux principal)",Scenario2!$A$1:$EC$100,Calculations!$A9+1,FALSE),IF(Scenario2!EG$4="Taux secondaire",HLOOKUP("CBR (taux secondaire)",Scenario2!$A$1:$EC$100,Calculations!$A9+1,FALSE),IF(Scenario2!EG$4="Autre taux",(Scenario2!BL8),HLOOKUP("CBR (autre taux)",Scenario2!$A$1:$EC$100,Calculations!$A9+1,FALSE))))))))))),NA()) -> 270282.13 | M9: =K9-L9*IF(Calculations!$AT$35=TRUE,Calculations!$AT$38/100,0) -> 1379641.659 | O9: =$AY$51*Cash!AD17+$AY$52*'Fixed Income'!AD17+$AY$53*Equities!AD17+$AY$54*'Real Estate'!AD17+$AY$55*'Alternative Investment'!AD17 -> 3490329.765 | P9: 411273.45 | Q9: 3901603.215 | R9: =(Cash!AD17+'Fixed Income'!AD17+Equities!AD17+'Real Estate'!AD17+'Alternative Investment'!AD17) -> 5684540.249 | S9: =(Cash!AW17+'Fixed Income'!AW17+Equities!AW17+'Real Estate'!AW17+'Alternative Investment'!AW17)+IFERROR(E9-F9,0)+IFERROR(K9-L9,0) -> 3001458.94 | T9: =Cash!AZ17 -> 876860.0169 | U9: ='Fixed Income'!AZ17 -> 375921.3498 | V9: =Equities!AZ17 -> 860331.095 | W9: ='Real Estate'!AZ17 -> 893404.1882 | X9: ='Alternative Investment'!AZ17 -> 663802.8315 | Y9: 3670319.481 | Z9: 2877870.999 | AA9: 6548190.48 | AB9: 0 | AC9: =IRR(($AB$3:$AB9,AA9),0.1) -> 0.03928796932 | AE9: =('Cash (2)'!AD17+'Fixed Income (2)'!AD17+'Equities (2)'!AD17+'Real Estate (2)'!AD17+'Alternative Investment (2)'!AD17) -> 6402832.638 | AF9: =($AY$51*'Cash (2)'!AD17+$AY$52*'Fixed Income (2)'!AD17+$AY$53*'Equities (2)'!AD17+$AY$54*'Real Estate (2)'!AD17+$AY$55*'Alternative Investment (2)'!AD17) -> 4025398.779 | AG9: =('Cash (2)'!AW17+'Fixed Income (2)'!AW17+'Equities (2)'!AW17+'Real Estate (2)'!AW17+'Alternative Investment (2)'!AW17) -> 498075.903 | AH9: ='Cash (2)'!AZ17 -> 876860.0169 | AI9: ='Fixed Income (2)'!AZ17 -> 640909.177 | AJ9: ='Equities (2)'!AZ17 -> 1033982.459 | AK9: ='Real Estate (2)'!AZ17 -> 893404.1882 | AL9: ='Alternative Investment (2)'!AZ17 -> 663802.8315 | AM9: 4108958.673 | AN9: 0 | AO9: =IRR(($AN$3:$AN9,AM9),0.1) -> -0.0276489 | AP9: 49999.61 | AQ9: 8000 | AR9: 32000 | AS9: FileName 6 | AU9: Filepath6 | BB9: 57999.61 | BC9: 32000 | BD9: 89999.61 | BE9: 1300000 | BF9: 552002.34 | BG9: 908000 | BH9: 950000 | BI9: 750000 | BJ9: 0 | BK9: 57999.61 | BL9: 0 | BM9: 0 | BN9: 0 | BO9: 0 | BP9: 0 | BQ9: 32000 | BR9: 0 | BS9: 0 | BT9: 0 | BU9: 57999.61 | BV9: 32000 | BW9: 0 | BX9: 0 | BY9: 1300000 | BZ9: 494002.73 | CA9: 876000 | CB9: 950000 | CC9: 750000 | CE9: =Scenario1!EP8 -> 0 | CF9: =Scenario2!EP8 -> 0 | CG9: 0 | CH9: 1300000 | CI9: 900000 | CJ9: 1100000 | CK9: 950000 | CL9: 750000 | CM9: 0 | CN9: 0 | CO9: 0 | CP9: 0 | CQ9: 0 | CR9: 0 | CS9: 0 | CT9: 0 | CU9: 0 | CV9: 0 | CW9: 0 | CX9: 0 | CY9: 0 | CZ9: 0 | DA9: 0 | DB9: 1300000 | DC9: 900000 | DD9: 1100000 | DE9: 950000 | DF9: 750000 | DH9: 7 | DI9: =(Cash!AB17+'Fixed Income'!AB17+Equities!AB17+'Real Estate'!AB17+'Alternative Investment'!AB17) -> 85065.95994 | DJ9: 519158.5896 | DK9: =(Cash!AT17+'Fixed Income'!AT17+Equities!AT17+'Real Estate'!AT17+'Alternative Investment'!AT17) -> 101126.4978 | DL9: =(Cash!AY17+'Fixed Income'!AY17+Equities!AY17+'Real Estate'!AY17+'Alternative Investment'!AY17) -> 2341789.882 | DM9: 2442916.38 | DO9: =('Cash (2)'!AB17+'Fixed Income (2)'!AB17+'Equities (2)'!AB17+'Real Estate (2)'!AB17+'Alternative Investment (2)'!AB17) -> 95645.45694 | DP9: 558543.4253 | DQ9: =('Cash (2)'!AT17+'Fixed Income (2)'!AT17+'Equities (2)'!AT17+'Real Estate (2)'!AT17+'Alternative Investment (2)'!AT17) -> 109337.0847 | DR9: =('Cash (2)'!AY17+'Fixed Income (2)'!AY17+'Equities (2)'!AY17+'Real Estate (2)'!AY17+'Alternative Investment (2)'!AY17) -> 2647146.294 | DS9: 2756483.379
A10: =IF(ISNUMBER(B10),(A9+1),IF(ISNUMBER(H10),(A9+1),IF(ISNUMBER(N10),(A9+1),IF(ISNUMBER(AD10),(A9+1),IF(ISNUMBER(#REF!),(A9+1),IF(ISNUMBER(#REF!),(A9+1),NA())))))) -> 8 | B10: =IF(ISNUMBER(Scenario1!F9),IF(Scenario1!$EG$10="English",IF(Scenario1!$EG$8="Protect/Accum",IF(Scenario1!EG$4="Current",(Scenario1!F9-Scenario1!AJ9),IF(Scenario1!EG$4="Current minus 1%",(Scenario1!G9-Scenario1!AK9),IF(Scenario1!EG$4="Custom",(Scenario1!G9-Scenario1!AK9),IF(Scenario1!EG$4="Current minus 2%",(Scenario1!H9-Scenario1!AL9))))),IF(Scenario1!$EG$8="Accelerator",IF(Scenario1!EG$4="Current",(Scenario1!F9),IF(Scenario1!EG$4="Current minus 1%",(Scenario1!G9),IF(Scenario1!EG$4="Custom",(Scenario1!G9),IF(Scenario1!EG$4="Current minus 2%",(Scenario1!H9))))),IF(Scenario1!EG$4="Sun Life Evolve Term",IF(Scenario1!EG$6="Monthly",(Scenario1!K9),(Scenario1!G9)),IF(Scenario1!EG$4="Not applicable",IF(Scenario1!$EG$8="PermLife",IF(VLOOKUP("Premium Frequency",Scenario1!$A$150:'Scenario1'!$B$170,2,FALSE)="Monthly",(Scenario1!F9*12),(Scenario1!F9))),(Scenario1!C9))))),IF(Scenario1!$EG$8="Protect/Accum",IF(Scenario1!EG$4="Taux actuel",(Scenario1!F9-Scenario1!AJ9),IF(Scenario1!EG$4="Taux actuel moins 1%",(Scenario1!G9-Scenario1!AK9),IF(Scenario1!EG$4="Taux personnalisé",(Scenario1!G9-Scenario1!AK9),IF(Scenario1!EG$4="Taux actuel moins 2%",(Scenario1!H9-Scenario1!AL9))))),IF(Scenario1!$EG$8="Accelerator",IF(Scenario1!EG$4="Taux actuel",(Scenario1!F9),IF(Scenario1!EG$4="Taux actuel moins 1%",(Scenario1!G9),IF(Scenario1!EG$4="Taux personnalisé",(Scenario1!G9),IF(Scenario1!EG$4="Taux actuel moins 2%",(Scenario1!H9))))),IF(Scenario1!EG$4="Assurance-vie temporaire Évolution Sun Life",IF(Scenario1!EG$6="Monthly",(Scenario1!K9),(Scenario1!G9)),IF(Scenario1!EG$4="Pas applicable",IF(Scenario1!$EG$8="PermLife",IF(VLOOKUP("Périodicité de la prime",Scenario1!$A$150:'Scenario1'!$B$170,2,FALSE)="Mensuelle",(Scenario1!F9*12),(Scenario1!F9))),(Scenario1!C9)))))),NA()) -> 49999.61 | C10: =SUM($B$3,NPV($AT$11,B$4:B10)) -> 399996.88 | D10: =IF(ISNUMBER(Scenario1!J9),IF(Scenario1!$EG$10="English",IF(Scenario1!$EG$8="Protect/Accum",IF(Scenario1!EG$4="Current",(Scenario1!J9),IF(Scenario1!EG$4="Current minus 1%",(Scenario1!K9),IF(Scenario1!EG$4="Custom",(Scenario1!K9),IF(Scenario1!EG$4="Current minus 2%",(Scenario1!L9))))),IF(Scenario1!$EG$8="Accelerator",IF(Scenario1!EG$4="Current",(Scenario1!J9),IF(Scenario1!EG$4="Current minus 1%",(Scenario1!K9),IF(Scenario1!EG$4="Custom",(Scenario1!K9),IF(Scenario1!EG$4="Current minus 2%",(Scenario1!L9))))),IF(Scenario1!EG$4="Sun Term - NA",0,IF(Scenario1!$EG$8="SunSpectrumUL",(IF(Scenario1!EG$4="Primary rate",(Scenario1!M9),IF(Scenario1!EG$4="Secondary rate",(Scenario1!N9),IF(Scenario1!EG$4="Alternate rate",(Scenario1!O9),(Scenario1!C9))))),IF(Scenario1!$EG$8="PermLife",(Scenario1!C9),IF(AND(Scenario1!$EG$8="SunUniversalLife",Scenario1!$EJ$21=1),IF(Scenario1!EG$4="Primary rate",(Scenario1!N9),IF(Scenario1!EG$4="Secondary rate",(Scenario1!O9),IF(Scenario1!EG$4="Alternate rate",(Scenario1!P9)))),IF(Scenario1!EG$4="Primary rate",(Scenario1!M9),IF(Scenario1!EG$4="Secondary rate",(Scenario1!N9),IF(Scenario1!EG$4="Alternate rate",(Scenario1!O9)))))))))),IF(Scenario1!$EG$8="Protect/Accum",IF(Scenario1!EG$4="Taux actuel",(Scenario1!J9),IF(Scenario1!EG$4="Taux actuel moins 1%",(Scenario1!K9),IF(Scenario1!EG$4="Taux personnalisé",(Scenario1!K9),IF(Scenario1!EG$4="Taux actuel moins 2%",(Scenario1!L9))))),IF(Scenario1!$EG$8="Accelerator",IF(Scenario1!EG$4="Taux actuel",(Scenario1!J9),IF(Scenario1!EG$4="Taux actuel moins 1%",(Scenario1!K9),IF(Scenario1!EG$4="Taux personnalisé",(Scenario1!K9),IF(Scenario1!EG$4="Taux actuel moins 2%",(Scenario1!L9))))),IF(Scenario1!EG$4="Temporaire - NA",0,IF(Scenario1!$EG$8="SunSpectrumUL",(IF(Scenario1!EG$4="Taux principal",(Scenario1!M9),IF(Scenario1!EG$4="Taux secondaire",(Scenario1!N9),IF(Scenario1!EG$4="Autre taux",(Scenario1!O9),(Scenario1!C9))))),IF(Scenario1!$EG$8="PermLife",(Scenario1!C9),IF(AND(Scenario1!$EG$8="SunUniversalLife",Scenario1!$EJ$21=1),IF(Scenario1!EG$4="Taux principal",(Scenario1!N9),IF(Scenario1!EG$4="Taux secondaire",(Scenario1!O9),IF(Scenario1!EG$4="Autre taux",(Scenario1!P9),(Scenario1!C9)))),IF(Scenario1!EG$4="Taux principal",(Scenario1!M9),IF(Scenario1!EG$4="Taux secondaire",(Scenario1!N9),IF(Scenario1!EG$4="Autre taux",(Scenario1!O9),(Scenario1!C9))))))))))),NA()) -> 336633 | E10: =IF(ISNUMBER(Scenario1!C9),IF(Scenario1!$EG$10="English",IF(Scenario1!$EG$8="Protect/Accum",IF(Scenario1!EG$4="Current",(Scenario1!O9),IF(Scenario1!EG$4="Current minus 1%",(Scenario1!P9),IF(Scenario1!EG$4="Custom",(Scenario1!P9),IF(Scenario1!EG$4="Current minus 2%",(Scenario1!Q9))))),IF(Scenario1!$EG$8="Accelerator",IF(Scenario1!EG$4="Current",(Scenario1!O9),IF(Scenario1!EG$4="Current minus 1%",(Scenario1!P9),IF(Scenario1!EG$4="Custom",(Scenario1!P9),IF(Scenario1!EG$4="Current minus 2%",(Scenario1!Q9))))),IF(Scenario1!EG$4="Sun Life Evolve Term",HLOOKUP("Total Policy Death Benefit",Scenario1!$A$1:$G$100,Calculations!$A10+1,FALSE),IF(Scenario1!$EG$8="SunSpectrumUL",(IF(Scenario1!EG$4="Primary rate",(Scenario1!Q9),IF(Scenario1!EG$4="Secondary rate",(Scenario1!R9),IF(Scenario1!EG$4="Alternate rate",(Scenario1!S9))))),IF(Scenario1!$EG$8="PermLife",(Scenario1!E9),IF(AND(Scenario1!$EG$8="SunUniversalLife",Scenario1!$EJ$21=1),IF(Scenario1!EG$4="Primary rate",(Scenario1!S9),IF(Scenario1!EG$4="Secondary rate",(Scenario1!T9),IF(Scenario1!EG$4="Alternate rate",(Scenario1!U9)))),IF(Scenario1!EG$4="Primary rate",(Scenario1!R9),IF(Scenario1!EG$4="Secondary rate",(Scenario1!S9),IF(Scenario1!EG$4="Alternate rate",(Scenario1!T9)))))))))),IF(Scenario1!$EG$8="Protect/Accum",IF(Scenario1!EG$4="Taux actuel",(Scenario1!O9),IF(Scenario1!EG$4="Taux actuel moins 1%",(Scenario1!P9),IF(Scenario1!EG$4="Taux personnalisé",(Scenario1!P9),IF(Scenario1!EG$4="Taux actuel moins 2%",(Scenario1!Q9))))),IF(Scenario1!$EG$8="Accelerator",IF(Scenario1!EG$4="Taux actuel",(Scenario1!O9),IF(Scenario1!EG$4="Taux actuel moins 1%",(Scenario1!P9),IF(Scenario1!EG$4="Taux personnalisé",(Scenario1!P9),IF(Scenario1!EG$4="Taux actuel moins 2%",(Scenario1!Q9))))),IF(Scenario1!EG$4="Assurance-vie temporaire Évolution Sun Life",HLOOKUP("Capital-décès total du contrat",Scenario1!$A$1:$G$100,Calculations!$A10+1,FALSE),IF(Scenario1!$EG$8="SunSpectrumUL",(IF(Scenario1!EG$4="Taux principal",(Scenario1!Q9),IF(Scenario1!EG$4="Taux secondaire",(Scenario1!R9),IF(Scenario1!EG$4="Autre taux",(Scenario1!S9))))),IF(Scenario1!$EG$8="PermLife",(Scenario1!E9),IF(AND(Scenario1!$EG$8="SunUniversalLife",Scenario1!$EJ$21=1),IF(Scenario1!EG$4="Taux principal",(Scenario1!S9),IF(Scenario1!EG$4="Taux secondaire",(Scenario1!T9),IF(Scenario1!EG$4="Autre taux",(Scenario1!U9),(Scenario1!E9)))),IF(Scenario1!EG$4="Taux principal",(Scenario1!R9),IF(Scenario1!EG$4="Taux secondaire",(Scenario1!S9),IF(Scenario1!EG$4="Autre taux",(Scenario1!T9),(Scenario1!E9))))))))))),NA()) -> 1743114 | F10: =IF(ISNUMBER(Scenario1!M9),IF(Scenario1!$EG$10="English",IF(Scenario1!$EG$8="Protect/Accum",IF(Scenario1!EG$4="Current",(Scenario1!BO9),IF(Scenario1!EG$4="Current minus 1%",(Scenario1!BP9),IF(Scenario1!EG$4="Custom",(Scenario1!BP9),IF(Scenario1!EG$4="Current minus 2%",(Scenario1!BQ9))))),IF(Scenario1!$EG$8="Accelerator",IF(Scenario1!EG$4="Current",(Scenario1!BC9),IF(Scenario1!EG$4="Current minus 1%",(Scenario1!BD9),IF(Scenario1!EG$4="Custom",(Scenario1!BD9),IF(Scenario1!EG$4="Current minus 2%",(Scenario1!BE9))))),IF(Scenario1!EG$4="Sun Life Evolve Term",HLOOKUP("ACB",Scenario1!$A$1:$S$100,Calculations!$A10+1,FALSE),IF(Scenario1!$EG$8="SunSpectrumUL",(IF(Scenario1!EG$4="Primary rate",(Scenario1!BF9),IF(Scenario1!EG$4="Secondary rate",(Scenario1!BG9),IF(Scenario1!EG$4="Alternate rate",(Scenario1!BH9))))),IF(Scenario1!$EG$8="PermLife",(Scenario1!AD9),IF(Scenario1!$EG$8="SunUniversalLife",IF(Scenario1!EG$4="Primary rate",HLOOKUP("ACB (Primary rate)",Scenario1!$A$1:$EC$100,Calculations!$A10+1,FALSE),IF(Scenario1!EG$4="Secondary rate",HLOOKUP("ACB (Secondary rate)",Scenario1!$A$1:$EC$100,Calculations!$A10+1,FALSE),IF(Scenario1!EG$4="Alternate rate",HLOOKUP("ACB (Alternate rate)",Scenario1!$A$1:$EC$100,Calculations!$A10+1,FALSE)))))))))),IF(Scenario1!$EG$8="Protect/Accum",IF(Scenario1!EG$4="Taux actuel",(Scenario1!BO9),IF(Scenario1!EG$4="Taux actuel moins 1%",(Scenario1!BP9),IF(Scenario1!EG$4="Taux personnalisé",(Scenario1!BP9),IF(Scenario1!EG$4="Taux actuel moins 2%",(Scenario1!BQ9))))),IF(Scenario1!$EG$8="Accelerator",IF(Scenario1!EG$4="Taux actuel",(Scenario1!BC9),IF(Scenario1!EG$4="Taux actuel moins 1%",(Scenario1!BD9),IF(Scenario1!EG$4="Taux personnalisé",(Scenario1!BD9),IF(Scenario1!EG$4="Taux actuel moins 2%",(Scenario1!BE9))))),IF(Scenario1!EG$4="Assurance-vie temporaire Évolution Sun Life",HLOOKUP("CBR",Scenario1!$A$1:$S$100,Calculations!$A10+1,FALSE),IF(Scenario1!$EG$8="PermLife",(Scenario1!AD9),IF(Scenario1!$EG$8="SunSpectrumUL",(IF(Scenario1!EG$4="Taux principal",(Scenario1!BF9),IF(Scenario1!EG$4="Taux secondaire",(Scenario1!BG9),IF(Scenario1!EG$4="Autre taux",(Scenario1!BH9))))),IF(Scenario1!$EG$8="SunUniversalLife",IF(Scenario1!EG$4="Taux principal",HLOOKUP("CBR (taux principal)",Scenario1!$A$1:$EC$100,Calculations!$A10+1,FALSE),IF(Scenario1!EG$4="Taux secondaire",HLOOKUP("CBR (taux secondaire)",Scenario1!$A$1:$EC$100,Calculations!$A10+1,FALSE),IF(Scenario1!EG$4="Autre taux",(Scenario1!BL9),HLOOKUP("CBR (autre taux)",Scenario1!$A$1:$EC$100,Calculations!$A10+1,FALSE))))))))))),NA()) -> 387616 | G10: =E10-F10*IF(Calculations!$AT$35=TRUE,Calculations!$AT$38/100,0) -> 1579152.432 | H10: =IF(ISNUMBER(Scenario2!F9),IF(Scenario2!$EG$10="English",IF(Scenario2!$EG$8="Protect/Accum",IF(Scenario2!EG$4="Current",(Scenario2!F9-Scenario2!AJ9),IF(Scenario2!EG$4="Current minus 1%",(Scenario2!G9-Scenario2!AK9),IF(Scenario2!EG$4="Custom",(Scenario2!G9-Scenario2!AK9),IF(Scenario2!EG$4="Current minus 2%",(Scenario2!H9-Scenario2!AL9))))),IF(Scenario2!$EG$8="Accelerator",IF(Scenario2!EG$4="Current",(Scenario2!F9),IF(Scenario2!EG$4="Current minus 1%",(Scenario2!G9),IF(Scenario2!EG$4="Custom",(Scenario2!G9),IF(Scenario2!EG$4="Current minus 2%",(Scenario2!H9))))),IF(Scenario2!EG$4="Sun Term - NA",IF(Scenario2!EG$6="Monthly",(Scenario2!K9),(Scenario2!G9)),IF(Scenario2!EG$4="Not applicable",IF(Scenario2!$EG$8="PermLife",IF(VLOOKUP("Premium Frequency",Scenario2!$A$150:'Scenario2'!$B$170,2,FALSE)="Monthly",(Scenario2!F9*12),(Scenario2!F9))),(Scenario2!C9))))),IF(Scenario2!$EG$8="Protect/Accum",IF(Scenario2!EG$4="Taux actuel",(Scenario2!F9-Scenario2!AJ9),IF(Scenario2!EG$4="Taux actuel moins 1%",(Scenario2!G9-Scenario2!AK9),IF(Scenario2!EG$4="Taux personnalisé",(Scenario2!G9-Scenario2!AK9),IF(Scenario2!EG$4="Taux actuel moins 2%",(Scenario2!H9-Scenario2!AL9))))),IF(Scenario2!$EG$8="Accelerator",IF(Scenario2!EG$4="Taux actuel",(Scenario2!F9),IF(Scenario2!EG$4="Taux actuel moins 1%",(Scenario2!G9),IF(Scenario2!EG$4="Taux personnalisé",(Scenario2!G9),IF(Scenario2!EG$4="Taux actuel moins 2%",(Scenario2!H9))))),IF(Scenario2!EG$4="Temporaire - NA",IF(Scenario2!EG$6="Monthly",(Scenario2!K9),(Scenario2!G9)),IF(Scenario2!EG$4="Pas applicable",IF(Scenario2!$EG$8="PermLife",IF(VLOOKUP("Périodicité de la prime",Scenario2!$A$150:'Scenario2'!$B$170,2,FALSE)="Mensuelle",(Scenario2!F9*12),(Scenario2!F9))),(Scenario2!C9)))))),NA()) -> 40000 | I10: =SUM($H$3,NPV($AT$11,H$4:H10)) -> 320000 | J10: =IF(ISNUMBER(Scenario2!J9),IF(Scenario2!$EG$10="English",IF(Scenario2!$EG$8="Protect/Accum",IF(Scenario2!EG$4="Current",(Scenario2!J9),IF(Scenario2!EG$4="Current minus 1%",(Scenario2!K9),IF(Scenario2!EG$4="Custom",(Scenario2!K9),IF(Scenario2!EG$4="Current minus 2%",(Scenario2!L9))))),IF(Scenario2!$EG$8="Accelerator",IF(Scenario2!EG$4="Current",(Scenario2!J9),IF(Scenario2!EG$4="Current minus 1%",(Scenario2!K9),IF(Scenario2!EG$4="Custom",(Scenario2!K9),IF(Scenario2!EG$4="Current minus 2%",(Scenario2!L9))))),IF(Scenario2!EG$4="Sun Term - NA",0,IF(Scenario2!$EG$8="SunSpectrumUL",(IF(Scenario2!EG$4="Primary rate",(Scenario2!M9),IF(Scenario2!EG$4="Secondary rate",(Scenario2!N9),IF(Scenario2!EG$4="Alternate rate",(Scenario2!O9),(Scenario2!C9))))),IF(Scenario2!$EG$8="PermLife",(Scenario2!C9),IF(AND(Scenario2!$EG$8="SunUniversalLife",Scenario2!$EJ$21=1),IF(Scenario2!EG$4="Primary rate",(Scenario2!N9),IF(Scenario2!EG$4="Secondary rate",(Scenario2!O9),IF(Scenario2!EG$4="Alternate rate",(Scenario2!P9)))),IF(Scenario2!EG$4="Primary rate",(Scenario2!M9),IF(Scenario2!EG$4="Secondary rate",(Scenario2!N9),IF(Scenario2!EG$4="Alternate rate",(Scenario2!O9)))))))))),IF(Scenario2!$EG$8="Protect/Accum",IF(Scenario2!EG$4="Taux actuel",(Scenario2!J9),IF(Scenario2!EG$4="Taux actuel moins 1%",(Scenario2!K9),IF(Scenario2!EG$4="Taux personnalisé",(Scenario2!K9),IF(Scenario2!EG$4="Taux actuel moins 2%",(Scenario2!L9))))),IF(Scenario2!$EG$8="Accelerator",IF(Scenario2!EG$4="Taux actuel",(Scenario2!J9),IF(Scenario2!EG$4="Taux actuel moins 1%",(Scenario2!K9),IF(Scenario2!EG$4="Taux personnalisé",(Scenario2!K9),IF(Scenario2!EG$4="Taux actuel moins 2%",(Scenario2!L9))))),IF(Scenario2!EG$4="Temporaire - NA",0,IF(Scenario2!$EG$8="SunSpectrumUL",(IF(Scenario2!EG$4="Taux principal",(Scenario2!M9),IF(Scenario2!EG$4="Taux secondaire",(Scenario2!N9),IF(Scenario2!EG$4="Autre taux",(Scenario2!O9),(Scenario2!C9))))),IF(Scenario2!$EG$8="PermLife",(Scenario2!C9),IF(AND(Scenario2!$EG$8="SunUniversalLife",Scenario2!$EJ$21=1),IF(Scenario2!EG$4="Taux principal",(Scenario2!N9),IF(Scenario2!EG$4="Taux secondaire",(Scenario2!O9),IF(Scenario2!EG$4="Autre taux",(Scenario2!P9),(Scenario2!C9)))),IF(Scenario2!EG$4="Taux principal",(Scenario2!M9),IF(Scenario2!EG$4="Taux secondaire",(Scenario2!N9),IF(Scenario2!EG$4="Autre taux",(Scenario2!O9),(Scenario2!C9))))))))))),NA()) -> 273210 | K10: =IF(ISNUMBER(Scenario2!C9),IF(Scenario2!$EG$10="English",IF(Scenario2!$EG$8="Protect/Accum",IF(Scenario2!EG$4="Current",(Scenario2!O9),IF(Scenario2!EG$4="Current minus 1%",(Scenario2!P9),IF(Scenario2!EG$4="Custom",(Scenario2!P9),IF(Scenario2!EG$4="Current minus 2%",(Scenario2!Q9))))),IF(Scenario2!$EG$8="Accelerator",IF(Scenario2!EG$4="Current",(Scenario2!O9),IF(Scenario2!EG$4="Current minus 1%",(Scenario2!P9),IF(Scenario2!EG$4="Custom",(Scenario2!P9),IF(Scenario2!EG$4="Current minus 2%",(Scenario2!Q9))))),IF(Scenario2!EG$4="Sun Term - NA",HLOOKUP("Total Policy Death Benefit",Scenario2!$A$1:$G$100,Calculations!$A10+1,FALSE),IF(Scenario2!$EG$8="SunSpectrumUL",(IF(Scenario2!EG$4="Primary rate",(Scenario2!Q9),IF(Scenario2!EG$4="Secondary rate",(Scenario2!R9),IF(Scenario2!EG$4="Alternate rate",(Scenario2!S9))))),IF(Scenario2!$EG$8="PermLife",(Scenario2!E9),IF(AND(Scenario2!$EG$8="SunUniversalLife",Scenario2!$EJ$21=1),IF(Scenario2!EG$4="Primary rate",(Scenario2!S9),IF(Scenario2!EG$4="Secondary rate",(Scenario2!T9),IF(Scenario2!EG$4="Alternate rate",(Scenario2!U9)))),IF(Scenario2!EG$4="Primary rate",(Scenario2!R9),IF(Scenario2!EG$4="Secondary rate",(Scenario2!S9),IF(Scenario2!EG$4="Alternate rate",(Scenario2!T9)))))))))),IF(Scenario2!$EG$8="Protect/Accum",IF(Scenario2!EG$4="Taux actuel",(Scenario2!O9),IF(Scenario2!EG$4="Taux actuel moins 1%",(Scenario2!P9),IF(Scenario2!EG$4="Taux personnalisé",(Scenario2!P9),IF(Scenario2!EG$4="Taux actuel moins 2%",(Scenario2!Q9))))),IF(Scenario2!$EG$8="Accelerator",IF(Scenario2!EG$4="Taux actuel",(Scenario2!O9),IF(Scenario2!EG$4="Taux actuel moins 1%",(Scenario2!P9),IF(Scenario2!EG$4="Taux personnalisé",(Scenario2!P9),IF(Scenario2!EG$4="Taux actuel moins 2%",(Scenario2!Q9))))),IF(Scenario2!EG$4="Temporaire - NA",HLOOKUP("Capital-décès total du contrat",Scenario2!$A$1:$G$100,Calculations!$A10+1,FALSE),IF(Scenario2!$EG$8="SunSpectrumUL",(IF(Scenario2!EG$4="Taux principal",(Scenario2!Q9),IF(Scenario2!EG$4="Taux secondaire",(Scenario2!R9),IF(Scenario2!EG$4="Autre taux",(Scenario2!S9))))),IF(Scenario2!$EG$8="PermLife",(Scenario2!E9),IF(AND(Scenario2!$EG$8="SunUniversalLife",Scenario2!$EJ$21=1),IF(Scenario2!EG$4="Taux principal",(Scenario2!S9),IF(Scenario2!EG$4="Taux secondaire",(Scenario2!T9),IF(Scenario2!EG$4="Autre taux",(Scenario2!U9),(Scenario2!E9)))),IF(Scenario2!EG$4="Taux principal",(Scenario2!R9),IF(Scenario2!EG$4="Taux secondaire",(Scenario2!S9),IF(Scenario2!EG$4="Autre taux",(Scenario2!T9),(Scenario2!E9))))))))))),NA()) -> 1535353 | L10: =IF(ISNUMBER(Scenario2!M9),IF(Scenario2!$EG$10="English",IF(Scenario2!$EG$8="Protect/Accum",IF(Scenario2!EG$4="Current",(Scenario2!BO9),IF(Scenario2!EG$4="Current minus 1%",(Scenario2!BP9),IF(Scenario2!EG$4="Custom",(Scenario2!BP9),IF(Scenario2!EG$4="Current minus 2%",(Scenario2!BQ9))))),IF(Scenario2!$EG$8="Accelerator",IF(Scenario2!EG$4="Current",(Scenario2!BC9),IF(Scenario2!EG$4="Current minus 1%",(Scenario2!BD9),IF(Scenario2!EG$4="Custom",(Scenario2!BD9),IF(Scenario2!EG$4="Current minus 2%",(Scenario2!BE9))))),IF(Scenario2!EG$4="Sun Term - NA",HLOOKUP("ACB",Scenario2!$A$1:$S$100,Calculations!$A10+1,FALSE),IF(Scenario2!$EG$8="SunSpectrumUL",(IF(Scenario2!EG$4="Primary rate",(Scenario2!BF9),IF(Scenario2!EG$4="Secondary rate",(Scenario2!BG9),IF(Scenario2!EG$4="Alternate rate",(Scenario2!BH9))))),IF(Scenario2!$EG$8="PermLife",(Scenario2!AD9),IF(Scenario2!$EG$8="SunUniversalLife",IF(Scenario2!EG$4="Primary rate",HLOOKUP("ACB (Primary rate)",Scenario2!$A$1:$EC$100,Calculations!$A10+1,FALSE),IF(Scenario2!EG$4="Secondary rate",HLOOKUP("ACB (Secondary rate)",Scenario2!$A$1:$EC$100,Calculations!$A10+1,FALSE),IF(Scenario2!EG$4="Alternate rate",HLOOKUP("ACB (Alternate rate)",Scenario2!$A$1:$EC$100,Calculations!$A10+1,FALSE)))))))))),IF(Scenario2!$EG$8="Protect/Accum",IF(Scenario2!EG$4="Taux actuel",(Scenario2!BO9),IF(Scenario2!EG$4="Taux actuel moins 1%",(Scenario2!BP9),IF(Scenario2!EG$4="Taux personnalisé",(Scenario2!BP9),IF(Scenario2!EG$4="Taux actuel moins 2%",(Scenario2!BQ9))))),IF(Scenario2!$EG$8="Accelerator",IF(Scenario2!EG$4="Taux actuel",(Scenario2!BC9),IF(Scenario2!EG$4="Taux actuel moins 1%",(Scenario2!BD9),IF(Scenario2!EG$4="Taux personnalisé",(Scenario2!BD9),IF(Scenario2!EG$4="Taux actuel moins 2%",(Scenario2!BE9))))),IF(Scenario2!EG$4="Temporaire - NA",HLOOKUP("CBR",Scenario2!$A$1:$S$100,Calculations!$A10+1,FALSE),IF(Scenario2!$EG$8="PermLife",(Scenario2!AD9),IF(Scenario2!$EG$8="SunSpectrumUL",(IF(Scenario2!EG$4="Taux principal",(Scenario2!BF9),IF(Scenario2!EG$4="Taux secondaire",(Scenario2!BG9),IF(Scenario2!EG$4="Autre taux",(Scenario2!BH9))))),IF(Scenario2!$EG$8="SunUniversalLife",IF(Scenario2!EG$4="Taux principal",HLOOKUP("CBR (taux principal)",Scenario2!$A$1:$EC$100,Calculations!$A10+1,FALSE),IF(Scenario2!EG$4="Taux secondaire",HLOOKUP("CBR (taux secondaire)",Scenario2!$A$1:$EC$100,Calculations!$A10+1,FALSE),IF(Scenario2!EG$4="Autre taux",(Scenario2!BL9),HLOOKUP("CBR (autre taux)",Scenario2!$A$1:$EC$100,Calculations!$A10+1,FALSE))))))))))),NA()) -> 307873.71 | M10: =K10-L10*IF(Calculations!$AT$35=TRUE,Calculations!$AT$38/100,0) -> 1405122.421 | O10: =$AY$51*Cash!AD18+$AY$52*'Fixed Income'!AD18+$AY$53*Equities!AD18+$AY$54*'Real Estate'!AD18+$AY$55*'Alternative Investment'!AD18 -> 3525902.143 | P10: 507877.2 | Q10: 4033779.343 | R10: =(Cash!AD18+'Fixed Income'!AD18+Equities!AD18+'Real Estate'!AD18+'Alternative Investment'!AD18) -> 5795932.382 | S10: =(Cash!AW18+'Fixed Income'!AW18+Equities!AW18+'Real Estate'!AW18+'Alternative Investment'!AW18)+IFERROR(E10-F10,0)+IFERROR(K10-L10,0) -> 3137675.208 | T10: =Cash!AZ18 -> 896046.3576 | U10: ='Fixed Income'!AZ18 -> 352197.6715 | V10: =Equities!AZ18 -> 897184.2739 | W10: ='Real Estate'!AZ18 -> 953154.2337 | X10: ='Alternative Investment'!AZ18 -> 702900.146 | Y10: 3801482.683 | Z10: 2984274.853 | AA10: 6785757.535 | AB10: 0 | AC10: =IRR(($AB$3:$AB10,AA10),0.1) -> 0.03891147139 | AE10: =('Cash (2)'!AD18+'Fixed Income (2)'!AD18+'Equities (2)'!AD18+'Real Estate (2)'!AD18+'Alternative Investment (2)'!AD18) -> 6630307.313 | AF10: =($AY$51*'Cash (2)'!AD18+$AY$52*'Fixed Income (2)'!AD18+$AY$53*'Equities (2)'!AD18+$AY$54*'Real Estate (2)'!AD18+$AY$55*'Alternative Investment (2)'!AD18) -> 4146194.477 | AG10: =('Cash (2)'!AW18+'Fixed Income (2)'!AW18+'Equities (2)'!AW18+'Real Estate (2)'!AW18+'Alternative Investment (2)'!AW18) -> 583656.9528 | AH10: ='Cash (2)'!AZ18 -> 896046.3576 | AI10: ='Fixed Income (2)'!AZ18 -> 659699.1585 | AJ10: ='Equities (2)'!AZ18 -> 1103047.058 | AK10: ='Real Estate (2)'!AZ18 -> 953154.2337 | AL10: ='Alternative Investment (2)'!AZ18 -> 702900.146 | AM10: 4314846.954 | AN10: 0 | AO10: =IRR(($AN$3:$AN10,AM10),0.1) -> -0.01825335915 | AP10: 49999.61 | AQ10: 8000 | AR10: 32000 | AS10: Tool Version Number | AT10: PV Interest Rate | AU10: Max Year | BB10: 57999.61 | BC10: 32000 | BD10: 89999.61 | BE10: 1300000 | BF10: 494002.73 | BG10: 876000 | BH10: 950000 | BI10: 750000 | BJ10: 0 | BK10: 57999.61 | BL10: 0 | BM10: 0 | BN10: 0 | BO10: 0 | BP10: 0 | BQ10: 32000 | BR10: 0 | BS10: 0 | BT10: 0 | BU10: 57999.61 | BV10: 32000 | BW10: 0 | BX10: 0 | BY10: 1300000 | BZ10: 436003.12 | CA10: 844000 | CB10: 950000 | CC10: 750000 | CE10: =Scenario1!EP9 -> 0 | CF10: =Scenario2!EP9 -> 0 | CG10: 0 | CH10: 1300000 | CI10: 900000 | CJ10: 1100000 | CK10: 950000 | CL10: 750000 | CM10: 0 | CN10: 0 | CO10: 0 | CP10: 0 | CQ10: 0 | CR10: 0 | CS10: 0 | CT10: 0 | CU10: 0 | CV10: 0 | CW10: 0 | CX10: 0 | CY10: 0 | CZ10: 0 | DA10: 0 | DB10: 1300000 | DC10: 900000 | DD10: 1100000 | DE10: 950000 | DF10: 750000 | DH10: 8 | DI10: =(Cash!AB18+'Fixed Income'!AB18+Equities!AB18+'Real Estate'!AB18+'Alternative Investment'!AB18) -> 87897.18265 | DJ10: 607055.7723 | DK10: =(Cash!AT18+'Fixed Income'!AT18+Equities!AT18+'Real Estate'!AT18+'Alternative Investment'!AT18) -> 109411.0077 | DL10: =(Cash!AY18+'Fixed Income'!AY18+Equities!AY18+'Real Estate'!AY18+'Alternative Investment'!AY18) -> 2380225.226 | DM10: 2489636.234 | DO10: =('Cash (2)'!AB18+'Fixed Income (2)'!AB18+'Equities (2)'!AB18+'Real Estate (2)'!AB18+'Alternative Investment (2)'!AB18) -> 100384.1104 | DP10: 658927.5358 | DQ10: =('Cash (2)'!AT18+'Fixed Income (2)'!AT18+'Equities (2)'!AT18+'Real Estate (2)'!AT18+'Alternative Investment (2)'!AT18) -> 119422.2086 | DR10: =('Cash (2)'!AY18+'Fixed Income (2)'!AY18+'Equities (2)'!AY18+'Real Estate (2)'!AY18+'Alternative Investment (2)'!AY18) -> 2735343.796 | DS10: 2854766.005
